Workbook

Sheet Velkomst

Sheet Tabel 1 ØJ
A1: Tabel 1. Forsikrede medlemmer
A3: Østjylland
C5: Mænd | E5: Kvinder | G5: I alt
A7: Civ. ing. | C7: 3508 | E7: 1169 | G7: 4677
A8: Diplom ing. | C8: 5921 | E8: 1298 | G8: 7219
A9: Cand. Scient. Tek. | C9: 2075 | E9: 1400 | G9: 3475
A10: MA. Hum. | C10: 2786 | E10: 5949 | G10: 8735
A11: MA. Nat. | C11: 1620 | E11: 1350 | G11: 2970
A12: MA. Ph.d. | C12: 324 | E12: 266 | G12: 590
A13: MA. Samf. | C13: 213 | E13: 752 | G13: 965
A14: Øvrige Mag. | C14: 261 | E14: 492 | G14: 753
A15: Agronom | C15: 184 | E15: 150 | G15: 334
A16: Landsk. Arkt. | C16: 13 | E16: 29 | G16: 42
A17: Hortonom | C17: 12 | E17: 14 | G17: 26
A18: Forstkand. | C18: 40 | E18: 13 | G18: 53
A19: Jordbrugsakad. | C19: 249 | E19: 206 | G19: 455
A20: Mejeriing. | C20: 58 | E20: 30 | G20: 88
A21: Levn.m.kand. | C21: 4 | E21: 31 | G21: 35
A22: Dyrlæge | C22: 36 | E22: 206 | G22: 242
A23: Farmaceut | C23: 88 | E23: 297 | G23: 385
A24: Læge | C24: 863 | E24: 2000 | G24: 2863
A25: Tandlæge | C25: 81 | E25: 414 | G25: 495
A26: Arkitekt | C26: 699 | E26: 883 | G26: 1582
A27: Landinspek. | C27: 101 | E27: 41 | G27: 142
A28: Bibliotekar | C28: 72 | E28: 267 | G28: 339
A29: Musikudd. | C29: 65 | E29: 78 | G29: 143
A30: Teolog | C30: 126 | E30: 199 | G30: 325
A31: Psykolog | C31: 349 | E31: 1740 | G31: 2089
A32: Jurist | C32: 915 | E32: 1687 | G32: 2602
A33: Økonom | C33: 955 | E33: 539 | G33: 1494
A34: Samf. Adm. | C34: 1454 | E34: 2080 | G34: 3534
A35: Cand. Merc. | C35: 4094 | E35: 3696 | G35: 7790
A36: HA | C36: 671 | E36: 575 | G36: 1246
A37: HD | C37: 446 | E37: 379 | G37: 825
A38: Komm. og Sprog | C38: 169 | E38: 1104 | G38: 1273
A39: Bygningskonst. | C39: 2038 | E39: 381 | G39: 2419
A40: Cand. IT. | C40: 611 | E40: 607 | G40: 1218
A41: Bac. Samf. | C41: 127 | E41: 128 | G41: 255
A42: Bac. Hum. | C42: 474 | E42: 815 | G42: 1289
A43: Bac. Nat. | C43: 674 | E43: 272 | G43: 946
A44: Andre | C44: 1767 | E44: 1648 | G44: 3415
A46: Total | C46: 33894 | E46: 32979 | G46: 66873
A48: Ingeniører i alt | C48: 9429 | E48: 2467 | G48: 11896
A49: Magistre i alt | C49: 5204 | E49: 8809 | G49: 14013
A50: DJØF'ere i alt | C50: 8089 | E50: 8577 | G50: 16666
A57: Horsens
C59: Mænd | E59: Kvinder | G59: I alt
A61: Civ. ing. | C61: 240 | E61: 94 | G61: 334
A62: Diplom ing. | C62: 711 | E62: 237 | G62: 948
A63: Cand. Scient. Tek. | C63: 101 | E63: 81 | G63: 182
A64: MA. Hum. | C64: 136 | E64: 302 | G64: 438
A65: MA. Nat. | C65: 65 | E65: 76 | G65: 141
A66: MA. Ph.d. | C66: 5 | E66: 6 | G66: 11
A67: MA. Samf. | C67: 10 | E67: 31 | G67: 41
A68: Øvrige Mag. | C68: 16 | E68: 18 | G68: 34
A69: Agronom | C69: 18 | E69: 18 | G69: 36
A70: Landsk. Arkt. | C70: 1 | E70: 1 | G70: 2
A71: Hortonom | C71: 0 | E71: 1 | G71: 1
A72: Forstkand. | C72: 6 | E72: 0 | G72: 6
A73: Jordbrugsakad. | C73: 25 | E73: 20 | G73: 45
A74: Mejeriing. | C74: 5 | E74: 1 | G74: 6
A75: Levn.m.kand. | C75: 0 | E75: 1 | G75: 1
A76: Dyrlæge | C76: 6 | E76: 16 | G76: 22
A77: Farmaceut | C77: 4 | E77: 18 | G77: 22
A78: Læge | C78: 28 | E78: 74 | G78: 102
A79: Tandlæge | C79: 4 | E79: 20 | G79: 24
A80: Arkitekt | C80: 31 | E80: 40 | G80: 71
A81: Landinspek. | C81: 12 | E81: 6 | G81: 18
A82: Bibliotekar | C82: 6 | E82: 24 | G82: 30
A83: Musikudd. | C83: 3 | E83: 5 | G83: 8
A84: Teolog | C84: 8 | E84: 8 | G84: 16
A85: Psykolog | C85: 15 | E85: 86 | G85: 101
A86: Jurist | C86: 45 | E86: 111 | G86: 156
A87: Økonom | C87: 33 | E87: 38 | G87: 71
A88: Samf. Adm. | C88: 79 | E88: 111 | G88: 190
A89: Cand. Merc. | C89: 247 | E89: 277 | G89: 524
A90: HA | C90: 53 | E90: 47 | G90: 100
A91: HD | C91: 36 | E91: 31 | G91: 67
A92: Komm. og Sprog | C92: 10 | E92: 70 | G92: 80
A93: Bygningskonst. | C93: 424 | E93: 87 | G93: 511
A94: Cand. IT. | C94: 22 | E94: 30 | G94: 52
A95: Bac. Samf. | C95: 8 | E95: 11 | G95: 19
A96: Bac. Hum. | C96: 13 | E96: 35 | G96: 48
A97: Bac. Nat. | C97: 117 | E97: 31 | G97: 148
A98: Andre | C98: 154 | E98: 112 | G98: 266
A100: Total | C100: 2672 | E100: 2155 | G100: 4827
A102: Ingeniører i alt | C102: 951 | E102: 331 | G102: 1282
A103: Magistre i alt | C103: 232 | E103: 433 | G103: 665
A104: DJØF'ere i alt | C104: 457 | E104: 584 | G104: 1041
A111: Syddjurs
C113: Mænd | E113: Kvinder | G113: I alt
A115: Civ. ing. | C115: 70 | E115: 96 | G115: 166
A116: Diplom ing. | C116: 0 | E116: 0 | G116: 0
A117: Cand. Scient. Tek. | C117: 205 | E117: 238 | G117: 443
A118: MA. Hum. | C118: 44 | E118: 91 | G118: 135
A119: MA. Nat. | C119: 88 | E119: 286 | G119: 374
A120: MA. Ph.d. | C120: 65 | E120: 116 | G120: 181
A121: MA. Samf. | C121: 13 | E121: 26 | G121: 39
A122: Øvrige Mag. | C122: 6 | E122: 27 | G122: 33
A123: Agronom | C123: 9 | E123: 28 | G123: 37
A124: Landsk. Arkt. | C124: 17 | E124: 29 | G124: 46
A125: Hortonom | C125: 0 | E125: 5 | G125: 5
A126: Forstkand. | C126: 2 | E126: 3 | G126: 5
A127: Jordbrugsakad. | C127: 28 | E127: 65 | G127: 93
A128: Mejeriing. | C128: 2 | E128: 3 | G128: 5
A129: Levn.m.kand. | C129: 2 | E129: 3 | G129: 5
A130: Dyrlæge | C130: 3 | E130: 12 | G130: 15
A131: Farmaceut | C131: 2 | E131: 9 | G131: 11
A132: Læge | C132: 12 | E132: 51 | G132: 63
A133: Tandlæge | C133: 3 | E133: 19 | G133: 22
A134: Arkitekt | C134: 29 | E134: 79 | G134: 108
A135: Landinspek. | C135: 2 | E135: 5 | G135: 7
A136: Bibliotekar | C136: 2 | E136: 13 | G136: 15
A137: Musikudd. | C137: 3 | E137: 6 | G137: 9
A138: Teolog | C138: 4 | E138: 17 | G138: 21
A139: Psykolog | C139: 11 | E139: 73 | G139: 84
A140: Jurist | C140: 20 | E140: 58 | G140: 78
A141: Økonom | C141: 17 | E141: 29 | G141: 46
A142: Samf. Adm. | C142: 22 | E142: 86 | G142: 108
A143: Cand. Merc. | C143: 71 | E143: 145 | G143: 216
A144: HA | C144: 16 | E144: 43 | G144: 59
A145: HD | C145: 13 | E145: 26 | G145: 39
A146: Komm. og Sprog | C146: 4 | E146: 46 | G146: 50
A147: Bygningskonst. | C147: 64 | E147: 74 | G147: 138
A148: Cand. IT. | C148: 15 | E148: 26 | G148: 41
A149: Bac. Samf. | C149: 2 | E149: 3 | G149: 5
A150: Bac. Hum. | C150: 12 | E150: 20 | G150: 32
A151: Bac. Nat. | C151: 11 | E151: 17 | G151: 28
A152: Andre | C152: 61 | E152: 113 | G152: 174
A154: Total | C154: 922 | E154: 1921 | G154: 2843
A156: Ingeniører i alt | C156: 70 | E156: 96 | G156: 166
A157: Magistre i alt | C157: 216 | E157: 546 | G157: 762
A158: DJØF'ere i alt | C158: 146 | E158: 361 | G158: 507
A165: Norddjurs
C167: Mænd | E167: Kvinder | G167: I alt
A169: Civ. ing. | C169: 17 | E169: 28 | G169: 45
A170: Diplom ing. | C170: 73 | E170: 96 | G170: 169
A171: Cand. Scient. Tek. | C171: 13 | E171: 20 | G171: 33
A172: MA. Hum. | C172: 23 | E172: 78 | G172: 101
A173: MA. Nat. | C173: 19 | E173: 33 | G173: 52
A174: MA. Ph.d. | C174: 4 | E174: 6 | G174: 10
A175: MA. Samf. | C175: 2 | E175: 7 | G175: 9
A176: Øvrige Mag. | C176: 2 | E176: 7 | G176: 9
A177: Agronom | C177: 4 | E177: 9 | G177: 13
A178: Landsk. Arkt. | C178: 0 | E178: 0 | G178: 0
A179: Hortonom | C179: 1 | E179: 1 | G179: 2
A180: Forstkand. | C180: 2 | E180: 2 | G180: 4
A181: Jordbrugsakad. | C181: 7 | E181: 12 | G181: 19
A182: Mejeriing. | C182: 0 | E182: 0 | G182: 0
A183: Levn.m.kand. | C183: 0 | E183: 3 | G183: 3
A184: Dyrlæge | C184: 0 | E184: 8 | G184: 8
A185: Farmaceut | C185: 1 | E185: 3 | G185: 4
A186: Læge | C186: 1 | E186: 4 | G186: 5
A187: Tandlæge | C187: 0 | E187: 4 | G187: 4
A188: Arkitekt | C188: 4 | E188: 7 | G188: 11
A189: Landinspek. | C189: 2 | E189: 2 | G189: 4
A190: Bibliotekar | C190: 1 | E190: 6 | G190: 7
A191: Musikudd. | C191: 2 | E191: 3 | G191: 5
A192: Teolog | C192: 5 | E192: 14 | G192: 19
A193: Psykolog | C193: 2 | E193: 12 | G193: 14
A194: Jurist | C194: 4 | E194: 15 | G194: 19
A195: Økonom | C195: 4 | E195: 6 | G195: 10
A196: Samf. Adm. | C196: 15 | E196: 22 | G196: 37
A197: Cand. Merc. | C197: 22 | E197: 45 | G197: 67
A198: HA | C198: 8 | E198: 14 | G198: 22
A199: HD | C199: 7 | E199: 11 | G199: 18
A200: Komm. og Sprog | C200: 0 | E200: 9 | G200: 9
A201: Bygningskonst. | C201: 28 | E201: 32 | G201: 60
A202: Cand. IT. | C202: 2 | E202: 5 | G202: 7
A203: Bac. Samf. | C203: 1 | E203: 2 | G203: 3
A204: Bac. Hum. | C204: 3 | E204: 9 | G204: 12
A205: Bac. Nat. | C205: 1 | E205: 4 | G205: 5
A206: Andre | C206: 23 | E206: 39 | G206: 62
A208: Total | C208: 296 | E208: 566 | G208: 862
A210: Ingeniører i alt | C210: 90 | E210: 124 | G210: 214
A211: Magistre i alt | C211: 50 | E211: 131 | G211: 181
A212: DJØF'ere i alt | C212: 53 | E212: 102 | G212: 155
A219: Favrskov
C221: Mænd | E221: Kvinder | G221: I alt
A223: Civ. ing. | C223: 225 | E223: 78 | G223: 303
A224: Diplom ing. | C224: 369 | E224: 62 | G224: 431
A225: Cand. Scient. Tek. | C225: 87 | E225: 73 | G225: 160
A226: MA. Hum. | C226: 86 | E226: 258 | G226: 344
A227: MA. Nat. | C227: 99 | E227: 79 | G227: 178
A228: MA. Ph.d. | C228: 11 | E228: 7 | G228: 18
A229: MA. Samf. | C229: 6 | E229: 18 | G229: 24
A230: Øvrige Mag. | C230: 9 | E230: 11 | G230: 20
A231: Agronom | C231: 24 | E231: 17 | G231: 41
A232: Landsk. Arkt. | C232: 2 | E232: 2 | G232: 4
A233: Hortonom | C233: 2 | E233: 2 | G233: 4
A234: Forstkand. | C234: 5 | E234: 1 | G234: 6
A235: Jordbrugsakad. | C235: 33 | E235: 22 | G235: 55
A236: Mejeriing. | C236: 3 | E236: 1 | G236: 4
A237: Levn.m.kand. | C237: 0 | E237: 1 | G237: 1
A238: Dyrlæge | C238: 2 | E238: 19 | G238: 21
A239: Farmaceut | C239: 1 | E239: 10 | G239: 11
A240: Læge | C240: 41 | E240: 110 | G240: 151
A241: Tandlæge | C241: 4 | E241: 19 | G241: 23
A242: Arkitekt | C242: 12 | E242: 21 | G242: 33
A243: Landinspek. | C243: 10 | E243: 2 | G243: 12
... 330 more rows

Sheet Tabel 2 ØJ
A1: Tabel 2. Antal bruttoledighedsberørte og gennemsnitlig antal ledige brutto
A3: Østjylland
C5: Mænd | F5: Kvinder | I5: I alt
C6: Ledigheds- berørte | D6: Gns. brutto- ledighed | F6: Ledigheds- berørte | G6: Gns. brutto- ledighed | I6: Ledigheds- berørte | J6: Gns. brutto- ledighed
A9: Civ. ing. | C9: 146 | D9: 121.3191542 | F9: 47 | G9: 35.42755567 | I9: 193 | J9: 156.7467099
A10: Diplom ing. | C10: 160 | D10: 125.9645731 | F10: 52 | G10: 42.88405164 | I10: 212 | J10: 168.8486247
A11: Cand. Scient. Tek. | C11: 183 | D11: 145.037111 | F11: 139 | G11: 106.1161355 | I11: 322 | J11: 251.1532464
A12: MA. Hum. | C12: 318 | D12: 255.1843074 | F12: 625 | G12: 464.7969812 | I12: 943 | J12: 719.9812886
A13: MA. Nat. | C13: 71 | D13: 57.30306243 | F13: 62 | G13: 46.41052829 | I13: 133 | J13: 103.7135907
A14: MA. Ph.d. | C14: 6 | D14: 4.162040791 | F14: 8 | G14: 6.383084887 | I14: 14 | J14: 10.54512568
A15: MA. Samf. | C15: 36 | D15: 28.6371858 | F15: 120 | G15: 93.66431735 | I15: 156 | J15: 122.3015031
A16: Øvrige Mag. | C16: 31 | D16: 27.7926776 | F16: 75 | G16: 59.72057631 | I16: 106 | J16: 87.51325391
A17: Agronom | C17: 3 | D17: 2.999438658 | F17: 4 | G17: 2.845381401 | I17: 7 | J17: 5.844820059
A18: Landsk. Arkt. | C18: 0 | D18: 0 | F18: 1 | G18: 0.5382648288 | I18: 1 | J18: 0.5382648288
A19: Hortonom | C19: 0 | D19: 0 | F19: 2 | G19: 1.41395871 | I19: 2 | J19: 1.41395871
A20: Forstkand. | C20: 2 | D20: 1.999625772 | F20: 0 | G20: 0 | I20: 2 | J20: 1.999625772
A21: Jordbrugsakad. | C21: 5 | D21: 4.99906443 | F21: 7 | G21: 4.79760494 | I21: 12 | J21: 9.796669369
A22: Mejeriing. | C22: 2 | D22: 1.538077715 | F22: 2 | G22: 1.861161355 | I22: 4 | J22: 3.399239069
A23: Levn.m.kand. | C23: 2 | D23: 1.627892472 | F23: 2 | G23: 1.999625772 | I23: 4 | J23: 3.627518244
A24: Dyrlæge | C24: 0 | D24: 0 | F24: 1 | G24: 0.7690388574 | I24: 1 | J24: 0.7690388574
A25: Farmaceut | C25: 12 | D25: 10.12037672 | F25: 27 | G25: 21.48506206 | I25: 39 | J25: 31.60543878
A26: Læge | C26: 53 | D26: 43.07615543 | F26: 106 | G26: 78.1413335 | I26: 159 | J26: 121.2174889
A27: Tandlæge | C27: 7 | D27: 3.871390258 | F27: 25 | G27: 21.34410279 | I27: 32 | J27: 25.21549305
A28: Arkitekt | C28: 48 | D28: 37.84132726 | F28: 76 | G28: 55.42693195 | I28: 124 | J28: 93.26825922
A29: Landinspek. | C29: 0 | D29: 0 | F29: 0 | G29: 0 | I29: 0 | J29: 0
A30: Bibliotekar | C30: 1 | D30: 0.9998128859 | F30: 7 | G30: 4.860600012 | I30: 8 | J30: 5.860412898
A31: Musikudd. | C31: 4 | D31: 3.413584482 | F31: 7 | G31: 3.930643049 | I31: 11 | J31: 7.344227531
A32: Teolog | C32: 7 | D32: 5.567891224 | F32: 6 | G32: 4.418387077 | I32: 13 | J32: 9.986278301
A33: Psykolog | C33: 23 | D33: 16.57955467 | F33: 150 | G33: 113.0312481 | I33: 173 | J33: 129.6108027
A34: Jurist | C34: 50 | D34: 40.26507828 | F34: 80 | G34: 64.62358885 | I34: 130 | J34: 104.8886671
A35: Økonom | C35: 33 | D35: 26.69307054 | F35: 19 | G35: 14.47327387 | I35: 52 | J35: 41.16634441
A36: Samf. Adm. | C36: 84 | D36: 69.51038483 | F36: 139 | G36: 105.0389821 | I36: 223 | J36: 174.5493669
A37: Cand. Merc. | C37: 295 | D37: 241.7127175 | F37: 249 | G37: 186.8078338 | I37: 544 | J37: 428.5205514
A38: HA | C38: 63 | D38: 52.8865465 | F38: 47 | G38: 36.1036612 | I38: 110 | J38: 88.9902077
A39: HD | C39: 13 | D39: 11.02476143 | F39: 17 | G39: 13.70049273 | I39: 30 | J39: 24.72525416
A40: Komm. og Sprog | C40: 14 | D40: 12.44932327 | F40: 50 | G40: 36.42986341 | I40: 64 | J40: 48.87918668
A41: Bygningskonst. | C41: 101 | D41: 86.03686147 | F41: 38 | G41: 30.96900143 | I41: 139 | J41: 117.0058629
A42: Cand. IT. | C42: 60 | D42: 50.3074908 | F42: 83 | G42: 67.16335059 | I42: 143 | J42: 117.4708414
A43: Bac. Samf. | C43: 13 | D43: 10.6287033 | F43: 14 | G43: 10.70916235 | I43: 27 | J43: 21.33786565
A44: Bac. Hum. | C44: 78 | D44: 57.22197967 | F44: 161 | G44: 119.7679785 | I44: 239 | J44: 176.9899582
A45: Bac. Nat. | C45: 75 | D45: 55.01091499 | F45: 52 | G45: 41.60730992 | I45: 127 | J45: 96.61822491
A46: Andre | C46: 99 | D46: 79.59895216 | F46: 134 | G46: 98.39705607 | I46: 233 | J46: 177.9960082
A48: Total | C48: 2093 | D48: 1688.382025 | F48: 2627 | G48: 1993.260525 | I48: 4720 | J48: 3681.64255
A50: Ingeniører i alt | C50: 306 | D50: 247.2837273 | F50: 99 | G50: 78.31160731 | I50: 405 | J50: 325.5953346
A51: Magistre i alt | C51: 462 | D51: 373.079274 | F51: 890 | G51: 670.9754881 | I51: 1352 | J51: 1044.054762
A52: DJØF'ere i alt | C52: 525 | D52: 431.0677977 | F52: 534 | G52: 407.0473399 | I52: 1059 | J52: 838.1151375
A57: Horsens
C59: Mænd | F59: Kvinder | I59: I alt
C60: Ledigheds- berørte | D60: Gns. brutto- ledighed | F60: Ledigheds- berørte | G60: Gns. brutto- ledighed | I60: Ledigheds- berørte | J60: Gns. brutto- ledighed
A63: Civ. ing. | C63: 7 | D63: 6.444832533 | F63: 3 | G63: 2.999438658 | I63: 10 | J63: 9.444271191
A64: Diplom ing. | C64: 17 | D64: 12.78862346 | F64: 8 | G64: 7.07478326 | I64: 25 | J64: 19.86340672
A65: Cand. Scient. Tek. | C65: 6 | D65: 5.491174453 | F65: 5 | G65: 3.429801035 | I65: 11 | J65: 8.920975488
A66: MA. Hum. | C66: 7 | D66: 5.144389696 | F66: 24 | G66: 16.71490052 | I66: 31 | J66: 21.85929021
A67: MA. Nat. | C67: 1 | D67: 0.9998128859 | F67: 1 | G67: 0.7228840516 | I67: 2 | J67: 1.722696938
A68: MA. Ph.d. | C68: 0 | D68: 0 | F68: 0 | G68: 0 | I68: 0 | J68: 0
A69: MA. Samf. | C69: 1 | D69: 0.4690326202 | F69: 3 | G69: 2.618973367 | I69: 4 | J69: 3.088005988
A70: Øvrige Mag. | C70: 0 | D70: 0 | F70: 2 | G70: 1.26114888 | I70: 2 | J70: 1.26114888
A71: Agronom | C71: 0 | D71: 0 | F71: 1 | G71: 0.7690388574 | I71: 1 | J71: 0.7690388574
A72: Landsk. Arkt. | C72: 0 | D72: 0 | F72: 0 | G72: 0 | I72: 0 | J72: 0
A73: Hortonom | C73: 0 | D73: 0 | F73: 0 | G73: 0 | I73: 0 | J73: 0
A74: Forstkand. | C74: 0 | D74: 0 | F74: 0 | G74: 0 | I74: 0 | J74: 0
A75: Jordbrugsakad. | C75: 0 | D75: 0 | F75: 1 | G75: 0.7690388574 | I75: 1 | J75: 0.7690388574
A76: Mejeriing. | C76: 0 | D76: 0 | F76: 0 | G76: 0 | I76: 0 | J76: 0
A77: Levn.m.kand. | C77: 0 | D77: 0 | F77: 0 | G77: 0 | I77: 0 | J77: 0
A78: Dyrlæge | C78: 0 | D78: 0 | F78: 0 | G78: 0 | I78: 0 | J78: 0
A79: Farmaceut | C79: 3 | D79: 2.214806961 | F79: 0 | G79: 0 | I79: 3 | J79: 2.214806961
A80: Læge | C80: 0 | D80: 0 | F80: 2 | G80: 1.307303686 | I80: 2 | J80: 1.307303686
A81: Tandlæge | C81: 0 | D81: 0 | F81: 0 | G81: 0 | I81: 0 | J81: 0
A82: Arkitekt | C82: 1 | D82: 0.9998128859 | F82: 2 | G82: 1.076529658 | I82: 3 | J82: 2.076342544
A83: Landinspek. | C83: 0 | D83: 0 | F83: 0 | G83: 0 | I83: 0 | J83: 0
A84: Bibliotekar | C84: 0 | D84: 0 | F84: 0 | G84: 0 | I84: 0 | J84: 0
A85: Musikudd. | C85: 1 | D85: 0.9998128859 | F85: 0 | G85: 0 | I85: 1 | J85: 0.9998128859
A86: Teolog | C86: 0 | D86: 0 | F86: 0 | G86: 0 | I86: 0 | J86: 0
A87: Psykolog | C87: 1 | D87: 0.9748643423 | F87: 9 | G87: 5.254163288 | I87: 10 | J87: 6.229027631
A88: Jurist | C88: 0 | D88: 0 | F88: 0 | G88: 0 | I88: 0 | J88: 0
A89: Økonom | C89: 1 | D89: 0.9536580802 | F89: 1 | G89: 0.1690263831 | I89: 2 | J89: 1.122684463
A90: Samf. Adm. | C90: 2 | D90: 1.26114888 | F90: 5 | G90: 4.349154868 | I90: 7 | J90: 5.610303749
A91: Cand. Merc. | C91: 10 | D91: 8.252978232 | F91: 11 | G91: 7.941745151 | I91: 21 | J91: 16.19472338
A92: HA | C92: 5 | D92: 4.629825984 | F92: 2 | G92: 1.815006549 | I92: 7 | J92: 6.444832533
A93: HD | C93: 3 | D93: 2.999438658 | F93: 7 | G93: 5.275993264 | I93: 10 | J93: 8.275431922
A94: Komm. og Sprog | C94: 0 | D94: 0 | F94: 5 | G94: 4.537516372 | I94: 5 | J94: 4.537516372
A95: Bygningskonst. | C95: 17 | D95: 14.824487 | F95: 6 | G95: 4.35383272 | I95: 23 | J95: 19.17831972
A96: Cand. IT. | C96: 1 | D96: 0.9998128859 | F96: 2 | G96: 1.307303686 | I96: 3 | J96: 2.307116572
A97: Bac. Samf. | C97: 0 | D97: 0 | F97: 0 | G97: 0 | I97: 0 | J97: 0
A98: Bac. Hum. | C98: 1 | D98: 0.9998128859 | F98: 6 | G98: 4.01422067 | I98: 7 | J98: 5.014033556
A99: Bac. Nat. | C99: 15 | D99: 11.82311483 | F99: 4 | G99: 3.030000624 | I99: 19 | J99: 14.85311545
A100: Andre | C100: 11 | D100: 8.919104347 | F100: 9 | G100: 6.813447265 | I100: 20 | J100: 15.73255161
A102: Total | C102: 111 | D102: 92.1905445 | F102: 118 | G102: 86.83621281 | I102: 229 | J102: 179.0267573
A104: Ingeniører i alt | C104: 24 | D104: 19.233456 | F104: 11 | G104: 10.07422192 | I104: 35 | J104: 29.30767791
A105: Magistre i alt | C105: 9 | D105: 6.613235202 | F105: 30 | G105: 21.31790682 | I105: 39 | J105: 27.93114202
A106: DJØF'ere i alt | C106: 18 | D106: 15.09761118 | F106: 19 | G106: 14.27493295 | I106: 37 | J106: 29.37254413
A111: Syddjurs
C113: Mænd | F113: Kvinder | I113: I alt
C114: Ledigheds- berørte | D114: Gns. brutto- ledighed | F114: Ledigheds- berørte | G114: Gns. brutto- ledighed | I114: Ledigheds- berørte | J114: Gns. brutto- ledighed
A117: Civ. ing. | C117: 3 | D117: 2.026445456 | F117: 0 | G117: 0 | I117: 3 | J117: 2.026445456
A118: Diplom ing. | C118: 5 | D118: 3.983658704 | F118: 2 | G118: 1.764485748 | I118: 7 | J118: 5.748144452
A119: Cand. Scient. Tek. | C119: 2 | D119: 1.90731616 | F119: 3 | G119: 2.307116572 | I119: 5 | J119: 4.214432732
A120: MA. Hum. | C120: 7 | D120: 5.890974864 | F120: 21 | G120: 11.78569201 | I120: 28 | J120: 17.67666687
A121: MA. Nat. | C121: 1 | D121: 0.5382648288 | F121: 1 | G121: 0.3074908002 | I121: 2 | J121: 0.845755629
A122: MA. Ph.d. | C122: 1 | D122: 0.8151936631 | F122: 0 | G122: 0 | I122: 1 | J122: 0.8151936631
A123: MA. Samf. | C123: 1 | D123: 0.9998128859 | F123: 4 | G123: 3.630013098 | I123: 5 | J123: 4.629825984
A124: Øvrige Mag. | C124: 0 | D124: 0 | F124: 1 | G124: 0.9998128859 | I124: 1 | J124: 0.9998128859
A125: Agronom | C125: 0 | D125: 0 | F125: 1 | G125: 0.7690388574 | I125: 1 | J125: 0.7690388574
A126: Landsk. Arkt. | C126: 0 | D126: 0 | F126: 0 | G126: 0 | I126: 0 | J126: 0
A127: Hortonom | C127: 0 | D127: 0 | F127: 0 | G127: 0 | I127: 0 | J127: 0
A128: Forstkand. | C128: 1 | D128: 0.9998128859 | F128: 0 | G128: 0 | I128: 1 | J128: 0.9998128859
A129: Jordbrugsakad. | C129: 1 | D129: 0.9998128859 | F129: 1 | G129: 0.7690388574 | I129: 2 | J129: 1.768851743
A130: Mejeriing. | C130: 0 | D130: 0 | F130: 0 | G130: 0 | I130: 0 | J130: 0
A131: Levn.m.kand. | C131: 1 | D131: 0.9998128859 | F131: 1 | G131: 0.9998128859 | I131: 2 | J131: 1.999625772
A132: Dyrlæge | C132: 0 | D132: 0 | F132: 0 | G132: 0 | I132: 0 | J132: 0
A133: Farmaceut | C133: 0 | D133: 0 | F133: 0 | G133: 0 | I133: 0 | J133: 0
A134: Læge | C134: 0 | D134: 0 | F134: 3 | G134: 0.9686272064 | I134: 3 | J134: 0.9686272064
A135: Tandlæge | C135: 0 | D135: 0 | F135: 1 | G135: 0.9998128859 | I135: 1 | J135: 0.9998128859
A136: Arkitekt | C136: 1 | D136: 0.9998128859 | F136: 4 | G136: 3.292584045 | I136: 5 | J136: 4.292396931
A137: Landinspek. | C137: 0 | D137: 0 | F137: 0 | G137: 0 | I137: 0 | J137: 0
A138: Bibliotekar | C138: 0 | D138: 0 | F138: 0 | G138: 0 | I138: 0 | J138: 0
A139: Musikudd. | C139: 0 | D139: 0 | F139: 0 | G139: 0 | I139: 0 | J139: 0
A140: Teolog | C140: 0 | D140: 0 | F140: 1 | G140: 0.9998128859 | I140: 1 | J140: 0.9998128859
A141: Psykolog | C141: 1 | D141: 0.9998128859 | F141: 2 | G141: 1.214994075 | I141: 3 | J141: 2.214806961
A142: Jurist | C142: 1 | D142: 0.9536580802 | F142: 0 | G142: 0 | I142: 1 | J142: 0.9536580802
A143: Økonom | C143: 0 | D143: 0 | F143: 0 | G143: 0 | I143: 0 | J143: 0
A144: Samf. Adm. | C144: 2 | D144: 1.538077715 | F144: 4 | G144: 3.491548681 | I144: 6 | J144: 5.029626396
A145: Cand. Merc. | C145: 4 | D145: 2.706916984 | F145: 2 | G145: 1.445768103 | I145: 6 | J145: 4.152685087
A146: HA | C146: 1 | D146: 0.9998128859 | F146: 0 | G146: 0 | I146: 1 | J146: 0.9998128859
A147: HD | C147: 1 | D147: 0.9998128859 | F147: 0 | G147: 0 | I147: 1 | J147: 0.9998128859
A148: Komm. og Sprog | C148: 1 | D148: 0.7690388574 | F148: 2 | G148: 1.892347034 | I148: 3 | J148: 2.661385892
A149: Bygningskonst. | C149: 1 | D149: 1 | F149: 0 | G149: 0 | I149: 1 | J149: 1
A150: Cand. IT. | C150: 0 | D150: 0 | F150: 1 | G150: 0.9998128859 | I150: 1 | J150: 0.9998128859
A151: Bac. Samf. | C151: 0 | D151: 0 | F151: 0 | G151: 0 | I151: 0 | J151: 0
A152: Bac. Hum. | C152: 0 | D152: 0 | F152: 2 | G152: 1.538077715 | I152: 2 | J152: 1.538077715
A153: Bac. Nat. | C153: 0 | D153: 0 | F153: 1 | G153: 0.7228840516 | I153: 1 | J153: 0.7228840516
A154: Andre | C154: 4 | D154: 3.321898584 | F154: 5 | G154: 2.171770723 | I154: 9 | J154: 5.493669307
A156: Total | C156: 39 | D156: 32.4501341 | F156: 62 | G156: 42.30150315 | I156: 101 | J156: 74.75163725
A158: Ingeniører i alt | C158: 8 | D158: 6.01010416 | F158: 2 | G158: 1.764485748 | I158: 10 | J158: 7.774589908
A159: Magistre i alt | C159: 10 | D159: 8.244246242 | F159: 27 | G159: 16.72300879 | I159: 37 | J159: 24.96725504
A160: DJØF'ere i alt | C160: 8 | D160: 6.198465665 | F160: 6 | G160: 4.937316784 | I160: 14 | J160: 11.13578245
A165: Norddjurs
C167: Mænd | F167: Kvinder | I167: I alt
C168: Ledigheds- berørte | D168: Gns. brutto- ledighed | F168: Ledigheds- berørte | G168: Gns. brutto- ledighed | I168: Ledigheds- berørte | J168: Gns. brutto- ledighed
A171: Civ. ing. | C171: 0 | D171: 0 | F171: 1 | G171: 0.9998128859 | I171: 1 | J171: 0.9998128859
A172: Diplom ing. | C172: 2 | D172: 0.566955654 | F172: 0 | G172: 0 | I172: 2 | J172: 0.566955654
A173: Cand. Scient. Tek. | C173: 4 | D173: 3.034990332 | F173: 2 | G173: 1.768851743 | I173: 6 | J173: 4.803842076
A174: MA. Hum. | C174: 2 | D174: 1.999625772 | F174: 5 | G174: 3.887606811 | I174: 7 | J174: 5.887232583
A175: MA. Nat. | C175: 0 | D175: 0 | F175: 1 | G175: 0.2763051207 | I175: 1 | J175: 0.2763051207
A176: MA. Ph.d. | C176: 1 | D176: 0.6399301441 | F176: 0 | G176: 0 | I176: 1 | J176: 0.6399301441
A177: MA. Samf. | C177: 0 | D177: 0 | F177: 2 | G177: 1.400860725 | I177: 2 | J177: 1.400860725
A178: Øvrige Mag. | C178: 0 | D178: 0 | F178: 1 | G178: 0.6767292459 | I178: 1 | J178: 0.6767292459
A179: Agronom | C179: 0 | D179: 0 | F179: 0 | G179: 0 | I179: 0 | J179: 0
A180: Landsk. Arkt. | C180: 0 | D180: 0 | F180: 0 | G180: 0 | I180: 0 | J180: 0
A181: Hortonom | C181: 0 | D181: 0 | F181: 0 | G181: 0 | I181: 0 | J181: 0
A182: Forstkand. | C182: 1 | D182: 0.9998128859 | F182: 0 | G182: 0 | I182: 1 | J182: 0.9998128859
A183: Jordbrugsakad. | C183: 1 | D183: 0.9998128859 | F183: 0 | G183: 0 | I183: 1 | J183: 0.9998128859
A184: Mejeriing. | C184: 0 | D184: 0 | F184: 0 | G184: 0 | I184: 0 | J184: 0
A185: Levn.m.kand. | C185: 0 | D185: 0 | F185: 0 | G185: 0 | I185: 0 | J185: 0
A186: Dyrlæge | C186: 0 | D186: 0 | F186: 0 | G186: 0 | I186: 0 | J186: 0
A187: Farmaceut | C187: 0 | D187: 0 | F187: 0 | G187: 0 | I187: 0 | J187: 0
A188: Læge | C188: 0 | D188: 0 | F188: 0 | G188: 0 | I188: 0 | J188: 0
A189: Tandlæge | C189: 0 | D189: 0 | F189: 0 | G189: 0 | I189: 0 | J189: 0
A190: Arkitekt | C190: 2 | D190: 1.937254413 | F190: 0 | G190: 0 | I190: 2 | J190: 1.937254413
A191: Landinspek. | C191: 0 | D191: 0 | F191: 0 | G191: 0 | I191: 0 | J191: 0
A192: Bibliotekar | C192: 0 | D192: 0 | F192: 0 | G192: 0 | I192: 0 | J192: 0
A193: Musikudd. | C193: 1 | D193: 0.9998128859 | F193: 0 | G193: 0 | I193: 1 | J193: 0.9998128859
A194: Teolog | C194: 0 | D194: 0 | F194: 1 | G194: 0.5382648288 | I194: 1 | J194: 0.5382648288
A195: Psykolog | C195: 0 | D195: 0 | F195: 1 | G195: 0.5382648288 | I195: 1 | J195: 0.5382648288
A196: Jurist | C196: 0 | D196: 0 | F196: 0 | G196: 0 | I196: 0 | J196: 0
A197: Økonom | C197: 1 | D197: 0.9998128859 | F197: 0 | G197: 0 | I197: 1 | J197: 0.9998128859
A198: Samf. Adm. | C198: 0 | D198: 0 | F198: 0 | G198: 0 | I198: 0 | J198: 0
A199: Cand. Merc. | C199: 2 | D199: 1.678413273 | F199: 1 | G199: 0.9998128859 | I199: 3 | J199: 2.678226159
A200: HA | C200: 0 | D200: 0 | F200: 0 | G200: 0 | I200: 0 | J200: 0
A201: HD | C201: 0 | D201: 0 | F201: 1 | G201: 0.9536580802 | I201: 1 | J201: 0.9536580802
A202: Komm. og Sprog | C202: 0 | D202: 0 | F202: 0 | G202: 0 | I202: 0 | J202: 0
A203: Bygningskonst. | C203: 2 | D203: 1.399987526 | F203: 0 | G203: 0 | I203: 2 | J203: 1.399987526
A204: Cand. IT. | C204: 1 | D204: 0.9998128859 | F204: 1 | G204: 0.1690263831 | I204: 2 | J204: 1.168839269
A205: Bac. Samf. | C205: 0 | D205: 0 | F205: 0 | G205: 0 | I205: 0 | J205: 0
A206: Bac. Hum. | C206: 1 | D206: 0.9998128859 | F206: 1 | G206: 0.8937815755 | I206: 2 | J206: 1.893594461
A207: Bac. Nat. | C207: 0 | D207: 0 | F207: 2 | G207: 1.768851743 | I207: 2 | J207: 1.768851743
A208: Andre | C208: 0 | D208: 0 | F208: 1 | G208: 0.5382648288 | I208: 1 | J208: 0.5382648288
A210: Total | C210: 20 | D210: 16.25622154 | F210: 21 | G210: 15.41009169 | I210: 41 | J210: 31.66631323
A212: Ingeniører i alt | C212: 2 | D212: 0.566955654 | F212: 1 | G212: 0.9998128859 | I212: 3 | J212: 1.56676854
A213: Magistre i alt | C213: 3 | D213: 2.639555916 | F213: 9 | G213: 6.241501902 | I213: 12 | J213: 8.881057818
A214: DJØF'ere i alt | C214: 3 | D214: 2.678226159 | F214: 1 | G214: 0.9998128859 | I214: 4 | J214: 3.678039044
A219: Favrskov
C221: Mænd | F221: Kvinder | I221: I alt
C222: Ledigheds- berørte | D222: Gns. brutto- ledighed | F222: Ledigheds- berørte | G222: Gns. brutto- ledighed | I222: Ledigheds- berørte | J222: Gns. brutto- ledighed
A225: Civ. ing. | C225: 5 | D225: 4.924218799 | F225: 1 | G225: 0.4921100231 | I225: 6 | J225: 5.416328822
A226: Diplom ing. | C226: 4 | D226: 3.168465041 | F226: 0 | G226: 0 | I226: 4 | J226: 3.168465041
A227: Cand. Scient. Tek. | C227: 4 | D227: 3.030000624 | F227: 3 | G227: 2.999438658 | I227: 7 | J227: 6.029439281
A228: MA. Hum. | C228: 5 | D228: 3.799039481 | F228: 15 | G228: 11.39150502 | I228: 20 | J228: 15.1905445
A229: MA. Nat. | C229: 2 | D229: 1.445768103 | F229: 0 | G229: 0 | I229: 2 | J229: 1.445768103
A230: MA. Ph.d. | C230: 0 | D230: 0 | F230: 0 | G230: 0 | I230: 0 | J230: 0
A231: MA. Samf. | C231: 0 | D231: 0 | F231: 2 | G231: 1.90731616 | I231: 2 | J231: 1.90731616
A232: Øvrige Mag. | C232: 0 | D232: 0 | F232: 0 | G232: 0 | I232: 0 | J232: 0
A233: Agronom | C233: 1 | D233: 0.9998128859 | F233: 0 | G233: 0 | I233: 1 | J233: 0.9998128859
A234: Landsk. Arkt. | C234: 0 | D234: 0 | F234: 0 | G234: 0 | I234: 0 | J234: 0
A235: Hortonom | C235: 0 | D235: 0 | F235: 0 | G235: 0 | I235: 0 | J235: 0
A236: Forstkand. | C236: 0 | D236: 0 | F236: 0 | G236: 0 | I236: 0 | J236: 0
A237: Jordbrugsakad. | C237: 1 | D237: 0.9998128859 | F237: 0 | G237: 0 | I237: 1 | J237: 0.9998128859
A238: Mejeriing. | C238: 0 | D238: 0 | F238: 0 | G238: 0 | I238: 0 | J238: 0
A239: Levn.m.kand. | C239: 0 | D239: 0 | F239: 0 | G239: 0 | I239: 0 | J239: 0
A240: Dyrlæge | C240: 0 | D240: 0 | F240: 0 | G240: 0 | I240: 0 | J240: 0
... 341 more rows

Sheet Tabel 3 ØJ
A1: Tabel 3. Ledige i procent af forsikrede
A3: Østjylland
C5: Mænd | F5: Kvinder | I5: I alt
C6: Ledigheds- berørte | D6: Gns. brutto- ledighed | F6: Ledigheds- berørte | G6: Gns. brutto- ledighed | I6: Ledigheds- berørte | J6: Gns. brutto- ledighed
A9: Civ. ing. | C9: =IF(OR('Tabel 1 ØJ'!C7<5,'Tabel 2 ØJ'!C9<0.5),"-",IFERROR('Tabel 2 ØJ'!C9/'Tabel 1 ØJ'!C7*100,"-")) -> 4.161915621 | D9: =IF(OR('Tabel 1 ØJ'!C7<5,'Tabel 2 ØJ'!D9<0.5),"-",IFERROR('Tabel 2 ØJ'!D9/'Tabel 1 ØJ'!C7*100,"-")) -> 3.458356734 | F9: =IF(OR('Tabel 1 ØJ'!E7<5,'Tabel 2 ØJ'!F9<0.5),"-",IFERROR('Tabel 2 ØJ'!F9/'Tabel 1 ØJ'!E7*100,"-")) -> 4.020530368 | G9: =IF(OR('Tabel 1 ØJ'!E7<5,'Tabel 2 ØJ'!G9<0.5),"-",IFERROR('Tabel 2 ØJ'!G9/'Tabel 1 ØJ'!E7*100,"-")) -> 3.030586456 | I9: =IF(OR('Tabel 1 ØJ'!G7<5,'Tabel 2 ØJ'!I9<0.5),"-",IFERROR('Tabel 2 ØJ'!I9/'Tabel 1 ØJ'!G7*100,"-")) -> 4.126576866 | J9: =IF(OR('Tabel 1 ØJ'!G7<5,'Tabel 2 ØJ'!J9<0.5),"-",IFERROR('Tabel 2 ØJ'!J9/'Tabel 1 ØJ'!G7*100,"-")) -> 3.35143703
A10: Diplom ing. | C10: =IF(OR('Tabel 1 ØJ'!C8<5,'Tabel 2 ØJ'!C10<0.5),"-",IFERROR('Tabel 2 ØJ'!C10/'Tabel 1 ØJ'!C8*100,"-")) -> 2.702246242 | D10: =IF(OR('Tabel 1 ØJ'!C8<5,'Tabel 2 ØJ'!D10<0.5),"-",IFERROR('Tabel 2 ØJ'!D10/'Tabel 1 ØJ'!C8*100,"-")) -> 2.127420589 | F10: =IF(OR('Tabel 1 ØJ'!E8<5,'Tabel 2 ØJ'!F10<0.5),"-",IFERROR('Tabel 2 ØJ'!F10/'Tabel 1 ØJ'!E8*100,"-")) -> 4.006163328 | G10: =IF(OR('Tabel 1 ØJ'!E8<5,'Tabel 2 ØJ'!G10<0.5),"-",IFERROR('Tabel 2 ØJ'!G10/'Tabel 1 ØJ'!E8*100,"-")) -> 3.303856059 | I10: =IF(OR('Tabel 1 ØJ'!G8<5,'Tabel 2 ØJ'!I10<0.5),"-",IFERROR('Tabel 2 ØJ'!I10/'Tabel 1 ØJ'!G8*100,"-")) -> 2.936694833 | J10: =IF(OR('Tabel 1 ØJ'!G8<5,'Tabel 2 ØJ'!J10<0.5),"-",IFERROR('Tabel 2 ØJ'!J10/'Tabel 1 ØJ'!G8*100,"-")) -> 2.338947565
A11: Cand. Scient. Tek. | C11: =IF(OR('Tabel 1 ØJ'!C9<5,'Tabel 2 ØJ'!C11<0.5),"-",IFERROR('Tabel 2 ØJ'!C11/'Tabel 1 ØJ'!C9*100,"-")) -> 8.819277108 | D11: =IF(OR('Tabel 1 ØJ'!C9<5,'Tabel 2 ØJ'!D11<0.5),"-",IFERROR('Tabel 2 ØJ'!D11/'Tabel 1 ØJ'!C9*100,"-")) -> 6.989740287 | F11: =IF(OR('Tabel 1 ØJ'!E9<5,'Tabel 2 ØJ'!F11<0.5),"-",IFERROR('Tabel 2 ØJ'!F11/'Tabel 1 ØJ'!E9*100,"-")) -> 9.928571429 | G11: =IF(OR('Tabel 1 ØJ'!E9<5,'Tabel 2 ØJ'!G11<0.5),"-",IFERROR('Tabel 2 ØJ'!G11/'Tabel 1 ØJ'!E9*100,"-")) -> 7.579723962 | I11: =IF(OR('Tabel 1 ØJ'!G9<5,'Tabel 2 ØJ'!I11<0.5),"-",IFERROR('Tabel 2 ØJ'!I11/'Tabel 1 ØJ'!G9*100,"-")) -> 9.26618705 | J11: =IF(OR('Tabel 1 ØJ'!G9<5,'Tabel 2 ØJ'!J11<0.5),"-",IFERROR('Tabel 2 ØJ'!J11/'Tabel 1 ØJ'!G9*100,"-")) -> 7.227431552
A12: MA. Hum. | C12: =IF(OR('Tabel 1 ØJ'!C10<5,'Tabel 2 ØJ'!C12<0.5),"-",IFERROR('Tabel 2 ØJ'!C12/'Tabel 1 ØJ'!C10*100,"-")) -> 11.41421393 | D12: =IF(OR('Tabel 1 ØJ'!C10<5,'Tabel 2 ØJ'!D12<0.5),"-",IFERROR('Tabel 2 ØJ'!D12/'Tabel 1 ØJ'!C10*100,"-")) -> 9.159522877 | F12: =IF(OR('Tabel 1 ØJ'!E10<5,'Tabel 2 ØJ'!F12<0.5),"-",IFERROR('Tabel 2 ØJ'!F12/'Tabel 1 ØJ'!E10*100,"-")) -> 10.50596739 | G12: =IF(OR('Tabel 1 ØJ'!E10<5,'Tabel 2 ØJ'!G12<0.5),"-",IFERROR('Tabel 2 ØJ'!G12/'Tabel 1 ØJ'!E10*100,"-")) -> 7.813027084 | I12: =IF(OR('Tabel 1 ØJ'!G10<5,'Tabel 2 ØJ'!I12<0.5),"-",IFERROR('Tabel 2 ØJ'!I12/'Tabel 1 ØJ'!G10*100,"-")) -> 10.79564969 | J12: =IF(OR('Tabel 1 ØJ'!G10<5,'Tabel 2 ØJ'!J12<0.5),"-",IFERROR('Tabel 2 ØJ'!J12/'Tabel 1 ØJ'!G10*100,"-")) -> 8.242487563
A13: MA. Nat. | C13: =IF(OR('Tabel 1 ØJ'!C11<5,'Tabel 2 ØJ'!C13<0.5),"-",IFERROR('Tabel 2 ØJ'!C13/'Tabel 1 ØJ'!C11*100,"-")) -> 4.382716049 | D13: =IF(OR('Tabel 1 ØJ'!C11<5,'Tabel 2 ØJ'!D13<0.5),"-",IFERROR('Tabel 2 ØJ'!D13/'Tabel 1 ØJ'!C11*100,"-")) -> 3.537226076 | F13: =IF(OR('Tabel 1 ØJ'!E11<5,'Tabel 2 ØJ'!F13<0.5),"-",IFERROR('Tabel 2 ØJ'!F13/'Tabel 1 ØJ'!E11*100,"-")) -> 4.592592593 | G13: =IF(OR('Tabel 1 ØJ'!E11<5,'Tabel 2 ØJ'!G13<0.5),"-",IFERROR('Tabel 2 ØJ'!G13/'Tabel 1 ØJ'!E11*100,"-")) -> 3.43781691 | I13: =IF(OR('Tabel 1 ØJ'!G11<5,'Tabel 2 ØJ'!I13<0.5),"-",IFERROR('Tabel 2 ØJ'!I13/'Tabel 1 ØJ'!G11*100,"-")) -> 4.478114478 | J13: =IF(OR('Tabel 1 ØJ'!G11<5,'Tabel 2 ØJ'!J13<0.5),"-",IFERROR('Tabel 2 ØJ'!J13/'Tabel 1 ØJ'!G11*100,"-")) -> 3.492040092
A14: MA. Ph.d. | C14: =IF(OR('Tabel 1 ØJ'!C12<5,'Tabel 2 ØJ'!C14<0.5),"-",IFERROR('Tabel 2 ØJ'!C14/'Tabel 1 ØJ'!C12*100,"-")) -> 1.851851852 | D14: =IF(OR('Tabel 1 ØJ'!C12<5,'Tabel 2 ØJ'!D14<0.5),"-",IFERROR('Tabel 2 ØJ'!D14/'Tabel 1 ØJ'!C12*100,"-")) -> 1.284580491 | F14: =IF(OR('Tabel 1 ØJ'!E12<5,'Tabel 2 ØJ'!F14<0.5),"-",IFERROR('Tabel 2 ØJ'!F14/'Tabel 1 ØJ'!E12*100,"-")) -> 3.007518797 | G14: =IF(OR('Tabel 1 ØJ'!E12<5,'Tabel 2 ØJ'!G14<0.5),"-",IFERROR('Tabel 2 ØJ'!G14/'Tabel 1 ØJ'!E12*100,"-")) -> 2.399655973 | I14: =IF(OR('Tabel 1 ØJ'!G12<5,'Tabel 2 ØJ'!I14<0.5),"-",IFERROR('Tabel 2 ØJ'!I14/'Tabel 1 ØJ'!G12*100,"-")) -> 2.372881356 | J14: =IF(OR('Tabel 1 ØJ'!G12<5,'Tabel 2 ØJ'!J14<0.5),"-",IFERROR('Tabel 2 ØJ'!J14/'Tabel 1 ØJ'!G12*100,"-")) -> 1.787309437
A15: MA. Samf. | C15: =IF(OR('Tabel 1 ØJ'!C13<5,'Tabel 2 ØJ'!C15<0.5),"-",IFERROR('Tabel 2 ØJ'!C15/'Tabel 1 ØJ'!C13*100,"-")) -> 16.90140845 | D15: =IF(OR('Tabel 1 ØJ'!C13<5,'Tabel 2 ØJ'!D15<0.5),"-",IFERROR('Tabel 2 ØJ'!D15/'Tabel 1 ØJ'!C13*100,"-")) -> 13.44468817 | F15: =IF(OR('Tabel 1 ØJ'!E13<5,'Tabel 2 ØJ'!F15<0.5),"-",IFERROR('Tabel 2 ØJ'!F15/'Tabel 1 ØJ'!E13*100,"-")) -> 15.95744681 | G15: =IF(OR('Tabel 1 ØJ'!E13<5,'Tabel 2 ØJ'!G15<0.5),"-",IFERROR('Tabel 2 ØJ'!G15/'Tabel 1 ØJ'!E13*100,"-")) -> 12.45536135 | I15: =IF(OR('Tabel 1 ØJ'!G13<5,'Tabel 2 ØJ'!I15<0.5),"-",IFERROR('Tabel 2 ØJ'!I15/'Tabel 1 ØJ'!G13*100,"-")) -> 16.16580311 | J15: =IF(OR('Tabel 1 ØJ'!G13<5,'Tabel 2 ØJ'!J15<0.5),"-",IFERROR('Tabel 2 ØJ'!J15/'Tabel 1 ØJ'!G13*100,"-")) -> 12.6737309
A16: Øvrige Mag. | C16: =IF(OR('Tabel 1 ØJ'!C14<5,'Tabel 2 ØJ'!C16<0.5),"-",IFERROR('Tabel 2 ØJ'!C16/'Tabel 1 ØJ'!C14*100,"-")) -> 11.87739464 | D16: =IF(OR('Tabel 1 ØJ'!C14<5,'Tabel 2 ØJ'!D16<0.5),"-",IFERROR('Tabel 2 ØJ'!D16/'Tabel 1 ØJ'!C14*100,"-")) -> 10.64853548 | F16: =IF(OR('Tabel 1 ØJ'!E14<5,'Tabel 2 ØJ'!F16<0.5),"-",IFERROR('Tabel 2 ØJ'!F16/'Tabel 1 ØJ'!E14*100,"-")) -> 15.24390244 | G16: =IF(OR('Tabel 1 ØJ'!E14<5,'Tabel 2 ØJ'!G16<0.5),"-",IFERROR('Tabel 2 ØJ'!G16/'Tabel 1 ØJ'!E14*100,"-")) -> 12.13832852 | I16: =IF(OR('Tabel 1 ØJ'!G14<5,'Tabel 2 ØJ'!I16<0.5),"-",IFERROR('Tabel 2 ØJ'!I16/'Tabel 1 ØJ'!G14*100,"-")) -> 14.07702523 | J16: =IF(OR('Tabel 1 ØJ'!G14<5,'Tabel 2 ØJ'!J16<0.5),"-",IFERROR('Tabel 2 ØJ'!J16/'Tabel 1 ØJ'!G14*100,"-")) -> 11.62194607
A17: Agronom | C17: =IF(OR('Tabel 1 ØJ'!C15<5,'Tabel 2 ØJ'!C17<0.5),"-",IFERROR('Tabel 2 ØJ'!C17/'Tabel 1 ØJ'!C15*100,"-")) -> 1.630434783 | D17: =IF(OR('Tabel 1 ØJ'!C15<5,'Tabel 2 ØJ'!D17<0.5),"-",IFERROR('Tabel 2 ØJ'!D17/'Tabel 1 ØJ'!C15*100,"-")) -> 1.630129705 | F17: =IF(OR('Tabel 1 ØJ'!E15<5,'Tabel 2 ØJ'!F17<0.5),"-",IFERROR('Tabel 2 ØJ'!F17/'Tabel 1 ØJ'!E15*100,"-")) -> 2.666666667 | G17: =IF(OR('Tabel 1 ØJ'!E15<5,'Tabel 2 ØJ'!G17<0.5),"-",IFERROR('Tabel 2 ØJ'!G17/'Tabel 1 ØJ'!E15*100,"-")) -> 1.896920934 | I17: =IF(OR('Tabel 1 ØJ'!G15<5,'Tabel 2 ØJ'!I17<0.5),"-",IFERROR('Tabel 2 ØJ'!I17/'Tabel 1 ØJ'!G15*100,"-")) -> 2.095808383 | J17: =IF(OR('Tabel 1 ØJ'!G15<5,'Tabel 2 ØJ'!J17<0.5),"-",IFERROR('Tabel 2 ØJ'!J17/'Tabel 1 ØJ'!G15*100,"-")) -> 1.749946125
A18: Landsk. Arkt. | C18: =IF(OR('Tabel 1 ØJ'!C16<5,'Tabel 2 ØJ'!C18<0.5),"-",IFERROR('Tabel 2 ØJ'!C18/'Tabel 1 ØJ'!C16*100,"-")) -> - | D18: =IF(OR('Tabel 1 ØJ'!C16<5,'Tabel 2 ØJ'!D18<0.5),"-",IFERROR('Tabel 2 ØJ'!D18/'Tabel 1 ØJ'!C16*100,"-")) -> - | F18: =IF(OR('Tabel 1 ØJ'!E16<5,'Tabel 2 ØJ'!F18<0.5),"-",IFERROR('Tabel 2 ØJ'!F18/'Tabel 1 ØJ'!E16*100,"-")) -> 3.448275862 | G18: =IF(OR('Tabel 1 ØJ'!E16<5,'Tabel 2 ØJ'!G18<0.5),"-",IFERROR('Tabel 2 ØJ'!G18/'Tabel 1 ØJ'!E16*100,"-")) -> 1.856085617 | I18: =IF(OR('Tabel 1 ØJ'!G16<5,'Tabel 2 ØJ'!I18<0.5),"-",IFERROR('Tabel 2 ØJ'!I18/'Tabel 1 ØJ'!G16*100,"-")) -> 2.380952381 | J18: =IF(OR('Tabel 1 ØJ'!G16<5,'Tabel 2 ØJ'!J18<0.5),"-",IFERROR('Tabel 2 ØJ'!J18/'Tabel 1 ØJ'!G16*100,"-")) -> 1.281582926
A19: Hortonom | C19: =IF(OR('Tabel 1 ØJ'!C17<5,'Tabel 2 ØJ'!C19<0.5),"-",IFERROR('Tabel 2 ØJ'!C19/'Tabel 1 ØJ'!C17*100,"-")) -> - | D19: =IF(OR('Tabel 1 ØJ'!C17<5,'Tabel 2 ØJ'!D19<0.5),"-",IFERROR('Tabel 2 ØJ'!D19/'Tabel 1 ØJ'!C17*100,"-")) -> - | F19: =IF(OR('Tabel 1 ØJ'!E17<5,'Tabel 2 ØJ'!F19<0.5),"-",IFERROR('Tabel 2 ØJ'!F19/'Tabel 1 ØJ'!E17*100,"-")) -> 14.28571429 | G19: =IF(OR('Tabel 1 ØJ'!E17<5,'Tabel 2 ØJ'!G19<0.5),"-",IFERROR('Tabel 2 ØJ'!G19/'Tabel 1 ØJ'!E17*100,"-")) -> 10.09970507 | I19: =IF(OR('Tabel 1 ØJ'!G17<5,'Tabel 2 ØJ'!I19<0.5),"-",IFERROR('Tabel 2 ØJ'!I19/'Tabel 1 ØJ'!G17*100,"-")) -> 7.692307692 | J19: =IF(OR('Tabel 1 ØJ'!G17<5,'Tabel 2 ØJ'!J19<0.5),"-",IFERROR('Tabel 2 ØJ'!J19/'Tabel 1 ØJ'!G17*100,"-")) -> 5.438302731
A20: Forstkand. | C20: =IF(OR('Tabel 1 ØJ'!C18<5,'Tabel 2 ØJ'!C20<0.5),"-",IFERROR('Tabel 2 ØJ'!C20/'Tabel 1 ØJ'!C18*100,"-")) -> 5 | D20: =IF(OR('Tabel 1 ØJ'!C18<5,'Tabel 2 ØJ'!D20<0.5),"-",IFERROR('Tabel 2 ØJ'!D20/'Tabel 1 ØJ'!C18*100,"-")) -> 4.99906443 | F20: =IF(OR('Tabel 1 ØJ'!E18<5,'Tabel 2 ØJ'!F20<0.5),"-",IFERROR('Tabel 2 ØJ'!F20/'Tabel 1 ØJ'!E18*100,"-")) -> - | G20: =IF(OR('Tabel 1 ØJ'!E18<5,'Tabel 2 ØJ'!G20<0.5),"-",IFERROR('Tabel 2 ØJ'!G20/'Tabel 1 ØJ'!E18*100,"-")) -> - | I20: =IF(OR('Tabel 1 ØJ'!G18<5,'Tabel 2 ØJ'!I20<0.5),"-",IFERROR('Tabel 2 ØJ'!I20/'Tabel 1 ØJ'!G18*100,"-")) -> 3.773584906 | J20: =IF(OR('Tabel 1 ØJ'!G18<5,'Tabel 2 ØJ'!J20<0.5),"-",IFERROR('Tabel 2 ØJ'!J20/'Tabel 1 ØJ'!G18*100,"-")) -> 3.772878815
A21: Jordbrugsakad. | C21: =IF(OR('Tabel 1 ØJ'!C19<5,'Tabel 2 ØJ'!C21<0.5),"-",IFERROR('Tabel 2 ØJ'!C21/'Tabel 1 ØJ'!C19*100,"-")) -> 2.008032129 | D21: =IF(OR('Tabel 1 ØJ'!C19<5,'Tabel 2 ØJ'!D21<0.5),"-",IFERROR('Tabel 2 ØJ'!D21/'Tabel 1 ØJ'!C19*100,"-")) -> 2.007656397 | F21: =IF(OR('Tabel 1 ØJ'!E19<5,'Tabel 2 ØJ'!F21<0.5),"-",IFERROR('Tabel 2 ØJ'!F21/'Tabel 1 ØJ'!E19*100,"-")) -> 3.398058252 | G21: =IF(OR('Tabel 1 ØJ'!E19<5,'Tabel 2 ØJ'!G21<0.5),"-",IFERROR('Tabel 2 ØJ'!G21/'Tabel 1 ØJ'!E19*100,"-")) -> 2.328934437 | I21: =IF(OR('Tabel 1 ØJ'!G19<5,'Tabel 2 ØJ'!I21<0.5),"-",IFERROR('Tabel 2 ØJ'!I21/'Tabel 1 ØJ'!G19*100,"-")) -> 2.637362637 | J21: =IF(OR('Tabel 1 ØJ'!G19<5,'Tabel 2 ØJ'!J21<0.5),"-",IFERROR('Tabel 2 ØJ'!J21/'Tabel 1 ØJ'!G19*100,"-")) -> 2.153114147
A22: Mejeriing. | C22: =IF(OR('Tabel 1 ØJ'!C20<5,'Tabel 2 ØJ'!C22<0.5),"-",IFERROR('Tabel 2 ØJ'!C22/'Tabel 1 ØJ'!C20*100,"-")) -> 3.448275862 | D22: =IF(OR('Tabel 1 ØJ'!C20<5,'Tabel 2 ØJ'!D22<0.5),"-",IFERROR('Tabel 2 ØJ'!D22/'Tabel 1 ØJ'!C20*100,"-")) -> 2.651858129 | F22: =IF(OR('Tabel 1 ØJ'!E20<5,'Tabel 2 ØJ'!F22<0.5),"-",IFERROR('Tabel 2 ØJ'!F22/'Tabel 1 ØJ'!E20*100,"-")) -> 6.666666667 | G22: =IF(OR('Tabel 1 ØJ'!E20<5,'Tabel 2 ØJ'!G22<0.5),"-",IFERROR('Tabel 2 ØJ'!G22/'Tabel 1 ØJ'!E20*100,"-")) -> 6.203871182 | I22: =IF(OR('Tabel 1 ØJ'!G20<5,'Tabel 2 ØJ'!I22<0.5),"-",IFERROR('Tabel 2 ØJ'!I22/'Tabel 1 ØJ'!G20*100,"-")) -> 4.545454545 | J22: =IF(OR('Tabel 1 ØJ'!G20<5,'Tabel 2 ØJ'!J22<0.5),"-",IFERROR('Tabel 2 ØJ'!J22/'Tabel 1 ØJ'!G20*100,"-")) -> 3.86277167
A23: Levn.m.kand. | C23: =IF(OR('Tabel 1 ØJ'!C21<5,'Tabel 2 ØJ'!C23<0.5),"-",IFERROR('Tabel 2 ØJ'!C23/'Tabel 1 ØJ'!C21*100,"-")) -> - | D23: =IF(OR('Tabel 1 ØJ'!C21<5,'Tabel 2 ØJ'!D23<0.5),"-",IFERROR('Tabel 2 ØJ'!D23/'Tabel 1 ØJ'!C21*100,"-")) -> - | F23: =IF(OR('Tabel 1 ØJ'!E21<5,'Tabel 2 ØJ'!F23<0.5),"-",IFERROR('Tabel 2 ØJ'!F23/'Tabel 1 ØJ'!E21*100,"-")) -> 6.451612903 | G23: =IF(OR('Tabel 1 ØJ'!E21<5,'Tabel 2 ØJ'!G23<0.5),"-",IFERROR('Tabel 2 ØJ'!G23/'Tabel 1 ØJ'!E21*100,"-")) -> 6.450405716 | I23: =IF(OR('Tabel 1 ØJ'!G21<5,'Tabel 2 ØJ'!I23<0.5),"-",IFERROR('Tabel 2 ØJ'!I23/'Tabel 1 ØJ'!G21*100,"-")) -> 11.42857143 | J23: =IF(OR('Tabel 1 ØJ'!G21<5,'Tabel 2 ØJ'!J23<0.5),"-",IFERROR('Tabel 2 ØJ'!J23/'Tabel 1 ØJ'!G21*100,"-")) -> 10.36433784
A24: Dyrlæge | C24: =IF(OR('Tabel 1 ØJ'!C22<5,'Tabel 2 ØJ'!C24<0.5),"-",IFERROR('Tabel 2 ØJ'!C24/'Tabel 1 ØJ'!C22*100,"-")) -> - | D24: =IF(OR('Tabel 1 ØJ'!C22<5,'Tabel 2 ØJ'!D24<0.5),"-",IFERROR('Tabel 2 ØJ'!D24/'Tabel 1 ØJ'!C22*100,"-")) -> - | F24: =IF(OR('Tabel 1 ØJ'!E22<5,'Tabel 2 ØJ'!F24<0.5),"-",IFERROR('Tabel 2 ØJ'!F24/'Tabel 1 ØJ'!E22*100,"-")) -> 0.4854368932 | G24: =IF(OR('Tabel 1 ØJ'!E22<5,'Tabel 2 ØJ'!G24<0.5),"-",IFERROR('Tabel 2 ØJ'!G24/'Tabel 1 ØJ'!E22*100,"-")) -> 0.3733198337 | I24: =IF(OR('Tabel 1 ØJ'!G22<5,'Tabel 2 ØJ'!I24<0.5),"-",IFERROR('Tabel 2 ØJ'!I24/'Tabel 1 ØJ'!G22*100,"-")) -> 0.4132231405 | J24: =IF(OR('Tabel 1 ØJ'!G22<5,'Tabel 2 ØJ'!J24<0.5),"-",IFERROR('Tabel 2 ØJ'!J24/'Tabel 1 ØJ'!G22*100,"-")) -> 0.3177846518
A25: Farmaceut | C25: =IF(OR('Tabel 1 ØJ'!C23<5,'Tabel 2 ØJ'!C25<0.5),"-",IFERROR('Tabel 2 ØJ'!C25/'Tabel 1 ØJ'!C23*100,"-")) -> 13.63636364 | D25: =IF(OR('Tabel 1 ØJ'!C23<5,'Tabel 2 ØJ'!D25<0.5),"-",IFERROR('Tabel 2 ØJ'!D25/'Tabel 1 ØJ'!C23*100,"-")) -> 11.50042809 | F25: =IF(OR('Tabel 1 ØJ'!E23<5,'Tabel 2 ØJ'!F25<0.5),"-",IFERROR('Tabel 2 ØJ'!F25/'Tabel 1 ØJ'!E23*100,"-")) -> 9.090909091 | G25: =IF(OR('Tabel 1 ØJ'!E23<5,'Tabel 2 ØJ'!G25<0.5),"-",IFERROR('Tabel 2 ØJ'!G25/'Tabel 1 ØJ'!E23*100,"-")) -> 7.234027629 | I25: =IF(OR('Tabel 1 ØJ'!G23<5,'Tabel 2 ØJ'!I25<0.5),"-",IFERROR('Tabel 2 ØJ'!I25/'Tabel 1 ØJ'!G23*100,"-")) -> 10.12987013 | J25: =IF(OR('Tabel 1 ØJ'!G23<5,'Tabel 2 ØJ'!J25<0.5),"-",IFERROR('Tabel 2 ØJ'!J25/'Tabel 1 ØJ'!G23*100,"-")) -> 8.209204879
A26: Læge | C26: =IF(OR('Tabel 1 ØJ'!C24<5,'Tabel 2 ØJ'!C26<0.5),"-",IFERROR('Tabel 2 ØJ'!C26/'Tabel 1 ØJ'!C24*100,"-")) -> 6.141367323 | D26: =IF(OR('Tabel 1 ØJ'!C24<5,'Tabel 2 ØJ'!D26<0.5),"-",IFERROR('Tabel 2 ØJ'!D26/'Tabel 1 ØJ'!C24*100,"-")) -> 4.991443271 | F26: =IF(OR('Tabel 1 ØJ'!E24<5,'Tabel 2 ØJ'!F26<0.5),"-",IFERROR('Tabel 2 ØJ'!F26/'Tabel 1 ØJ'!E24*100,"-")) -> 5.3 | G26: =IF(OR('Tabel 1 ØJ'!E24<5,'Tabel 2 ØJ'!G26<0.5),"-",IFERROR('Tabel 2 ØJ'!G26/'Tabel 1 ØJ'!E24*100,"-")) -> 3.907066675 | I26: =IF(OR('Tabel 1 ØJ'!G24<5,'Tabel 2 ØJ'!I26<0.5),"-",IFERROR('Tabel 2 ØJ'!I26/'Tabel 1 ØJ'!G24*100,"-")) -> 5.553615089 | J26: =IF(OR('Tabel 1 ØJ'!G24<5,'Tabel 2 ØJ'!J26<0.5),"-",IFERROR('Tabel 2 ØJ'!J26/'Tabel 1 ØJ'!G24*100,"-")) -> 4.233932551
A27: Tandlæge | C27: =IF(OR('Tabel 1 ØJ'!C25<5,'Tabel 2 ØJ'!C27<0.5),"-",IFERROR('Tabel 2 ØJ'!C27/'Tabel 1 ØJ'!C25*100,"-")) -> 8.641975309 | D27: =IF(OR('Tabel 1 ØJ'!C25<5,'Tabel 2 ØJ'!D27<0.5),"-",IFERROR('Tabel 2 ØJ'!D27/'Tabel 1 ØJ'!C25*100,"-")) -> 4.779494145 | F27: =IF(OR('Tabel 1 ØJ'!E25<5,'Tabel 2 ØJ'!F27<0.5),"-",IFERROR('Tabel 2 ØJ'!F27/'Tabel 1 ØJ'!E25*100,"-")) -> 6.038647343 | G27: =IF(OR('Tabel 1 ØJ'!E25<5,'Tabel 2 ØJ'!G27<0.5),"-",IFERROR('Tabel 2 ØJ'!G27/'Tabel 1 ØJ'!E25*100,"-")) -> 5.155580384 | I27: =IF(OR('Tabel 1 ØJ'!G25<5,'Tabel 2 ØJ'!I27<0.5),"-",IFERROR('Tabel 2 ØJ'!I27/'Tabel 1 ØJ'!G25*100,"-")) -> 6.464646465 | J27: =IF(OR('Tabel 1 ØJ'!G25<5,'Tabel 2 ØJ'!J27<0.5),"-",IFERROR('Tabel 2 ØJ'!J27/'Tabel 1 ØJ'!G25*100,"-")) -> 5.094038999
A28: Arkitekt | C28: =IF(OR('Tabel 1 ØJ'!C26<5,'Tabel 2 ØJ'!C28<0.5),"-",IFERROR('Tabel 2 ØJ'!C28/'Tabel 1 ØJ'!C26*100,"-")) -> 6.86695279 | D28: =IF(OR('Tabel 1 ØJ'!C26<5,'Tabel 2 ØJ'!D28<0.5),"-",IFERROR('Tabel 2 ØJ'!D28/'Tabel 1 ØJ'!C26*100,"-")) -> 5.413637663 | F28: =IF(OR('Tabel 1 ØJ'!E26<5,'Tabel 2 ØJ'!F28<0.5),"-",IFERROR('Tabel 2 ØJ'!F28/'Tabel 1 ØJ'!E26*100,"-")) -> 8.607021518 | G28: =IF(OR('Tabel 1 ØJ'!E26<5,'Tabel 2 ØJ'!G28<0.5),"-",IFERROR('Tabel 2 ØJ'!G28/'Tabel 1 ØJ'!E26*100,"-")) -> 6.277115736 | I28: =IF(OR('Tabel 1 ØJ'!G26<5,'Tabel 2 ØJ'!I28<0.5),"-",IFERROR('Tabel 2 ØJ'!I28/'Tabel 1 ØJ'!G26*100,"-")) -> 7.83817952 | J28: =IF(OR('Tabel 1 ØJ'!G26<5,'Tabel 2 ØJ'!J28<0.5),"-",IFERROR('Tabel 2 ØJ'!J28/'Tabel 1 ØJ'!G26*100,"-")) -> 5.895591607
A29: Landinspek. | C29: =IF(OR('Tabel 1 ØJ'!C27<5,'Tabel 2 ØJ'!C29<0.5),"-",IFERROR('Tabel 2 ØJ'!C29/'Tabel 1 ØJ'!C27*100,"-")) -> - | D29: =IF(OR('Tabel 1 ØJ'!C27<5,'Tabel 2 ØJ'!D29<0.5),"-",IFERROR('Tabel 2 ØJ'!D29/'Tabel 1 ØJ'!C27*100,"-")) -> - | F29: =IF(OR('Tabel 1 ØJ'!E27<5,'Tabel 2 ØJ'!F29<0.5),"-",IFERROR('Tabel 2 ØJ'!F29/'Tabel 1 ØJ'!E27*100,"-")) -> - | G29: =IF(OR('Tabel 1 ØJ'!E27<5,'Tabel 2 ØJ'!G29<0.5),"-",IFERROR('Tabel 2 ØJ'!G29/'Tabel 1 ØJ'!E27*100,"-")) -> - | I29: =IF(OR('Tabel 1 ØJ'!G27<5,'Tabel 2 ØJ'!I29<0.5),"-",IFERROR('Tabel 2 ØJ'!I29/'Tabel 1 ØJ'!G27*100,"-")) -> - | J29: =IF(OR('Tabel 1 ØJ'!G27<5,'Tabel 2 ØJ'!J29<0.5),"-",IFERROR('Tabel 2 ØJ'!J29/'Tabel 1 ØJ'!G27*100,"-")) -> -
A30: Bibliotekar | C30: =IF(OR('Tabel 1 ØJ'!C28<5,'Tabel 2 ØJ'!C30<0.5),"-",IFERROR('Tabel 2 ØJ'!C30/'Tabel 1 ØJ'!C28*100,"-")) -> 1.388888889 | D30: =IF(OR('Tabel 1 ØJ'!C28<5,'Tabel 2 ØJ'!D30<0.5),"-",IFERROR('Tabel 2 ØJ'!D30/'Tabel 1 ØJ'!C28*100,"-")) -> 1.388629008 | F30: =IF(OR('Tabel 1 ØJ'!E28<5,'Tabel 2 ØJ'!F30<0.5),"-",IFERROR('Tabel 2 ØJ'!F30/'Tabel 1 ØJ'!E28*100,"-")) -> 2.621722846 | G30: =IF(OR('Tabel 1 ØJ'!E28<5,'Tabel 2 ØJ'!G30<0.5),"-",IFERROR('Tabel 2 ØJ'!G30/'Tabel 1 ØJ'!E28*100,"-")) -> 1.820449443 | I30: =IF(OR('Tabel 1 ØJ'!G28<5,'Tabel 2 ØJ'!I30<0.5),"-",IFERROR('Tabel 2 ØJ'!I30/'Tabel 1 ØJ'!G28*100,"-")) -> 2.359882006 | J30: =IF(OR('Tabel 1 ØJ'!G28<5,'Tabel 2 ØJ'!J30<0.5),"-",IFERROR('Tabel 2 ØJ'!J30/'Tabel 1 ØJ'!G28*100,"-")) -> 1.728735368
A31: Musikudd. | C31: =IF(OR('Tabel 1 ØJ'!C29<5,'Tabel 2 ØJ'!C31<0.5),"-",IFERROR('Tabel 2 ØJ'!C31/'Tabel 1 ØJ'!C29*100,"-")) -> 6.153846154 | D31: =IF(OR('Tabel 1 ØJ'!C29<5,'Tabel 2 ØJ'!D31<0.5),"-",IFERROR('Tabel 2 ØJ'!D31/'Tabel 1 ØJ'!C29*100,"-")) -> 5.251668434 | F31: =IF(OR('Tabel 1 ØJ'!E29<5,'Tabel 2 ØJ'!F31<0.5),"-",IFERROR('Tabel 2 ØJ'!F31/'Tabel 1 ØJ'!E29*100,"-")) -> 8.974358974 | G31: =IF(OR('Tabel 1 ØJ'!E29<5,'Tabel 2 ØJ'!G31<0.5),"-",IFERROR('Tabel 2 ØJ'!G31/'Tabel 1 ØJ'!E29*100,"-")) -> 5.03928596 | I31: =IF(OR('Tabel 1 ØJ'!G29<5,'Tabel 2 ØJ'!I31<0.5),"-",IFERROR('Tabel 2 ØJ'!I31/'Tabel 1 ØJ'!G29*100,"-")) -> 7.692307692 | J31: =IF(OR('Tabel 1 ØJ'!G29<5,'Tabel 2 ØJ'!J31<0.5),"-",IFERROR('Tabel 2 ØJ'!J31/'Tabel 1 ØJ'!G29*100,"-")) -> 5.135823448
A32: Teolog | C32: =IF(OR('Tabel 1 ØJ'!C30<5,'Tabel 2 ØJ'!C32<0.5),"-",IFERROR('Tabel 2 ØJ'!C32/'Tabel 1 ØJ'!C30*100,"-")) -> 5.555555556 | D32: =IF(OR('Tabel 1 ØJ'!C30<5,'Tabel 2 ØJ'!D32<0.5),"-",IFERROR('Tabel 2 ØJ'!D32/'Tabel 1 ØJ'!C30*100,"-")) -> 4.418961289 | F32: =IF(OR('Tabel 1 ØJ'!E30<5,'Tabel 2 ØJ'!F32<0.5),"-",IFERROR('Tabel 2 ØJ'!F32/'Tabel 1 ØJ'!E30*100,"-")) -> 3.015075377 | G32: =IF(OR('Tabel 1 ØJ'!E30<5,'Tabel 2 ØJ'!G32<0.5),"-",IFERROR('Tabel 2 ØJ'!G32/'Tabel 1 ØJ'!E30*100,"-")) -> 2.220295013 | I32: =IF(OR('Tabel 1 ØJ'!G30<5,'Tabel 2 ØJ'!I32<0.5),"-",IFERROR('Tabel 2 ØJ'!I32/'Tabel 1 ØJ'!G30*100,"-")) -> 4 | J32: =IF(OR('Tabel 1 ØJ'!G30<5,'Tabel 2 ØJ'!J32<0.5),"-",IFERROR('Tabel 2 ØJ'!J32/'Tabel 1 ØJ'!G30*100,"-")) -> 3.072701016
A33: Psykolog | C33: =IF(OR('Tabel 1 ØJ'!C31<5,'Tabel 2 ØJ'!C33<0.5),"-",IFERROR('Tabel 2 ØJ'!C33/'Tabel 1 ØJ'!C31*100,"-")) -> 6.59025788 | D33: =IF(OR('Tabel 1 ØJ'!C31<5,'Tabel 2 ØJ'!D33<0.5),"-",IFERROR('Tabel 2 ØJ'!D33/'Tabel 1 ØJ'!C31*100,"-")) -> 4.75058873 | F33: =IF(OR('Tabel 1 ØJ'!E31<5,'Tabel 2 ØJ'!F33<0.5),"-",IFERROR('Tabel 2 ØJ'!F33/'Tabel 1 ØJ'!E31*100,"-")) -> 8.620689655 | G33: =IF(OR('Tabel 1 ØJ'!E31<5,'Tabel 2 ØJ'!G33<0.5),"-",IFERROR('Tabel 2 ØJ'!G33/'Tabel 1 ØJ'!E31*100,"-")) -> 6.496048739 | I33: =IF(OR('Tabel 1 ØJ'!G31<5,'Tabel 2 ØJ'!I33<0.5),"-",IFERROR('Tabel 2 ØJ'!I33/'Tabel 1 ØJ'!G31*100,"-")) -> 8.28147439 | J33: =IF(OR('Tabel 1 ØJ'!G31<5,'Tabel 2 ØJ'!J33<0.5),"-",IFERROR('Tabel 2 ØJ'!J33/'Tabel 1 ØJ'!G31*100,"-")) -> 6.204442447
A34: Jurist | C34: =IF(OR('Tabel 1 ØJ'!C32<5,'Tabel 2 ØJ'!C34<0.5),"-",IFERROR('Tabel 2 ØJ'!C34/'Tabel 1 ØJ'!C32*100,"-")) -> 5.464480874 | D34: =IF(OR('Tabel 1 ØJ'!C32<5,'Tabel 2 ØJ'!D34<0.5),"-",IFERROR('Tabel 2 ØJ'!D34/'Tabel 1 ØJ'!C32*100,"-")) -> 4.400555003 | F34: =IF(OR('Tabel 1 ØJ'!E32<5,'Tabel 2 ØJ'!F34<0.5),"-",IFERROR('Tabel 2 ØJ'!F34/'Tabel 1 ØJ'!E32*100,"-")) -> 4.742145821 | G34: =IF(OR('Tabel 1 ØJ'!E32<5,'Tabel 2 ØJ'!G34<0.5),"-",IFERROR('Tabel 2 ØJ'!G34/'Tabel 1 ØJ'!E32*100,"-")) -> 3.830681022 | I34: =IF(OR('Tabel 1 ØJ'!G32<5,'Tabel 2 ØJ'!I34<0.5),"-",IFERROR('Tabel 2 ØJ'!I34/'Tabel 1 ØJ'!G32*100,"-")) -> 4.996156802 | J34: =IF(OR('Tabel 1 ØJ'!G32<5,'Tabel 2 ØJ'!J34<0.5),"-",IFERROR('Tabel 2 ØJ'!J34/'Tabel 1 ØJ'!G32*100,"-")) -> 4.031078675
A35: Økonom | C35: =IF(OR('Tabel 1 ØJ'!C33<5,'Tabel 2 ØJ'!C35<0.5),"-",IFERROR('Tabel 2 ØJ'!C35/'Tabel 1 ØJ'!C33*100,"-")) -> 3.455497382 | D35: =IF(OR('Tabel 1 ØJ'!C33<5,'Tabel 2 ØJ'!D35<0.5),"-",IFERROR('Tabel 2 ØJ'!D35/'Tabel 1 ØJ'!C33*100,"-")) -> 2.795085921 | F35: =IF(OR('Tabel 1 ØJ'!E33<5,'Tabel 2 ØJ'!F35<0.5),"-",IFERROR('Tabel 2 ØJ'!F35/'Tabel 1 ØJ'!E33*100,"-")) -> 3.525046382 | G35: =IF(OR('Tabel 1 ØJ'!E33<5,'Tabel 2 ØJ'!G35<0.5),"-",IFERROR('Tabel 2 ØJ'!G35/'Tabel 1 ØJ'!E33*100,"-")) -> 2.685208511 | I35: =IF(OR('Tabel 1 ØJ'!G33<5,'Tabel 2 ØJ'!I35<0.5),"-",IFERROR('Tabel 2 ØJ'!I35/'Tabel 1 ØJ'!G33*100,"-")) -> 3.480589023 | J35: =IF(OR('Tabel 1 ØJ'!G33<5,'Tabel 2 ØJ'!J35<0.5),"-",IFERROR('Tabel 2 ØJ'!J35/'Tabel 1 ØJ'!G33*100,"-")) -> 2.75544474
A36: Samf. Adm. | C36: =IF(OR('Tabel 1 ØJ'!C34<5,'Tabel 2 ØJ'!C36<0.5),"-",IFERROR('Tabel 2 ØJ'!C36/'Tabel 1 ØJ'!C34*100,"-")) -> 5.777166437 | D36: =IF(OR('Tabel 1 ØJ'!C34<5,'Tabel 2 ØJ'!D36<0.5),"-",IFERROR('Tabel 2 ØJ'!D36/'Tabel 1 ØJ'!C34*100,"-")) -> 4.780631694 | F36: =IF(OR('Tabel 1 ØJ'!E34<5,'Tabel 2 ØJ'!F36<0.5),"-",IFERROR('Tabel 2 ØJ'!F36/'Tabel 1 ØJ'!E34*100,"-")) -> 6.682692308 | G36: =IF(OR('Tabel 1 ØJ'!E34<5,'Tabel 2 ØJ'!G36<0.5),"-",IFERROR('Tabel 2 ØJ'!G36/'Tabel 1 ØJ'!E34*100,"-")) -> 5.049951062 | I36: =IF(OR('Tabel 1 ØJ'!G34<5,'Tabel 2 ØJ'!I36<0.5),"-",IFERROR('Tabel 2 ØJ'!I36/'Tabel 1 ØJ'!G34*100,"-")) -> 6.310130164 | J36: =IF(OR('Tabel 1 ØJ'!G34<5,'Tabel 2 ØJ'!J36<0.5),"-",IFERROR('Tabel 2 ØJ'!J36/'Tabel 1 ØJ'!G34*100,"-")) -> 4.939144509
A37: Cand. Merc. | C37: =IF(OR('Tabel 1 ØJ'!C35<5,'Tabel 2 ØJ'!C37<0.5),"-",IFERROR('Tabel 2 ØJ'!C37/'Tabel 1 ØJ'!C35*100,"-")) -> 7.20566683 | D37: =IF(OR('Tabel 1 ØJ'!C35<5,'Tabel 2 ØJ'!D37<0.5),"-",IFERROR('Tabel 2 ØJ'!D37/'Tabel 1 ØJ'!C35*100,"-")) -> 5.90407224 | F37: =IF(OR('Tabel 1 ØJ'!E35<5,'Tabel 2 ØJ'!F37<0.5),"-",IFERROR('Tabel 2 ØJ'!F37/'Tabel 1 ØJ'!E35*100,"-")) -> 6.737012987 | G37: =IF(OR('Tabel 1 ØJ'!E35<5,'Tabel 2 ØJ'!G37<0.5),"-",IFERROR('Tabel 2 ØJ'!G37/'Tabel 1 ØJ'!E35*100,"-")) -> 5.054324509 | I37: =IF(OR('Tabel 1 ØJ'!G35<5,'Tabel 2 ØJ'!I37<0.5),"-",IFERROR('Tabel 2 ØJ'!I37/'Tabel 1 ØJ'!G35*100,"-")) -> 6.983311938 | J37: =IF(OR('Tabel 1 ØJ'!G35<5,'Tabel 2 ØJ'!J37<0.5),"-",IFERROR('Tabel 2 ØJ'!J37/'Tabel 1 ØJ'!G35*100,"-")) -> 5.500905666
A38: HA | C38: =IF(OR('Tabel 1 ØJ'!C36<5,'Tabel 2 ØJ'!C38<0.5),"-",IFERROR('Tabel 2 ØJ'!C38/'Tabel 1 ØJ'!C36*100,"-")) -> 9.388971684 | D38: =IF(OR('Tabel 1 ØJ'!C36<5,'Tabel 2 ØJ'!D38<0.5),"-",IFERROR('Tabel 2 ØJ'!D38/'Tabel 1 ØJ'!C36*100,"-")) -> 7.881750596 | F38: =IF(OR('Tabel 1 ØJ'!E36<5,'Tabel 2 ØJ'!F38<0.5),"-",IFERROR('Tabel 2 ØJ'!F38/'Tabel 1 ØJ'!E36*100,"-")) -> 8.173913043 | G38: =IF(OR('Tabel 1 ØJ'!E36<5,'Tabel 2 ØJ'!G38<0.5),"-",IFERROR('Tabel 2 ØJ'!G38/'Tabel 1 ØJ'!E36*100,"-")) -> 6.2788976 | I38: =IF(OR('Tabel 1 ØJ'!G36<5,'Tabel 2 ØJ'!I38<0.5),"-",IFERROR('Tabel 2 ØJ'!I38/'Tabel 1 ØJ'!G36*100,"-")) -> 8.828250401 | J38: =IF(OR('Tabel 1 ØJ'!G36<5,'Tabel 2 ØJ'!J38<0.5),"-",IFERROR('Tabel 2 ØJ'!J38/'Tabel 1 ØJ'!G36*100,"-")) -> 7.142071244
A39: HD | C39: =IF(OR('Tabel 1 ØJ'!C37<5,'Tabel 2 ØJ'!C39<0.5),"-",IFERROR('Tabel 2 ØJ'!C39/'Tabel 1 ØJ'!C37*100,"-")) -> 2.914798206 | D39: =IF(OR('Tabel 1 ØJ'!C37<5,'Tabel 2 ØJ'!D39<0.5),"-",IFERROR('Tabel 2 ØJ'!D39/'Tabel 1 ØJ'!C37*100,"-")) -> 2.471919603 | F39: =IF(OR('Tabel 1 ØJ'!E37<5,'Tabel 2 ØJ'!F39<0.5),"-",IFERROR('Tabel 2 ØJ'!F39/'Tabel 1 ØJ'!E37*100,"-")) -> 4.485488127 | G39: =IF(OR('Tabel 1 ØJ'!E37<5,'Tabel 2 ØJ'!G39<0.5),"-",IFERROR('Tabel 2 ØJ'!G39/'Tabel 1 ØJ'!E37*100,"-")) -> 3.614905734 | I39: =IF(OR('Tabel 1 ØJ'!G37<5,'Tabel 2 ØJ'!I39<0.5),"-",IFERROR('Tabel 2 ØJ'!I39/'Tabel 1 ØJ'!G37*100,"-")) -> 3.636363636 | J39: =IF(OR('Tabel 1 ØJ'!G37<5,'Tabel 2 ØJ'!J39<0.5),"-",IFERROR('Tabel 2 ØJ'!J39/'Tabel 1 ØJ'!G37*100,"-")) -> 2.997000505
A40: Komm. og Sprog | C40: =IF(OR('Tabel 1 ØJ'!C38<5,'Tabel 2 ØJ'!C40<0.5),"-",IFERROR('Tabel 2 ØJ'!C40/'Tabel 1 ØJ'!C38*100,"-")) -> 8.284023669 | D40: =IF(OR('Tabel 1 ØJ'!C38<5,'Tabel 2 ØJ'!D40<0.5),"-",IFERROR('Tabel 2 ØJ'!D40/'Tabel 1 ØJ'!C38*100,"-")) -> 7.366463474 | F40: =IF(OR('Tabel 1 ØJ'!E38<5,'Tabel 2 ØJ'!F40<0.5),"-",IFERROR('Tabel 2 ØJ'!F40/'Tabel 1 ØJ'!E38*100,"-")) -> 4.528985507 | G40: =IF(OR('Tabel 1 ØJ'!E38<5,'Tabel 2 ØJ'!G40<0.5),"-",IFERROR('Tabel 2 ØJ'!G40/'Tabel 1 ØJ'!E38*100,"-")) -> 3.299806468 | I40: =IF(OR('Tabel 1 ØJ'!G38<5,'Tabel 2 ØJ'!I40<0.5),"-",IFERROR('Tabel 2 ØJ'!I40/'Tabel 1 ØJ'!G38*100,"-")) -> 5.027494108 | J40: =IF(OR('Tabel 1 ØJ'!G38<5,'Tabel 2 ØJ'!J40<0.5),"-",IFERROR('Tabel 2 ØJ'!J40/'Tabel 1 ØJ'!G38*100,"-")) -> 3.839684735
A41: Bygningskonst. | C41: =IF(OR('Tabel 1 ØJ'!C39<5,'Tabel 2 ØJ'!C41<0.5),"-",IFERROR('Tabel 2 ØJ'!C41/'Tabel 1 ØJ'!C39*100,"-")) -> 4.955839058 | D41: =IF(OR('Tabel 1 ØJ'!C39<5,'Tabel 2 ØJ'!D41<0.5),"-",IFERROR('Tabel 2 ØJ'!D41/'Tabel 1 ØJ'!C39*100,"-")) -> 4.221632064 | F41: =IF(OR('Tabel 1 ØJ'!E39<5,'Tabel 2 ØJ'!F41<0.5),"-",IFERROR('Tabel 2 ØJ'!F41/'Tabel 1 ØJ'!E39*100,"-")) -> 9.973753281 | G41: =IF(OR('Tabel 1 ØJ'!E39<5,'Tabel 2 ØJ'!G41<0.5),"-",IFERROR('Tabel 2 ØJ'!G41/'Tabel 1 ØJ'!E39*100,"-")) -> 8.128346833 | I41: =IF(OR('Tabel 1 ØJ'!G39<5,'Tabel 2 ØJ'!I41<0.5),"-",IFERROR('Tabel 2 ØJ'!I41/'Tabel 1 ØJ'!G39*100,"-")) -> 5.746176106 | J41: =IF(OR('Tabel 1 ØJ'!G39<5,'Tabel 2 ØJ'!J41<0.5),"-",IFERROR('Tabel 2 ØJ'!J41/'Tabel 1 ØJ'!G39*100,"-")) -> 4.836951753
A42: Cand. IT. | C42: =IF(OR('Tabel 1 ØJ'!C40<5,'Tabel 2 ØJ'!C42<0.5),"-",IFERROR('Tabel 2 ØJ'!C42/'Tabel 1 ØJ'!C40*100,"-")) -> 9.819967267 | D42: =IF(OR('Tabel 1 ØJ'!C40<5,'Tabel 2 ØJ'!D42<0.5),"-",IFERROR('Tabel 2 ØJ'!D42/'Tabel 1 ØJ'!C40*100,"-")) -> 8.233631882 | F42: =IF(OR('Tabel 1 ØJ'!E40<5,'Tabel 2 ØJ'!F42<0.5),"-",IFERROR('Tabel 2 ØJ'!F42/'Tabel 1 ØJ'!E40*100,"-")) -> 13.6738056 | G42: =IF(OR('Tabel 1 ØJ'!E40<5,'Tabel 2 ØJ'!G42<0.5),"-",IFERROR('Tabel 2 ØJ'!G42/'Tabel 1 ØJ'!E40*100,"-")) -> 11.0648024 | I42: =IF(OR('Tabel 1 ØJ'!G40<5,'Tabel 2 ØJ'!I42<0.5),"-",IFERROR('Tabel 2 ØJ'!I42/'Tabel 1 ØJ'!G40*100,"-")) -> 11.74055829 | J42: =IF(OR('Tabel 1 ØJ'!G40<5,'Tabel 2 ØJ'!J42<0.5),"-",IFERROR('Tabel 2 ØJ'!J42/'Tabel 1 ØJ'!G40*100,"-")) -> 9.644568259
A43: Bac. Samf. | C43: =IF(OR('Tabel 1 ØJ'!C41<5,'Tabel 2 ØJ'!C43<0.5),"-",IFERROR('Tabel 2 ØJ'!C43/'Tabel 1 ØJ'!C41*100,"-")) -> 10.23622047 | D43: =IF(OR('Tabel 1 ØJ'!C41<5,'Tabel 2 ØJ'!D43<0.5),"-",IFERROR('Tabel 2 ØJ'!D43/'Tabel 1 ØJ'!C41*100,"-")) -> 8.369057716 | F43: =IF(OR('Tabel 1 ØJ'!E41<5,'Tabel 2 ØJ'!F43<0.5),"-",IFERROR('Tabel 2 ØJ'!F43/'Tabel 1 ØJ'!E41*100,"-")) -> 10.9375 | G43: =IF(OR('Tabel 1 ØJ'!E41<5,'Tabel 2 ØJ'!G43<0.5),"-",IFERROR('Tabel 2 ØJ'!G43/'Tabel 1 ØJ'!E41*100,"-")) -> 8.366533088 | I43: =IF(OR('Tabel 1 ØJ'!G41<5,'Tabel 2 ØJ'!I43<0.5),"-",IFERROR('Tabel 2 ØJ'!I43/'Tabel 1 ØJ'!G41*100,"-")) -> 10.58823529 | J43: =IF(OR('Tabel 1 ØJ'!G41<5,'Tabel 2 ØJ'!J43<0.5),"-",IFERROR('Tabel 2 ØJ'!J43/'Tabel 1 ØJ'!G41*100,"-")) -> 8.367790452
A44: Bac. Hum. | C44: =IF(OR('Tabel 1 ØJ'!C42<5,'Tabel 2 ØJ'!C44<0.5),"-",IFERROR('Tabel 2 ØJ'!C44/'Tabel 1 ØJ'!C42*100,"-")) -> 16.4556962 | D44: =IF(OR('Tabel 1 ØJ'!C42<5,'Tabel 2 ØJ'!D44<0.5),"-",IFERROR('Tabel 2 ØJ'!D44/'Tabel 1 ØJ'!C42*100,"-")) -> 12.07214761 | F44: =IF(OR('Tabel 1 ØJ'!E42<5,'Tabel 2 ØJ'!F44<0.5),"-",IFERROR('Tabel 2 ØJ'!F44/'Tabel 1 ØJ'!E42*100,"-")) -> 19.75460123 | G44: =IF(OR('Tabel 1 ØJ'!E42<5,'Tabel 2 ØJ'!G44<0.5),"-",IFERROR('Tabel 2 ØJ'!G44/'Tabel 1 ØJ'!E42*100,"-")) -> 14.69545749 | I44: =IF(OR('Tabel 1 ØJ'!G42<5,'Tabel 2 ØJ'!I44<0.5),"-",IFERROR('Tabel 2 ØJ'!I44/'Tabel 1 ØJ'!G42*100,"-")) -> 18.54150504 | J44: =IF(OR('Tabel 1 ØJ'!G42<5,'Tabel 2 ØJ'!J44<0.5),"-",IFERROR('Tabel 2 ØJ'!J44/'Tabel 1 ØJ'!G42*100,"-")) -> 13.73079583
A45: Bac. Nat. | C45: =IF(OR('Tabel 1 ØJ'!C43<5,'Tabel 2 ØJ'!C45<0.5),"-",IFERROR('Tabel 2 ØJ'!C45/'Tabel 1 ØJ'!C43*100,"-")) -> 11.12759644 | D45: =IF(OR('Tabel 1 ØJ'!C43<5,'Tabel 2 ØJ'!D45<0.5),"-",IFERROR('Tabel 2 ØJ'!D45/'Tabel 1 ØJ'!C43*100,"-")) -> 8.161856823 | F45: =IF(OR('Tabel 1 ØJ'!E43<5,'Tabel 2 ØJ'!F45<0.5),"-",IFERROR('Tabel 2 ØJ'!F45/'Tabel 1 ØJ'!E43*100,"-")) -> 19.11764706 | G45: =IF(OR('Tabel 1 ØJ'!E43<5,'Tabel 2 ØJ'!G45<0.5),"-",IFERROR('Tabel 2 ØJ'!G45/'Tabel 1 ØJ'!E43*100,"-")) -> 15.29680512 | I45: =IF(OR('Tabel 1 ØJ'!G43<5,'Tabel 2 ØJ'!I45<0.5),"-",IFERROR('Tabel 2 ØJ'!I45/'Tabel 1 ØJ'!G43*100,"-")) -> 13.42494715 | J45: =IF(OR('Tabel 1 ØJ'!G43<5,'Tabel 2 ØJ'!J45<0.5),"-",IFERROR('Tabel 2 ØJ'!J45/'Tabel 1 ØJ'!G43*100,"-")) -> 10.21334301
A46: Andre | C46: =IF(OR('Tabel 1 ØJ'!C44<5,'Tabel 2 ØJ'!C46<0.5),"-",IFERROR('Tabel 2 ØJ'!C46/'Tabel 1 ØJ'!C44*100,"-")) -> 5.602716469 | D46: =IF(OR('Tabel 1 ØJ'!C44<5,'Tabel 2 ØJ'!D46<0.5),"-",IFERROR('Tabel 2 ØJ'!D46/'Tabel 1 ØJ'!C44*100,"-")) -> 4.504751113 | F46: =IF(OR('Tabel 1 ØJ'!E44<5,'Tabel 2 ØJ'!F46<0.5),"-",IFERROR('Tabel 2 ØJ'!F46/'Tabel 1 ØJ'!E44*100,"-")) -> 8.131067961 | G46: =IF(OR('Tabel 1 ØJ'!E44<5,'Tabel 2 ØJ'!G46<0.5),"-",IFERROR('Tabel 2 ØJ'!G46/'Tabel 1 ØJ'!E44*100,"-")) -> 5.97069515 | I46: =IF(OR('Tabel 1 ØJ'!G44<5,'Tabel 2 ØJ'!I46<0.5),"-",IFERROR('Tabel 2 ØJ'!I46/'Tabel 1 ØJ'!G44*100,"-")) -> 6.82284041 | J46: =IF(OR('Tabel 1 ØJ'!G44<5,'Tabel 2 ØJ'!J46<0.5),"-",IFERROR('Tabel 2 ØJ'!J46/'Tabel 1 ØJ'!G44*100,"-")) -> 5.212181793
A48: Total | C48: =IF(OR('Tabel 1 ØJ'!C46<5,'Tabel 2 ØJ'!C48<0.5),"-",IFERROR('Tabel 2 ØJ'!C48/'Tabel 1 ØJ'!C46*100,"-")) -> 6.175134242 | D48: =IF(OR('Tabel 1 ØJ'!C46<5,'Tabel 2 ØJ'!D48<0.5),"-",IFERROR('Tabel 2 ØJ'!D48/'Tabel 1 ØJ'!C46*100,"-")) -> 4.981359605 | F48: =IF(OR('Tabel 1 ØJ'!E46<5,'Tabel 2 ØJ'!F48<0.5),"-",IFERROR('Tabel 2 ØJ'!F48/'Tabel 1 ØJ'!E46*100,"-")) -> 7.965675127 | G48: =IF(OR('Tabel 1 ØJ'!E46<5,'Tabel 2 ØJ'!G48<0.5),"-",IFERROR('Tabel 2 ØJ'!G48/'Tabel 1 ØJ'!E46*100,"-")) -> 6.04402961 | I48: =IF(OR('Tabel 1 ØJ'!G46<5,'Tabel 2 ØJ'!I48<0.5),"-",IFERROR('Tabel 2 ØJ'!I48/'Tabel 1 ØJ'!G46*100,"-")) -> 7.05815501 | J48: =IF(OR('Tabel 1 ØJ'!G46<5,'Tabel 2 ØJ'!J48<0.5),"-",IFERROR('Tabel 2 ØJ'!J48/'Tabel 1 ØJ'!G46*100,"-")) -> 5.505424536
A50: Ingeniører i alt | C50: =IF(OR('Tabel 1 ØJ'!C48<5,'Tabel 2 ØJ'!C50<0.5),"-",IFERROR('Tabel 2 ØJ'!C50/'Tabel 1 ØJ'!C48*100,"-")) -> 3.245307031 | D50: =IF(OR('Tabel 1 ØJ'!C48<5,'Tabel 2 ØJ'!D50<0.5),"-",IFERROR('Tabel 2 ØJ'!D50/'Tabel 1 ØJ'!C48*100,"-")) -> 2.62258699 | F50: =IF(OR('Tabel 1 ØJ'!E48<5,'Tabel 2 ØJ'!F50<0.5),"-",IFERROR('Tabel 2 ØJ'!F50/'Tabel 1 ØJ'!E48*100,"-")) -> 4.01297122 | G50: =IF(OR('Tabel 1 ØJ'!E48<5,'Tabel 2 ØJ'!G50<0.5),"-",IFERROR('Tabel 2 ØJ'!G50/'Tabel 1 ØJ'!E48*100,"-")) -> 3.174365923 | I50: =IF(OR('Tabel 1 ØJ'!G48<5,'Tabel 2 ØJ'!I50<0.5),"-",IFERROR('Tabel 2 ØJ'!I50/'Tabel 1 ØJ'!G48*100,"-")) -> 3.404505716 | J50: =IF(OR('Tabel 1 ØJ'!G48<5,'Tabel 2 ØJ'!J50<0.5),"-",IFERROR('Tabel 2 ØJ'!J50/'Tabel 1 ØJ'!G48*100,"-")) -> 2.737015254
A51: Magistre i alt | C51: =IF(OR('Tabel 1 ØJ'!C49<5,'Tabel 2 ØJ'!C51<0.5),"-",IFERROR('Tabel 2 ØJ'!C51/'Tabel 1 ØJ'!C49*100,"-")) -> 8.877786318 | D51: =IF(OR('Tabel 1 ØJ'!C49<5,'Tabel 2 ØJ'!D51<0.5),"-",IFERROR('Tabel 2 ØJ'!D51/'Tabel 1 ØJ'!C49*100,"-")) -> 7.169086741 | F51: =IF(OR('Tabel 1 ØJ'!E49<5,'Tabel 2 ØJ'!F51<0.5),"-",IFERROR('Tabel 2 ØJ'!F51/'Tabel 1 ØJ'!E49*100,"-")) -> 10.10330344 | G51: =IF(OR('Tabel 1 ØJ'!E49<5,'Tabel 2 ØJ'!G51<0.5),"-",IFERROR('Tabel 2 ØJ'!G51/'Tabel 1 ØJ'!E49*100,"-")) -> 7.616931412 | I51: =IF(OR('Tabel 1 ØJ'!G49<5,'Tabel 2 ØJ'!I51<0.5),"-",IFERROR('Tabel 2 ØJ'!I51/'Tabel 1 ØJ'!G49*100,"-")) -> 9.648183829 | J51: =IF(OR('Tabel 1 ØJ'!G49<5,'Tabel 2 ØJ'!J51<0.5),"-",IFERROR('Tabel 2 ØJ'!J51/'Tabel 1 ØJ'!G49*100,"-")) -> 7.450615586
A52: DJØF'ere i alt | C52: =IF(OR('Tabel 1 ØJ'!C50<5,'Tabel 2 ØJ'!C52<0.5),"-",IFERROR('Tabel 2 ØJ'!C52/'Tabel 1 ØJ'!C50*100,"-")) -> 6.490295463 | D52: =IF(OR('Tabel 1 ØJ'!C50<5,'Tabel 2 ØJ'!D52<0.5),"-",IFERROR('Tabel 2 ØJ'!D52/'Tabel 1 ØJ'!C50*100,"-")) -> 5.32906166 | F52: =IF(OR('Tabel 1 ØJ'!E50<5,'Tabel 2 ØJ'!F52<0.5),"-",IFERROR('Tabel 2 ØJ'!F52/'Tabel 1 ØJ'!E50*100,"-")) -> 6.22595313 | G52: =IF(OR('Tabel 1 ØJ'!E50<5,'Tabel 2 ØJ'!G52<0.5),"-",IFERROR('Tabel 2 ØJ'!G52/'Tabel 1 ØJ'!E50*100,"-")) -> 4.745800861 | I52: =IF(OR('Tabel 1 ØJ'!G50<5,'Tabel 2 ØJ'!I52<0.5),"-",IFERROR('Tabel 2 ØJ'!I52/'Tabel 1 ØJ'!G50*100,"-")) -> 6.35425417 | J52: =IF(OR('Tabel 1 ØJ'!G50<5,'Tabel 2 ØJ'!J52<0.5),"-",IFERROR('Tabel 2 ØJ'!J52/'Tabel 1 ØJ'!G50*100,"-")) -> 5.028891981
A57: Horsens
C59: Mænd | F59: Kvinder | I59: I alt
C60: Ledigheds- berørte | D60: Gns. brutto- ledighed | F60: Ledigheds- berørte | G60: Gns. brutto- ledighed | I60: Ledigheds- berørte | J60: Gns. brutto- ledighed
A63: Civ. ing. | C63: =IF(OR('Tabel 1 ØJ'!C61<5,'Tabel 2 ØJ'!C63<0.5),"-",IFERROR('Tabel 2 ØJ'!C63/'Tabel 1 ØJ'!C61*100,"-")) -> 2.916666667 | D63: =IF(OR('Tabel 1 ØJ'!C61<5,'Tabel 2 ØJ'!D63<0.5),"-",IFERROR('Tabel 2 ØJ'!D63/'Tabel 1 ØJ'!C61*100,"-")) -> 2.685346889 | F63: =IF(OR('Tabel 1 ØJ'!E61<5,'Tabel 2 ØJ'!F63<0.5),"-",IFERROR('Tabel 2 ØJ'!F63/'Tabel 1 ØJ'!E61*100,"-")) -> 3.191489362 | G63: =IF(OR('Tabel 1 ØJ'!E61<5,'Tabel 2 ØJ'!G63<0.5),"-",IFERROR('Tabel 2 ØJ'!G63/'Tabel 1 ØJ'!E61*100,"-")) -> 3.190892189 | I63: =IF(OR('Tabel 1 ØJ'!G61<5,'Tabel 2 ØJ'!I63<0.5),"-",IFERROR('Tabel 2 ØJ'!I63/'Tabel 1 ØJ'!G61*100,"-")) -> 2.994011976 | J63: =IF(OR('Tabel 1 ØJ'!G61<5,'Tabel 2 ØJ'!J63<0.5),"-",IFERROR('Tabel 2 ØJ'!J63/'Tabel 1 ØJ'!G61*100,"-")) -> 2.827626105
A64: Diplom ing. | C64: =IF(OR('Tabel 1 ØJ'!C62<5,'Tabel 2 ØJ'!C64<0.5),"-",IFERROR('Tabel 2 ØJ'!C64/'Tabel 1 ØJ'!C62*100,"-")) -> 2.390998594 | D64: =IF(OR('Tabel 1 ØJ'!C62<5,'Tabel 2 ØJ'!D64<0.5),"-",IFERROR('Tabel 2 ØJ'!D64/'Tabel 1 ØJ'!C62*100,"-")) -> 1.798681219 | F64: =IF(OR('Tabel 1 ØJ'!E62<5,'Tabel 2 ØJ'!F64<0.5),"-",IFERROR('Tabel 2 ØJ'!F64/'Tabel 1 ØJ'!E62*100,"-")) -> 3.375527426 | G64: =IF(OR('Tabel 1 ØJ'!E62<5,'Tabel 2 ØJ'!G64<0.5),"-",IFERROR('Tabel 2 ØJ'!G64/'Tabel 1 ØJ'!E62*100,"-")) -> 2.985140616 | I64: =IF(OR('Tabel 1 ØJ'!G62<5,'Tabel 2 ØJ'!I64<0.5),"-",IFERROR('Tabel 2 ØJ'!I64/'Tabel 1 ØJ'!G62*100,"-")) -> 2.637130802 | J64: =IF(OR('Tabel 1 ØJ'!G62<5,'Tabel 2 ØJ'!J64<0.5),"-",IFERROR('Tabel 2 ØJ'!J64/'Tabel 1 ØJ'!G62*100,"-")) -> 2.095296068
A65: Cand. Scient. Tek. | C65: =IF(OR('Tabel 1 ØJ'!C63<5,'Tabel 2 ØJ'!C65<0.5),"-",IFERROR('Tabel 2 ØJ'!C65/'Tabel 1 ØJ'!C63*100,"-")) -> 5.940594059 | D65: =IF(OR('Tabel 1 ØJ'!C63<5,'Tabel 2 ØJ'!D65<0.5),"-",IFERROR('Tabel 2 ØJ'!D65/'Tabel 1 ØJ'!C63*100,"-")) -> 5.436806389 | F65: =IF(OR('Tabel 1 ØJ'!E63<5,'Tabel 2 ØJ'!F65<0.5),"-",IFERROR('Tabel 2 ØJ'!F65/'Tabel 1 ØJ'!E63*100,"-")) -> 6.172839506 | G65: =IF(OR('Tabel 1 ØJ'!E63<5,'Tabel 2 ØJ'!G65<0.5),"-",IFERROR('Tabel 2 ØJ'!G65/'Tabel 1 ØJ'!E63*100,"-")) -> 4.234322266 | I65: =IF(OR('Tabel 1 ØJ'!G63<5,'Tabel 2 ØJ'!I65<0.5),"-",IFERROR('Tabel 2 ØJ'!I65/'Tabel 1 ØJ'!G63*100,"-")) -> 6.043956044 | J65: =IF(OR('Tabel 1 ØJ'!G63<5,'Tabel 2 ØJ'!J65<0.5),"-",IFERROR('Tabel 2 ØJ'!J65/'Tabel 1 ØJ'!G63*100,"-")) -> 4.901634884
A66: MA. Hum. | C66: =IF(OR('Tabel 1 ØJ'!C64<5,'Tabel 2 ØJ'!C66<0.5),"-",IFERROR('Tabel 2 ØJ'!C66/'Tabel 1 ØJ'!C64*100,"-")) -> 5.147058824 | D66: =IF(OR('Tabel 1 ØJ'!C64<5,'Tabel 2 ØJ'!D66<0.5),"-",IFERROR('Tabel 2 ØJ'!D66/'Tabel 1 ØJ'!C64*100,"-")) -> 3.782639483 | F66: =IF(OR('Tabel 1 ØJ'!E64<5,'Tabel 2 ØJ'!F66<0.5),"-",IFERROR('Tabel 2 ØJ'!F66/'Tabel 1 ØJ'!E64*100,"-")) -> 7.947019868 | G66: =IF(OR('Tabel 1 ØJ'!E64<5,'Tabel 2 ØJ'!G66<0.5),"-",IFERROR('Tabel 2 ØJ'!G66/'Tabel 1 ØJ'!E64*100,"-")) -> 5.534735271 | I66: =IF(OR('Tabel 1 ØJ'!G64<5,'Tabel 2 ØJ'!I66<0.5),"-",IFERROR('Tabel 2 ØJ'!I66/'Tabel 1 ØJ'!G64*100,"-")) -> 7.077625571 | J66: =IF(OR('Tabel 1 ØJ'!G64<5,'Tabel 2 ØJ'!J66<0.5),"-",IFERROR('Tabel 2 ØJ'!J66/'Tabel 1 ØJ'!G64*100,"-")) -> 4.990705528
A67: MA. Nat. | C67: =IF(OR('Tabel 1 ØJ'!C65<5,'Tabel 2 ØJ'!C67<0.5),"-",IFERROR('Tabel 2 ØJ'!C67/'Tabel 1 ØJ'!C65*100,"-")) -> 1.538461538 | D67: =IF(OR('Tabel 1 ØJ'!C65<5,'Tabel 2 ØJ'!D67<0.5),"-",IFERROR('Tabel 2 ØJ'!D67/'Tabel 1 ØJ'!C65*100,"-")) -> 1.538173671 | F67: =IF(OR('Tabel 1 ØJ'!E65<5,'Tabel 2 ØJ'!F67<0.5),"-",IFERROR('Tabel 2 ØJ'!F67/'Tabel 1 ØJ'!E65*100,"-")) -> 1.315789474 | G67: =IF(OR('Tabel 1 ØJ'!E65<5,'Tabel 2 ØJ'!G67<0.5),"-",IFERROR('Tabel 2 ØJ'!G67/'Tabel 1 ØJ'!E65*100,"-")) -> 0.9511632258 | I67: =IF(OR('Tabel 1 ØJ'!G65<5,'Tabel 2 ØJ'!I67<0.5),"-",IFERROR('Tabel 2 ØJ'!I67/'Tabel 1 ØJ'!G65*100,"-")) -> 1.418439716 | J67: =IF(OR('Tabel 1 ØJ'!G65<5,'Tabel 2 ØJ'!J67<0.5),"-",IFERROR('Tabel 2 ØJ'!J67/'Tabel 1 ØJ'!G65*100,"-")) -> 1.221770878
A68: MA. Ph.d. | C68: =IF(OR('Tabel 1 ØJ'!C66<5,'Tabel 2 ØJ'!C68<0.5),"-",IFERROR('Tabel 2 ØJ'!C68/'Tabel 1 ØJ'!C66*100,"-")) -> - | D68: =IF(OR('Tabel 1 ØJ'!C66<5,'Tabel 2 ØJ'!D68<0.5),"-",IFERROR('Tabel 2 ØJ'!D68/'Tabel 1 ØJ'!C66*100,"-")) -> - | F68: =IF(OR('Tabel 1 ØJ'!E66<5,'Tabel 2 ØJ'!F68<0.5),"-",IFERROR('Tabel 2 ØJ'!F68/'Tabel 1 ØJ'!E66*100,"-")) -> - | G68: =IF(OR('Tabel 1 ØJ'!E66<5,'Tabel 2 ØJ'!G68<0.5),"-",IFERROR('Tabel 2 ØJ'!G68/'Tabel 1 ØJ'!E66*100,"-")) -> - | I68: =IF(OR('Tabel 1 ØJ'!G66<5,'Tabel 2 ØJ'!I68<0.5),"-",IFERROR('Tabel 2 ØJ'!I68/'Tabel 1 ØJ'!G66*100,"-")) -> - | J68: =IF(OR('Tabel 1 ØJ'!G66<5,'Tabel 2 ØJ'!J68<0.5),"-",IFERROR('Tabel 2 ØJ'!J68/'Tabel 1 ØJ'!G66*100,"-")) -> -
A69: MA. Samf. | C69: =IF(OR('Tabel 1 ØJ'!C67<5,'Tabel 2 ØJ'!C69<0.5),"-",IFERROR('Tabel 2 ØJ'!C69/'Tabel 1 ØJ'!C67*100,"-")) -> 10 | D69: =IF(OR('Tabel 1 ØJ'!C67<5,'Tabel 2 ØJ'!D69<0.5),"-",IFERROR('Tabel 2 ØJ'!D69/'Tabel 1 ØJ'!C67*100,"-")) -> - | F69: =IF(OR('Tabel 1 ØJ'!E67<5,'Tabel 2 ØJ'!F69<0.5),"-",IFERROR('Tabel 2 ØJ'!F69/'Tabel 1 ØJ'!E67*100,"-")) -> 9.677419355 | G69: =IF(OR('Tabel 1 ØJ'!E67<5,'Tabel 2 ØJ'!G69<0.5),"-",IFERROR('Tabel 2 ØJ'!G69/'Tabel 1 ØJ'!E67*100,"-")) -> 8.448301185 | I69: =IF(OR('Tabel 1 ØJ'!G67<5,'Tabel 2 ØJ'!I69<0.5),"-",IFERROR('Tabel 2 ØJ'!I69/'Tabel 1 ØJ'!G67*100,"-")) -> 9.756097561 | J69: =IF(OR('Tabel 1 ØJ'!G67<5,'Tabel 2 ØJ'!J69<0.5),"-",IFERROR('Tabel 2 ØJ'!J69/'Tabel 1 ØJ'!G67*100,"-")) -> 7.531721921
A70: Øvrige Mag. | C70: =IF(OR('Tabel 1 ØJ'!C68<5,'Tabel 2 ØJ'!C70<0.5),"-",IFERROR('Tabel 2 ØJ'!C70/'Tabel 1 ØJ'!C68*100,"-")) -> - | D70: =IF(OR('Tabel 1 ØJ'!C68<5,'Tabel 2 ØJ'!D70<0.5),"-",IFERROR('Tabel 2 ØJ'!D70/'Tabel 1 ØJ'!C68*100,"-")) -> - | F70: =IF(OR('Tabel 1 ØJ'!E68<5,'Tabel 2 ØJ'!F70<0.5),"-",IFERROR('Tabel 2 ØJ'!F70/'Tabel 1 ØJ'!E68*100,"-")) -> 11.11111111 | G70: =IF(OR('Tabel 1 ØJ'!E68<5,'Tabel 2 ØJ'!G70<0.5),"-",IFERROR('Tabel 2 ØJ'!G70/'Tabel 1 ØJ'!E68*100,"-")) -> 7.006382669 | I70: =IF(OR('Tabel 1 ØJ'!G68<5,'Tabel 2 ØJ'!I70<0.5),"-",IFERROR('Tabel 2 ØJ'!I70/'Tabel 1 ØJ'!G68*100,"-")) -> 5.882352941 | J70: =IF(OR('Tabel 1 ØJ'!G68<5,'Tabel 2 ØJ'!J70<0.5),"-",IFERROR('Tabel 2 ØJ'!J70/'Tabel 1 ØJ'!G68*100,"-")) -> 3.709261413
A71: Agronom | C71: =IF(OR('Tabel 1 ØJ'!C69<5,'Tabel 2 ØJ'!C71<0.5),"-",IFERROR('Tabel 2 ØJ'!C71/'Tabel 1 ØJ'!C69*100,"-")) -> - | D71: =IF(OR('Tabel 1 ØJ'!C69<5,'Tabel 2 ØJ'!D71<0.5),"-",IFERROR('Tabel 2 ØJ'!D71/'Tabel 1 ØJ'!C69*100,"-")) -> - | F71: =IF(OR('Tabel 1 ØJ'!E69<5,'Tabel 2 ØJ'!F71<0.5),"-",IFERROR('Tabel 2 ØJ'!F71/'Tabel 1 ØJ'!E69*100,"-")) -> 5.555555556 | G71: =IF(OR('Tabel 1 ØJ'!E69<5,'Tabel 2 ØJ'!G71<0.5),"-",IFERROR('Tabel 2 ØJ'!G71/'Tabel 1 ØJ'!E69*100,"-")) -> 4.272438096 | I71: =IF(OR('Tabel 1 ØJ'!G69<5,'Tabel 2 ØJ'!I71<0.5),"-",IFERROR('Tabel 2 ØJ'!I71/'Tabel 1 ØJ'!G69*100,"-")) -> 2.777777778 | J71: =IF(OR('Tabel 1 ØJ'!G69<5,'Tabel 2 ØJ'!J71<0.5),"-",IFERROR('Tabel 2 ØJ'!J71/'Tabel 1 ØJ'!G69*100,"-")) -> 2.136219048
A72: Landsk. Arkt. | C72: =IF(OR('Tabel 1 ØJ'!C70<5,'Tabel 2 ØJ'!C72<0.5),"-",IFERROR('Tabel 2 ØJ'!C72/'Tabel 1 ØJ'!C70*100,"-")) -> - | D72: =IF(OR('Tabel 1 ØJ'!C70<5,'Tabel 2 ØJ'!D72<0.5),"-",IFERROR('Tabel 2 ØJ'!D72/'Tabel 1 ØJ'!C70*100,"-")) -> - | F72: =IF(OR('Tabel 1 ØJ'!E70<5,'Tabel 2 ØJ'!F72<0.5),"-",IFERROR('Tabel 2 ØJ'!F72/'Tabel 1 ØJ'!E70*100,"-")) -> - | G72: =IF(OR('Tabel 1 ØJ'!E70<5,'Tabel 2 ØJ'!G72<0.5),"-",IFERROR('Tabel 2 ØJ'!G72/'Tabel 1 ØJ'!E70*100,"-")) -> - | I72: =IF(OR('Tabel 1 ØJ'!G70<5,'Tabel 2 ØJ'!I72<0.5),"-",IFERROR('Tabel 2 ØJ'!I72/'Tabel 1 ØJ'!G70*100,"-")) -> - | J72: =IF(OR('Tabel 1 ØJ'!G70<5,'Tabel 2 ØJ'!J72<0.5),"-",IFERROR('Tabel 2 ØJ'!J72/'Tabel 1 ØJ'!G70*100,"-")) -> -
A73: Hortonom | C73: =IF(OR('Tabel 1 ØJ'!C71<5,'Tabel 2 ØJ'!C73<0.5),"-",IFERROR('Tabel 2 ØJ'!C73/'Tabel 1 ØJ'!C71*100,"-")) -> - | D73: =IF(OR('Tabel 1 ØJ'!C71<5,'Tabel 2 ØJ'!D73<0.5),"-",IFERROR('Tabel 2 ØJ'!D73/'Tabel 1 ØJ'!C71*100,"-")) -> - | F73: =IF(OR('Tabel 1 ØJ'!E71<5,'Tabel 2 ØJ'!F73<0.5),"-",IFERROR('Tabel 2 ØJ'!F73/'Tabel 1 ØJ'!E71*100,"-")) -> - | G73: =IF(OR('Tabel 1 ØJ'!E71<5,'Tabel 2 ØJ'!G73<0.5),"-",IFERROR('Tabel 2 ØJ'!G73/'Tabel 1 ØJ'!E71*100,"-")) -> - | I73: =IF(OR('Tabel 1 ØJ'!G71<5,'Tabel 2 ØJ'!I73<0.5),"-",IFERROR('Tabel 2 ØJ'!I73/'Tabel 1 ØJ'!G71*100,"-")) -> - | J73: =IF(OR('Tabel 1 ØJ'!G71<5,'Tabel 2 ØJ'!J73<0.5),"-",IFERROR('Tabel 2 ØJ'!J73/'Tabel 1 ØJ'!G71*100,"-")) -> -
A74: Forstkand. | C74: =IF(OR('Tabel 1 ØJ'!C72<5,'Tabel 2 ØJ'!C74<0.5),"-",IFERROR('Tabel 2 ØJ'!C74/'Tabel 1 ØJ'!C72*100,"-")) -> - | D74: =IF(OR('Tabel 1 ØJ'!C72<5,'Tabel 2 ØJ'!D74<0.5),"-",IFERROR('Tabel 2 ØJ'!D74/'Tabel 1 ØJ'!C72*100,"-")) -> - | F74: =IF(OR('Tabel 1 ØJ'!E72<5,'Tabel 2 ØJ'!F74<0.5),"-",IFERROR('Tabel 2 ØJ'!F74/'Tabel 1 ØJ'!E72*100,"-")) -> - | G74: =IF(OR('Tabel 1 ØJ'!E72<5,'Tabel 2 ØJ'!G74<0.5),"-",IFERROR('Tabel 2 ØJ'!G74/'Tabel 1 ØJ'!E72*100,"-")) -> - | I74: =IF(OR('Tabel 1 ØJ'!G72<5,'Tabel 2 ØJ'!I74<0.5),"-",IFERROR('Tabel 2 ØJ'!I74/'Tabel 1 ØJ'!G72*100,"-")) -> - | J74: =IF(OR('Tabel 1 ØJ'!G72<5,'Tabel 2 ØJ'!J74<0.5),"-",IFERROR('Tabel 2 ØJ'!J74/'Tabel 1 ØJ'!G72*100,"-")) -> -
A75: Jordbrugsakad. | C75: =IF(OR('Tabel 1 ØJ'!C73<5,'Tabel 2 ØJ'!C75<0.5),"-",IFERROR('Tabel 2 ØJ'!C75/'Tabel 1 ØJ'!C73*100,"-")) -> - | D75: =IF(OR('Tabel 1 ØJ'!C73<5,'Tabel 2 ØJ'!D75<0.5),"-",IFERROR('Tabel 2 ØJ'!D75/'Tabel 1 ØJ'!C73*100,"-")) -> - | F75: =IF(OR('Tabel 1 ØJ'!E73<5,'Tabel 2 ØJ'!F75<0.5),"-",IFERROR('Tabel 2 ØJ'!F75/'Tabel 1 ØJ'!E73*100,"-")) -> 5 | G75: =IF(OR('Tabel 1 ØJ'!E73<5,'Tabel 2 ØJ'!G75<0.5),"-",IFERROR('Tabel 2 ØJ'!G75/'Tabel 1 ØJ'!E73*100,"-")) -> 3.845194287 | I75: =IF(OR('Tabel 1 ØJ'!G73<5,'Tabel 2 ØJ'!I75<0.5),"-",IFERROR('Tabel 2 ØJ'!I75/'Tabel 1 ØJ'!G73*100,"-")) -> 2.222222222 | J75: =IF(OR('Tabel 1 ØJ'!G73<5,'Tabel 2 ØJ'!J75<0.5),"-",IFERROR('Tabel 2 ØJ'!J75/'Tabel 1 ØJ'!G73*100,"-")) -> 1.708975239
A76: Mejeriing. | C76: =IF(OR('Tabel 1 ØJ'!C74<5,'Tabel 2 ØJ'!C76<0.5),"-",IFERROR('Tabel 2 ØJ'!C76/'Tabel 1 ØJ'!C74*100,"-")) -> - | D76: =IF(OR('Tabel 1 ØJ'!C74<5,'Tabel 2 ØJ'!D76<0.5),"-",IFERROR('Tabel 2 ØJ'!D76/'Tabel 1 ØJ'!C74*100,"-")) -> - | F76: =IF(OR('Tabel 1 ØJ'!E74<5,'Tabel 2 ØJ'!F76<0.5),"-",IFERROR('Tabel 2 ØJ'!F76/'Tabel 1 ØJ'!E74*100,"-")) -> - | G76: =IF(OR('Tabel 1 ØJ'!E74<5,'Tabel 2 ØJ'!G76<0.5),"-",IFERROR('Tabel 2 ØJ'!G76/'Tabel 1 ØJ'!E74*100,"-")) -> - | I76: =IF(OR('Tabel 1 ØJ'!G74<5,'Tabel 2 ØJ'!I76<0.5),"-",IFERROR('Tabel 2 ØJ'!I76/'Tabel 1 ØJ'!G74*100,"-")) -> - | J76: =IF(OR('Tabel 1 ØJ'!G74<5,'Tabel 2 ØJ'!J76<0.5),"-",IFERROR('Tabel 2 ØJ'!J76/'Tabel 1 ØJ'!G74*100,"-")) -> -
A77: Levn.m.kand. | C77: =IF(OR('Tabel 1 ØJ'!C75<5,'Tabel 2 ØJ'!C77<0.5),"-",IFERROR('Tabel 2 ØJ'!C77/'Tabel 1 ØJ'!C75*100,"-")) -> - | D77: =IF(OR('Tabel 1 ØJ'!C75<5,'Tabel 2 ØJ'!D77<0.5),"-",IFERROR('Tabel 2 ØJ'!D77/'Tabel 1 ØJ'!C75*100,"-")) -> - | F77: =IF(OR('Tabel 1 ØJ'!E75<5,'Tabel 2 ØJ'!F77<0.5),"-",IFERROR('Tabel 2 ØJ'!F77/'Tabel 1 ØJ'!E75*100,"-")) -> - | G77: =IF(OR('Tabel 1 ØJ'!E75<5,'Tabel 2 ØJ'!G77<0.5),"-",IFERROR('Tabel 2 ØJ'!G77/'Tabel 1 ØJ'!E75*100,"-")) -> - | I77: =IF(OR('Tabel 1 ØJ'!G75<5,'Tabel 2 ØJ'!I77<0.5),"-",IFERROR('Tabel 2 ØJ'!I77/'Tabel 1 ØJ'!G75*100,"-")) -> - | J77: =IF(OR('Tabel 1 ØJ'!G75<5,'Tabel 2 ØJ'!J77<0.5),"-",IFERROR('Tabel 2 ØJ'!J77/'Tabel 1 ØJ'!G75*100,"-")) -> -
A78: Dyrlæge | C78: =IF(OR('Tabel 1 ØJ'!C76<5,'Tabel 2 ØJ'!C78<0.5),"-",IFERROR('Tabel 2 ØJ'!C78/'Tabel 1 ØJ'!C76*100,"-")) -> - | D78: =IF(OR('Tabel 1 ØJ'!C76<5,'Tabel 2 ØJ'!D78<0.5),"-",IFERROR('Tabel 2 ØJ'!D78/'Tabel 1 ØJ'!C76*100,"-")) -> - | F78: =IF(OR('Tabel 1 ØJ'!E76<5,'Tabel 2 ØJ'!F78<0.5),"-",IFERROR('Tabel 2 ØJ'!F78/'Tabel 1 ØJ'!E76*100,"-")) -> - | G78: =IF(OR('Tabel 1 ØJ'!E76<5,'Tabel 2 ØJ'!G78<0.5),"-",IFERROR('Tabel 2 ØJ'!G78/'Tabel 1 ØJ'!E76*100,"-")) -> - | I78: =IF(OR('Tabel 1 ØJ'!G76<5,'Tabel 2 ØJ'!I78<0.5),"-",IFERROR('Tabel 2 ØJ'!I78/'Tabel 1 ØJ'!G76*100,"-")) -> - | J78: =IF(OR('Tabel 1 ØJ'!G76<5,'Tabel 2 ØJ'!J78<0.5),"-",IFERROR('Tabel 2 ØJ'!J78/'Tabel 1 ØJ'!G76*100,"-")) -> -
A79: Farmaceut | C79: =IF(OR('Tabel 1 ØJ'!C77<5,'Tabel 2 ØJ'!C79<0.5),"-",IFERROR('Tabel 2 ØJ'!C79/'Tabel 1 ØJ'!C77*100,"-")) -> - | D79: =IF(OR('Tabel 1 ØJ'!C77<5,'Tabel 2 ØJ'!D79<0.5),"-",IFERROR('Tabel 2 ØJ'!D79/'Tabel 1 ØJ'!C77*100,"-")) -> - | F79: =IF(OR('Tabel 1 ØJ'!E77<5,'Tabel 2 ØJ'!F79<0.5),"-",IFERROR('Tabel 2 ØJ'!F79/'Tabel 1 ØJ'!E77*100,"-")) -> - | G79: =IF(OR('Tabel 1 ØJ'!E77<5,'Tabel 2 ØJ'!G79<0.5),"-",IFERROR('Tabel 2 ØJ'!G79/'Tabel 1 ØJ'!E77*100,"-")) -> - | I79: =IF(OR('Tabel 1 ØJ'!G77<5,'Tabel 2 ØJ'!I79<0.5),"-",IFERROR('Tabel 2 ØJ'!I79/'Tabel 1 ØJ'!G77*100,"-")) -> 13.63636364 | J79: =IF(OR('Tabel 1 ØJ'!G77<5,'Tabel 2 ØJ'!J79<0.5),"-",IFERROR('Tabel 2 ØJ'!J79/'Tabel 1 ØJ'!G77*100,"-")) -> 10.06730437
A80: Læge | C80: =IF(OR('Tabel 1 ØJ'!C78<5,'Tabel 2 ØJ'!C80<0.5),"-",IFERROR('Tabel 2 ØJ'!C80/'Tabel 1 ØJ'!C78*100,"-")) -> - | D80: =IF(OR('Tabel 1 ØJ'!C78<5,'Tabel 2 ØJ'!D80<0.5),"-",IFERROR('Tabel 2 ØJ'!D80/'Tabel 1 ØJ'!C78*100,"-")) -> - | F80: =IF(OR('Tabel 1 ØJ'!E78<5,'Tabel 2 ØJ'!F80<0.5),"-",IFERROR('Tabel 2 ØJ'!F80/'Tabel 1 ØJ'!E78*100,"-")) -> 2.702702703 | G80: =IF(OR('Tabel 1 ØJ'!E78<5,'Tabel 2 ØJ'!G80<0.5),"-",IFERROR('Tabel 2 ØJ'!G80/'Tabel 1 ØJ'!E78*100,"-")) -> 1.766626603 | I80: =IF(OR('Tabel 1 ØJ'!G78<5,'Tabel 2 ØJ'!I80<0.5),"-",IFERROR('Tabel 2 ØJ'!I80/'Tabel 1 ØJ'!G78*100,"-")) -> 1.960784314 | J80: =IF(OR('Tabel 1 ØJ'!G78<5,'Tabel 2 ØJ'!J80<0.5),"-",IFERROR('Tabel 2 ØJ'!J80/'Tabel 1 ØJ'!G78*100,"-")) -> 1.281670281
A81: Tandlæge | C81: =IF(OR('Tabel 1 ØJ'!C79<5,'Tabel 2 ØJ'!C81<0.5),"-",IFERROR('Tabel 2 ØJ'!C81/'Tabel 1 ØJ'!C79*100,"-")) -> - | D81: =IF(OR('Tabel 1 ØJ'!C79<5,'Tabel 2 ØJ'!D81<0.5),"-",IFERROR('Tabel 2 ØJ'!D81/'Tabel 1 ØJ'!C79*100,"-")) -> - | F81: =IF(OR('Tabel 1 ØJ'!E79<5,'Tabel 2 ØJ'!F81<0.5),"-",IFERROR('Tabel 2 ØJ'!F81/'Tabel 1 ØJ'!E79*100,"-")) -> - | G81: =IF(OR('Tabel 1 ØJ'!E79<5,'Tabel 2 ØJ'!G81<0.5),"-",IFERROR('Tabel 2 ØJ'!G81/'Tabel 1 ØJ'!E79*100,"-")) -> - | I81: =IF(OR('Tabel 1 ØJ'!G79<5,'Tabel 2 ØJ'!I81<0.5),"-",IFERROR('Tabel 2 ØJ'!I81/'Tabel 1 ØJ'!G79*100,"-")) -> - | J81: =IF(OR('Tabel 1 ØJ'!G79<5,'Tabel 2 ØJ'!J81<0.5),"-",IFERROR('Tabel 2 ØJ'!J81/'Tabel 1 ØJ'!G79*100,"-")) -> -
A82: Arkitekt | C82: =IF(OR('Tabel 1 ØJ'!C80<5,'Tabel 2 ØJ'!C82<0.5),"-",IFERROR('Tabel 2 ØJ'!C82/'Tabel 1 ØJ'!C80*100,"-")) -> 3.225806452 | D82: =IF(OR('Tabel 1 ØJ'!C80<5,'Tabel 2 ØJ'!D82<0.5),"-",IFERROR('Tabel 2 ØJ'!D82/'Tabel 1 ØJ'!C80*100,"-")) -> 3.225202858 | F82: =IF(OR('Tabel 1 ØJ'!E80<5,'Tabel 2 ØJ'!F82<0.5),"-",IFERROR('Tabel 2 ØJ'!F82/'Tabel 1 ØJ'!E80*100,"-")) -> 5 | G82: =IF(OR('Tabel 1 ØJ'!E80<5,'Tabel 2 ØJ'!G82<0.5),"-",IFERROR('Tabel 2 ØJ'!G82/'Tabel 1 ØJ'!E80*100,"-")) -> 2.691324144 | I82: =IF(OR('Tabel 1 ØJ'!G80<5,'Tabel 2 ØJ'!I82<0.5),"-",IFERROR('Tabel 2 ØJ'!I82/'Tabel 1 ØJ'!G80*100,"-")) -> 4.225352113 | J82: =IF(OR('Tabel 1 ØJ'!G80<5,'Tabel 2 ØJ'!J82<0.5),"-",IFERROR('Tabel 2 ØJ'!J82/'Tabel 1 ØJ'!G80*100,"-")) -> 2.924426118
A83: Landinspek. | C83: =IF(OR('Tabel 1 ØJ'!C81<5,'Tabel 2 ØJ'!C83<0.5),"-",IFERROR('Tabel 2 ØJ'!C83/'Tabel 1 ØJ'!C81*100,"-")) -> - | D83: =IF(OR('Tabel 1 ØJ'!C81<5,'Tabel 2 ØJ'!D83<0.5),"-",IFERROR('Tabel 2 ØJ'!D83/'Tabel 1 ØJ'!C81*100,"-")) -> - | F83: =IF(OR('Tabel 1 ØJ'!E81<5,'Tabel 2 ØJ'!F83<0.5),"-",IFERROR('Tabel 2 ØJ'!F83/'Tabel 1 ØJ'!E81*100,"-")) -> - | G83: =IF(OR('Tabel 1 ØJ'!E81<5,'Tabel 2 ØJ'!G83<0.5),"-",IFERROR('Tabel 2 ØJ'!G83/'Tabel 1 ØJ'!E81*100,"-")) -> - | I83: =IF(OR('Tabel 1 ØJ'!G81<5,'Tabel 2 ØJ'!I83<0.5),"-",IFERROR('Tabel 2 ØJ'!I83/'Tabel 1 ØJ'!G81*100,"-")) -> - | J83: =IF(OR('Tabel 1 ØJ'!G81<5,'Tabel 2 ØJ'!J83<0.5),"-",IFERROR('Tabel 2 ØJ'!J83/'Tabel 1 ØJ'!G81*100,"-")) -> -
A84: Bibliotekar | C84: =IF(OR('Tabel 1 ØJ'!C82<5,'Tabel 2 ØJ'!C84<0.5),"-",IFERROR('Tabel 2 ØJ'!C84/'Tabel 1 ØJ'!C82*100,"-")) -> - | D84: =IF(OR('Tabel 1 ØJ'!C82<5,'Tabel 2 ØJ'!D84<0.5),"-",IFERROR('Tabel 2 ØJ'!D84/'Tabel 1 ØJ'!C82*100,"-")) -> - | F84: =IF(OR('Tabel 1 ØJ'!E82<5,'Tabel 2 ØJ'!F84<0.5),"-",IFERROR('Tabel 2 ØJ'!F84/'Tabel 1 ØJ'!E82*100,"-")) -> - | G84: =IF(OR('Tabel 1 ØJ'!E82<5,'Tabel 2 ØJ'!G84<0.5),"-",IFERROR('Tabel 2 ØJ'!G84/'Tabel 1 ØJ'!E82*100,"-")) -> - | I84: =IF(OR('Tabel 1 ØJ'!G82<5,'Tabel 2 ØJ'!I84<0.5),"-",IFERROR('Tabel 2 ØJ'!I84/'Tabel 1 ØJ'!G82*100,"-")) -> - | J84: =IF(OR('Tabel 1 ØJ'!G82<5,'Tabel 2 ØJ'!J84<0.5),"-",IFERROR('Tabel 2 ØJ'!J84/'Tabel 1 ØJ'!G82*100,"-")) -> -
A85: Musikudd. | C85: =IF(OR('Tabel 1 ØJ'!C83<5,'Tabel 2 ØJ'!C85<0.5),"-",IFERROR('Tabel 2 ØJ'!C85/'Tabel 1 ØJ'!C83*100,"-")) -> - | D85: =IF(OR('Tabel 1 ØJ'!C83<5,'Tabel 2 ØJ'!D85<0.5),"-",IFERROR('Tabel 2 ØJ'!D85/'Tabel 1 ØJ'!C83*100,"-")) -> - | F85: =IF(OR('Tabel 1 ØJ'!E83<5,'Tabel 2 ØJ'!F85<0.5),"-",IFERROR('Tabel 2 ØJ'!F85/'Tabel 1 ØJ'!E83*100,"-")) -> - | G85: =IF(OR('Tabel 1 ØJ'!E83<5,'Tabel 2 ØJ'!G85<0.5),"-",IFERROR('Tabel 2 ØJ'!G85/'Tabel 1 ØJ'!E83*100,"-")) -> - | I85: =IF(OR('Tabel 1 ØJ'!G83<5,'Tabel 2 ØJ'!I85<0.5),"-",IFERROR('Tabel 2 ØJ'!I85/'Tabel 1 ØJ'!G83*100,"-")) -> 12.5 | J85: =IF(OR('Tabel 1 ØJ'!G83<5,'Tabel 2 ØJ'!J85<0.5),"-",IFERROR('Tabel 2 ØJ'!J85/'Tabel 1 ØJ'!G83*100,"-")) -> 12.49766107
A86: Teolog | C86: =IF(OR('Tabel 1 ØJ'!C84<5,'Tabel 2 ØJ'!C86<0.5),"-",IFERROR('Tabel 2 ØJ'!C86/'Tabel 1 ØJ'!C84*100,"-")) -> - | D86: =IF(OR('Tabel 1 ØJ'!C84<5,'Tabel 2 ØJ'!D86<0.5),"-",IFERROR('Tabel 2 ØJ'!D86/'Tabel 1 ØJ'!C84*100,"-")) -> - | F86: =IF(OR('Tabel 1 ØJ'!E84<5,'Tabel 2 ØJ'!F86<0.5),"-",IFERROR('Tabel 2 ØJ'!F86/'Tabel 1 ØJ'!E84*100,"-")) -> - | G86: =IF(OR('Tabel 1 ØJ'!E84<5,'Tabel 2 ØJ'!G86<0.5),"-",IFERROR('Tabel 2 ØJ'!G86/'Tabel 1 ØJ'!E84*100,"-")) -> - | I86: =IF(OR('Tabel 1 ØJ'!G84<5,'Tabel 2 ØJ'!I86<0.5),"-",IFERROR('Tabel 2 ØJ'!I86/'Tabel 1 ØJ'!G84*100,"-")) -> - | J86: =IF(OR('Tabel 1 ØJ'!G84<5,'Tabel 2 ØJ'!J86<0.5),"-",IFERROR('Tabel 2 ØJ'!J86/'Tabel 1 ØJ'!G84*100,"-")) -> -
A87: Psykolog | C87: =IF(OR('Tabel 1 ØJ'!C85<5,'Tabel 2 ØJ'!C87<0.5),"-",IFERROR('Tabel 2 ØJ'!C87/'Tabel 1 ØJ'!C85*100,"-")) -> 6.666666667 | D87: =IF(OR('Tabel 1 ØJ'!C85<5,'Tabel 2 ØJ'!D87<0.5),"-",IFERROR('Tabel 2 ØJ'!D87/'Tabel 1 ØJ'!C85*100,"-")) -> 6.499095615 | F87: =IF(OR('Tabel 1 ØJ'!E85<5,'Tabel 2 ØJ'!F87<0.5),"-",IFERROR('Tabel 2 ØJ'!F87/'Tabel 1 ØJ'!E85*100,"-")) -> 10.46511628 | G87: =IF(OR('Tabel 1 ØJ'!E85<5,'Tabel 2 ØJ'!G87<0.5),"-",IFERROR('Tabel 2 ØJ'!G87/'Tabel 1 ØJ'!E85*100,"-")) -> 6.109492196 | I87: =IF(OR('Tabel 1 ØJ'!G85<5,'Tabel 2 ØJ'!I87<0.5),"-",IFERROR('Tabel 2 ØJ'!I87/'Tabel 1 ØJ'!G85*100,"-")) -> 9.900990099 | J87: =IF(OR('Tabel 1 ØJ'!G85<5,'Tabel 2 ØJ'!J87<0.5),"-",IFERROR('Tabel 2 ØJ'!J87/'Tabel 1 ØJ'!G85*100,"-")) -> 6.16735409
A88: Jurist | C88: =IF(OR('Tabel 1 ØJ'!C86<5,'Tabel 2 ØJ'!C88<0.5),"-",IFERROR('Tabel 2 ØJ'!C88/'Tabel 1 ØJ'!C86*100,"-")) -> - | D88: =IF(OR('Tabel 1 ØJ'!C86<5,'Tabel 2 ØJ'!D88<0.5),"-",IFERROR('Tabel 2 ØJ'!D88/'Tabel 1 ØJ'!C86*100,"-")) -> - | F88: =IF(OR('Tabel 1 ØJ'!E86<5,'Tabel 2 ØJ'!F88<0.5),"-",IFERROR('Tabel 2 ØJ'!F88/'Tabel 1 ØJ'!E86*100,"-")) -> - | G88: =IF(OR('Tabel 1 ØJ'!E86<5,'Tabel 2 ØJ'!G88<0.5),"-",IFERROR('Tabel 2 ØJ'!G88/'Tabel 1 ØJ'!E86*100,"-")) -> - | I88: =IF(OR('Tabel 1 ØJ'!G86<5,'Tabel 2 ØJ'!I88<0.5),"-",IFERROR('Tabel 2 ØJ'!I88/'Tabel 1 ØJ'!G86*100,"-")) -> - | J88: =IF(OR('Tabel 1 ØJ'!G86<5,'Tabel 2 ØJ'!J88<0.5),"-",IFERROR('Tabel 2 ØJ'!J88/'Tabel 1 ØJ'!G86*100,"-")) -> -
A89: Økonom | C89: =IF(OR('Tabel 1 ØJ'!C87<5,'Tabel 2 ØJ'!C89<0.5),"-",IFERROR('Tabel 2 ØJ'!C89/'Tabel 1 ØJ'!C87*100,"-")) -> 3.03030303 | D89: =IF(OR('Tabel 1 ØJ'!C87<5,'Tabel 2 ØJ'!D89<0.5),"-",IFERROR('Tabel 2 ØJ'!D89/'Tabel 1 ØJ'!C87*100,"-")) -> 2.88987297 | F89: =IF(OR('Tabel 1 ØJ'!E87<5,'Tabel 2 ØJ'!F89<0.5),"-",IFERROR('Tabel 2 ØJ'!F89/'Tabel 1 ØJ'!E87*100,"-")) -> 2.631578947 | G89: =IF(OR('Tabel 1 ØJ'!E87<5,'Tabel 2 ØJ'!G89<0.5),"-",IFERROR('Tabel 2 ØJ'!G89/'Tabel 1 ØJ'!E87*100,"-")) -> - | I89: =IF(OR('Tabel 1 ØJ'!G87<5,'Tabel 2 ØJ'!I89<0.5),"-",IFERROR('Tabel 2 ØJ'!I89/'Tabel 1 ØJ'!G87*100,"-")) -> 2.816901408 | J89: =IF(OR('Tabel 1 ØJ'!G87<5,'Tabel 2 ØJ'!J89<0.5),"-",IFERROR('Tabel 2 ØJ'!J89/'Tabel 1 ØJ'!G87*100,"-")) -> 1.581245723
A90: Samf. Adm. | C90: =IF(OR('Tabel 1 ØJ'!C88<5,'Tabel 2 ØJ'!C90<0.5),"-",IFERROR('Tabel 2 ØJ'!C90/'Tabel 1 ØJ'!C88*100,"-")) -> 2.53164557 | D90: =IF(OR('Tabel 1 ØJ'!C88<5,'Tabel 2 ØJ'!D90<0.5),"-",IFERROR('Tabel 2 ØJ'!D90/'Tabel 1 ØJ'!C88*100,"-")) -> 1.596390988 | F90: =IF(OR('Tabel 1 ØJ'!E88<5,'Tabel 2 ØJ'!F90<0.5),"-",IFERROR('Tabel 2 ØJ'!F90/'Tabel 1 ØJ'!E88*100,"-")) -> 4.504504505 | G90: =IF(OR('Tabel 1 ØJ'!E88<5,'Tabel 2 ØJ'!G90<0.5),"-",IFERROR('Tabel 2 ØJ'!G90/'Tabel 1 ØJ'!E88*100,"-")) -> 3.918157539 | I90: =IF(OR('Tabel 1 ØJ'!G88<5,'Tabel 2 ØJ'!I90<0.5),"-",IFERROR('Tabel 2 ØJ'!I90/'Tabel 1 ØJ'!G88*100,"-")) -> 3.684210526 | J90: =IF(OR('Tabel 1 ØJ'!G88<5,'Tabel 2 ØJ'!J90<0.5),"-",IFERROR('Tabel 2 ØJ'!J90/'Tabel 1 ØJ'!G88*100,"-")) -> 2.952791447
A91: Cand. Merc. | C91: =IF(OR('Tabel 1 ØJ'!C89<5,'Tabel 2 ØJ'!C91<0.5),"-",IFERROR('Tabel 2 ØJ'!C91/'Tabel 1 ØJ'!C89*100,"-")) -> 4.048582996 | D91: =IF(OR('Tabel 1 ØJ'!C89<5,'Tabel 2 ØJ'!D91<0.5),"-",IFERROR('Tabel 2 ØJ'!D91/'Tabel 1 ØJ'!C89*100,"-")) -> 3.341286734 | F91: =IF(OR('Tabel 1 ØJ'!E89<5,'Tabel 2 ØJ'!F91<0.5),"-",IFERROR('Tabel 2 ØJ'!F91/'Tabel 1 ØJ'!E89*100,"-")) -> 3.971119134 | G91: =IF(OR('Tabel 1 ØJ'!E89<5,'Tabel 2 ØJ'!G91<0.5),"-",IFERROR('Tabel 2 ØJ'!G91/'Tabel 1 ØJ'!E89*100,"-")) -> 2.867056011 | I91: =IF(OR('Tabel 1 ØJ'!G89<5,'Tabel 2 ØJ'!I91<0.5),"-",IFERROR('Tabel 2 ØJ'!I91/'Tabel 1 ØJ'!G89*100,"-")) -> 4.007633588 | J91: =IF(OR('Tabel 1 ØJ'!G89<5,'Tabel 2 ØJ'!J91<0.5),"-",IFERROR('Tabel 2 ØJ'!J91/'Tabel 1 ØJ'!G89*100,"-")) -> 3.090596065
A92: HA | C92: =IF(OR('Tabel 1 ØJ'!C90<5,'Tabel 2 ØJ'!C92<0.5),"-",IFERROR('Tabel 2 ØJ'!C92/'Tabel 1 ØJ'!C90*100,"-")) -> 9.433962264 | D92: =IF(OR('Tabel 1 ØJ'!C90<5,'Tabel 2 ØJ'!D92<0.5),"-",IFERROR('Tabel 2 ØJ'!D92/'Tabel 1 ØJ'!C90*100,"-")) -> 8.735520724 | F92: =IF(OR('Tabel 1 ØJ'!E90<5,'Tabel 2 ØJ'!F92<0.5),"-",IFERROR('Tabel 2 ØJ'!F92/'Tabel 1 ØJ'!E90*100,"-")) -> 4.255319149 | G92: =IF(OR('Tabel 1 ØJ'!E90<5,'Tabel 2 ØJ'!G92<0.5),"-",IFERROR('Tabel 2 ØJ'!G92/'Tabel 1 ØJ'!E90*100,"-")) -> 3.861716062 | I92: =IF(OR('Tabel 1 ØJ'!G90<5,'Tabel 2 ØJ'!I92<0.5),"-",IFERROR('Tabel 2 ØJ'!I92/'Tabel 1 ØJ'!G90*100,"-")) -> 7 | J92: =IF(OR('Tabel 1 ØJ'!G90<5,'Tabel 2 ØJ'!J92<0.5),"-",IFERROR('Tabel 2 ØJ'!J92/'Tabel 1 ØJ'!G90*100,"-")) -> 6.444832533
A93: HD | C93: =IF(OR('Tabel 1 ØJ'!C91<5,'Tabel 2 ØJ'!C93<0.5),"-",IFERROR('Tabel 2 ØJ'!C93/'Tabel 1 ØJ'!C91*100,"-")) -> 8.333333333 | D93: =IF(OR('Tabel 1 ØJ'!C91<5,'Tabel 2 ØJ'!D93<0.5),"-",IFERROR('Tabel 2 ØJ'!D93/'Tabel 1 ØJ'!C91*100,"-")) -> 8.331774049 | F93: =IF(OR('Tabel 1 ØJ'!E91<5,'Tabel 2 ØJ'!F93<0.5),"-",IFERROR('Tabel 2 ØJ'!F93/'Tabel 1 ØJ'!E91*100,"-")) -> 22.58064516 | G93: =IF(OR('Tabel 1 ØJ'!E91<5,'Tabel 2 ØJ'!G93<0.5),"-",IFERROR('Tabel 2 ØJ'!G93/'Tabel 1 ØJ'!E91*100,"-")) -> 17.01933311 | I93: =IF(OR('Tabel 1 ØJ'!G91<5,'Tabel 2 ØJ'!I93<0.5),"-",IFERROR('Tabel 2 ØJ'!I93/'Tabel 1 ØJ'!G91*100,"-")) -> 14.92537313 | J93: =IF(OR('Tabel 1 ØJ'!G91<5,'Tabel 2 ØJ'!J93<0.5),"-",IFERROR('Tabel 2 ØJ'!J93/'Tabel 1 ØJ'!G91*100,"-")) -> 12.35139093
A94: Komm. og Sprog | C94: =IF(OR('Tabel 1 ØJ'!C92<5,'Tabel 2 ØJ'!C94<0.5),"-",IFERROR('Tabel 2 ØJ'!C94/'Tabel 1 ØJ'!C92*100,"-")) -> - | D94: =IF(OR('Tabel 1 ØJ'!C92<5,'Tabel 2 ØJ'!D94<0.5),"-",IFERROR('Tabel 2 ØJ'!D94/'Tabel 1 ØJ'!C92*100,"-")) -> - | F94: =IF(OR('Tabel 1 ØJ'!E92<5,'Tabel 2 ØJ'!F94<0.5),"-",IFERROR('Tabel 2 ØJ'!F94/'Tabel 1 ØJ'!E92*100,"-")) -> 7.142857143 | G94: =IF(OR('Tabel 1 ØJ'!E92<5,'Tabel 2 ØJ'!G94<0.5),"-",IFERROR('Tabel 2 ØJ'!G94/'Tabel 1 ØJ'!E92*100,"-")) -> 6.482166246 | I94: =IF(OR('Tabel 1 ØJ'!G92<5,'Tabel 2 ØJ'!I94<0.5),"-",IFERROR('Tabel 2 ØJ'!I94/'Tabel 1 ØJ'!G92*100,"-")) -> 6.25 | J94: =IF(OR('Tabel 1 ØJ'!G92<5,'Tabel 2 ØJ'!J94<0.5),"-",IFERROR('Tabel 2 ØJ'!J94/'Tabel 1 ØJ'!G92*100,"-")) -> 5.671895466
A95: Bygningskonst. | C95: =IF(OR('Tabel 1 ØJ'!C94<5,'Tabel 2 ØJ'!C96<0.5),"-",IFERROR('Tabel 2 ØJ'!C96/'Tabel 1 ØJ'!C94*100,"-")) -> 4.545454545 | D95: =IF(OR('Tabel 1 ØJ'!C94<5,'Tabel 2 ØJ'!D96<0.5),"-",IFERROR('Tabel 2 ØJ'!D96/'Tabel 1 ØJ'!C94*100,"-")) -> 4.544604027 | F95: =IF(OR('Tabel 1 ØJ'!E94<5,'Tabel 2 ØJ'!F96<0.5),"-",IFERROR('Tabel 2 ØJ'!F96/'Tabel 1 ØJ'!E94*100,"-")) -> 6.666666667 | G95: =IF(OR('Tabel 1 ØJ'!E94<5,'Tabel 2 ØJ'!G96<0.5),"-",IFERROR('Tabel 2 ØJ'!G96/'Tabel 1 ØJ'!E94*100,"-")) -> 4.357678954 | I95: =IF(OR('Tabel 1 ØJ'!G94<5,'Tabel 2 ØJ'!I96<0.5),"-",IFERROR('Tabel 2 ØJ'!I96/'Tabel 1 ØJ'!G94*100,"-")) -> 5.769230769 | J95: =IF(OR('Tabel 1 ØJ'!G94<5,'Tabel 2 ØJ'!J96<0.5),"-",IFERROR('Tabel 2 ØJ'!J96/'Tabel 1 ØJ'!G94*100,"-")) -> 4.436762639
A96: Cand. IT. | C96: =IF(OR('Tabel 1 ØJ'!C94<5,'Tabel 2 ØJ'!C96<0.5),"-",IFERROR('Tabel 2 ØJ'!C96/'Tabel 1 ØJ'!C94*100,"-")) -> 4.545454545 | D96: =IF(OR('Tabel 1 ØJ'!C94<5,'Tabel 2 ØJ'!D96<0.5),"-",IFERROR('Tabel 2 ØJ'!D96/'Tabel 1 ØJ'!C94*100,"-")) -> 4.544604027 | F96: =IF(OR('Tabel 1 ØJ'!E94<5,'Tabel 2 ØJ'!F96<0.5),"-",IFERROR('Tabel 2 ØJ'!F96/'Tabel 1 ØJ'!E94*100,"-")) -> 6.666666667 | G96: =IF(OR('Tabel 1 ØJ'!E94<5,'Tabel 2 ØJ'!G96<0.5),"-",IFERROR('Tabel 2 ØJ'!G96/'Tabel 1 ØJ'!E94*100,"-")) -> 4.357678954 | I96: =IF(OR('Tabel 1 ØJ'!G94<5,'Tabel 2 ØJ'!I96<0.5),"-",IFERROR('Tabel 2 ØJ'!I96/'Tabel 1 ØJ'!G94*100,"-")) -> 5.769230769 | J96: =IF(OR('Tabel 1 ØJ'!G94<5,'Tabel 2 ØJ'!J96<0.5),"-",IFERROR('Tabel 2 ØJ'!J96/'Tabel 1 ØJ'!G94*100,"-")) -> 4.436762639
A97: Bac. Samf. | C97: =IF(OR('Tabel 1 ØJ'!C95<5,'Tabel 2 ØJ'!C97<0.5),"-",IFERROR('Tabel 2 ØJ'!C97/'Tabel 1 ØJ'!C95*100,"-")) -> - | D97: =IF(OR('Tabel 1 ØJ'!C95<5,'Tabel 2 ØJ'!D97<0.5),"-",IFERROR('Tabel 2 ØJ'!D97/'Tabel 1 ØJ'!C95*100,"-")) -> - | F97: =IF(OR('Tabel 1 ØJ'!E95<5,'Tabel 2 ØJ'!F97<0.5),"-",IFERROR('Tabel 2 ØJ'!F97/'Tabel 1 ØJ'!E95*100,"-")) -> - | G97: =IF(OR('Tabel 1 ØJ'!E95<5,'Tabel 2 ØJ'!G97<0.5),"-",IFERROR('Tabel 2 ØJ'!G97/'Tabel 1 ØJ'!E95*100,"-")) -> - | I97: =IF(OR('Tabel 1 ØJ'!G95<5,'Tabel 2 ØJ'!I97<0.5),"-",IFERROR('Tabel 2 ØJ'!I97/'Tabel 1 ØJ'!G95*100,"-")) -> - | J97: =IF(OR('Tabel 1 ØJ'!G95<5,'Tabel 2 ØJ'!J97<0.5),"-",IFERROR('Tabel 2 ØJ'!J97/'Tabel 1 ØJ'!G95*100,"-")) -> -
A98: Bac. Hum. | C98: =IF(OR('Tabel 1 ØJ'!C96<5,'Tabel 2 ØJ'!C98<0.5),"-",IFERROR('Tabel 2 ØJ'!C98/'Tabel 1 ØJ'!C96*100,"-")) -> 7.692307692 | D98: =IF(OR('Tabel 1 ØJ'!C96<5,'Tabel 2 ØJ'!D98<0.5),"-",IFERROR('Tabel 2 ØJ'!D98/'Tabel 1 ØJ'!C96*100,"-")) -> 7.690868353 | F98: =IF(OR('Tabel 1 ØJ'!E96<5,'Tabel 2 ØJ'!F98<0.5),"-",IFERROR('Tabel 2 ØJ'!F98/'Tabel 1 ØJ'!E96*100,"-")) -> 17.14285714 | G98: =IF(OR('Tabel 1 ØJ'!E96<5,'Tabel 2 ØJ'!G98<0.5),"-",IFERROR('Tabel 2 ØJ'!G98/'Tabel 1 ØJ'!E96*100,"-")) -> 11.46920191 | I98: =IF(OR('Tabel 1 ØJ'!G96<5,'Tabel 2 ØJ'!I98<0.5),"-",IFERROR('Tabel 2 ØJ'!I98/'Tabel 1 ØJ'!G96*100,"-")) -> 14.58333333 | J98: =IF(OR('Tabel 1 ØJ'!G96<5,'Tabel 2 ØJ'!J98<0.5),"-",IFERROR('Tabel 2 ØJ'!J98/'Tabel 1 ØJ'!G96*100,"-")) -> 10.44590324
A99: Bac. Nat. | C99: =IF(OR('Tabel 1 ØJ'!C97<5,'Tabel 2 ØJ'!C99<0.5),"-",IFERROR('Tabel 2 ØJ'!C99/'Tabel 1 ØJ'!C97*100,"-")) -> 12.82051282 | D99: =IF(OR('Tabel 1 ØJ'!C97<5,'Tabel 2 ØJ'!D99<0.5),"-",IFERROR('Tabel 2 ØJ'!D99/'Tabel 1 ØJ'!C97*100,"-")) -> 10.10522635 | F99: =IF(OR('Tabel 1 ØJ'!E97<5,'Tabel 2 ØJ'!F99<0.5),"-",IFERROR('Tabel 2 ØJ'!F99/'Tabel 1 ØJ'!E97*100,"-")) -> 12.90322581 | G99: =IF(OR('Tabel 1 ØJ'!E97<5,'Tabel 2 ØJ'!G99<0.5),"-",IFERROR('Tabel 2 ØJ'!G99/'Tabel 1 ØJ'!E97*100,"-")) -> 9.77419556 | I99: =IF(OR('Tabel 1 ØJ'!G97<5,'Tabel 2 ØJ'!I99<0.5),"-",IFERROR('Tabel 2 ØJ'!I99/'Tabel 1 ØJ'!G97*100,"-")) -> 12.83783784 | J99: =IF(OR('Tabel 1 ØJ'!G97<5,'Tabel 2 ØJ'!J99<0.5),"-",IFERROR('Tabel 2 ØJ'!J99/'Tabel 1 ØJ'!G97*100,"-")) -> 10.03588882
A100: Andre | C100: =IF(OR('Tabel 1 ØJ'!C98<5,'Tabel 2 ØJ'!C100<0.5),"-",IFERROR('Tabel 2 ØJ'!C100/'Tabel 1 ØJ'!C98*100,"-")) -> 7.142857143 | D100: =IF(OR('Tabel 1 ØJ'!C98<5,'Tabel 2 ØJ'!D100<0.5),"-",IFERROR('Tabel 2 ØJ'!D100/'Tabel 1 ØJ'!C98*100,"-")) -> 5.7916262 | F100: =IF(OR('Tabel 1 ØJ'!E98<5,'Tabel 2 ØJ'!F100<0.5),"-",IFERROR('Tabel 2 ØJ'!F100/'Tabel 1 ØJ'!E98*100,"-")) -> 8.035714286 | G100: =IF(OR('Tabel 1 ØJ'!E98<5,'Tabel 2 ØJ'!G100<0.5),"-",IFERROR('Tabel 2 ØJ'!G100/'Tabel 1 ØJ'!E98*100,"-")) -> 6.083435058 | I100: =IF(OR('Tabel 1 ØJ'!G98<5,'Tabel 2 ØJ'!I100<0.5),"-",IFERROR('Tabel 2 ØJ'!I100/'Tabel 1 ØJ'!G98*100,"-")) -> 7.518796992 | J100: =IF(OR('Tabel 1 ØJ'!G98<5,'Tabel 2 ØJ'!J100<0.5),"-",IFERROR('Tabel 2 ØJ'!J100/'Tabel 1 ØJ'!G98*100,"-")) -> 5.914493087
A102: Total | C102: =IF(OR('Tabel 1 ØJ'!C100<5,'Tabel 2 ØJ'!C102<0.5),"-",IFERROR('Tabel 2 ØJ'!C102/'Tabel 1 ØJ'!C100*100,"-")) -> 4.154191617 | D102: =IF(OR('Tabel 1 ØJ'!C100<5,'Tabel 2 ØJ'!D102<0.5),"-",IFERROR('Tabel 2 ØJ'!D102/'Tabel 1 ØJ'!C100*100,"-")) -> 3.450244929 | F102: =IF(OR('Tabel 1 ØJ'!E100<5,'Tabel 2 ØJ'!F102<0.5),"-",IFERROR('Tabel 2 ØJ'!F102/'Tabel 1 ØJ'!E100*100,"-")) -> 5.475638051 | G102: =IF(OR('Tabel 1 ØJ'!E100<5,'Tabel 2 ØJ'!G102<0.5),"-",IFERROR('Tabel 2 ØJ'!G102/'Tabel 1 ØJ'!E100*100,"-")) -> 4.029522636 | I102: =IF(OR('Tabel 1 ØJ'!G100<5,'Tabel 2 ØJ'!I102<0.5),"-",IFERROR('Tabel 2 ØJ'!I102/'Tabel 1 ØJ'!G100*100,"-")) -> 4.744147504 | J102: =IF(OR('Tabel 1 ØJ'!G100<5,'Tabel 2 ØJ'!J102<0.5),"-",IFERROR('Tabel 2 ØJ'!J102/'Tabel 1 ØJ'!G100*100,"-")) -> 3.708861763
A104: Ingeniører i alt | C104: =IF(OR('Tabel 1 ØJ'!C102<5,'Tabel 2 ØJ'!C104<0.5),"-",IFERROR('Tabel 2 ØJ'!C104/'Tabel 1 ØJ'!C102*100,"-")) -> 2.523659306 | D104: =IF(OR('Tabel 1 ØJ'!C102<5,'Tabel 2 ØJ'!D104<0.5),"-",IFERROR('Tabel 2 ØJ'!D104/'Tabel 1 ØJ'!C102*100,"-")) -> 2.022445426 | F104: =IF(OR('Tabel 1 ØJ'!E102<5,'Tabel 2 ØJ'!F104<0.5),"-",IFERROR('Tabel 2 ØJ'!F104/'Tabel 1 ØJ'!E102*100,"-")) -> 3.32326284 | G104: =IF(OR('Tabel 1 ØJ'!E102<5,'Tabel 2 ØJ'!G104<0.5),"-",IFERROR('Tabel 2 ØJ'!G104/'Tabel 1 ØJ'!E102*100,"-")) -> 3.043571576 | I104: =IF(OR('Tabel 1 ØJ'!G102<5,'Tabel 2 ØJ'!I104<0.5),"-",IFERROR('Tabel 2 ØJ'!I104/'Tabel 1 ØJ'!G102*100,"-")) -> 2.730109204 | J104: =IF(OR('Tabel 1 ØJ'!G102<5,'Tabel 2 ØJ'!J104<0.5),"-",IFERROR('Tabel 2 ØJ'!J104/'Tabel 1 ØJ'!G102*100,"-")) -> 2.286090321
A105: Magistre i alt | C105: =IF(OR('Tabel 1 ØJ'!C103<5,'Tabel 2 ØJ'!C105<0.5),"-",IFERROR('Tabel 2 ØJ'!C105/'Tabel 1 ØJ'!C103*100,"-")) -> 3.879310345 | D105: =IF(OR('Tabel 1 ØJ'!C103<5,'Tabel 2 ØJ'!D105<0.5),"-",IFERROR('Tabel 2 ØJ'!D105/'Tabel 1 ØJ'!C103*100,"-")) -> 2.850532415 | F105: =IF(OR('Tabel 1 ØJ'!E103<5,'Tabel 2 ØJ'!F105<0.5),"-",IFERROR('Tabel 2 ØJ'!F105/'Tabel 1 ØJ'!E103*100,"-")) -> 6.928406467 | G105: =IF(OR('Tabel 1 ØJ'!E103<5,'Tabel 2 ØJ'!G105<0.5),"-",IFERROR('Tabel 2 ØJ'!G105/'Tabel 1 ØJ'!E103*100,"-")) -> 4.923304115 | I105: =IF(OR('Tabel 1 ØJ'!G103<5,'Tabel 2 ØJ'!I105<0.5),"-",IFERROR('Tabel 2 ØJ'!I105/'Tabel 1 ØJ'!G103*100,"-")) -> 5.864661654 | J105: =IF(OR('Tabel 1 ØJ'!G103<5,'Tabel 2 ØJ'!J105<0.5),"-",IFERROR('Tabel 2 ØJ'!J105/'Tabel 1 ØJ'!G103*100,"-")) -> 4.200171732
A106: DJØF'ere i alt | C106: =IF(OR('Tabel 1 ØJ'!C104<5,'Tabel 2 ØJ'!C106<0.5),"-",IFERROR('Tabel 2 ØJ'!C106/'Tabel 1 ØJ'!C104*100,"-")) -> 3.938730853 | D106: =IF(OR('Tabel 1 ØJ'!C104<5,'Tabel 2 ØJ'!D106<0.5),"-",IFERROR('Tabel 2 ØJ'!D106/'Tabel 1 ØJ'!C104*100,"-")) -> 3.303634831 | F106: =IF(OR('Tabel 1 ØJ'!E104<5,'Tabel 2 ØJ'!F106<0.5),"-",IFERROR('Tabel 2 ØJ'!F106/'Tabel 1 ØJ'!E104*100,"-")) -> 3.253424658 | G106: =IF(OR('Tabel 1 ØJ'!E104<5,'Tabel 2 ØJ'!G106<0.5),"-",IFERROR('Tabel 2 ØJ'!G106/'Tabel 1 ØJ'!E104*100,"-")) -> 2.444337834 | I106: =IF(OR('Tabel 1 ØJ'!G104<5,'Tabel 2 ØJ'!I106<0.5),"-",IFERROR('Tabel 2 ØJ'!I106/'Tabel 1 ØJ'!G104*100,"-")) -> 3.554274736 | J106: =IF(OR('Tabel 1 ØJ'!G104<5,'Tabel 2 ØJ'!J106<0.5),"-",IFERROR('Tabel 2 ØJ'!J106/'Tabel 1 ØJ'!G104*100,"-")) -> 2.821570041
A111: Syddjurs
C113: Mænd | F113: Kvinder | I113: I alt
C114: Ledigheds- berørte | D114: Gns. brutto- ledighed | F114: Ledigheds- berørte | G114: Gns. brutto- ledighed | I114: Ledigheds- berørte | J114: Gns. brutto- ledighed
A117: Civ. ing. | C117: =IF(OR('Tabel 1 ØJ'!C115<5,'Tabel 2 ØJ'!C117<0.5),"-",IFERROR('Tabel 2 ØJ'!C117/'Tabel 1 ØJ'!C115*100,"-")) -> 4.285714286 | D117: =IF(OR('Tabel 1 ØJ'!C115<5,'Tabel 2 ØJ'!D117<0.5),"-",IFERROR('Tabel 2 ØJ'!D117/'Tabel 1 ØJ'!C115*100,"-")) -> 2.89492208 | F117: =IF(OR('Tabel 1 ØJ'!E115<5,'Tabel 2 ØJ'!F117<0.5),"-",IFERROR('Tabel 2 ØJ'!F117/'Tabel 1 ØJ'!E115*100,"-")) -> - | G117: =IF(OR('Tabel 1 ØJ'!E115<5,'Tabel 2 ØJ'!G117<0.5),"-",IFERROR('Tabel 2 ØJ'!G117/'Tabel 1 ØJ'!E115*100,"-")) -> - | I117: =IF(OR('Tabel 1 ØJ'!G115<5,'Tabel 2 ØJ'!I117<0.5),"-",IFERROR('Tabel 2 ØJ'!I117/'Tabel 1 ØJ'!G115*100,"-")) -> 1.807228916 | J117: =IF(OR('Tabel 1 ØJ'!G115<5,'Tabel 2 ØJ'!J117<0.5),"-",IFERROR('Tabel 2 ØJ'!J117/'Tabel 1 ØJ'!G115*100,"-")) -> 1.220750275
A118: Diplom ing. | C118: =IF(OR('Tabel 1 ØJ'!C116<5,'Tabel 2 ØJ'!C118<0.5),"-",IFERROR('Tabel 2 ØJ'!C118/'Tabel 1 ØJ'!C116*100,"-")) -> - | D118: =IF(OR('Tabel 1 ØJ'!C116<5,'Tabel 2 ØJ'!D118<0.5),"-",IFERROR('Tabel 2 ØJ'!D118/'Tabel 1 ØJ'!C116*100,"-")) -> - | F118: =IF(OR('Tabel 1 ØJ'!E116<5,'Tabel 2 ØJ'!F118<0.5),"-",IFERROR('Tabel 2 ØJ'!F118/'Tabel 1 ØJ'!E116*100,"-")) -> - | G118: =IF(OR('Tabel 1 ØJ'!E116<5,'Tabel 2 ØJ'!G118<0.5),"-",IFERROR('Tabel 2 ØJ'!G118/'Tabel 1 ØJ'!E116*100,"-")) -> - | I118: =IF(OR('Tabel 1 ØJ'!G116<5,'Tabel 2 ØJ'!I118<0.5),"-",IFERROR('Tabel 2 ØJ'!I118/'Tabel 1 ØJ'!G116*100,"-")) -> - | J118: =IF(OR('Tabel 1 ØJ'!G116<5,'Tabel 2 ØJ'!J118<0.5),"-",IFERROR('Tabel 2 ØJ'!J118/'Tabel 1 ØJ'!G116*100,"-")) -> -
A119: Cand. Scient. Tek. | C119: =IF(OR('Tabel 1 ØJ'!C117<5,'Tabel 2 ØJ'!C119<0.5),"-",IFERROR('Tabel 2 ØJ'!C119/'Tabel 1 ØJ'!C117*100,"-")) -> 0.9756097561 | D119: =IF(OR('Tabel 1 ØJ'!C117<5,'Tabel 2 ØJ'!D119<0.5),"-",IFERROR('Tabel 2 ØJ'!D119/'Tabel 1 ØJ'!C117*100,"-")) -> 0.930398127 | F119: =IF(OR('Tabel 1 ØJ'!E117<5,'Tabel 2 ØJ'!F119<0.5),"-",IFERROR('Tabel 2 ØJ'!F119/'Tabel 1 ØJ'!E117*100,"-")) -> 1.260504202 | G119: =IF(OR('Tabel 1 ØJ'!E117<5,'Tabel 2 ØJ'!G119<0.5),"-",IFERROR('Tabel 2 ØJ'!G119/'Tabel 1 ØJ'!E117*100,"-")) -> 0.969376711 | I119: =IF(OR('Tabel 1 ØJ'!G117<5,'Tabel 2 ØJ'!I119<0.5),"-",IFERROR('Tabel 2 ØJ'!I119/'Tabel 1 ØJ'!G117*100,"-")) -> 1.128668172 | J119: =IF(OR('Tabel 1 ØJ'!G117<5,'Tabel 2 ØJ'!J119<0.5),"-",IFERROR('Tabel 2 ØJ'!J119/'Tabel 1 ØJ'!G117*100,"-")) -> 0.9513392173
A120: MA. Hum. | C120: =IF(OR('Tabel 1 ØJ'!C118<5,'Tabel 2 ØJ'!C120<0.5),"-",IFERROR('Tabel 2 ØJ'!C120/'Tabel 1 ØJ'!C118*100,"-")) -> 15.90909091 | D120: =IF(OR('Tabel 1 ØJ'!C118<5,'Tabel 2 ØJ'!D120<0.5),"-",IFERROR('Tabel 2 ØJ'!D120/'Tabel 1 ØJ'!C118*100,"-")) -> 13.38857924 | F120: =IF(OR('Tabel 1 ØJ'!E118<5,'Tabel 2 ØJ'!F120<0.5),"-",IFERROR('Tabel 2 ØJ'!F120/'Tabel 1 ØJ'!E118*100,"-")) -> 23.07692308 | G120: =IF(OR('Tabel 1 ØJ'!E118<5,'Tabel 2 ØJ'!G120<0.5),"-",IFERROR('Tabel 2 ØJ'!G120/'Tabel 1 ØJ'!E118*100,"-")) -> 12.9513099 | I120: =IF(OR('Tabel 1 ØJ'!G118<5,'Tabel 2 ØJ'!I120<0.5),"-",IFERROR('Tabel 2 ØJ'!I120/'Tabel 1 ØJ'!G118*100,"-")) -> 20.74074074 | J120: =IF(OR('Tabel 1 ØJ'!G118<5,'Tabel 2 ØJ'!J120<0.5),"-",IFERROR('Tabel 2 ØJ'!J120/'Tabel 1 ØJ'!G118*100,"-")) -> 13.09382731
A121: MA. Nat. | C121: =IF(OR('Tabel 1 ØJ'!C119<5,'Tabel 2 ØJ'!C121<0.5),"-",IFERROR('Tabel 2 ØJ'!C121/'Tabel 1 ØJ'!C119*100,"-")) -> 1.136363636 | D121: =IF(OR('Tabel 1 ØJ'!C119<5,'Tabel 2 ØJ'!D121<0.5),"-",IFERROR('Tabel 2 ØJ'!D121/'Tabel 1 ØJ'!C119*100,"-")) -> 0.6116645782 | F121: =IF(OR('Tabel 1 ØJ'!E119<5,'Tabel 2 ØJ'!F121<0.5),"-",IFERROR('Tabel 2 ØJ'!F121/'Tabel 1 ØJ'!E119*100,"-")) -> 0.3496503497 | G121: =IF(OR('Tabel 1 ØJ'!E119<5,'Tabel 2 ØJ'!G121<0.5),"-",IFERROR('Tabel 2 ØJ'!G121/'Tabel 1 ØJ'!E119*100,"-")) -> - | I121: =IF(OR('Tabel 1 ØJ'!G119<5,'Tabel 2 ØJ'!I121<0.5),"-",IFERROR('Tabel 2 ØJ'!I121/'Tabel 1 ØJ'!G119*100,"-")) -> 0.5347593583 | J121: =IF(OR('Tabel 1 ØJ'!G119<5,'Tabel 2 ØJ'!J121<0.5),"-",IFERROR('Tabel 2 ØJ'!J121/'Tabel 1 ØJ'!G119*100,"-")) -> 0.2261378687
A122: MA. Ph.d. | C122: =IF(OR('Tabel 1 ØJ'!C120<5,'Tabel 2 ØJ'!C122<0.5),"-",IFERROR('Tabel 2 ØJ'!C122/'Tabel 1 ØJ'!C120*100,"-")) -> 1.538461538 | D122: =IF(OR('Tabel 1 ØJ'!C120<5,'Tabel 2 ØJ'!D122<0.5),"-",IFERROR('Tabel 2 ØJ'!D122/'Tabel 1 ØJ'!C120*100,"-")) -> 1.254144097 | F122: =IF(OR('Tabel 1 ØJ'!E120<5,'Tabel 2 ØJ'!F122<0.5),"-",IFERROR('Tabel 2 ØJ'!F122/'Tabel 1 ØJ'!E120*100,"-")) -> - | G122: =IF(OR('Tabel 1 ØJ'!E120<5,'Tabel 2 ØJ'!G122<0.5),"-",IFERROR('Tabel 2 ØJ'!G122/'Tabel 1 ØJ'!E120*100,"-")) -> - | I122: =IF(OR('Tabel 1 ØJ'!G120<5,'Tabel 2 ØJ'!I122<0.5),"-",IFERROR('Tabel 2 ØJ'!I122/'Tabel 1 ØJ'!G120*100,"-")) -> 0.5524861878 | J122: =IF(OR('Tabel 1 ØJ'!G120<5,'Tabel 2 ØJ'!J122<0.5),"-",IFERROR('Tabel 2 ØJ'!J122/'Tabel 1 ØJ'!G120*100,"-")) -> 0.4503832393
A123: MA. Samf. | C123: =IF(OR('Tabel 1 ØJ'!C121<5,'Tabel 2 ØJ'!C123<0.5),"-",IFERROR('Tabel 2 ØJ'!C123/'Tabel 1 ØJ'!C121*100,"-")) -> 7.692307692 | D123: =IF(OR('Tabel 1 ØJ'!C121<5,'Tabel 2 ØJ'!D123<0.5),"-",IFERROR('Tabel 2 ØJ'!D123/'Tabel 1 ØJ'!C121*100,"-")) -> 7.690868353 | F123: =IF(OR('Tabel 1 ØJ'!E121<5,'Tabel 2 ØJ'!F123<0.5),"-",IFERROR('Tabel 2 ØJ'!F123/'Tabel 1 ØJ'!E121*100,"-")) -> 15.38461538 | G123: =IF(OR('Tabel 1 ØJ'!E121<5,'Tabel 2 ØJ'!G123<0.5),"-",IFERROR('Tabel 2 ØJ'!G123/'Tabel 1 ØJ'!E121*100,"-")) -> 13.96158884 | I123: =IF(OR('Tabel 1 ØJ'!G121<5,'Tabel 2 ØJ'!I123<0.5),"-",IFERROR('Tabel 2 ØJ'!I123/'Tabel 1 ØJ'!G121*100,"-")) -> 12.82051282 | J123: =IF(OR('Tabel 1 ØJ'!G121<5,'Tabel 2 ØJ'!J123<0.5),"-",IFERROR('Tabel 2 ØJ'!J123/'Tabel 1 ØJ'!G121*100,"-")) -> 11.87134868
A124: Øvrige Mag. | C124: =IF(OR('Tabel 1 ØJ'!C122<5,'Tabel 2 ØJ'!C124<0.5),"-",IFERROR('Tabel 2 ØJ'!C124/'Tabel 1 ØJ'!C122*100,"-")) -> - | D124: =IF(OR('Tabel 1 ØJ'!C122<5,'Tabel 2 ØJ'!D124<0.5),"-",IFERROR('Tabel 2 ØJ'!D124/'Tabel 1 ØJ'!C122*100,"-")) -> - | F124: =IF(OR('Tabel 1 ØJ'!E122<5,'Tabel 2 ØJ'!F124<0.5),"-",IFERROR('Tabel 2 ØJ'!F124/'Tabel 1 ØJ'!E122*100,"-")) -> 3.703703704 | G124: =IF(OR('Tabel 1 ØJ'!E122<5,'Tabel 2 ØJ'!G124<0.5),"-",IFERROR('Tabel 2 ØJ'!G124/'Tabel 1 ØJ'!E122*100,"-")) -> 3.703010689 | I124: =IF(OR('Tabel 1 ØJ'!G122<5,'Tabel 2 ØJ'!I124<0.5),"-",IFERROR('Tabel 2 ØJ'!I124/'Tabel 1 ØJ'!G122*100,"-")) -> 3.03030303 | J124: =IF(OR('Tabel 1 ØJ'!G122<5,'Tabel 2 ØJ'!J124<0.5),"-",IFERROR('Tabel 2 ØJ'!J124/'Tabel 1 ØJ'!G122*100,"-")) -> 3.029736018
A125: Agronom | C125: =IF(OR('Tabel 1 ØJ'!C123<5,'Tabel 2 ØJ'!C125<0.5),"-",IFERROR('Tabel 2 ØJ'!C125/'Tabel 1 ØJ'!C123*100,"-")) -> - | D125: =IF(OR('Tabel 1 ØJ'!C123<5,'Tabel 2 ØJ'!D125<0.5),"-",IFERROR('Tabel 2 ØJ'!D125/'Tabel 1 ØJ'!C123*100,"-")) -> - | F125: =IF(OR('Tabel 1 ØJ'!E123<5,'Tabel 2 ØJ'!F125<0.5),"-",IFERROR('Tabel 2 ØJ'!F125/'Tabel 1 ØJ'!E123*100,"-")) -> 3.571428571 | G125: =IF(OR('Tabel 1 ØJ'!E123<5,'Tabel 2 ØJ'!G125<0.5),"-",IFERROR('Tabel 2 ØJ'!G125/'Tabel 1 ØJ'!E123*100,"-")) -> 2.746567348 | I125: =IF(OR('Tabel 1 ØJ'!G123<5,'Tabel 2 ØJ'!I125<0.5),"-",IFERROR('Tabel 2 ØJ'!I125/'Tabel 1 ØJ'!G123*100,"-")) -> 2.702702703 | J125: =IF(OR('Tabel 1 ØJ'!G123<5,'Tabel 2 ØJ'!J125<0.5),"-",IFERROR('Tabel 2 ØJ'!J125/'Tabel 1 ØJ'!G123*100,"-")) -> 2.078483398
A126: Landsk. Arkt. | C126: =IF(OR('Tabel 1 ØJ'!C124<5,'Tabel 2 ØJ'!C126<0.5),"-",IFERROR('Tabel 2 ØJ'!C126/'Tabel 1 ØJ'!C124*100,"-")) -> - | D126: =IF(OR('Tabel 1 ØJ'!C124<5,'Tabel 2 ØJ'!D126<0.5),"-",IFERROR('Tabel 2 ØJ'!D126/'Tabel 1 ØJ'!C124*100,"-")) -> - | F126: =IF(OR('Tabel 1 ØJ'!E124<5,'Tabel 2 ØJ'!F126<0.5),"-",IFERROR('Tabel 2 ØJ'!F126/'Tabel 1 ØJ'!E124*100,"-")) -> - | G126: =IF(OR('Tabel 1 ØJ'!E124<5,'Tabel 2 ØJ'!G126<0.5),"-",IFERROR('Tabel 2 ØJ'!G126/'Tabel 1 ØJ'!E124*100,"-")) -> - | I126: =IF(OR('Tabel 1 ØJ'!G124<5,'Tabel 2 ØJ'!I126<0.5),"-",IFERROR('Tabel 2 ØJ'!I126/'Tabel 1 ØJ'!G124*100,"-")) -> - | J126: =IF(OR('Tabel 1 ØJ'!G124<5,'Tabel 2 ØJ'!J126<0.5),"-",IFERROR('Tabel 2 ØJ'!J126/'Tabel 1 ØJ'!G124*100,"-")) -> -
A127: Hortonom | C127: =IF(OR('Tabel 1 ØJ'!C125<5,'Tabel 2 ØJ'!C127<0.5),"-",IFERROR('Tabel 2 ØJ'!C127/'Tabel 1 ØJ'!C125*100,"-")) -> - | D127: =IF(OR('Tabel 1 ØJ'!C125<5,'Tabel 2 ØJ'!D127<0.5),"-",IFERROR('Tabel 2 ØJ'!D127/'Tabel 1 ØJ'!C125*100,"-")) -> - | F127: =IF(OR('Tabel 1 ØJ'!E125<5,'Tabel 2 ØJ'!F127<0.5),"-",IFERROR('Tabel 2 ØJ'!F127/'Tabel 1 ØJ'!E125*100,"-")) -> - | G127: =IF(OR('Tabel 1 ØJ'!E125<5,'Tabel 2 ØJ'!G127<0.5),"-",IFERROR('Tabel 2 ØJ'!G127/'Tabel 1 ØJ'!E125*100,"-")) -> - | I127: =IF(OR('Tabel 1 ØJ'!G125<5,'Tabel 2 ØJ'!I127<0.5),"-",IFERROR('Tabel 2 ØJ'!I127/'Tabel 1 ØJ'!G125*100,"-")) -> - | J127: =IF(OR('Tabel 1 ØJ'!G125<5,'Tabel 2 ØJ'!J127<0.5),"-",IFERROR('Tabel 2 ØJ'!J127/'Tabel 1 ØJ'!G125*100,"-")) -> -
A128: Forstkand. | C128: =IF(OR('Tabel 1 ØJ'!C126<5,'Tabel 2 ØJ'!C128<0.5),"-",IFERROR('Tabel 2 ØJ'!C128/'Tabel 1 ØJ'!C126*100,"-")) -> - | D128: =IF(OR('Tabel 1 ØJ'!C126<5,'Tabel 2 ØJ'!D128<0.5),"-",IFERROR('Tabel 2 ØJ'!D128/'Tabel 1 ØJ'!C126*100,"-")) -> - | F128: =IF(OR('Tabel 1 ØJ'!E126<5,'Tabel 2 ØJ'!F128<0.5),"-",IFERROR('Tabel 2 ØJ'!F128/'Tabel 1 ØJ'!E126*100,"-")) -> - | G128: =IF(OR('Tabel 1 ØJ'!E126<5,'Tabel 2 ØJ'!G128<0.5),"-",IFERROR('Tabel 2 ØJ'!G128/'Tabel 1 ØJ'!E126*100,"-")) -> - | I128: =IF(OR('Tabel 1 ØJ'!G126<5,'Tabel 2 ØJ'!I128<0.5),"-",IFERROR('Tabel 2 ØJ'!I128/'Tabel 1 ØJ'!G126*100,"-")) -> 20 | J128: =IF(OR('Tabel 1 ØJ'!G126<5,'Tabel 2 ØJ'!J128<0.5),"-",IFERROR('Tabel 2 ØJ'!J128/'Tabel 1 ØJ'!G126*100,"-")) -> 19.99625772
A129: Jordbrugsakad. | C129: =IF(OR('Tabel 1 ØJ'!C127<5,'Tabel 2 ØJ'!C129<0.5),"-",IFERROR('Tabel 2 ØJ'!C129/'Tabel 1 ØJ'!C127*100,"-")) -> 3.571428571 | D129: =IF(OR('Tabel 1 ØJ'!C127<5,'Tabel 2 ØJ'!D129<0.5),"-",IFERROR('Tabel 2 ØJ'!D129/'Tabel 1 ØJ'!C127*100,"-")) -> 3.570760307 | F129: =IF(OR('Tabel 1 ØJ'!E127<5,'Tabel 2 ØJ'!F129<0.5),"-",IFERROR('Tabel 2 ØJ'!F129/'Tabel 1 ØJ'!E127*100,"-")) -> 1.538461538 | G129: =IF(OR('Tabel 1 ØJ'!E127<5,'Tabel 2 ØJ'!G129<0.5),"-",IFERROR('Tabel 2 ØJ'!G129/'Tabel 1 ØJ'!E127*100,"-")) -> 1.183136704 | I129: =IF(OR('Tabel 1 ØJ'!G127<5,'Tabel 2 ØJ'!I129<0.5),"-",IFERROR('Tabel 2 ØJ'!I129/'Tabel 1 ØJ'!G127*100,"-")) -> 2.150537634 | J129: =IF(OR('Tabel 1 ØJ'!G127<5,'Tabel 2 ØJ'!J129<0.5),"-",IFERROR('Tabel 2 ØJ'!J129/'Tabel 1 ØJ'!G127*100,"-")) -> 1.901991122
A130: Mejeriing. | C130: =IF(OR('Tabel 1 ØJ'!C128<5,'Tabel 2 ØJ'!C130<0.5),"-",IFERROR('Tabel 2 ØJ'!C130/'Tabel 1 ØJ'!C128*100,"-")) -> - | D130: =IF(OR('Tabel 1 ØJ'!C128<5,'Tabel 2 ØJ'!D130<0.5),"-",IFERROR('Tabel 2 ØJ'!D130/'Tabel 1 ØJ'!C128*100,"-")) -> - | F130: =IF(OR('Tabel 1 ØJ'!E128<5,'Tabel 2 ØJ'!F130<0.5),"-",IFERROR('Tabel 2 ØJ'!F130/'Tabel 1 ØJ'!E128*100,"-")) -> - | G130: =IF(OR('Tabel 1 ØJ'!E128<5,'Tabel 2 ØJ'!G130<0.5),"-",IFERROR('Tabel 2 ØJ'!G130/'Tabel 1 ØJ'!E128*100,"-")) -> - | I130: =IF(OR('Tabel 1 ØJ'!G128<5,'Tabel 2 ØJ'!I130<0.5),"-",IFERROR('Tabel 2 ØJ'!I130/'Tabel 1 ØJ'!G128*100,"-")) -> - | J130: =IF(OR('Tabel 1 ØJ'!G128<5,'Tabel 2 ØJ'!J130<0.5),"-",IFERROR('Tabel 2 ØJ'!J130/'Tabel 1 ØJ'!G128*100,"-")) -> -
A131: Levn.m.kand. | C131: =IF(OR('Tabel 1 ØJ'!C129<5,'Tabel 2 ØJ'!C131<0.5),"-",IFERROR('Tabel 2 ØJ'!C131/'Tabel 1 ØJ'!C129*100,"-")) -> - | D131: =IF(OR('Tabel 1 ØJ'!C129<5,'Tabel 2 ØJ'!D131<0.5),"-",IFERROR('Tabel 2 ØJ'!D131/'Tabel 1 ØJ'!C129*100,"-")) -> - | F131: =IF(OR('Tabel 1 ØJ'!E129<5,'Tabel 2 ØJ'!F131<0.5),"-",IFERROR('Tabel 2 ØJ'!F131/'Tabel 1 ØJ'!E129*100,"-")) -> - | G131: =IF(OR('Tabel 1 ØJ'!E129<5,'Tabel 2 ØJ'!G131<0.5),"-",IFERROR('Tabel 2 ØJ'!G131/'Tabel 1 ØJ'!E129*100,"-")) -> - | I131: =IF(OR('Tabel 1 ØJ'!G129<5,'Tabel 2 ØJ'!I131<0.5),"-",IFERROR('Tabel 2 ØJ'!I131/'Tabel 1 ØJ'!G129*100,"-")) -> 40 | J131: =IF(OR('Tabel 1 ØJ'!G129<5,'Tabel 2 ØJ'!J131<0.5),"-",IFERROR('Tabel 2 ØJ'!J131/'Tabel 1 ØJ'!G129*100,"-")) -> 39.99251544
A132: Dyrlæge | C132: =IF(OR('Tabel 1 ØJ'!C130<5,'Tabel 2 ØJ'!C132<0.5),"-",IFERROR('Tabel 2 ØJ'!C132/'Tabel 1 ØJ'!C130*100,"-")) -> - | D132: =IF(OR('Tabel 1 ØJ'!C130<5,'Tabel 2 ØJ'!D132<0.5),"-",IFERROR('Tabel 2 ØJ'!D132/'Tabel 1 ØJ'!C130*100,"-")) -> - | F132: =IF(OR('Tabel 1 ØJ'!E130<5,'Tabel 2 ØJ'!F132<0.5),"-",IFERROR('Tabel 2 ØJ'!F132/'Tabel 1 ØJ'!E130*100,"-")) -> - | G132: =IF(OR('Tabel 1 ØJ'!E130<5,'Tabel 2 ØJ'!G132<0.5),"-",IFERROR('Tabel 2 ØJ'!G132/'Tabel 1 ØJ'!E130*100,"-")) -> - | I132: =IF(OR('Tabel 1 ØJ'!G130<5,'Tabel 2 ØJ'!I132<0.5),"-",IFERROR('Tabel 2 ØJ'!I132/'Tabel 1 ØJ'!G130*100,"-")) -> - | J132: =IF(OR('Tabel 1 ØJ'!G130<5,'Tabel 2 ØJ'!J132<0.5),"-",IFERROR('Tabel 2 ØJ'!J132/'Tabel 1 ØJ'!G130*100,"-")) -> -
A133: Farmaceut | C133: =IF(OR('Tabel 1 ØJ'!C131<5,'Tabel 2 ØJ'!C133<0.5),"-",IFERROR('Tabel 2 ØJ'!C133/'Tabel 1 ØJ'!C131*100,"-")) -> - | D133: =IF(OR('Tabel 1 ØJ'!C131<5,'Tabel 2 ØJ'!D133<0.5),"-",IFERROR('Tabel 2 ØJ'!D133/'Tabel 1 ØJ'!C131*100,"-")) -> - | F133: =IF(OR('Tabel 1 ØJ'!E131<5,'Tabel 2 ØJ'!F133<0.5),"-",IFERROR('Tabel 2 ØJ'!F133/'Tabel 1 ØJ'!E131*100,"-")) -> - | G133: =IF(OR('Tabel 1 ØJ'!E131<5,'Tabel 2 ØJ'!G133<0.5),"-",IFERROR('Tabel 2 ØJ'!G133/'Tabel 1 ØJ'!E131*100,"-")) -> - | I133: =IF(OR('Tabel 1 ØJ'!G131<5,'Tabel 2 ØJ'!I133<0.5),"-",IFERROR('Tabel 2 ØJ'!I133/'Tabel 1 ØJ'!G131*100,"-")) -> - | J133: =IF(OR('Tabel 1 ØJ'!G131<5,'Tabel 2 ØJ'!J133<0.5),"-",IFERROR('Tabel 2 ØJ'!J133/'Tabel 1 ØJ'!G131*100,"-")) -> -
A134: Læge | C134: =IF(OR('Tabel 1 ØJ'!C132<5,'Tabel 2 ØJ'!C134<0.5),"-",IFERROR('Tabel 2 ØJ'!C134/'Tabel 1 ØJ'!C132*100,"-")) -> - | D134: =IF(OR('Tabel 1 ØJ'!C132<5,'Tabel 2 ØJ'!D134<0.5),"-",IFERROR('Tabel 2 ØJ'!D134/'Tabel 1 ØJ'!C132*100,"-")) -> - | F134: =IF(OR('Tabel 1 ØJ'!E132<5,'Tabel 2 ØJ'!F134<0.5),"-",IFERROR('Tabel 2 ØJ'!F134/'Tabel 1 ØJ'!E132*100,"-")) -> 5.882352941 | G134: =IF(OR('Tabel 1 ØJ'!E132<5,'Tabel 2 ØJ'!G134<0.5),"-",IFERROR('Tabel 2 ØJ'!G134/'Tabel 1 ØJ'!E132*100,"-")) -> 1.899269032 | I134: =IF(OR('Tabel 1 ØJ'!G132<5,'Tabel 2 ØJ'!I134<0.5),"-",IFERROR('Tabel 2 ØJ'!I134/'Tabel 1 ØJ'!G132*100,"-")) -> 4.761904762 | J134: =IF(OR('Tabel 1 ØJ'!G132<5,'Tabel 2 ØJ'!J134<0.5),"-",IFERROR('Tabel 2 ØJ'!J134/'Tabel 1 ØJ'!G132*100,"-")) -> 1.537503502
A135: Tandlæge | C135: =IF(OR('Tabel 1 ØJ'!C133<5,'Tabel 2 ØJ'!C135<0.5),"-",IFERROR('Tabel 2 ØJ'!C135/'Tabel 1 ØJ'!C133*100,"-")) -> - | D135: =IF(OR('Tabel 1 ØJ'!C133<5,'Tabel 2 ØJ'!D135<0.5),"-",IFERROR('Tabel 2 ØJ'!D135/'Tabel 1 ØJ'!C133*100,"-")) -> - | F135: =IF(OR('Tabel 1 ØJ'!E133<5,'Tabel 2 ØJ'!F135<0.5),"-",IFERROR('Tabel 2 ØJ'!F135/'Tabel 1 ØJ'!E133*100,"-")) -> 5.263157895 | G135: =IF(OR('Tabel 1 ØJ'!E133<5,'Tabel 2 ØJ'!G135<0.5),"-",IFERROR('Tabel 2 ØJ'!G135/'Tabel 1 ØJ'!E133*100,"-")) -> 5.262173084 | I135: =IF(OR('Tabel 1 ØJ'!G133<5,'Tabel 2 ØJ'!I135<0.5),"-",IFERROR('Tabel 2 ØJ'!I135/'Tabel 1 ØJ'!G133*100,"-")) -> 4.545454545 | J135: =IF(OR('Tabel 1 ØJ'!G133<5,'Tabel 2 ØJ'!J135<0.5),"-",IFERROR('Tabel 2 ØJ'!J135/'Tabel 1 ØJ'!G133*100,"-")) -> 4.544604027
A136: Arkitekt | C136: =IF(OR('Tabel 1 ØJ'!C134<5,'Tabel 2 ØJ'!C136<0.5),"-",IFERROR('Tabel 2 ØJ'!C136/'Tabel 1 ØJ'!C134*100,"-")) -> 3.448275862 | D136: =IF(OR('Tabel 1 ØJ'!C134<5,'Tabel 2 ØJ'!D136<0.5),"-",IFERROR('Tabel 2 ØJ'!D136/'Tabel 1 ØJ'!C134*100,"-")) -> 3.447630641 | F136: =IF(OR('Tabel 1 ØJ'!E134<5,'Tabel 2 ØJ'!F136<0.5),"-",IFERROR('Tabel 2 ØJ'!F136/'Tabel 1 ØJ'!E134*100,"-")) -> 5.063291139 | G136: =IF(OR('Tabel 1 ØJ'!E134<5,'Tabel 2 ØJ'!G136<0.5),"-",IFERROR('Tabel 2 ØJ'!G136/'Tabel 1 ØJ'!E134*100,"-")) -> 4.167827906 | I136: =IF(OR('Tabel 1 ØJ'!G134<5,'Tabel 2 ØJ'!I136<0.5),"-",IFERROR('Tabel 2 ØJ'!I136/'Tabel 1 ØJ'!G134*100,"-")) -> 4.62962963 | J136: =IF(OR('Tabel 1 ØJ'!G134<5,'Tabel 2 ØJ'!J136<0.5),"-",IFERROR('Tabel 2 ØJ'!J136/'Tabel 1 ØJ'!G134*100,"-")) -> 3.974441603
A137: Landinspek. | C137: =IF(OR('Tabel 1 ØJ'!C135<5,'Tabel 2 ØJ'!C137<0.5),"-",IFERROR('Tabel 2 ØJ'!C137/'Tabel 1 ØJ'!C135*100,"-")) -> - | D137: =IF(OR('Tabel 1 ØJ'!C135<5,'Tabel 2 ØJ'!D137<0.5),"-",IFERROR('Tabel 2 ØJ'!D137/'Tabel 1 ØJ'!C135*100,"-")) -> - | F137: =IF(OR('Tabel 1 ØJ'!E135<5,'Tabel 2 ØJ'!F137<0.5),"-",IFERROR('Tabel 2 ØJ'!F137/'Tabel 1 ØJ'!E135*100,"-")) -> - | G137: =IF(OR('Tabel 1 ØJ'!E135<5,'Tabel 2 ØJ'!G137<0.5),"-",IFERROR('Tabel 2 ØJ'!G137/'Tabel 1 ØJ'!E135*100,"-")) -> - | I137: =IF(OR('Tabel 1 ØJ'!G135<5,'Tabel 2 ØJ'!I137<0.5),"-",IFERROR('Tabel 2 ØJ'!I137/'Tabel 1 ØJ'!G135*100,"-")) -> - | J137: =IF(OR('Tabel 1 ØJ'!G135<5,'Tabel 2 ØJ'!J137<0.5),"-",IFERROR('Tabel 2 ØJ'!J137/'Tabel 1 ØJ'!G135*100,"-")) -> -
A138: Bibliotekar | C138: =IF(OR('Tabel 1 ØJ'!C136<5,'Tabel 2 ØJ'!C138<0.5),"-",IFERROR('Tabel 2 ØJ'!C138/'Tabel 1 ØJ'!C136*100,"-")) -> - | D138: =IF(OR('Tabel 1 ØJ'!C136<5,'Tabel 2 ØJ'!D138<0.5),"-",IFERROR('Tabel 2 ØJ'!D138/'Tabel 1 ØJ'!C136*100,"-")) -> - | F138: =IF(OR('Tabel 1 ØJ'!E136<5,'Tabel 2 ØJ'!F138<0.5),"-",IFERROR('Tabel 2 ØJ'!F138/'Tabel 1 ØJ'!E136*100,"-")) -> - | G138: =IF(OR('Tabel 1 ØJ'!E136<5,'Tabel 2 ØJ'!G138<0.5),"-",IFERROR('Tabel 2 ØJ'!G138/'Tabel 1 ØJ'!E136*100,"-")) -> - | I138: =IF(OR('Tabel 1 ØJ'!G136<5,'Tabel 2 ØJ'!I138<0.5),"-",IFERROR('Tabel 2 ØJ'!I138/'Tabel 1 ØJ'!G136*100,"-")) -> - | J138: =IF(OR('Tabel 1 ØJ'!G136<5,'Tabel 2 ØJ'!J138<0.5),"-",IFERROR('Tabel 2 ØJ'!J138/'Tabel 1 ØJ'!G136*100,"-")) -> -
A139: Musikudd. | C139: =IF(OR('Tabel 1 ØJ'!C137<5,'Tabel 2 ØJ'!C139<0.5),"-",IFERROR('Tabel 2 ØJ'!C139/'Tabel 1 ØJ'!C137*100,"-")) -> - | D139: =IF(OR('Tabel 1 ØJ'!C137<5,'Tabel 2 ØJ'!D139<0.5),"-",IFERROR('Tabel 2 ØJ'!D139/'Tabel 1 ØJ'!C137*100,"-")) -> - | F139: =IF(OR('Tabel 1 ØJ'!E137<5,'Tabel 2 ØJ'!F139<0.5),"-",IFERROR('Tabel 2 ØJ'!F139/'Tabel 1 ØJ'!E137*100,"-")) -> - | G139: =IF(OR('Tabel 1 ØJ'!E137<5,'Tabel 2 ØJ'!G139<0.5),"-",IFERROR('Tabel 2 ØJ'!G139/'Tabel 1 ØJ'!E137*100,"-")) -> - | I139: =IF(OR('Tabel 1 ØJ'!G137<5,'Tabel 2 ØJ'!I139<0.5),"-",IFERROR('Tabel 2 ØJ'!I139/'Tabel 1 ØJ'!G137*100,"-")) -> - | J139: =IF(OR('Tabel 1 ØJ'!G137<5,'Tabel 2 ØJ'!J139<0.5),"-",IFERROR('Tabel 2 ØJ'!J139/'Tabel 1 ØJ'!G137*100,"-")) -> -
A140: Teolog | C140: =IF(OR('Tabel 1 ØJ'!C138<5,'Tabel 2 ØJ'!C140<0.5),"-",IFERROR('Tabel 2 ØJ'!C140/'Tabel 1 ØJ'!C138*100,"-")) -> - | D140: =IF(OR('Tabel 1 ØJ'!C138<5,'Tabel 2 ØJ'!D140<0.5),"-",IFERROR('Tabel 2 ØJ'!D140/'Tabel 1 ØJ'!C138*100,"-")) -> - | F140: =IF(OR('Tabel 1 ØJ'!E138<5,'Tabel 2 ØJ'!F140<0.5),"-",IFERROR('Tabel 2 ØJ'!F140/'Tabel 1 ØJ'!E138*100,"-")) -> 5.882352941 | G140: =IF(OR('Tabel 1 ØJ'!E138<5,'Tabel 2 ØJ'!G140<0.5),"-",IFERROR('Tabel 2 ØJ'!G140/'Tabel 1 ØJ'!E138*100,"-")) -> 5.88125227 | I140: =IF(OR('Tabel 1 ØJ'!G138<5,'Tabel 2 ØJ'!I140<0.5),"-",IFERROR('Tabel 2 ØJ'!I140/'Tabel 1 ØJ'!G138*100,"-")) -> 4.761904762 | J140: =IF(OR('Tabel 1 ØJ'!G138<5,'Tabel 2 ØJ'!J140<0.5),"-",IFERROR('Tabel 2 ØJ'!J140/'Tabel 1 ØJ'!G138*100,"-")) -> 4.761013742
A141: Psykolog | C141: =IF(OR('Tabel 1 ØJ'!C139<5,'Tabel 2 ØJ'!C141<0.5),"-",IFERROR('Tabel 2 ØJ'!C141/'Tabel 1 ØJ'!C139*100,"-")) -> 9.090909091 | D141: =IF(OR('Tabel 1 ØJ'!C139<5,'Tabel 2 ØJ'!D141<0.5),"-",IFERROR('Tabel 2 ØJ'!D141/'Tabel 1 ØJ'!C139*100,"-")) -> 9.089208054 | F141: =IF(OR('Tabel 1 ØJ'!E139<5,'Tabel 2 ØJ'!F141<0.5),"-",IFERROR('Tabel 2 ØJ'!F141/'Tabel 1 ØJ'!E139*100,"-")) -> 2.739726027 | G141: =IF(OR('Tabel 1 ØJ'!E139<5,'Tabel 2 ØJ'!G141<0.5),"-",IFERROR('Tabel 2 ØJ'!G141/'Tabel 1 ØJ'!E139*100,"-")) -> 1.664375445 | I141: =IF(OR('Tabel 1 ØJ'!G139<5,'Tabel 2 ØJ'!I141<0.5),"-",IFERROR('Tabel 2 ØJ'!I141/'Tabel 1 ØJ'!G139*100,"-")) -> 3.571428571 | J141: =IF(OR('Tabel 1 ØJ'!G139<5,'Tabel 2 ØJ'!J141<0.5),"-",IFERROR('Tabel 2 ØJ'!J141/'Tabel 1 ØJ'!G139*100,"-")) -> 2.636674953
A142: Jurist | C142: =IF(OR('Tabel 1 ØJ'!C140<5,'Tabel 2 ØJ'!C142<0.5),"-",IFERROR('Tabel 2 ØJ'!C142/'Tabel 1 ØJ'!C140*100,"-")) -> 5 | D142: =IF(OR('Tabel 1 ØJ'!C140<5,'Tabel 2 ØJ'!D142<0.5),"-",IFERROR('Tabel 2 ØJ'!D142/'Tabel 1 ØJ'!C140*100,"-")) -> 4.768290401 | F142: =IF(OR('Tabel 1 ØJ'!E140<5,'Tabel 2 ØJ'!F142<0.5),"-",IFERROR('Tabel 2 ØJ'!F142/'Tabel 1 ØJ'!E140*100,"-")) -> - | G142: =IF(OR('Tabel 1 ØJ'!E140<5,'Tabel 2 ØJ'!G142<0.5),"-",IFERROR('Tabel 2 ØJ'!G142/'Tabel 1 ØJ'!E140*100,"-")) -> - | I142: =IF(OR('Tabel 1 ØJ'!G140<5,'Tabel 2 ØJ'!I142<0.5),"-",IFERROR('Tabel 2 ØJ'!I142/'Tabel 1 ØJ'!G140*100,"-")) -> 1.282051282 | J142: =IF(OR('Tabel 1 ØJ'!G140<5,'Tabel 2 ØJ'!J142<0.5),"-",IFERROR('Tabel 2 ØJ'!J142/'Tabel 1 ØJ'!G140*100,"-")) -> 1.222638564
A143: Økonom | C143: =IF(OR('Tabel 1 ØJ'!C141<5,'Tabel 2 ØJ'!C143<0.5),"-",IFERROR('Tabel 2 ØJ'!C143/'Tabel 1 ØJ'!C141*100,"-")) -> - | D143: =IF(OR('Tabel 1 ØJ'!C141<5,'Tabel 2 ØJ'!D143<0.5),"-",IFERROR('Tabel 2 ØJ'!D143/'Tabel 1 ØJ'!C141*100,"-")) -> - | F143: =IF(OR('Tabel 1 ØJ'!E141<5,'Tabel 2 ØJ'!F143<0.5),"-",IFERROR('Tabel 2 ØJ'!F143/'Tabel 1 ØJ'!E141*100,"-")) -> - | G143: =IF(OR('Tabel 1 ØJ'!E141<5,'Tabel 2 ØJ'!G143<0.5),"-",IFERROR('Tabel 2 ØJ'!G143/'Tabel 1 ØJ'!E141*100,"-")) -> - | I143: =IF(OR('Tabel 1 ØJ'!G141<5,'Tabel 2 ØJ'!I143<0.5),"-",IFERROR('Tabel 2 ØJ'!I143/'Tabel 1 ØJ'!G141*100,"-")) -> - | J143: =IF(OR('Tabel 1 ØJ'!G141<5,'Tabel 2 ØJ'!J143<0.5),"-",IFERROR('Tabel 2 ØJ'!J143/'Tabel 1 ØJ'!G141*100,"-")) -> -
A144: Samf. Adm. | C144: =IF(OR('Tabel 1 ØJ'!C142<5,'Tabel 2 ØJ'!C144<0.5),"-",IFERROR('Tabel 2 ØJ'!C144/'Tabel 1 ØJ'!C142*100,"-")) -> 9.090909091 | D144: =IF(OR('Tabel 1 ØJ'!C142<5,'Tabel 2 ØJ'!D144<0.5),"-",IFERROR('Tabel 2 ØJ'!D144/'Tabel 1 ØJ'!C142*100,"-")) -> 6.99126234 | F144: =IF(OR('Tabel 1 ØJ'!E142<5,'Tabel 2 ØJ'!F144<0.5),"-",IFERROR('Tabel 2 ØJ'!F144/'Tabel 1 ØJ'!E142*100,"-")) -> 4.651162791 | G144: =IF(OR('Tabel 1 ØJ'!E142<5,'Tabel 2 ØJ'!G144<0.5),"-",IFERROR('Tabel 2 ØJ'!G144/'Tabel 1 ØJ'!E142*100,"-")) -> 4.059940327 | I144: =IF(OR('Tabel 1 ØJ'!G142<5,'Tabel 2 ØJ'!I144<0.5),"-",IFERROR('Tabel 2 ØJ'!I144/'Tabel 1 ØJ'!G142*100,"-")) -> 5.555555556 | J144: =IF(OR('Tabel 1 ØJ'!G142<5,'Tabel 2 ØJ'!J144<0.5),"-",IFERROR('Tabel 2 ØJ'!J144/'Tabel 1 ØJ'!G142*100,"-")) -> 4.657061477
A145: Cand. Merc. | C145: =IF(OR('Tabel 1 ØJ'!C143<5,'Tabel 2 ØJ'!C145<0.5),"-",IFERROR('Tabel 2 ØJ'!C145/'Tabel 1 ØJ'!C143*100,"-")) -> 5.633802817 | D145: =IF(OR('Tabel 1 ØJ'!C143<5,'Tabel 2 ØJ'!D145<0.5),"-",IFERROR('Tabel 2 ØJ'!D145/'Tabel 1 ØJ'!C143*100,"-")) -> 3.812559132 | F145: =IF(OR('Tabel 1 ØJ'!E143<5,'Tabel 2 ØJ'!F145<0.5),"-",IFERROR('Tabel 2 ØJ'!F145/'Tabel 1 ØJ'!E143*100,"-")) -> 1.379310345 | G145: =IF(OR('Tabel 1 ØJ'!E143<5,'Tabel 2 ØJ'!G145<0.5),"-",IFERROR('Tabel 2 ØJ'!G145/'Tabel 1 ØJ'!E143*100,"-")) -> 0.9970814505 | I145: =IF(OR('Tabel 1 ØJ'!G143<5,'Tabel 2 ØJ'!I145<0.5),"-",IFERROR('Tabel 2 ØJ'!I145/'Tabel 1 ØJ'!G143*100,"-")) -> 2.777777778 | J145: =IF(OR('Tabel 1 ØJ'!G143<5,'Tabel 2 ØJ'!J145<0.5),"-",IFERROR('Tabel 2 ØJ'!J145/'Tabel 1 ØJ'!G143*100,"-")) -> 1.922539392
A146: HA | C146: =IF(OR('Tabel 1 ØJ'!C144<5,'Tabel 2 ØJ'!C146<0.5),"-",IFERROR('Tabel 2 ØJ'!C146/'Tabel 1 ØJ'!C144*100,"-")) -> 6.25 | D146: =IF(OR('Tabel 1 ØJ'!C144<5,'Tabel 2 ØJ'!D146<0.5),"-",IFERROR('Tabel 2 ØJ'!D146/'Tabel 1 ØJ'!C144*100,"-")) -> 6.248830537 | F146: =IF(OR('Tabel 1 ØJ'!E144<5,'Tabel 2 ØJ'!F146<0.5),"-",IFERROR('Tabel 2 ØJ'!F146/'Tabel 1 ØJ'!E144*100,"-")) -> - | G146: =IF(OR('Tabel 1 ØJ'!E144<5,'Tabel 2 ØJ'!G146<0.5),"-",IFERROR('Tabel 2 ØJ'!G146/'Tabel 1 ØJ'!E144*100,"-")) -> - | I146: =IF(OR('Tabel 1 ØJ'!G144<5,'Tabel 2 ØJ'!I146<0.5),"-",IFERROR('Tabel 2 ØJ'!I146/'Tabel 1 ØJ'!G144*100,"-")) -> 1.694915254 | J146: =IF(OR('Tabel 1 ØJ'!G144<5,'Tabel 2 ØJ'!J146<0.5),"-",IFERROR('Tabel 2 ØJ'!J146/'Tabel 1 ØJ'!G144*100,"-")) -> 1.694598112
A147: HD | C147: =IF(OR('Tabel 1 ØJ'!C145<5,'Tabel 2 ØJ'!C147<0.5),"-",IFERROR('Tabel 2 ØJ'!C147/'Tabel 1 ØJ'!C145*100,"-")) -> 7.692307692 | D147: =IF(OR('Tabel 1 ØJ'!C145<5,'Tabel 2 ØJ'!D147<0.5),"-",IFERROR('Tabel 2 ØJ'!D147/'Tabel 1 ØJ'!C145*100,"-")) -> 7.690868353 | F147: =IF(OR('Tabel 1 ØJ'!E145<5,'Tabel 2 ØJ'!F147<0.5),"-",IFERROR('Tabel 2 ØJ'!F147/'Tabel 1 ØJ'!E145*100,"-")) -> - | G147: =IF(OR('Tabel 1 ØJ'!E145<5,'Tabel 2 ØJ'!G147<0.5),"-",IFERROR('Tabel 2 ØJ'!G147/'Tabel 1 ØJ'!E145*100,"-")) -> - | I147: =IF(OR('Tabel 1 ØJ'!G145<5,'Tabel 2 ØJ'!I147<0.5),"-",IFERROR('Tabel 2 ØJ'!I147/'Tabel 1 ØJ'!G145*100,"-")) -> 2.564102564 | J147: =IF(OR('Tabel 1 ØJ'!G145<5,'Tabel 2 ØJ'!J147<0.5),"-",IFERROR('Tabel 2 ØJ'!J147/'Tabel 1 ØJ'!G145*100,"-")) -> 2.563622784
A148: Komm. og Sprog | C148: =IF(OR('Tabel 1 ØJ'!C146<5,'Tabel 2 ØJ'!C148<0.5),"-",IFERROR('Tabel 2 ØJ'!C148/'Tabel 1 ØJ'!C146*100,"-")) -> - | D148: =IF(OR('Tabel 1 ØJ'!C146<5,'Tabel 2 ØJ'!D148<0.5),"-",IFERROR('Tabel 2 ØJ'!D148/'Tabel 1 ØJ'!C146*100,"-")) -> - | F148: =IF(OR('Tabel 1 ØJ'!E146<5,'Tabel 2 ØJ'!F148<0.5),"-",IFERROR('Tabel 2 ØJ'!F148/'Tabel 1 ØJ'!E146*100,"-")) -> 4.347826087 | G148: =IF(OR('Tabel 1 ØJ'!E146<5,'Tabel 2 ØJ'!G148<0.5),"-",IFERROR('Tabel 2 ØJ'!G148/'Tabel 1 ØJ'!E146*100,"-")) -> 4.113797901 | I148: =IF(OR('Tabel 1 ØJ'!G146<5,'Tabel 2 ØJ'!I148<0.5),"-",IFERROR('Tabel 2 ØJ'!I148/'Tabel 1 ØJ'!G146*100,"-")) -> 6 | J148: =IF(OR('Tabel 1 ØJ'!G146<5,'Tabel 2 ØJ'!J148<0.5),"-",IFERROR('Tabel 2 ØJ'!J148/'Tabel 1 ØJ'!G146*100,"-")) -> 5.322771783
A149: Bygningskonst. | C149: =IF(OR('Tabel 1 ØJ'!C147<5,'Tabel 2 ØJ'!C149<0.5),"-",IFERROR('Tabel 2 ØJ'!C149/'Tabel 1 ØJ'!C147*100,"-")) -> 1.5625 | D149: =IF(OR('Tabel 1 ØJ'!C147<5,'Tabel 2 ØJ'!D149<0.5),"-",IFERROR('Tabel 2 ØJ'!D149/'Tabel 1 ØJ'!C147*100,"-")) -> 1.5625 | F149: =IF(OR('Tabel 1 ØJ'!E147<5,'Tabel 2 ØJ'!F149<0.5),"-",IFERROR('Tabel 2 ØJ'!F149/'Tabel 1 ØJ'!E147*100,"-")) -> - | G149: =IF(OR('Tabel 1 ØJ'!E147<5,'Tabel 2 ØJ'!G149<0.5),"-",IFERROR('Tabel 2 ØJ'!G149/'Tabel 1 ØJ'!E147*100,"-")) -> - | I149: =IF(OR('Tabel 1 ØJ'!G147<5,'Tabel 2 ØJ'!I149<0.5),"-",IFERROR('Tabel 2 ØJ'!I149/'Tabel 1 ØJ'!G147*100,"-")) -> 0.7246376812 | J149: =IF(OR('Tabel 1 ØJ'!G147<5,'Tabel 2 ØJ'!J149<0.5),"-",IFERROR('Tabel 2 ØJ'!J149/'Tabel 1 ØJ'!G147*100,"-")) -> 0.7246376812
A150: Cand. IT. | C150: =IF(OR('Tabel 1 ØJ'!C148<5,'Tabel 2 ØJ'!C150<0.5),"-",IFERROR('Tabel 2 ØJ'!C150/'Tabel 1 ØJ'!C148*100,"-")) -> - | D150: =IF(OR('Tabel 1 ØJ'!C148<5,'Tabel 2 ØJ'!D150<0.5),"-",IFERROR('Tabel 2 ØJ'!D150/'Tabel 1 ØJ'!C148*100,"-")) -> - | F150: =IF(OR('Tabel 1 ØJ'!E148<5,'Tabel 2 ØJ'!F150<0.5),"-",IFERROR('Tabel 2 ØJ'!F150/'Tabel 1 ØJ'!E148*100,"-")) -> 3.846153846 | G150: =IF(OR('Tabel 1 ØJ'!E148<5,'Tabel 2 ØJ'!G150<0.5),"-",IFERROR('Tabel 2 ØJ'!G150/'Tabel 1 ØJ'!E148*100,"-")) -> 3.845434177 | I150: =IF(OR('Tabel 1 ØJ'!G148<5,'Tabel 2 ØJ'!I150<0.5),"-",IFERROR('Tabel 2 ØJ'!I150/'Tabel 1 ØJ'!G148*100,"-")) -> 2.43902439 | J150: =IF(OR('Tabel 1 ØJ'!G148<5,'Tabel 2 ØJ'!J150<0.5),"-",IFERROR('Tabel 2 ØJ'!J150/'Tabel 1 ØJ'!G148*100,"-")) -> 2.438568014
A151: Bac. Samf. | C151: =IF(OR('Tabel 1 ØJ'!C149<5,'Tabel 2 ØJ'!C151<0.5),"-",IFERROR('Tabel 2 ØJ'!C151/'Tabel 1 ØJ'!C149*100,"-")) -> - | D151: =IF(OR('Tabel 1 ØJ'!C149<5,'Tabel 2 ØJ'!D151<0.5),"-",IFERROR('Tabel 2 ØJ'!D151/'Tabel 1 ØJ'!C149*100,"-")) -> - | F151: =IF(OR('Tabel 1 ØJ'!E149<5,'Tabel 2 ØJ'!F151<0.5),"-",IFERROR('Tabel 2 ØJ'!F151/'Tabel 1 ØJ'!E149*100,"-")) -> - | G151: =IF(OR('Tabel 1 ØJ'!E149<5,'Tabel 2 ØJ'!G151<0.5),"-",IFERROR('Tabel 2 ØJ'!G151/'Tabel 1 ØJ'!E149*100,"-")) -> - | I151: =IF(OR('Tabel 1 ØJ'!G149<5,'Tabel 2 ØJ'!I151<0.5),"-",IFERROR('Tabel 2 ØJ'!I151/'Tabel 1 ØJ'!G149*100,"-")) -> - | J151: =IF(OR('Tabel 1 ØJ'!G149<5,'Tabel 2 ØJ'!J151<0.5),"-",IFERROR('Tabel 2 ØJ'!J151/'Tabel 1 ØJ'!G149*100,"-")) -> -
A152: Bac. Hum. | C152: =IF(OR('Tabel 1 ØJ'!C150<5,'Tabel 2 ØJ'!C152<0.5),"-",IFERROR('Tabel 2 ØJ'!C152/'Tabel 1 ØJ'!C150*100,"-")) -> - | D152: =IF(OR('Tabel 1 ØJ'!C150<5,'Tabel 2 ØJ'!D152<0.5),"-",IFERROR('Tabel 2 ØJ'!D152/'Tabel 1 ØJ'!C150*100,"-")) -> - | F152: =IF(OR('Tabel 1 ØJ'!E150<5,'Tabel 2 ØJ'!F152<0.5),"-",IFERROR('Tabel 2 ØJ'!F152/'Tabel 1 ØJ'!E150*100,"-")) -> 10 | G152: =IF(OR('Tabel 1 ØJ'!E150<5,'Tabel 2 ØJ'!G152<0.5),"-",IFERROR('Tabel 2 ØJ'!G152/'Tabel 1 ØJ'!E150*100,"-")) -> 7.690388574 | I152: =IF(OR('Tabel 1 ØJ'!G150<5,'Tabel 2 ØJ'!I152<0.5),"-",IFERROR('Tabel 2 ØJ'!I152/'Tabel 1 ØJ'!G150*100,"-")) -> 6.25 | J152: =IF(OR('Tabel 1 ØJ'!G150<5,'Tabel 2 ØJ'!J152<0.5),"-",IFERROR('Tabel 2 ØJ'!J152/'Tabel 1 ØJ'!G150*100,"-")) -> 4.806492858
A153: Bac. Nat. | C153: =IF(OR('Tabel 1 ØJ'!C151<5,'Tabel 2 ØJ'!C153<0.5),"-",IFERROR('Tabel 2 ØJ'!C153/'Tabel 1 ØJ'!C151*100,"-")) -> - | D153: =IF(OR('Tabel 1 ØJ'!C151<5,'Tabel 2 ØJ'!D153<0.5),"-",IFERROR('Tabel 2 ØJ'!D153/'Tabel 1 ØJ'!C151*100,"-")) -> - | F153: =IF(OR('Tabel 1 ØJ'!E151<5,'Tabel 2 ØJ'!F153<0.5),"-",IFERROR('Tabel 2 ØJ'!F153/'Tabel 1 ØJ'!E151*100,"-")) -> 5.882352941 | G153: =IF(OR('Tabel 1 ØJ'!E151<5,'Tabel 2 ØJ'!G153<0.5),"-",IFERROR('Tabel 2 ØJ'!G153/'Tabel 1 ØJ'!E151*100,"-")) -> 4.252259127 | I153: =IF(OR('Tabel 1 ØJ'!G151<5,'Tabel 2 ØJ'!I153<0.5),"-",IFERROR('Tabel 2 ØJ'!I153/'Tabel 1 ØJ'!G151*100,"-")) -> 3.571428571 | J153: =IF(OR('Tabel 1 ØJ'!G151<5,'Tabel 2 ØJ'!J153<0.5),"-",IFERROR('Tabel 2 ØJ'!J153/'Tabel 1 ØJ'!G151*100,"-")) -> 2.581728756
A154: Andre | C154: =IF(OR('Tabel 1 ØJ'!C152<5,'Tabel 2 ØJ'!C154<0.5),"-",IFERROR('Tabel 2 ØJ'!C154/'Tabel 1 ØJ'!C152*100,"-")) -> 6.557377049 | D154: =IF(OR('Tabel 1 ØJ'!C152<5,'Tabel 2 ØJ'!D154<0.5),"-",IFERROR('Tabel 2 ØJ'!D154/'Tabel 1 ØJ'!C152*100,"-")) -> 5.445735384 | F154: =IF(OR('Tabel 1 ØJ'!E152<5,'Tabel 2 ØJ'!F154<0.5),"-",IFERROR('Tabel 2 ØJ'!F154/'Tabel 1 ØJ'!E152*100,"-")) -> 4.424778761 | G154: =IF(OR('Tabel 1 ØJ'!E152<5,'Tabel 2 ØJ'!G154<0.5),"-",IFERROR('Tabel 2 ØJ'!G154/'Tabel 1 ØJ'!E152*100,"-")) -> 1.921920994 | I154: =IF(OR('Tabel 1 ØJ'!G152<5,'Tabel 2 ØJ'!I154<0.5),"-",IFERROR('Tabel 2 ØJ'!I154/'Tabel 1 ØJ'!G152*100,"-")) -> 5.172413793 | J154: =IF(OR('Tabel 1 ØJ'!G152<5,'Tabel 2 ØJ'!J154<0.5),"-",IFERROR('Tabel 2 ØJ'!J154/'Tabel 1 ØJ'!G152*100,"-")) -> 3.157281211
A156: Total | C156: =IF(OR('Tabel 1 ØJ'!C154<5,'Tabel 2 ØJ'!C156<0.5),"-",IFERROR('Tabel 2 ØJ'!C156/'Tabel 1 ØJ'!C154*100,"-")) -> 4.229934924 | D156: =IF(OR('Tabel 1 ØJ'!C154<5,'Tabel 2 ØJ'!D156<0.5),"-",IFERROR('Tabel 2 ØJ'!D156/'Tabel 1 ØJ'!C154*100,"-")) -> 3.519537321 | F156: =IF(OR('Tabel 1 ØJ'!E154<5,'Tabel 2 ØJ'!F156<0.5),"-",IFERROR('Tabel 2 ØJ'!F156/'Tabel 1 ØJ'!E154*100,"-")) -> 3.227485685 | G156: =IF(OR('Tabel 1 ØJ'!E154<5,'Tabel 2 ØJ'!G156<0.5),"-",IFERROR('Tabel 2 ØJ'!G156/'Tabel 1 ØJ'!E154*100,"-")) -> 2.202056385 | I156: =IF(OR('Tabel 1 ØJ'!G154<5,'Tabel 2 ØJ'!I156<0.5),"-",IFERROR('Tabel 2 ØJ'!I156/'Tabel 1 ØJ'!G154*100,"-")) -> 3.552585297 | J156: =IF(OR('Tabel 1 ØJ'!G154<5,'Tabel 2 ØJ'!J156<0.5),"-",IFERROR('Tabel 2 ØJ'!J156/'Tabel 1 ØJ'!G154*100,"-")) -> 2.62932245
A158: Ingeniører i alt | C158: =IF(OR('Tabel 1 ØJ'!C156<5,'Tabel 2 ØJ'!C158<0.5),"-",IFERROR('Tabel 2 ØJ'!C158/'Tabel 1 ØJ'!C156*100,"-")) -> 11.42857143 | D158: =IF(OR('Tabel 1 ØJ'!C156<5,'Tabel 2 ØJ'!D158<0.5),"-",IFERROR('Tabel 2 ØJ'!D158/'Tabel 1 ØJ'!C156*100,"-")) -> 8.585863086 | F158: =IF(OR('Tabel 1 ØJ'!E156<5,'Tabel 2 ØJ'!F158<0.5),"-",IFERROR('Tabel 2 ØJ'!F158/'Tabel 1 ØJ'!E156*100,"-")) -> 2.083333333 | G158: =IF(OR('Tabel 1 ØJ'!E156<5,'Tabel 2 ØJ'!G158<0.5),"-",IFERROR('Tabel 2 ØJ'!G158/'Tabel 1 ØJ'!E156*100,"-")) -> 1.838005988 | I158: =IF(OR('Tabel 1 ØJ'!G156<5,'Tabel 2 ØJ'!I158<0.5),"-",IFERROR('Tabel 2 ØJ'!I158/'Tabel 1 ØJ'!G156*100,"-")) -> 6.024096386 | J158: =IF(OR('Tabel 1 ØJ'!G156<5,'Tabel 2 ØJ'!J158<0.5),"-",IFERROR('Tabel 2 ØJ'!J158/'Tabel 1 ØJ'!G156*100,"-")) -> 4.683487897
A159: Magistre i alt | C159: =IF(OR('Tabel 1 ØJ'!C157<5,'Tabel 2 ØJ'!C159<0.5),"-",IFERROR('Tabel 2 ØJ'!C159/'Tabel 1 ØJ'!C157*100,"-")) -> 4.62962963 | D159: =IF(OR('Tabel 1 ØJ'!C157<5,'Tabel 2 ØJ'!D159<0.5),"-",IFERROR('Tabel 2 ØJ'!D159/'Tabel 1 ØJ'!C157*100,"-")) -> 3.816780668 | F159: =IF(OR('Tabel 1 ØJ'!E157<5,'Tabel 2 ØJ'!F159<0.5),"-",IFERROR('Tabel 2 ØJ'!F159/'Tabel 1 ØJ'!E157*100,"-")) -> 4.945054945 | G159: =IF(OR('Tabel 1 ØJ'!E157<5,'Tabel 2 ØJ'!G159<0.5),"-",IFERROR('Tabel 2 ØJ'!G159/'Tabel 1 ØJ'!E157*100,"-")) -> 3.062822124 | I159: =IF(OR('Tabel 1 ØJ'!G157<5,'Tabel 2 ØJ'!I159<0.5),"-",IFERROR('Tabel 2 ØJ'!I159/'Tabel 1 ØJ'!G157*100,"-")) -> 4.855643045 | J159: =IF(OR('Tabel 1 ØJ'!G157<5,'Tabel 2 ØJ'!J159<0.5),"-",IFERROR('Tabel 2 ØJ'!J159/'Tabel 1 ØJ'!G157*100,"-")) -> 3.276542656
A160: DJØF'ere i alt | C160: =IF(OR('Tabel 1 ØJ'!C158<5,'Tabel 2 ØJ'!C160<0.5),"-",IFERROR('Tabel 2 ØJ'!C160/'Tabel 1 ØJ'!C158*100,"-")) -> 5.479452055 | D160: =IF(OR('Tabel 1 ØJ'!C158<5,'Tabel 2 ØJ'!D160<0.5),"-",IFERROR('Tabel 2 ØJ'!D160/'Tabel 1 ØJ'!C158*100,"-")) -> 4.245524428 | F160: =IF(OR('Tabel 1 ØJ'!E158<5,'Tabel 2 ØJ'!F160<0.5),"-",IFERROR('Tabel 2 ØJ'!F160/'Tabel 1 ØJ'!E158*100,"-")) -> 1.662049861 | G160: =IF(OR('Tabel 1 ØJ'!E158<5,'Tabel 2 ØJ'!G160<0.5),"-",IFERROR('Tabel 2 ØJ'!G160/'Tabel 1 ØJ'!E158*100,"-")) -> 1.36767778 | I160: =IF(OR('Tabel 1 ØJ'!G158<5,'Tabel 2 ØJ'!I160<0.5),"-",IFERROR('Tabel 2 ØJ'!I160/'Tabel 1 ØJ'!G158*100,"-")) -> 2.761341223 | J160: =IF(OR('Tabel 1 ØJ'!G158<5,'Tabel 2 ØJ'!J160<0.5),"-",IFERROR('Tabel 2 ØJ'!J160/'Tabel 1 ØJ'!G158*100,"-")) -> 2.196406795
A165: Norddjurs
C167: Mænd | F167: Kvinder | I167: I alt
C168: Ledigheds- berørte | D168: Gns. brutto- ledighed | F168: Ledigheds- berørte | G168: Gns. brutto- ledighed | I168: Ledigheds- berørte | J168: Gns. brutto- ledighed
A171: Civ. ing. | C171: =IF(OR('Tabel 1 ØJ'!C169<5,'Tabel 2 ØJ'!C171<0.5),"-",IFERROR('Tabel 2 ØJ'!C171/'Tabel 1 ØJ'!C169*100,"-")) -> - | D171: =IF(OR('Tabel 1 ØJ'!C169<5,'Tabel 2 ØJ'!D171<0.5),"-",IFERROR('Tabel 2 ØJ'!D171/'Tabel 1 ØJ'!C169*100,"-")) -> - | F171: =IF(OR('Tabel 1 ØJ'!E169<5,'Tabel 2 ØJ'!F171<0.5),"-",IFERROR('Tabel 2 ØJ'!F171/'Tabel 1 ØJ'!E169*100,"-")) -> 3.571428571 | G171: =IF(OR('Tabel 1 ØJ'!E169<5,'Tabel 2 ØJ'!G171<0.5),"-",IFERROR('Tabel 2 ØJ'!G171/'Tabel 1 ØJ'!E169*100,"-")) -> 3.570760307 | I171: =IF(OR('Tabel 1 ØJ'!G169<5,'Tabel 2 ØJ'!I171<0.5),"-",IFERROR('Tabel 2 ØJ'!I171/'Tabel 1 ØJ'!G169*100,"-")) -> 2.222222222 | J171: =IF(OR('Tabel 1 ØJ'!G169<5,'Tabel 2 ØJ'!J171<0.5),"-",IFERROR('Tabel 2 ØJ'!J171/'Tabel 1 ØJ'!G169*100,"-")) -> 2.221806413
A172: Diplom ing. | C172: =IF(OR('Tabel 1 ØJ'!C170<5,'Tabel 2 ØJ'!C172<0.5),"-",IFERROR('Tabel 2 ØJ'!C172/'Tabel 1 ØJ'!C170*100,"-")) -> 2.739726027 | D172: =IF(OR('Tabel 1 ØJ'!C170<5,'Tabel 2 ØJ'!D172<0.5),"-",IFERROR('Tabel 2 ØJ'!D172/'Tabel 1 ØJ'!C170*100,"-")) -> 0.7766515808 | F172: =IF(OR('Tabel 1 ØJ'!E170<5,'Tabel 2 ØJ'!F172<0.5),"-",IFERROR('Tabel 2 ØJ'!F172/'Tabel 1 ØJ'!E170*100,"-")) -> - | G172: =IF(OR('Tabel 1 ØJ'!E170<5,'Tabel 2 ØJ'!G172<0.5),"-",IFERROR('Tabel 2 ØJ'!G172/'Tabel 1 ØJ'!E170*100,"-")) -> - | I172: =IF(OR('Tabel 1 ØJ'!G170<5,'Tabel 2 ØJ'!I172<0.5),"-",IFERROR('Tabel 2 ØJ'!I172/'Tabel 1 ØJ'!G170*100,"-")) -> 1.183431953 | J172: =IF(OR('Tabel 1 ØJ'!G170<5,'Tabel 2 ØJ'!J172<0.5),"-",IFERROR('Tabel 2 ØJ'!J172/'Tabel 1 ØJ'!G170*100,"-")) -> 0.3354767183
A173: Cand. Scient. Tek. | C173: =IF(OR('Tabel 1 ØJ'!C171<5,'Tabel 2 ØJ'!C173<0.5),"-",IFERROR('Tabel 2 ØJ'!C173/'Tabel 1 ØJ'!C171*100,"-")) -> 30.76923077 | D173: =IF(OR('Tabel 1 ØJ'!C171<5,'Tabel 2 ØJ'!D173<0.5),"-",IFERROR('Tabel 2 ØJ'!D173/'Tabel 1 ØJ'!C171*100,"-")) -> 23.34607948 | F173: =IF(OR('Tabel 1 ØJ'!E171<5,'Tabel 2 ØJ'!F173<0.5),"-",IFERROR('Tabel 2 ØJ'!F173/'Tabel 1 ØJ'!E171*100,"-")) -> 10 | G173: =IF(OR('Tabel 1 ØJ'!E171<5,'Tabel 2 ØJ'!G173<0.5),"-",IFERROR('Tabel 2 ØJ'!G173/'Tabel 1 ØJ'!E171*100,"-")) -> 8.844258716 | I173: =IF(OR('Tabel 1 ØJ'!G171<5,'Tabel 2 ØJ'!I173<0.5),"-",IFERROR('Tabel 2 ØJ'!I173/'Tabel 1 ØJ'!G171*100,"-")) -> 18.18181818 | J173: =IF(OR('Tabel 1 ØJ'!G171<5,'Tabel 2 ØJ'!J173<0.5),"-",IFERROR('Tabel 2 ØJ'!J173/'Tabel 1 ØJ'!G171*100,"-")) -> 14.5570972
A174: MA. Hum. | C174: =IF(OR('Tabel 1 ØJ'!C172<5,'Tabel 2 ØJ'!C174<0.5),"-",IFERROR('Tabel 2 ØJ'!C174/'Tabel 1 ØJ'!C172*100,"-")) -> 8.695652174 | D174: =IF(OR('Tabel 1 ØJ'!C172<5,'Tabel 2 ØJ'!D174<0.5),"-",IFERROR('Tabel 2 ØJ'!D174/'Tabel 1 ØJ'!C172*100,"-")) -> 8.694025095 | F174: =IF(OR('Tabel 1 ØJ'!E172<5,'Tabel 2 ØJ'!F174<0.5),"-",IFERROR('Tabel 2 ØJ'!F174/'Tabel 1 ØJ'!E172*100,"-")) -> 6.41025641 | G174: =IF(OR('Tabel 1 ØJ'!E172<5,'Tabel 2 ØJ'!G174<0.5),"-",IFERROR('Tabel 2 ØJ'!G174/'Tabel 1 ØJ'!E172*100,"-")) -> 4.984111296 | I174: =IF(OR('Tabel 1 ØJ'!G172<5,'Tabel 2 ØJ'!I174<0.5),"-",IFERROR('Tabel 2 ØJ'!I174/'Tabel 1 ØJ'!G172*100,"-")) -> 6.930693069 | J174: =IF(OR('Tabel 1 ØJ'!G172<5,'Tabel 2 ØJ'!J174<0.5),"-",IFERROR('Tabel 2 ØJ'!J174/'Tabel 1 ØJ'!G172*100,"-")) -> 5.828943151
A175: MA. Nat. | C175: =IF(OR('Tabel 1 ØJ'!C173<5,'Tabel 2 ØJ'!C175<0.5),"-",IFERROR('Tabel 2 ØJ'!C175/'Tabel 1 ØJ'!C173*100,"-")) -> - | D175: =IF(OR('Tabel 1 ØJ'!C173<5,'Tabel 2 ØJ'!D175<0.5),"-",IFERROR('Tabel 2 ØJ'!D175/'Tabel 1 ØJ'!C173*100,"-")) -> - | F175: =IF(OR('Tabel 1 ØJ'!E173<5,'Tabel 2 ØJ'!F175<0.5),"-",IFERROR('Tabel 2 ØJ'!F175/'Tabel 1 ØJ'!E173*100,"-")) -> 3.03030303 | G175: =IF(OR('Tabel 1 ØJ'!E173<5,'Tabel 2 ØJ'!G175<0.5),"-",IFERROR('Tabel 2 ØJ'!G175/'Tabel 1 ØJ'!E173*100,"-")) -> - | I175: =IF(OR('Tabel 1 ØJ'!G173<5,'Tabel 2 ØJ'!I175<0.5),"-",IFERROR('Tabel 2 ØJ'!I175/'Tabel 1 ØJ'!G173*100,"-")) -> 1.923076923 | J175: =IF(OR('Tabel 1 ØJ'!G173<5,'Tabel 2 ØJ'!J175<0.5),"-",IFERROR('Tabel 2 ØJ'!J175/'Tabel 1 ØJ'!G173*100,"-")) -> -
A176: MA. Ph.d. | C176: =IF(OR('Tabel 1 ØJ'!C174<5,'Tabel 2 ØJ'!C176<0.5),"-",IFERROR('Tabel 2 ØJ'!C176/'Tabel 1 ØJ'!C174*100,"-")) -> - | D176: =IF(OR('Tabel 1 ØJ'!C174<5,'Tabel 2 ØJ'!D176<0.5),"-",IFERROR('Tabel 2 ØJ'!D176/'Tabel 1 ØJ'!C174*100,"-")) -> - | F176: =IF(OR('Tabel 1 ØJ'!E174<5,'Tabel 2 ØJ'!F176<0.5),"-",IFERROR('Tabel 2 ØJ'!F176/'Tabel 1 ØJ'!E174*100,"-")) -> - | G176: =IF(OR('Tabel 1 ØJ'!E174<5,'Tabel 2 ØJ'!G176<0.5),"-",IFERROR('Tabel 2 ØJ'!G176/'Tabel 1 ØJ'!E174*100,"-")) -> - | I176: =IF(OR('Tabel 1 ØJ'!G174<5,'Tabel 2 ØJ'!I176<0.5),"-",IFERROR('Tabel 2 ØJ'!I176/'Tabel 1 ØJ'!G174*100,"-")) -> 10 | J176: =IF(OR('Tabel 1 ØJ'!G174<5,'Tabel 2 ØJ'!J176<0.5),"-",IFERROR('Tabel 2 ØJ'!J176/'Tabel 1 ØJ'!G174*100,"-")) -> 6.399301441
A177: MA. Samf. | C177: =IF(OR('Tabel 1 ØJ'!C175<5,'Tabel 2 ØJ'!C177<0.5),"-",IFERROR('Tabel 2 ØJ'!C177/'Tabel 1 ØJ'!C175*100,"-")) -> - | D177: =IF(OR('Tabel 1 ØJ'!C175<5,'Tabel 2 ØJ'!D177<0.5),"-",IFERROR('Tabel 2 ØJ'!D177/'Tabel 1 ØJ'!C175*100,"-")) -> - | F177: =IF(OR('Tabel 1 ØJ'!E175<5,'Tabel 2 ØJ'!F177<0.5),"-",IFERROR('Tabel 2 ØJ'!F177/'Tabel 1 ØJ'!E175*100,"-")) -> 28.57142857 | G177: =IF(OR('Tabel 1 ØJ'!E175<5,'Tabel 2 ØJ'!G177<0.5),"-",IFERROR('Tabel 2 ØJ'!G177/'Tabel 1 ØJ'!E175*100,"-")) -> 20.01229607 | I177: =IF(OR('Tabel 1 ØJ'!G175<5,'Tabel 2 ØJ'!I177<0.5),"-",IFERROR('Tabel 2 ØJ'!I177/'Tabel 1 ØJ'!G175*100,"-")) -> 22.22222222 | J177: =IF(OR('Tabel 1 ØJ'!G175<5,'Tabel 2 ØJ'!J177<0.5),"-",IFERROR('Tabel 2 ØJ'!J177/'Tabel 1 ØJ'!G175*100,"-")) -> 15.56511916
A178: Øvrige Mag. | C178: =IF(OR('Tabel 1 ØJ'!C176<5,'Tabel 2 ØJ'!C178<0.5),"-",IFERROR('Tabel 2 ØJ'!C178/'Tabel 1 ØJ'!C176*100,"-")) -> - | D178: =IF(OR('Tabel 1 ØJ'!C176<5,'Tabel 2 ØJ'!D178<0.5),"-",IFERROR('Tabel 2 ØJ'!D178/'Tabel 1 ØJ'!C176*100,"-")) -> - | F178: =IF(OR('Tabel 1 ØJ'!E176<5,'Tabel 2 ØJ'!F178<0.5),"-",IFERROR('Tabel 2 ØJ'!F178/'Tabel 1 ØJ'!E176*100,"-")) -> 14.28571429 | G178: =IF(OR('Tabel 1 ØJ'!E176<5,'Tabel 2 ØJ'!G178<0.5),"-",IFERROR('Tabel 2 ØJ'!G178/'Tabel 1 ØJ'!E176*100,"-")) -> 9.667560656 | I178: =IF(OR('Tabel 1 ØJ'!G176<5,'Tabel 2 ØJ'!I178<0.5),"-",IFERROR('Tabel 2 ØJ'!I178/'Tabel 1 ØJ'!G176*100,"-")) -> 11.11111111 | J178: =IF(OR('Tabel 1 ØJ'!G176<5,'Tabel 2 ØJ'!J178<0.5),"-",IFERROR('Tabel 2 ØJ'!J178/'Tabel 1 ØJ'!G176*100,"-")) -> 7.519213844
A179: Agronom | C179: =IF(OR('Tabel 1 ØJ'!C177<5,'Tabel 2 ØJ'!C179<0.5),"-",IFERROR('Tabel 2 ØJ'!C179/'Tabel 1 ØJ'!C177*100,"-")) -> - | D179: =IF(OR('Tabel 1 ØJ'!C177<5,'Tabel 2 ØJ'!D179<0.5),"-",IFERROR('Tabel 2 ØJ'!D179/'Tabel 1 ØJ'!C177*100,"-")) -> - | F179: =IF(OR('Tabel 1 ØJ'!E177<5,'Tabel 2 ØJ'!F179<0.5),"-",IFERROR('Tabel 2 ØJ'!F179/'Tabel 1 ØJ'!E177*100,"-")) -> - | G179: =IF(OR('Tabel 1 ØJ'!E177<5,'Tabel 2 ØJ'!G179<0.5),"-",IFERROR('Tabel 2 ØJ'!G179/'Tabel 1 ØJ'!E177*100,"-")) -> - | I179: =IF(OR('Tabel 1 ØJ'!G177<5,'Tabel 2 ØJ'!I179<0.5),"-",IFERROR('Tabel 2 ØJ'!I179/'Tabel 1 ØJ'!G177*100,"-")) -> - | J179: =IF(OR('Tabel 1 ØJ'!G177<5,'Tabel 2 ØJ'!J179<0.5),"-",IFERROR('Tabel 2 ØJ'!J179/'Tabel 1 ØJ'!G177*100,"-")) -> -
A180: Landsk. Arkt. | C180: =IF(OR('Tabel 1 ØJ'!C178<5,'Tabel 2 ØJ'!C180<0.5),"-",IFERROR('Tabel 2 ØJ'!C180/'Tabel 1 ØJ'!C178*100,"-")) -> - | D180: =IF(OR('Tabel 1 ØJ'!C178<5,'Tabel 2 ØJ'!D180<0.5),"-",IFERROR('Tabel 2 ØJ'!D180/'Tabel 1 ØJ'!C178*100,"-")) -> - | F180: =IF(OR('Tabel 1 ØJ'!E178<5,'Tabel 2 ØJ'!F180<0.5),"-",IFERROR('Tabel 2 ØJ'!F180/'Tabel 1 ØJ'!E178*100,"-")) -> - | G180: =IF(OR('Tabel 1 ØJ'!E178<5,'Tabel 2 ØJ'!G180<0.5),"-",IFERROR('Tabel 2 ØJ'!G180/'Tabel 1 ØJ'!E178*100,"-")) -> - | I180: =IF(OR('Tabel 1 ØJ'!G178<5,'Tabel 2 ØJ'!I180<0.5),"-",IFERROR('Tabel 2 ØJ'!I180/'Tabel 1 ØJ'!G178*100,"-")) -> - | J180: =IF(OR('Tabel 1 ØJ'!G178<5,'Tabel 2 ØJ'!J180<0.5),"-",IFERROR('Tabel 2 ØJ'!J180/'Tabel 1 ØJ'!G178*100,"-")) -> -
A181: Hortonom | C181: =IF(OR('Tabel 1 ØJ'!C179<5,'Tabel 2 ØJ'!C181<0.5),"-",IFERROR('Tabel 2 ØJ'!C181/'Tabel 1 ØJ'!C179*100,"-")) -> - | D181: =IF(OR('Tabel 1 ØJ'!C179<5,'Tabel 2 ØJ'!D181<0.5),"-",IFERROR('Tabel 2 ØJ'!D181/'Tabel 1 ØJ'!C179*100,"-")) -> - | F181: =IF(OR('Tabel 1 ØJ'!E179<5,'Tabel 2 ØJ'!F181<0.5),"-",IFERROR('Tabel 2 ØJ'!F181/'Tabel 1 ØJ'!E179*100,"-")) -> - | G181: =IF(OR('Tabel 1 ØJ'!E179<5,'Tabel 2 ØJ'!G181<0.5),"-",IFERROR('Tabel 2 ØJ'!G181/'Tabel 1 ØJ'!E179*100,"-")) -> - | I181: =IF(OR('Tabel 1 ØJ'!G179<5,'Tabel 2 ØJ'!I181<0.5),"-",IFERROR('Tabel 2 ØJ'!I181/'Tabel 1 ØJ'!G179*100,"-")) -> - | J181: =IF(OR('Tabel 1 ØJ'!G179<5,'Tabel 2 ØJ'!J181<0.5),"-",IFERROR('Tabel 2 ØJ'!J181/'Tabel 1 ØJ'!G179*100,"-")) -> -
A182: Forstkand. | C182: =IF(OR('Tabel 1 ØJ'!C180<5,'Tabel 2 ØJ'!C182<0.5),"-",IFERROR('Tabel 2 ØJ'!C182/'Tabel 1 ØJ'!C180*100,"-")) -> - | D182: =IF(OR('Tabel 1 ØJ'!C180<5,'Tabel 2 ØJ'!D182<0.5),"-",IFERROR('Tabel 2 ØJ'!D182/'Tabel 1 ØJ'!C180*100,"-")) -> - | F182: =IF(OR('Tabel 1 ØJ'!E180<5,'Tabel 2 ØJ'!F182<0.5),"-",IFERROR('Tabel 2 ØJ'!F182/'Tabel 1 ØJ'!E180*100,"-")) -> - | G182: =IF(OR('Tabel 1 ØJ'!E180<5,'Tabel 2 ØJ'!G182<0.5),"-",IFERROR('Tabel 2 ØJ'!G182/'Tabel 1 ØJ'!E180*100,"-")) -> - | I182: =IF(OR('Tabel 1 ØJ'!G180<5,'Tabel 2 ØJ'!I182<0.5),"-",IFERROR('Tabel 2 ØJ'!I182/'Tabel 1 ØJ'!G180*100,"-")) -> - | J182: =IF(OR('Tabel 1 ØJ'!G180<5,'Tabel 2 ØJ'!J182<0.5),"-",IFERROR('Tabel 2 ØJ'!J182/'Tabel 1 ØJ'!G180*100,"-")) -> -
A183: Jordbrugsakad. | C183: =IF(OR('Tabel 1 ØJ'!C181<5,'Tabel 2 ØJ'!C183<0.5),"-",IFERROR('Tabel 2 ØJ'!C183/'Tabel 1 ØJ'!C181*100,"-")) -> 14.28571429 | D183: =IF(OR('Tabel 1 ØJ'!C181<5,'Tabel 2 ØJ'!D183<0.5),"-",IFERROR('Tabel 2 ØJ'!D183/'Tabel 1 ØJ'!C181*100,"-")) -> 14.28304123 | F183: =IF(OR('Tabel 1 ØJ'!E181<5,'Tabel 2 ØJ'!F183<0.5),"-",IFERROR('Tabel 2 ØJ'!F183/'Tabel 1 ØJ'!E181*100,"-")) -> - | G183: =IF(OR('Tabel 1 ØJ'!E181<5,'Tabel 2 ØJ'!G183<0.5),"-",IFERROR('Tabel 2 ØJ'!G183/'Tabel 1 ØJ'!E181*100,"-")) -> - | I183: =IF(OR('Tabel 1 ØJ'!G181<5,'Tabel 2 ØJ'!I183<0.5),"-",IFERROR('Tabel 2 ØJ'!I183/'Tabel 1 ØJ'!G181*100,"-")) -> 5.263157895 | J183: =IF(OR('Tabel 1 ØJ'!G181<5,'Tabel 2 ØJ'!J183<0.5),"-",IFERROR('Tabel 2 ØJ'!J183/'Tabel 1 ØJ'!G181*100,"-")) -> 5.262173084
A184: Mejeriing. | C184: =IF(OR('Tabel 1 ØJ'!C182<5,'Tabel 2 ØJ'!C184<0.5),"-",IFERROR('Tabel 2 ØJ'!C184/'Tabel 1 ØJ'!C182*100,"-")) -> - | D184: =IF(OR('Tabel 1 ØJ'!C182<5,'Tabel 2 ØJ'!D184<0.5),"-",IFERROR('Tabel 2 ØJ'!D184/'Tabel 1 ØJ'!C182*100,"-")) -> - | F184: =IF(OR('Tabel 1 ØJ'!E182<5,'Tabel 2 ØJ'!F184<0.5),"-",IFERROR('Tabel 2 ØJ'!F184/'Tabel 1 ØJ'!E182*100,"-")) -> - | G184: =IF(OR('Tabel 1 ØJ'!E182<5,'Tabel 2 ØJ'!G184<0.5),"-",IFERROR('Tabel 2 ØJ'!G184/'Tabel 1 ØJ'!E182*100,"-")) -> - | I184: =IF(OR('Tabel 1 ØJ'!G182<5,'Tabel 2 ØJ'!I184<0.5),"-",IFERROR('Tabel 2 ØJ'!I184/'Tabel 1 ØJ'!G182*100,"-")) -> - | J184: =IF(OR('Tabel 1 ØJ'!G182<5,'Tabel 2 ØJ'!J184<0.5),"-",IFERROR('Tabel 2 ØJ'!J184/'Tabel 1 ØJ'!G182*100,"-")) -> -
A185: Levn.m.kand. | C185: =IF(OR('Tabel 1 ØJ'!C183<5,'Tabel 2 ØJ'!C185<0.5),"-",IFERROR('Tabel 2 ØJ'!C185/'Tabel 1 ØJ'!C183*100,"-")) -> - | D185: =IF(OR('Tabel 1 ØJ'!C183<5,'Tabel 2 ØJ'!D185<0.5),"-",IFERROR('Tabel 2 ØJ'!D185/'Tabel 1 ØJ'!C183*100,"-")) -> - | F185: =IF(OR('Tabel 1 ØJ'!E183<5,'Tabel 2 ØJ'!F185<0.5),"-",IFERROR('Tabel 2 ØJ'!F185/'Tabel 1 ØJ'!E183*100,"-")) -> - | G185: =IF(OR('Tabel 1 ØJ'!E183<5,'Tabel 2 ØJ'!G185<0.5),"-",IFERROR('Tabel 2 ØJ'!G185/'Tabel 1 ØJ'!E183*100,"-")) -> - | I185: =IF(OR('Tabel 1 ØJ'!G183<5,'Tabel 2 ØJ'!I185<0.5),"-",IFERROR('Tabel 2 ØJ'!I185/'Tabel 1 ØJ'!G183*100,"-")) -> - | J185: =IF(OR('Tabel 1 ØJ'!G183<5,'Tabel 2 ØJ'!J185<0.5),"-",IFERROR('Tabel 2 ØJ'!J185/'Tabel 1 ØJ'!G183*100,"-")) -> -
A186: Dyrlæge | C186: =IF(OR('Tabel 1 ØJ'!C184<5,'Tabel 2 ØJ'!C186<0.5),"-",IFERROR('Tabel 2 ØJ'!C186/'Tabel 1 ØJ'!C184*100,"-")) -> - | D186: =IF(OR('Tabel 1 ØJ'!C184<5,'Tabel 2 ØJ'!D186<0.5),"-",IFERROR('Tabel 2 ØJ'!D186/'Tabel 1 ØJ'!C184*100,"-")) -> - | F186: =IF(OR('Tabel 1 ØJ'!E184<5,'Tabel 2 ØJ'!F186<0.5),"-",IFERROR('Tabel 2 ØJ'!F186/'Tabel 1 ØJ'!E184*100,"-")) -> - | G186: =IF(OR('Tabel 1 ØJ'!E184<5,'Tabel 2 ØJ'!G186<0.5),"-",IFERROR('Tabel 2 ØJ'!G186/'Tabel 1 ØJ'!E184*100,"-")) -> - | I186: =IF(OR('Tabel 1 ØJ'!G184<5,'Tabel 2 ØJ'!I186<0.5),"-",IFERROR('Tabel 2 ØJ'!I186/'Tabel 1 ØJ'!G184*100,"-")) -> - | J186: =IF(OR('Tabel 1 ØJ'!G184<5,'Tabel 2 ØJ'!J186<0.5),"-",IFERROR('Tabel 2 ØJ'!J186/'Tabel 1 ØJ'!G184*100,"-")) -> -
A187: Farmaceut | C187: =IF(OR('Tabel 1 ØJ'!C185<5,'Tabel 2 ØJ'!C187<0.5),"-",IFERROR('Tabel 2 ØJ'!C187/'Tabel 1 ØJ'!C185*100,"-")) -> - | D187: =IF(OR('Tabel 1 ØJ'!C185<5,'Tabel 2 ØJ'!D187<0.5),"-",IFERROR('Tabel 2 ØJ'!D187/'Tabel 1 ØJ'!C185*100,"-")) -> - | F187: =IF(OR('Tabel 1 ØJ'!E185<5,'Tabel 2 ØJ'!F187<0.5),"-",IFERROR('Tabel 2 ØJ'!F187/'Tabel 1 ØJ'!E185*100,"-")) -> - | G187: =IF(OR('Tabel 1 ØJ'!E185<5,'Tabel 2 ØJ'!G187<0.5),"-",IFERROR('Tabel 2 ØJ'!G187/'Tabel 1 ØJ'!E185*100,"-")) -> - | I187: =IF(OR('Tabel 1 ØJ'!G185<5,'Tabel 2 ØJ'!I187<0.5),"-",IFERROR('Tabel 2 ØJ'!I187/'Tabel 1 ØJ'!G185*100,"-")) -> - | J187: =IF(OR('Tabel 1 ØJ'!G185<5,'Tabel 2 ØJ'!J187<0.5),"-",IFERROR('Tabel 2 ØJ'!J187/'Tabel 1 ØJ'!G185*100,"-")) -> -
A188: Læge | C188: =IF(OR('Tabel 1 ØJ'!C186<5,'Tabel 2 ØJ'!C188<0.5),"-",IFERROR('Tabel 2 ØJ'!C188/'Tabel 1 ØJ'!C186*100,"-")) -> - | D188: =IF(OR('Tabel 1 ØJ'!C186<5,'Tabel 2 ØJ'!D188<0.5),"-",IFERROR('Tabel 2 ØJ'!D188/'Tabel 1 ØJ'!C186*100,"-")) -> - | F188: =IF(OR('Tabel 1 ØJ'!E186<5,'Tabel 2 ØJ'!F188<0.5),"-",IFERROR('Tabel 2 ØJ'!F188/'Tabel 1 ØJ'!E186*100,"-")) -> - | G188: =IF(OR('Tabel 1 ØJ'!E186<5,'Tabel 2 ØJ'!G188<0.5),"-",IFERROR('Tabel 2 ØJ'!G188/'Tabel 1 ØJ'!E186*100,"-")) -> - | I188: =IF(OR('Tabel 1 ØJ'!G186<5,'Tabel 2 ØJ'!I188<0.5),"-",IFERROR('Tabel 2 ØJ'!I188/'Tabel 1 ØJ'!G186*100,"-")) -> - | J188: =IF(OR('Tabel 1 ØJ'!G186<5,'Tabel 2 ØJ'!J188<0.5),"-",IFERROR('Tabel 2 ØJ'!J188/'Tabel 1 ØJ'!G186*100,"-")) -> -
A189: Tandlæge | C189: =IF(OR('Tabel 1 ØJ'!C187<5,'Tabel 2 ØJ'!C189<0.5),"-",IFERROR('Tabel 2 ØJ'!C189/'Tabel 1 ØJ'!C187*100,"-")) -> - | D189: =IF(OR('Tabel 1 ØJ'!C187<5,'Tabel 2 ØJ'!D189<0.5),"-",IFERROR('Tabel 2 ØJ'!D189/'Tabel 1 ØJ'!C187*100,"-")) -> - | F189: =IF(OR('Tabel 1 ØJ'!E187<5,'Tabel 2 ØJ'!F189<0.5),"-",IFERROR('Tabel 2 ØJ'!F189/'Tabel 1 ØJ'!E187*100,"-")) -> - | G189: =IF(OR('Tabel 1 ØJ'!E187<5,'Tabel 2 ØJ'!G189<0.5),"-",IFERROR('Tabel 2 ØJ'!G189/'Tabel 1 ØJ'!E187*100,"-")) -> - | I189: =IF(OR('Tabel 1 ØJ'!G187<5,'Tabel 2 ØJ'!I189<0.5),"-",IFERROR('Tabel 2 ØJ'!I189/'Tabel 1 ØJ'!G187*100,"-")) -> - | J189: =IF(OR('Tabel 1 ØJ'!G187<5,'Tabel 2 ØJ'!J189<0.5),"-",IFERROR('Tabel 2 ØJ'!J189/'Tabel 1 ØJ'!G187*100,"-")) -> -
A190: Arkitekt | C190: =IF(OR('Tabel 1 ØJ'!C188<5,'Tabel 2 ØJ'!C190<0.5),"-",IFERROR('Tabel 2 ØJ'!C190/'Tabel 1 ØJ'!C188*100,"-")) -> - | D190: =IF(OR('Tabel 1 ØJ'!C188<5,'Tabel 2 ØJ'!D190<0.5),"-",IFERROR('Tabel 2 ØJ'!D190/'Tabel 1 ØJ'!C188*100,"-")) -> - | F190: =IF(OR('Tabel 1 ØJ'!E188<5,'Tabel 2 ØJ'!F190<0.5),"-",IFERROR('Tabel 2 ØJ'!F190/'Tabel 1 ØJ'!E188*100,"-")) -> - | G190: =IF(OR('Tabel 1 ØJ'!E188<5,'Tabel 2 ØJ'!G190<0.5),"-",IFERROR('Tabel 2 ØJ'!G190/'Tabel 1 ØJ'!E188*100,"-")) -> - | I190: =IF(OR('Tabel 1 ØJ'!G188<5,'Tabel 2 ØJ'!I190<0.5),"-",IFERROR('Tabel 2 ØJ'!I190/'Tabel 1 ØJ'!G188*100,"-")) -> 18.18181818 | J190: =IF(OR('Tabel 1 ØJ'!G188<5,'Tabel 2 ØJ'!J190<0.5),"-",IFERROR('Tabel 2 ØJ'!J190/'Tabel 1 ØJ'!G188*100,"-")) -> 17.61140375
A191: Landinspek. | C191: =IF(OR('Tabel 1 ØJ'!C189<5,'Tabel 2 ØJ'!C191<0.5),"-",IFERROR('Tabel 2 ØJ'!C191/'Tabel 1 ØJ'!C189*100,"-")) -> - | D191: =IF(OR('Tabel 1 ØJ'!C189<5,'Tabel 2 ØJ'!D191<0.5),"-",IFERROR('Tabel 2 ØJ'!D191/'Tabel 1 ØJ'!C189*100,"-")) -> - | F191: =IF(OR('Tabel 1 ØJ'!E189<5,'Tabel 2 ØJ'!F191<0.5),"-",IFERROR('Tabel 2 ØJ'!F191/'Tabel 1 ØJ'!E189*100,"-")) -> - | G191: =IF(OR('Tabel 1 ØJ'!E189<5,'Tabel 2 ØJ'!G191<0.5),"-",IFERROR('Tabel 2 ØJ'!G191/'Tabel 1 ØJ'!E189*100,"-")) -> - | I191: =IF(OR('Tabel 1 ØJ'!G189<5,'Tabel 2 ØJ'!I191<0.5),"-",IFERROR('Tabel 2 ØJ'!I191/'Tabel 1 ØJ'!G189*100,"-")) -> - | J191: =IF(OR('Tabel 1 ØJ'!G189<5,'Tabel 2 ØJ'!J191<0.5),"-",IFERROR('Tabel 2 ØJ'!J191/'Tabel 1 ØJ'!G189*100,"-")) -> -
A192: Bibliotekar | C192: =IF(OR('Tabel 1 ØJ'!C190<5,'Tabel 2 ØJ'!C192<0.5),"-",IFERROR('Tabel 2 ØJ'!C192/'Tabel 1 ØJ'!C190*100,"-")) -> - | D192: =IF(OR('Tabel 1 ØJ'!C190<5,'Tabel 2 ØJ'!D192<0.5),"-",IFERROR('Tabel 2 ØJ'!D192/'Tabel 1 ØJ'!C190*100,"-")) -> - | F192: =IF(OR('Tabel 1 ØJ'!E190<5,'Tabel 2 ØJ'!F192<0.5),"-",IFERROR('Tabel 2 ØJ'!F192/'Tabel 1 ØJ'!E190*100,"-")) -> - | G192: =IF(OR('Tabel 1 ØJ'!E190<5,'Tabel 2 ØJ'!G192<0.5),"-",IFERROR('Tabel 2 ØJ'!G192/'Tabel 1 ØJ'!E190*100,"-")) -> - | I192: =IF(OR('Tabel 1 ØJ'!G190<5,'Tabel 2 ØJ'!I192<0.5),"-",IFERROR('Tabel 2 ØJ'!I192/'Tabel 1 ØJ'!G190*100,"-")) -> - | J192: =IF(OR('Tabel 1 ØJ'!G190<5,'Tabel 2 ØJ'!J192<0.5),"-",IFERROR('Tabel 2 ØJ'!J192/'Tabel 1 ØJ'!G190*100,"-")) -> -
A193: Musikudd. | C193: =IF(OR('Tabel 1 ØJ'!C191<5,'Tabel 2 ØJ'!C193<0.5),"-",IFERROR('Tabel 2 ØJ'!C193/'Tabel 1 ØJ'!C191*100,"-")) -> - | D193: =IF(OR('Tabel 1 ØJ'!C191<5,'Tabel 2 ØJ'!D193<0.5),"-",IFERROR('Tabel 2 ØJ'!D193/'Tabel 1 ØJ'!C191*100,"-")) -> - | F193: =IF(OR('Tabel 1 ØJ'!E191<5,'Tabel 2 ØJ'!F193<0.5),"-",IFERROR('Tabel 2 ØJ'!F193/'Tabel 1 ØJ'!E191*100,"-")) -> - | G193: =IF(OR('Tabel 1 ØJ'!E191<5,'Tabel 2 ØJ'!G193<0.5),"-",IFERROR('Tabel 2 ØJ'!G193/'Tabel 1 ØJ'!E191*100,"-")) -> - | I193: =IF(OR('Tabel 1 ØJ'!G191<5,'Tabel 2 ØJ'!I193<0.5),"-",IFERROR('Tabel 2 ØJ'!I193/'Tabel 1 ØJ'!G191*100,"-")) -> 20 | J193: =IF(OR('Tabel 1 ØJ'!G191<5,'Tabel 2 ØJ'!J193<0.5),"-",IFERROR('Tabel 2 ØJ'!J193/'Tabel 1 ØJ'!G191*100,"-")) -> 19.99625772
A194: Teolog | C194: =IF(OR('Tabel 1 ØJ'!C192<5,'Tabel 2 ØJ'!C194<0.5),"-",IFERROR('Tabel 2 ØJ'!C194/'Tabel 1 ØJ'!C192*100,"-")) -> - | D194: =IF(OR('Tabel 1 ØJ'!C192<5,'Tabel 2 ØJ'!D194<0.5),"-",IFERROR('Tabel 2 ØJ'!D194/'Tabel 1 ØJ'!C192*100,"-")) -> - | F194: =IF(OR('Tabel 1 ØJ'!E192<5,'Tabel 2 ØJ'!F194<0.5),"-",IFERROR('Tabel 2 ØJ'!F194/'Tabel 1 ØJ'!E192*100,"-")) -> 7.142857143 | G194: =IF(OR('Tabel 1 ØJ'!E192<5,'Tabel 2 ØJ'!G194<0.5),"-",IFERROR('Tabel 2 ØJ'!G194/'Tabel 1 ØJ'!E192*100,"-")) -> 3.844748777 | I194: =IF(OR('Tabel 1 ØJ'!G192<5,'Tabel 2 ØJ'!I194<0.5),"-",IFERROR('Tabel 2 ØJ'!I194/'Tabel 1 ØJ'!G192*100,"-")) -> 5.263157895 | J194: =IF(OR('Tabel 1 ØJ'!G192<5,'Tabel 2 ØJ'!J194<0.5),"-",IFERROR('Tabel 2 ØJ'!J194/'Tabel 1 ØJ'!G192*100,"-")) -> 2.832972783
A195: Psykolog | C195: =IF(OR('Tabel 1 ØJ'!C193<5,'Tabel 2 ØJ'!C195<0.5),"-",IFERROR('Tabel 2 ØJ'!C195/'Tabel 1 ØJ'!C193*100,"-")) -> - | D195: =IF(OR('Tabel 1 ØJ'!C193<5,'Tabel 2 ØJ'!D195<0.5),"-",IFERROR('Tabel 2 ØJ'!D195/'Tabel 1 ØJ'!C193*100,"-")) -> - | F195: =IF(OR('Tabel 1 ØJ'!E193<5,'Tabel 2 ØJ'!F195<0.5),"-",IFERROR('Tabel 2 ØJ'!F195/'Tabel 1 ØJ'!E193*100,"-")) -> 8.333333333 | G195: =IF(OR('Tabel 1 ØJ'!E193<5,'Tabel 2 ØJ'!G195<0.5),"-",IFERROR('Tabel 2 ØJ'!G195/'Tabel 1 ØJ'!E193*100,"-")) -> 4.48554024 | I195: =IF(OR('Tabel 1 ØJ'!G193<5,'Tabel 2 ØJ'!I195<0.5),"-",IFERROR('Tabel 2 ØJ'!I195/'Tabel 1 ØJ'!G193*100,"-")) -> 7.142857143 | J195: =IF(OR('Tabel 1 ØJ'!G193<5,'Tabel 2 ØJ'!J195<0.5),"-",IFERROR('Tabel 2 ØJ'!J195/'Tabel 1 ØJ'!G193*100,"-")) -> 3.844748777
A196: Jurist | C196: =IF(OR('Tabel 1 ØJ'!C194<5,'Tabel 2 ØJ'!C196<0.5),"-",IFERROR('Tabel 2 ØJ'!C196/'Tabel 1 ØJ'!C194*100,"-")) -> - | D196: =IF(OR('Tabel 1 ØJ'!C194<5,'Tabel 2 ØJ'!D196<0.5),"-",IFERROR('Tabel 2 ØJ'!D196/'Tabel 1 ØJ'!C194*100,"-")) -> - | F196: =IF(OR('Tabel 1 ØJ'!E194<5,'Tabel 2 ØJ'!F196<0.5),"-",IFERROR('Tabel 2 ØJ'!F196/'Tabel 1 ØJ'!E194*100,"-")) -> - | G196: =IF(OR('Tabel 1 ØJ'!E194<5,'Tabel 2 ØJ'!G196<0.5),"-",IFERROR('Tabel 2 ØJ'!G196/'Tabel 1 ØJ'!E194*100,"-")) -> - | I196: =IF(OR('Tabel 1 ØJ'!G194<5,'Tabel 2 ØJ'!I196<0.5),"-",IFERROR('Tabel 2 ØJ'!I196/'Tabel 1 ØJ'!G194*100,"-")) -> - | J196: =IF(OR('Tabel 1 ØJ'!G194<5,'Tabel 2 ØJ'!J196<0.5),"-",IFERROR('Tabel 2 ØJ'!J196/'Tabel 1 ØJ'!G194*100,"-")) -> -
A197: Økonom | C197: =IF(OR('Tabel 1 ØJ'!C195<5,'Tabel 2 ØJ'!C197<0.5),"-",IFERROR('Tabel 2 ØJ'!C197/'Tabel 1 ØJ'!C195*100,"-")) -> - | D197: =IF(OR('Tabel 1 ØJ'!C195<5,'Tabel 2 ØJ'!D197<0.5),"-",IFERROR('Tabel 2 ØJ'!D197/'Tabel 1 ØJ'!C195*100,"-")) -> - | F197: =IF(OR('Tabel 1 ØJ'!E195<5,'Tabel 2 ØJ'!F197<0.5),"-",IFERROR('Tabel 2 ØJ'!F197/'Tabel 1 ØJ'!E195*100,"-")) -> - | G197: =IF(OR('Tabel 1 ØJ'!E195<5,'Tabel 2 ØJ'!G197<0.5),"-",IFERROR('Tabel 2 ØJ'!G197/'Tabel 1 ØJ'!E195*100,"-")) -> - | I197: =IF(OR('Tabel 1 ØJ'!G195<5,'Tabel 2 ØJ'!I197<0.5),"-",IFERROR('Tabel 2 ØJ'!I197/'Tabel 1 ØJ'!G195*100,"-")) -> 10 | J197: =IF(OR('Tabel 1 ØJ'!G195<5,'Tabel 2 ØJ'!J197<0.5),"-",IFERROR('Tabel 2 ØJ'!J197/'Tabel 1 ØJ'!G195*100,"-")) -> 9.998128859
A198: Samf. Adm. | C198: =IF(OR('Tabel 1 ØJ'!C196<5,'Tabel 2 ØJ'!C198<0.5),"-",IFERROR('Tabel 2 ØJ'!C198/'Tabel 1 ØJ'!C196*100,"-")) -> - | D198: =IF(OR('Tabel 1 ØJ'!C196<5,'Tabel 2 ØJ'!D198<0.5),"-",IFERROR('Tabel 2 ØJ'!D198/'Tabel 1 ØJ'!C196*100,"-")) -> - | F198: =IF(OR('Tabel 1 ØJ'!E196<5,'Tabel 2 ØJ'!F198<0.5),"-",IFERROR('Tabel 2 ØJ'!F198/'Tabel 1 ØJ'!E196*100,"-")) -> - | G198: =IF(OR('Tabel 1 ØJ'!E196<5,'Tabel 2 ØJ'!G198<0.5),"-",IFERROR('Tabel 2 ØJ'!G198/'Tabel 1 ØJ'!E196*100,"-")) -> - | I198: =IF(OR('Tabel 1 ØJ'!G196<5,'Tabel 2 ØJ'!I198<0.5),"-",IFERROR('Tabel 2 ØJ'!I198/'Tabel 1 ØJ'!G196*100,"-")) -> - | J198: =IF(OR('Tabel 1 ØJ'!G196<5,'Tabel 2 ØJ'!J198<0.5),"-",IFERROR('Tabel 2 ØJ'!J198/'Tabel 1 ØJ'!G196*100,"-")) -> -
A199: Cand. Merc. | C199: =IF(OR('Tabel 1 ØJ'!C197<5,'Tabel 2 ØJ'!C199<0.5),"-",IFERROR('Tabel 2 ØJ'!C199/'Tabel 1 ØJ'!C197*100,"-")) -> 9.090909091 | D199: =IF(OR('Tabel 1 ØJ'!C197<5,'Tabel 2 ØJ'!D199<0.5),"-",IFERROR('Tabel 2 ØJ'!D199/'Tabel 1 ØJ'!C197*100,"-")) -> 7.629151239 | F199: =IF(OR('Tabel 1 ØJ'!E197<5,'Tabel 2 ØJ'!F199<0.5),"-",IFERROR('Tabel 2 ØJ'!F199/'Tabel 1 ØJ'!E197*100,"-")) -> 2.222222222 | G199: =IF(OR('Tabel 1 ØJ'!E197<5,'Tabel 2 ØJ'!G199<0.5),"-",IFERROR('Tabel 2 ØJ'!G199/'Tabel 1 ØJ'!E197*100,"-")) -> 2.221806413 | I199: =IF(OR('Tabel 1 ØJ'!G197<5,'Tabel 2 ØJ'!I199<0.5),"-",IFERROR('Tabel 2 ØJ'!I199/'Tabel 1 ØJ'!G197*100,"-")) -> 4.47761194 | J199: =IF(OR('Tabel 1 ØJ'!G197<5,'Tabel 2 ØJ'!J199<0.5),"-",IFERROR('Tabel 2 ØJ'!J199/'Tabel 1 ØJ'!G197*100,"-")) -> 3.997352475
A200: HA | C200: =IF(OR('Tabel 1 ØJ'!C198<5,'Tabel 2 ØJ'!C200<0.5),"-",IFERROR('Tabel 2 ØJ'!C200/'Tabel 1 ØJ'!C198*100,"-")) -> - | D200: =IF(OR('Tabel 1 ØJ'!C198<5,'Tabel 2 ØJ'!D200<0.5),"-",IFERROR('Tabel 2 ØJ'!D200/'Tabel 1 ØJ'!C198*100,"-")) -> - | F200: =IF(OR('Tabel 1 ØJ'!E198<5,'Tabel 2 ØJ'!F200<0.5),"-",IFERROR('Tabel 2 ØJ'!F200/'Tabel 1 ØJ'!E198*100,"-")) -> - | G200: =IF(OR('Tabel 1 ØJ'!E198<5,'Tabel 2 ØJ'!G200<0.5),"-",IFERROR('Tabel 2 ØJ'!G200/'Tabel 1 ØJ'!E198*100,"-")) -> - | I200: =IF(OR('Tabel 1 ØJ'!G198<5,'Tabel 2 ØJ'!I200<0.5),"-",IFERROR('Tabel 2 ØJ'!I200/'Tabel 1 ØJ'!G198*100,"-")) -> - | J200: =IF(OR('Tabel 1 ØJ'!G198<5,'Tabel 2 ØJ'!J200<0.5),"-",IFERROR('Tabel 2 ØJ'!J200/'Tabel 1 ØJ'!G198*100,"-")) -> -
A201: HD | C201: =IF(OR('Tabel 1 ØJ'!C199<5,'Tabel 2 ØJ'!C201<0.5),"-",IFERROR('Tabel 2 ØJ'!C201/'Tabel 1 ØJ'!C199*100,"-")) -> - | D201: =IF(OR('Tabel 1 ØJ'!C199<5,'Tabel 2 ØJ'!D201<0.5),"-",IFERROR('Tabel 2 ØJ'!D201/'Tabel 1 ØJ'!C199*100,"-")) -> - | F201: =IF(OR('Tabel 1 ØJ'!E199<5,'Tabel 2 ØJ'!F201<0.5),"-",IFERROR('Tabel 2 ØJ'!F201/'Tabel 1 ØJ'!E199*100,"-")) -> 9.090909091 | G201: =IF(OR('Tabel 1 ØJ'!E199<5,'Tabel 2 ØJ'!G201<0.5),"-",IFERROR('Tabel 2 ØJ'!G201/'Tabel 1 ØJ'!E199*100,"-")) -> 8.669618911 | I201: =IF(OR('Tabel 1 ØJ'!G199<5,'Tabel 2 ØJ'!I201<0.5),"-",IFERROR('Tabel 2 ØJ'!I201/'Tabel 1 ØJ'!G199*100,"-")) -> 5.555555556 | J201: =IF(OR('Tabel 1 ØJ'!G199<5,'Tabel 2 ØJ'!J201<0.5),"-",IFERROR('Tabel 2 ØJ'!J201/'Tabel 1 ØJ'!G199*100,"-")) -> 5.298100446
A202: Komm. og Sprog | C202: =IF(OR('Tabel 1 ØJ'!C200<5,'Tabel 2 ØJ'!C202<0.5),"-",IFERROR('Tabel 2 ØJ'!C202/'Tabel 1 ØJ'!C200*100,"-")) -> - | D202: =IF(OR('Tabel 1 ØJ'!C200<5,'Tabel 2 ØJ'!D202<0.5),"-",IFERROR('Tabel 2 ØJ'!D202/'Tabel 1 ØJ'!C200*100,"-")) -> - | F202: =IF(OR('Tabel 1 ØJ'!E200<5,'Tabel 2 ØJ'!F202<0.5),"-",IFERROR('Tabel 2 ØJ'!F202/'Tabel 1 ØJ'!E200*100,"-")) -> - | G202: =IF(OR('Tabel 1 ØJ'!E200<5,'Tabel 2 ØJ'!G202<0.5),"-",IFERROR('Tabel 2 ØJ'!G202/'Tabel 1 ØJ'!E200*100,"-")) -> - | I202: =IF(OR('Tabel 1 ØJ'!G200<5,'Tabel 2 ØJ'!I202<0.5),"-",IFERROR('Tabel 2 ØJ'!I202/'Tabel 1 ØJ'!G200*100,"-")) -> - | J202: =IF(OR('Tabel 1 ØJ'!G200<5,'Tabel 2 ØJ'!J202<0.5),"-",IFERROR('Tabel 2 ØJ'!J202/'Tabel 1 ØJ'!G200*100,"-")) -> -
A203: Bygningskonst. | C203: =IF(OR('Tabel 1 ØJ'!C201<5,'Tabel 2 ØJ'!C203<0.5),"-",IFERROR('Tabel 2 ØJ'!C203/'Tabel 1 ØJ'!C201*100,"-")) -> 7.142857143 | D203: =IF(OR('Tabel 1 ØJ'!C201<5,'Tabel 2 ØJ'!D203<0.5),"-",IFERROR('Tabel 2 ØJ'!D203/'Tabel 1 ØJ'!C201*100,"-")) -> 4.999955449 | F203: =IF(OR('Tabel 1 ØJ'!E201<5,'Tabel 2 ØJ'!F203<0.5),"-",IFERROR('Tabel 2 ØJ'!F203/'Tabel 1 ØJ'!E201*100,"-")) -> - | G203: =IF(OR('Tabel 1 ØJ'!E201<5,'Tabel 2 ØJ'!G203<0.5),"-",IFERROR('Tabel 2 ØJ'!G203/'Tabel 1 ØJ'!E201*100,"-")) -> - | I203: =IF(OR('Tabel 1 ØJ'!G201<5,'Tabel 2 ØJ'!I203<0.5),"-",IFERROR('Tabel 2 ØJ'!I203/'Tabel 1 ØJ'!G201*100,"-")) -> 3.333333333 | J203: =IF(OR('Tabel 1 ØJ'!G201<5,'Tabel 2 ØJ'!J203<0.5),"-",IFERROR('Tabel 2 ØJ'!J203/'Tabel 1 ØJ'!G201*100,"-")) -> 2.333312543
A204: Cand. IT. | C204: =IF(OR('Tabel 1 ØJ'!C202<5,'Tabel 2 ØJ'!C204<0.5),"-",IFERROR('Tabel 2 ØJ'!C204/'Tabel 1 ØJ'!C202*100,"-")) -> - | D204: =IF(OR('Tabel 1 ØJ'!C202<5,'Tabel 2 ØJ'!D204<0.5),"-",IFERROR('Tabel 2 ØJ'!D204/'Tabel 1 ØJ'!C202*100,"-")) -> - | F204: =IF(OR('Tabel 1 ØJ'!E202<5,'Tabel 2 ØJ'!F204<0.5),"-",IFERROR('Tabel 2 ØJ'!F204/'Tabel 1 ØJ'!E202*100,"-")) -> 20 | G204: =IF(OR('Tabel 1 ØJ'!E202<5,'Tabel 2 ØJ'!G204<0.5),"-",IFERROR('Tabel 2 ØJ'!G204/'Tabel 1 ØJ'!E202*100,"-")) -> - | I204: =IF(OR('Tabel 1 ØJ'!G202<5,'Tabel 2 ØJ'!I204<0.5),"-",IFERROR('Tabel 2 ØJ'!I204/'Tabel 1 ØJ'!G202*100,"-")) -> 28.57142857 | J204: =IF(OR('Tabel 1 ØJ'!G202<5,'Tabel 2 ØJ'!J204<0.5),"-",IFERROR('Tabel 2 ØJ'!J204/'Tabel 1 ØJ'!G202*100,"-")) -> 16.69770384
A205: Bac. Samf. | C205: =IF(OR('Tabel 1 ØJ'!C203<5,'Tabel 2 ØJ'!C205<0.5),"-",IFERROR('Tabel 2 ØJ'!C205/'Tabel 1 ØJ'!C203*100,"-")) -> - | D205: =IF(OR('Tabel 1 ØJ'!C203<5,'Tabel 2 ØJ'!D205<0.5),"-",IFERROR('Tabel 2 ØJ'!D205/'Tabel 1 ØJ'!C203*100,"-")) -> - | F205: =IF(OR('Tabel 1 ØJ'!E203<5,'Tabel 2 ØJ'!F205<0.5),"-",IFERROR('Tabel 2 ØJ'!F205/'Tabel 1 ØJ'!E203*100,"-")) -> - | G205: =IF(OR('Tabel 1 ØJ'!E203<5,'Tabel 2 ØJ'!G205<0.5),"-",IFERROR('Tabel 2 ØJ'!G205/'Tabel 1 ØJ'!E203*100,"-")) -> - | I205: =IF(OR('Tabel 1 ØJ'!G203<5,'Tabel 2 ØJ'!I205<0.5),"-",IFERROR('Tabel 2 ØJ'!I205/'Tabel 1 ØJ'!G203*100,"-")) -> - | J205: =IF(OR('Tabel 1 ØJ'!G203<5,'Tabel 2 ØJ'!J205<0.5),"-",IFERROR('Tabel 2 ØJ'!J205/'Tabel 1 ØJ'!G203*100,"-")) -> -
A206: Bac. Hum. | C206: =IF(OR('Tabel 1 ØJ'!C204<5,'Tabel 2 ØJ'!C206<0.5),"-",IFERROR('Tabel 2 ØJ'!C206/'Tabel 1 ØJ'!C204*100,"-")) -> - | D206: =IF(OR('Tabel 1 ØJ'!C204<5,'Tabel 2 ØJ'!D206<0.5),"-",IFERROR('Tabel 2 ØJ'!D206/'Tabel 1 ØJ'!C204*100,"-")) -> - | F206: =IF(OR('Tabel 1 ØJ'!E204<5,'Tabel 2 ØJ'!F206<0.5),"-",IFERROR('Tabel 2 ØJ'!F206/'Tabel 1 ØJ'!E204*100,"-")) -> 11.11111111 | G206: =IF(OR('Tabel 1 ØJ'!E204<5,'Tabel 2 ØJ'!G206<0.5),"-",IFERROR('Tabel 2 ØJ'!G206/'Tabel 1 ØJ'!E204*100,"-")) -> 9.930906394 | I206: =IF(OR('Tabel 1 ØJ'!G204<5,'Tabel 2 ØJ'!I206<0.5),"-",IFERROR('Tabel 2 ØJ'!I206/'Tabel 1 ØJ'!G204*100,"-")) -> 16.66666667 | J206: =IF(OR('Tabel 1 ØJ'!G204<5,'Tabel 2 ØJ'!J206<0.5),"-",IFERROR('Tabel 2 ØJ'!J206/'Tabel 1 ØJ'!G204*100,"-")) -> 15.77995385
A207: Bac. Nat. | C207: =IF(OR('Tabel 1 ØJ'!C205<5,'Tabel 2 ØJ'!C207<0.5),"-",IFERROR('Tabel 2 ØJ'!C207/'Tabel 1 ØJ'!C205*100,"-")) -> - | D207: =IF(OR('Tabel 1 ØJ'!C205<5,'Tabel 2 ØJ'!D207<0.5),"-",IFERROR('Tabel 2 ØJ'!D207/'Tabel 1 ØJ'!C205*100,"-")) -> - | F207: =IF(OR('Tabel 1 ØJ'!E205<5,'Tabel 2 ØJ'!F207<0.5),"-",IFERROR('Tabel 2 ØJ'!F207/'Tabel 1 ØJ'!E205*100,"-")) -> - | G207: =IF(OR('Tabel 1 ØJ'!E205<5,'Tabel 2 ØJ'!G207<0.5),"-",IFERROR('Tabel 2 ØJ'!G207/'Tabel 1 ØJ'!E205*100,"-")) -> - | I207: =IF(OR('Tabel 1 ØJ'!G205<5,'Tabel 2 ØJ'!I207<0.5),"-",IFERROR('Tabel 2 ØJ'!I207/'Tabel 1 ØJ'!G205*100,"-")) -> 40 | J207: =IF(OR('Tabel 1 ØJ'!G205<5,'Tabel 2 ØJ'!J207<0.5),"-",IFERROR('Tabel 2 ØJ'!J207/'Tabel 1 ØJ'!G205*100,"-")) -> 35.37703487
A208: Andre | C208: =IF(OR('Tabel 1 ØJ'!C206<5,'Tabel 2 ØJ'!C208<0.5),"-",IFERROR('Tabel 2 ØJ'!C208/'Tabel 1 ØJ'!C206*100,"-")) -> - | D208: =IF(OR('Tabel 1 ØJ'!C206<5,'Tabel 2 ØJ'!D208<0.5),"-",IFERROR('Tabel 2 ØJ'!D208/'Tabel 1 ØJ'!C206*100,"-")) -> - | F208: =IF(OR('Tabel 1 ØJ'!E206<5,'Tabel 2 ØJ'!F208<0.5),"-",IFERROR('Tabel 2 ØJ'!F208/'Tabel 1 ØJ'!E206*100,"-")) -> 2.564102564 | G208: =IF(OR('Tabel 1 ØJ'!E206<5,'Tabel 2 ØJ'!G208<0.5),"-",IFERROR('Tabel 2 ØJ'!G208/'Tabel 1 ØJ'!E206*100,"-")) -> 1.380166228 | I208: =IF(OR('Tabel 1 ØJ'!G206<5,'Tabel 2 ØJ'!I208<0.5),"-",IFERROR('Tabel 2 ØJ'!I208/'Tabel 1 ØJ'!G206*100,"-")) -> 1.612903226 | J208: =IF(OR('Tabel 1 ØJ'!G206<5,'Tabel 2 ØJ'!J208<0.5),"-",IFERROR('Tabel 2 ØJ'!J208/'Tabel 1 ØJ'!G206*100,"-")) -> 0.8681690787
A210: Total | C210: =IF(OR('Tabel 1 ØJ'!C208<5,'Tabel 2 ØJ'!C210<0.5),"-",IFERROR('Tabel 2 ØJ'!C210/'Tabel 1 ØJ'!C208*100,"-")) -> 6.756756757 | D210: =IF(OR('Tabel 1 ØJ'!C208<5,'Tabel 2 ØJ'!D210<0.5),"-",IFERROR('Tabel 2 ØJ'!D210/'Tabel 1 ØJ'!C208*100,"-")) -> 5.491966738 | F210: =IF(OR('Tabel 1 ØJ'!E208<5,'Tabel 2 ØJ'!F210<0.5),"-",IFERROR('Tabel 2 ØJ'!F210/'Tabel 1 ØJ'!E208*100,"-")) -> 3.71024735 | G210: =IF(OR('Tabel 1 ØJ'!E208<5,'Tabel 2 ØJ'!G210<0.5),"-",IFERROR('Tabel 2 ØJ'!G210/'Tabel 1 ØJ'!E208*100,"-")) -> 2.72263104 | I210: =IF(OR('Tabel 1 ØJ'!G208<5,'Tabel 2 ØJ'!I210<0.5),"-",IFERROR('Tabel 2 ØJ'!I210/'Tabel 1 ØJ'!G208*100,"-")) -> 4.75638051 | J210: =IF(OR('Tabel 1 ØJ'!G208<5,'Tabel 2 ØJ'!J210<0.5),"-",IFERROR('Tabel 2 ØJ'!J210/'Tabel 1 ØJ'!G208*100,"-")) -> 3.673586221
A212: Ingeniører i alt | C212: =IF(OR('Tabel 1 ØJ'!C210<5,'Tabel 2 ØJ'!C212<0.5),"-",IFERROR('Tabel 2 ØJ'!C212/'Tabel 1 ØJ'!C210*100,"-")) -> 2.222222222 | D212: =IF(OR('Tabel 1 ØJ'!C210<5,'Tabel 2 ØJ'!D212<0.5),"-",IFERROR('Tabel 2 ØJ'!D212/'Tabel 1 ØJ'!C210*100,"-")) -> 0.6299507266 | F212: =IF(OR('Tabel 1 ØJ'!E210<5,'Tabel 2 ØJ'!F212<0.5),"-",IFERROR('Tabel 2 ØJ'!F212/'Tabel 1 ØJ'!E210*100,"-")) -> 0.8064516129 | G212: =IF(OR('Tabel 1 ØJ'!E210<5,'Tabel 2 ØJ'!G212<0.5),"-",IFERROR('Tabel 2 ØJ'!G212/'Tabel 1 ØJ'!E210*100,"-")) -> 0.8063007145 | I212: =IF(OR('Tabel 1 ØJ'!G210<5,'Tabel 2 ØJ'!I212<0.5),"-",IFERROR('Tabel 2 ØJ'!I212/'Tabel 1 ØJ'!G210*100,"-")) -> 1.401869159 | J212: =IF(OR('Tabel 1 ØJ'!G210<5,'Tabel 2 ØJ'!J212<0.5),"-",IFERROR('Tabel 2 ØJ'!J212/'Tabel 1 ØJ'!G210*100,"-")) -> 0.7321348317
A213: Magistre i alt | C213: =IF(OR('Tabel 1 ØJ'!C211<5,'Tabel 2 ØJ'!C213<0.5),"-",IFERROR('Tabel 2 ØJ'!C213/'Tabel 1 ØJ'!C211*100,"-")) -> 6 | D213: =IF(OR('Tabel 1 ØJ'!C211<5,'Tabel 2 ØJ'!D213<0.5),"-",IFERROR('Tabel 2 ØJ'!D213/'Tabel 1 ØJ'!C211*100,"-")) -> 5.279111832 | F213: =IF(OR('Tabel 1 ØJ'!E211<5,'Tabel 2 ØJ'!F213<0.5),"-",IFERROR('Tabel 2 ØJ'!F213/'Tabel 1 ØJ'!E211*100,"-")) -> 6.870229008 | G213: =IF(OR('Tabel 1 ØJ'!E211<5,'Tabel 2 ØJ'!G213<0.5),"-",IFERROR('Tabel 2 ØJ'!G213/'Tabel 1 ØJ'!E211*100,"-")) -> 4.764505269 | I213: =IF(OR('Tabel 1 ØJ'!G211<5,'Tabel 2 ØJ'!I213<0.5),"-",IFERROR('Tabel 2 ØJ'!I213/'Tabel 1 ØJ'!G211*100,"-")) -> 6.629834254 | J213: =IF(OR('Tabel 1 ØJ'!G211<5,'Tabel 2 ØJ'!J213<0.5),"-",IFERROR('Tabel 2 ØJ'!J213/'Tabel 1 ØJ'!G211*100,"-")) -> 4.906661778
A214: DJØF'ere i alt | C214: =IF(OR('Tabel 1 ØJ'!C212<5,'Tabel 2 ØJ'!C214<0.5),"-",IFERROR('Tabel 2 ØJ'!C214/'Tabel 1 ØJ'!C212*100,"-")) -> 5.660377358 | D214: =IF(OR('Tabel 1 ØJ'!C212<5,'Tabel 2 ØJ'!D214<0.5),"-",IFERROR('Tabel 2 ØJ'!D214/'Tabel 1 ØJ'!C212*100,"-")) -> 5.053256903 | F214: =IF(OR('Tabel 1 ØJ'!E212<5,'Tabel 2 ØJ'!F214<0.5),"-",IFERROR('Tabel 2 ØJ'!F214/'Tabel 1 ØJ'!E212*100,"-")) -> 0.9803921569 | G214: =IF(OR('Tabel 1 ØJ'!E212<5,'Tabel 2 ØJ'!G214<0.5),"-",IFERROR('Tabel 2 ØJ'!G214/'Tabel 1 ØJ'!E212*100,"-")) -> 0.9802087117 | I214: =IF(OR('Tabel 1 ØJ'!G212<5,'Tabel 2 ØJ'!I214<0.5),"-",IFERROR('Tabel 2 ØJ'!I214/'Tabel 1 ØJ'!G212*100,"-")) -> 2.580645161 | J214: =IF(OR('Tabel 1 ØJ'!G212<5,'Tabel 2 ØJ'!J214<0.5),"-",IFERROR('Tabel 2 ØJ'!J214/'Tabel 1 ØJ'!G212*100,"-")) -> 2.372928416
A219: Favrskov
C221: Mænd | F221: Kvinder | I221: I alt
C222: Ledigheds- berørte | D222: Gns. brutto- ledighed | F222: Ledigheds- berørte | G222: Gns. brutto- ledighed | I222: Ledigheds- berørte | J222: Gns. brutto- ledighed
A225: Civ. ing. | C225: =IF(OR('Tabel 1 ØJ'!C223<5,'Tabel 2 ØJ'!C225<0.5),"-",IFERROR('Tabel 2 ØJ'!C225/'Tabel 1 ØJ'!C223*100,"-")) -> 2.222222222 | D225: =IF(OR('Tabel 1 ØJ'!C223<5,'Tabel 2 ØJ'!D225<0.5),"-",IFERROR('Tabel 2 ØJ'!D225/'Tabel 1 ØJ'!C223*100,"-")) -> 2.188541688 | F225: =IF(OR('Tabel 1 ØJ'!E223<5,'Tabel 2 ØJ'!F225<0.5),"-",IFERROR('Tabel 2 ØJ'!F225/'Tabel 1 ØJ'!E223*100,"-")) -> 1.282051282 | G225: =IF(OR('Tabel 1 ØJ'!E223<5,'Tabel 2 ØJ'!G225<0.5),"-",IFERROR('Tabel 2 ØJ'!G225/'Tabel 1 ØJ'!E223*100,"-")) -> - | I225: =IF(OR('Tabel 1 ØJ'!G223<5,'Tabel 2 ØJ'!I225<0.5),"-",IFERROR('Tabel 2 ØJ'!I225/'Tabel 1 ØJ'!G223*100,"-")) -> 1.98019802 | J225: =IF(OR('Tabel 1 ØJ'!G223<5,'Tabel 2 ØJ'!J225<0.5),"-",IFERROR('Tabel 2 ØJ'!J225/'Tabel 1 ØJ'!G223*100,"-")) -> 1.787567268
A226: Diplom ing. | C226: =IF(OR('Tabel 1 ØJ'!C224<5,'Tabel 2 ØJ'!C226<0.5),"-",IFERROR('Tabel 2 ØJ'!C226/'Tabel 1 ØJ'!C224*100,"-")) -> 1.08401084 | D226: =IF(OR('Tabel 1 ØJ'!C224<5,'Tabel 2 ØJ'!D226<0.5),"-",IFERROR('Tabel 2 ØJ'!D226/'Tabel 1 ØJ'!C224*100,"-")) -> 0.8586626127 | F226: =IF(OR('Tabel 1 ØJ'!E224<5,'Tabel 2 ØJ'!F226<0.5),"-",IFERROR('Tabel 2 ØJ'!F226/'Tabel 1 ØJ'!E224*100,"-")) -> - | G226: =IF(OR('Tabel 1 ØJ'!E224<5,'Tabel 2 ØJ'!G226<0.5),"-",IFERROR('Tabel 2 ØJ'!G226/'Tabel 1 ØJ'!E224*100,"-")) -> - | I226: =IF(OR('Tabel 1 ØJ'!G224<5,'Tabel 2 ØJ'!I226<0.5),"-",IFERROR('Tabel 2 ØJ'!I226/'Tabel 1 ØJ'!G224*100,"-")) -> 0.9280742459 | J226: =IF(OR('Tabel 1 ØJ'!G224<5,'Tabel 2 ØJ'!J226<0.5),"-",IFERROR('Tabel 2 ØJ'!J226/'Tabel 1 ØJ'!G224*100,"-")) -> 0.7351427009
A227: Cand. Scient. Tek. | C227: =IF(OR('Tabel 1 ØJ'!C225<5,'Tabel 2 ØJ'!C227<0.5),"-",IFERROR('Tabel 2 ØJ'!C227/'Tabel 1 ØJ'!C225*100,"-")) -> 4.597701149 | D227: =IF(OR('Tabel 1 ØJ'!C225<5,'Tabel 2 ØJ'!D227<0.5),"-",IFERROR('Tabel 2 ØJ'!D227/'Tabel 1 ØJ'!C225*100,"-")) -> 3.482759338 | F227: =IF(OR('Tabel 1 ØJ'!E225<5,'Tabel 2 ØJ'!F227<0.5),"-",IFERROR('Tabel 2 ØJ'!F227/'Tabel 1 ØJ'!E225*100,"-")) -> 4.109589041 | G227: =IF(OR('Tabel 1 ØJ'!E225<5,'Tabel 2 ØJ'!G227<0.5),"-",IFERROR('Tabel 2 ØJ'!G227/'Tabel 1 ØJ'!E225*100,"-")) -> 4.108820079 | I227: =IF(OR('Tabel 1 ØJ'!G225<5,'Tabel 2 ØJ'!I227<0.5),"-",IFERROR('Tabel 2 ØJ'!I227/'Tabel 1 ØJ'!G225*100,"-")) -> 4.375 | J227: =IF(OR('Tabel 1 ØJ'!G225<5,'Tabel 2 ØJ'!J227<0.5),"-",IFERROR('Tabel 2 ØJ'!J227/'Tabel 1 ØJ'!G225*100,"-")) -> 3.768399551
A228: MA. Hum. | C228: =IF(OR('Tabel 1 ØJ'!C226<5,'Tabel 2 ØJ'!C228<0.5),"-",IFERROR('Tabel 2 ØJ'!C228/'Tabel 1 ØJ'!C226*100,"-")) -> 5.813953488 | D228: =IF(OR('Tabel 1 ØJ'!C226<5,'Tabel 2 ØJ'!D228<0.5),"-",IFERROR('Tabel 2 ØJ'!D228/'Tabel 1 ØJ'!C226*100,"-")) -> 4.417487769 | F228: =IF(OR('Tabel 1 ØJ'!E226<5,'Tabel 2 ØJ'!F228<0.5),"-",IFERROR('Tabel 2 ØJ'!F228/'Tabel 1 ØJ'!E226*100,"-")) -> 5.813953488 | G228: =IF(OR('Tabel 1 ØJ'!E226<5,'Tabel 2 ØJ'!G228<0.5),"-",IFERROR('Tabel 2 ØJ'!G228/'Tabel 1 ØJ'!E226*100,"-")) -> 4.415312024 | I228: =IF(OR('Tabel 1 ØJ'!G226<5,'Tabel 2 ØJ'!I228<0.5),"-",IFERROR('Tabel 2 ØJ'!I228/'Tabel 1 ØJ'!G226*100,"-")) -> 5.813953488 | J228: =IF(OR('Tabel 1 ØJ'!G226<5,'Tabel 2 ØJ'!J228<0.5),"-",IFERROR('Tabel 2 ØJ'!J228/'Tabel 1 ØJ'!G226*100,"-")) -> 4.41585596
A229: MA. Nat. | C229: =IF(OR('Tabel 1 ØJ'!C227<5,'Tabel 2 ØJ'!C229<0.5),"-",IFERROR('Tabel 2 ØJ'!C229/'Tabel 1 ØJ'!C227*100,"-")) -> 2.02020202 | D229: =IF(OR('Tabel 1 ØJ'!C227<5,'Tabel 2 ØJ'!D229<0.5),"-",IFERROR('Tabel 2 ØJ'!D229/'Tabel 1 ØJ'!C227*100,"-")) -> 1.460371822 | F229: =IF(OR('Tabel 1 ØJ'!E227<5,'Tabel 2 ØJ'!F229<0.5),"-",IFERROR('Tabel 2 ØJ'!F229/'Tabel 1 ØJ'!E227*100,"-")) -> - | G229: =IF(OR('Tabel 1 ØJ'!E227<5,'Tabel 2 ØJ'!G229<0.5),"-",IFERROR('Tabel 2 ØJ'!G229/'Tabel 1 ØJ'!E227*100,"-")) -> - | I229: =IF(OR('Tabel 1 ØJ'!G227<5,'Tabel 2 ØJ'!I229<0.5),"-",IFERROR('Tabel 2 ØJ'!I229/'Tabel 1 ØJ'!G227*100,"-")) -> 1.123595506 | J229: =IF(OR('Tabel 1 ØJ'!G227<5,'Tabel 2 ØJ'!J229<0.5),"-",IFERROR('Tabel 2 ØJ'!J229/'Tabel 1 ØJ'!G227*100,"-")) -> 0.8122292715
A230: MA. Ph.d. | C230: =IF(OR('Tabel 1 ØJ'!C228<5,'Tabel 2 ØJ'!C230<0.5),"-",IFERROR('Tabel 2 ØJ'!C230/'Tabel 1 ØJ'!C228*100,"-")) -> - | D230: =IF(OR('Tabel 1 ØJ'!C228<5,'Tabel 2 ØJ'!D230<0.5),"-",IFERROR('Tabel 2 ØJ'!D230/'Tabel 1 ØJ'!C228*100,"-")) -> - | F230: =IF(OR('Tabel 1 ØJ'!E228<5,'Tabel 2 ØJ'!F230<0.5),"-",IFERROR('Tabel 2 ØJ'!F230/'Tabel 1 ØJ'!E228*100,"-")) -> - | G230: =IF(OR('Tabel 1 ØJ'!E228<5,'Tabel 2 ØJ'!G230<0.5),"-",IFERROR('Tabel 2 ØJ'!G230/'Tabel 1 ØJ'!E228*100,"-")) -> - | I230: =IF(OR('Tabel 1 ØJ'!G228<5,'Tabel 2 ØJ'!I230<0.5),"-",IFERROR('Tabel 2 ØJ'!I230/'Tabel 1 ØJ'!G228*100,"-")) -> - | J230: =IF(OR('Tabel 1 ØJ'!G228<5,'Tabel 2 ØJ'!J230<0.5),"-",IFERROR('Tabel 2 ØJ'!J230/'Tabel 1 ØJ'!G228*100,"-")) -> -
A231: MA. Samf. | C231: =IF(OR('Tabel 1 ØJ'!C229<5,'Tabel 2 ØJ'!C231<0.5),"-",IFERROR('Tabel 2 ØJ'!C231/'Tabel 1 ØJ'!C229*100,"-")) -> - | D231: =IF(OR('Tabel 1 ØJ'!C229<5,'Tabel 2 ØJ'!D231<0.5),"-",IFERROR('Tabel 2 ØJ'!D231/'Tabel 1 ØJ'!C229*100,"-")) -> - | F231: =IF(OR('Tabel 1 ØJ'!E229<5,'Tabel 2 ØJ'!F231<0.5),"-",IFERROR('Tabel 2 ØJ'!F231/'Tabel 1 ØJ'!E229*100,"-")) -> 11.11111111 | G231: =IF(OR('Tabel 1 ØJ'!E229<5,'Tabel 2 ØJ'!G231<0.5),"-",IFERROR('Tabel 2 ØJ'!G231/'Tabel 1 ØJ'!E229*100,"-")) -> 10.59620089 | I231: =IF(OR('Tabel 1 ØJ'!G229<5,'Tabel 2 ØJ'!I231<0.5),"-",IFERROR('Tabel 2 ØJ'!I231/'Tabel 1 ØJ'!G229*100,"-")) -> 8.333333333 | J231: =IF(OR('Tabel 1 ØJ'!G229<5,'Tabel 2 ØJ'!J231<0.5),"-",IFERROR('Tabel 2 ØJ'!J231/'Tabel 1 ØJ'!G229*100,"-")) -> 7.947150668
A232: Øvrige Mag. | C232: =IF(OR('Tabel 1 ØJ'!C230<5,'Tabel 2 ØJ'!C232<0.5),"-",IFERROR('Tabel 2 ØJ'!C232/'Tabel 1 ØJ'!C230*100,"-")) -> - | D232: =IF(OR('Tabel 1 ØJ'!C230<5,'Tabel 2 ØJ'!D232<0.5),"-",IFERROR('Tabel 2 ØJ'!D232/'Tabel 1 ØJ'!C230*100,"-")) -> - | F232: =IF(OR('Tabel 1 ØJ'!E230<5,'Tabel 2 ØJ'!F232<0.5),"-",IFERROR('Tabel 2 ØJ'!F232/'Tabel 1 ØJ'!E230*100,"-")) -> - | G232: =IF(OR('Tabel 1 ØJ'!E230<5,'Tabel 2 ØJ'!G232<0.5),"-",IFERROR('Tabel 2 ØJ'!G232/'Tabel 1 ØJ'!E230*100,"-")) -> - | I232: =IF(OR('Tabel 1 ØJ'!G230<5,'Tabel 2 ØJ'!I232<0.5),"-",IFERROR('Tabel 2 ØJ'!I232/'Tabel 1 ØJ'!G230*100,"-")) -> - | J232: =IF(OR('Tabel 1 ØJ'!G230<5,'Tabel 2 ØJ'!J232<0.5),"-",IFERROR('Tabel 2 ØJ'!J232/'Tabel 1 ØJ'!G230*100,"-")) -> -
A233: Agronom | C233: =IF(OR('Tabel 1 ØJ'!C231<5,'Tabel 2 ØJ'!C233<0.5),"-",IFERROR('Tabel 2 ØJ'!C233/'Tabel 1 ØJ'!C231*100,"-")) -> 4.166666667 | D233: =IF(OR('Tabel 1 ØJ'!C231<5,'Tabel 2 ØJ'!D233<0.5),"-",IFERROR('Tabel 2 ØJ'!D233/'Tabel 1 ØJ'!C231*100,"-")) -> 4.165887025 | F233: =IF(OR('Tabel 1 ØJ'!E231<5,'Tabel 2 ØJ'!F233<0.5),"-",IFERROR('Tabel 2 ØJ'!F233/'Tabel 1 ØJ'!E231*100,"-")) -> - | G233: =IF(OR('Tabel 1 ØJ'!E231<5,'Tabel 2 ØJ'!G233<0.5),"-",IFERROR('Tabel 2 ØJ'!G233/'Tabel 1 ØJ'!E231*100,"-")) -> - | I233: =IF(OR('Tabel 1 ØJ'!G231<5,'Tabel 2 ØJ'!I233<0.5),"-",IFERROR('Tabel 2 ØJ'!I233/'Tabel 1 ØJ'!G231*100,"-")) -> 2.43902439 | J233: =IF(OR('Tabel 1 ØJ'!G231<5,'Tabel 2 ØJ'!J233<0.5),"-",IFERROR('Tabel 2 ØJ'!J233/'Tabel 1 ØJ'!G231*100,"-")) -> 2.438568014
A234: Landsk. Arkt. | C234: =IF(OR('Tabel 1 ØJ'!C232<5,'Tabel 2 ØJ'!C234<0.5),"-",IFERROR('Tabel 2 ØJ'!C234/'Tabel 1 ØJ'!C232*100,"-")) -> - | D234: =IF(OR('Tabel 1 ØJ'!C232<5,'Tabel 2 ØJ'!D234<0.5),"-",IFERROR('Tabel 2 ØJ'!D234/'Tabel 1 ØJ'!C232*100,"-")) -> - | F234: =IF(OR('Tabel 1 ØJ'!E232<5,'Tabel 2 ØJ'!F234<0.5),"-",IFERROR('Tabel 2 ØJ'!F234/'Tabel 1 ØJ'!E232*100,"-")) -> - | G234: =IF(OR('Tabel 1 ØJ'!E232<5,'Tabel 2 ØJ'!G234<0.5),"-",IFERROR('Tabel 2 ØJ'!G234/'Tabel 1 ØJ'!E232*100,"-")) -> - | I234: =IF(OR('Tabel 1 ØJ'!G232<5,'Tabel 2 ØJ'!I234<0.5),"-",IFERROR('Tabel 2 ØJ'!I234/'Tabel 1 ØJ'!G232*100,"-")) -> - | J234: =IF(OR('Tabel 1 ØJ'!G232<5,'Tabel 2 ØJ'!J234<0.5),"-",IFERROR('Tabel 2 ØJ'!J234/'Tabel 1 ØJ'!G232*100,"-")) -> -
A235: Hortonom | C235: =IF(OR('Tabel 1 ØJ'!C233<5,'Tabel 2 ØJ'!C235<0.5),"-",IFERROR('Tabel 2 ØJ'!C235/'Tabel 1 ØJ'!C233*100,"-")) -> - | D235: =IF(OR('Tabel 1 ØJ'!C233<5,'Tabel 2 ØJ'!D235<0.5),"-",IFERROR('Tabel 2 ØJ'!D235/'Tabel 1 ØJ'!C233*100,"-")) -> - | F235: =IF(OR('Tabel 1 ØJ'!E233<5,'Tabel 2 ØJ'!F235<0.5),"-",IFERROR('Tabel 2 ØJ'!F235/'Tabel 1 ØJ'!E233*100,"-")) -> - | G235: =IF(OR('Tabel 1 ØJ'!E233<5,'Tabel 2 ØJ'!G235<0.5),"-",IFERROR('Tabel 2 ØJ'!G235/'Tabel 1 ØJ'!E233*100,"-")) -> - | I235: =IF(OR('Tabel 1 ØJ'!G233<5,'Tabel 2 ØJ'!I235<0.5),"-",IFERROR('Tabel 2 ØJ'!I235/'Tabel 1 ØJ'!G233*100,"-")) -> - | J235: =IF(OR('Tabel 1 ØJ'!G233<5,'Tabel 2 ØJ'!J235<0.5),"-",IFERROR('Tabel 2 ØJ'!J235/'Tabel 1 ØJ'!G233*100,"-")) -> -
A236: Forstkand. | C236: =IF(OR('Tabel 1 ØJ'!C234<5,'Tabel 2 ØJ'!C236<0.5),"-",IFERROR('Tabel 2 ØJ'!C236/'Tabel 1 ØJ'!C234*100,"-")) -> - | D236: =IF(OR('Tabel 1 ØJ'!C234<5,'Tabel 2 ØJ'!D236<0.5),"-",IFERROR('Tabel 2 ØJ'!D236/'Tabel 1 ØJ'!C234*100,"-")) -> - | F236: =IF(OR('Tabel 1 ØJ'!E234<5,'Tabel 2 ØJ'!F236<0.5),"-",IFERROR('Tabel 2 ØJ'!F236/'Tabel 1 ØJ'!E234*100,"-")) -> - | G236: =IF(OR('Tabel 1 ØJ'!E234<5,'Tabel 2 ØJ'!G236<0.5),"-",IFERROR('Tabel 2 ØJ'!G236/'Tabel 1 ØJ'!E234*100,"-")) -> - | I236: =IF(OR('Tabel 1 ØJ'!G234<5,'Tabel 2 ØJ'!I236<0.5),"-",IFERROR('Tabel 2 ØJ'!I236/'Tabel 1 ØJ'!G234*100,"-")) -> - | J236: =IF(OR('Tabel 1 ØJ'!G234<5,'Tabel 2 ØJ'!J236<0.5),"-",IFERROR('Tabel 2 ØJ'!J236/'Tabel 1 ØJ'!G234*100,"-")) -> -
A237: Jordbrugsakad. | C237: =IF(OR('Tabel 1 ØJ'!C235<5,'Tabel 2 ØJ'!C237<0.5),"-",IFERROR('Tabel 2 ØJ'!C237/'Tabel 1 ØJ'!C235*100,"-")) -> 3.03030303 | D237: =IF(OR('Tabel 1 ØJ'!C235<5,'Tabel 2 ØJ'!D237<0.5),"-",IFERROR('Tabel 2 ØJ'!D237/'Tabel 1 ØJ'!C235*100,"-")) -> 3.029736018 | F237: =IF(OR('Tabel 1 ØJ'!E235<5,'Tabel 2 ØJ'!F237<0.5),"-",IFERROR('Tabel 2 ØJ'!F237/'Tabel 1 ØJ'!E235*100,"-")) -> - | G237: =IF(OR('Tabel 1 ØJ'!E235<5,'Tabel 2 ØJ'!G237<0.5),"-",IFERROR('Tabel 2 ØJ'!G237/'Tabel 1 ØJ'!E235*100,"-")) -> - | I237: =IF(OR('Tabel 1 ØJ'!G235<5,'Tabel 2 ØJ'!I237<0.5),"-",IFERROR('Tabel 2 ØJ'!I237/'Tabel 1 ØJ'!G235*100,"-")) -> 1.818181818 | J237: =IF(OR('Tabel 1 ØJ'!G235<5,'Tabel 2 ØJ'!J237<0.5),"-",IFERROR('Tabel 2 ØJ'!J237/'Tabel 1 ØJ'!G235*100,"-")) -> 1.817841611
A238: Mejeriing. | C238: =IF(OR('Tabel 1 ØJ'!C236<5,'Tabel 2 ØJ'!C238<0.5),"-",IFERROR('Tabel 2 ØJ'!C238/'Tabel 1 ØJ'!C236*100,"-")) -> - | D238: =IF(OR('Tabel 1 ØJ'!C236<5,'Tabel 2 ØJ'!D238<0.5),"-",IFERROR('Tabel 2 ØJ'!D238/'Tabel 1 ØJ'!C236*100,"-")) -> - | F238: =IF(OR('Tabel 1 ØJ'!E236<5,'Tabel 2 ØJ'!F238<0.5),"-",IFERROR('Tabel 2 ØJ'!F238/'Tabel 1 ØJ'!E236*100,"-")) -> - | G238: =IF(OR('Tabel 1 ØJ'!E236<5,'Tabel 2 ØJ'!G238<0.5),"-",IFERROR('Tabel 2 ØJ'!G238/'Tabel 1 ØJ'!E236*100,"-")) -> - | I238: =IF(OR('Tabel 1 ØJ'!G236<5,'Tabel 2 ØJ'!I238<0.5),"-",IFERROR('Tabel 2 ØJ'!I238/'Tabel 1 ØJ'!G236*100,"-")) -> - | J238: =IF(OR('Tabel 1 ØJ'!G236<5,'Tabel 2 ØJ'!J238<0.5),"-",IFERROR('Tabel 2 ØJ'!J238/'Tabel 1 ØJ'!G236*100,"-")) -> -
A239: Levn.m.kand. | C239: =IF(OR('Tabel 1 ØJ'!C237<5,'Tabel 2 ØJ'!C239<0.5),"-",IFERROR('Tabel 2 ØJ'!C239/'Tabel 1 ØJ'!C237*100,"-")) -> - | D239: =IF(OR('Tabel 1 ØJ'!C237<5,'Tabel 2 ØJ'!D239<0.5),"-",IFERROR('Tabel 2 ØJ'!D239/'Tabel 1 ØJ'!C237*100,"-")) -> - | F239: =IF(OR('Tabel 1 ØJ'!E237<5,'Tabel 2 ØJ'!F239<0.5),"-",IFERROR('Tabel 2 ØJ'!F239/'Tabel 1 ØJ'!E237*100,"-")) -> - | G239: =IF(OR('Tabel 1 ØJ'!E237<5,'Tabel 2 ØJ'!G239<0.5),"-",IFERROR('Tabel 2 ØJ'!G239/'Tabel 1 ØJ'!E237*100,"-")) -> - | I239: =IF(OR('Tabel 1 ØJ'!G237<5,'Tabel 2 ØJ'!I239<0.5),"-",IFERROR('Tabel 2 ØJ'!I239/'Tabel 1 ØJ'!G237*100,"-")) -> - | J239: =IF(OR('Tabel 1 ØJ'!G237<5,'Tabel 2 ØJ'!J239<0.5),"-",IFERROR('Tabel 2 ØJ'!J239/'Tabel 1 ØJ'!G237*100,"-")) -> -
A240: Dyrlæge | C240: =IF(OR('Tabel 1 ØJ'!C238<5,'Tabel 2 ØJ'!C240<0.5),"-",IFERROR('Tabel 2 ØJ'!C240/'Tabel 1 ØJ'!C238*100,"-")) -> - | D240: =IF(OR('Tabel 1 ØJ'!C238<5,'Tabel 2 ØJ'!D240<0.5),"-",IFERROR('Tabel 2 ØJ'!D240/'Tabel 1 ØJ'!C238*100,"-")) -> - | F240: =IF(OR('Tabel 1 ØJ'!E238<5,'Tabel 2 ØJ'!F240<0.5),"-",IFERROR('Tabel 2 ØJ'!F240/'Tabel 1 ØJ'!E238*100,"-")) -> - | G240: =IF(OR('Tabel 1 ØJ'!E238<5,'Tabel 2 ØJ'!G240<0.5),"-",IFERROR('Tabel 2 ØJ'!G240/'Tabel 1 ØJ'!E238*100,"-")) -> - | I240: =IF(OR('Tabel 1 ØJ'!G238<5,'Tabel 2 ØJ'!I240<0.5),"-",IFERROR('Tabel 2 ØJ'!I240/'Tabel 1 ØJ'!G238*100,"-")) -> - | J240: =IF(OR('Tabel 1 ØJ'!G238<5,'Tabel 2 ØJ'!J240<0.5),"-",IFERROR('Tabel 2 ØJ'!J240/'Tabel 1 ØJ'!G238*100,"-")) -> -
... 341 more rows

Sheet Tabel 4F ØJ
A1: Tabel 4. Antal forsikrede - aldersfordelt
A3: Østjylland
C5: Under 30 år | D5: 30 - 39 år | E5: 40 - 49 år | F5: 50 - 59 år | G5: Over 60 år | I5: I alt
A7: Civ. ing. | C7: 1024 | D7: 1740 | E7: 997 | F7: 706 | G7: 210 | I7: 4677
A8: Diplom ing. | C8: 1038 | D8: 1490 | E8: 1690 | F8: 2076 | G8: 925 | I8: 7219
A9: Cand. Scient. Tek. | C9: 1036 | D9: 1812 | E9: 461 | F9: 141 | G9: 25 | I9: 3475
A10: MA. Hum. | C10: 1411 | D10: 2975 | E10: 2627 | F10: 1241 | G10: 481 | I10: 8735
A11: MA. Nat. | C11: 325 | D11: 625 | E11: 831 | F11: 827 | G11: 362 | I11: 2970
A12: MA. Ph.d. | C12: 10 | D12: 174 | E12: 240 | F12: 131 | G12: 35 | I12: 590
A13: MA. Samf. | C13: 315 | D13: 554 | E13: 65 | F13: 23 | G13: 8 | I13: 965
A14: Øvrige Mag. | C14: 213 | D14: 156 | E14: 148 | F14: 151 | G14: 85 | I14: 753
A15: Agronom | C15: 12 | D15: 37 | E15: 70 | F15: 138 | G15: 77 | I15: 334
A16: Landsk. Arkt. | C16: 1 | D16: 8 | E16: 19 | F16: 13 | G16: 1 | I16: 42
A17: Hortonom | C17: 0 | D17: 2 | E17: 6 | F17: 11 | G17: 7 | I17: 26
A18: Forstkand. | C18: 1 | D18: 10 | E18: 22 | F18: 11 | G18: 9 | I18: 53
A19: Jordbrugsakad. | C19: 14 | D19: 57 | E19: 117 | F19: 173 | G19: 94 | I19: 455
A20: Mejeriing. | C20: 6 | D20: 12 | E20: 9 | F20: 37 | G20: 24 | I20: 88
A21: Levn.m.kand. | C21: 2 | D21: 20 | E21: 9 | F21: 4 | G21: 0 | I21: 35
A22: Dyrlæge | C22: 27 | D22: 89 | E22: 61 | F22: 49 | G22: 16 | I22: 242
A23: Farmaceut | C23: 130 | D23: 145 | E23: 48 | F23: 45 | G23: 17 | I23: 385
A24: Læge | C24: 578 | D24: 1301 | E24: 517 | F24: 295 | G24: 172 | I24: 2863
A25: Tandlæge | C25: 105 | D25: 155 | E25: 91 | F25: 82 | G25: 62 | I25: 495
A26: Arkitekt | C26: 155 | D26: 452 | E26: 527 | F26: 281 | G26: 167 | I26: 1582
A27: Landinspek. | C27: 16 | D27: 33 | E27: 41 | F27: 35 | G27: 17 | I27: 142
A28: Bibliotekar | C28: 4 | D28: 71 | E28: 108 | F28: 96 | G28: 60 | I28: 339
A29: Musikudd. | C29: 7 | D29: 18 | E29: 29 | F29: 45 | G29: 44 | I29: 143
A30: Teolog | C30: 17 | D30: 55 | E30: 107 | F30: 103 | G30: 43 | I30: 325
A31: Psykolog | C31: 417 | D31: 790 | E31: 495 | F31: 266 | G31: 121 | I31: 2089
A32: Jurist | C32: 696 | D32: 881 | E32: 567 | F32: 353 | G32: 105 | I32: 2602
A33: Økonom | C33: 274 | D33: 521 | E33: 307 | F33: 302 | G33: 90 | I33: 1494
A34: Samf. Adm. | C34: 723 | D34: 1462 | E34: 808 | F34: 425 | G34: 116 | I34: 3534
A35: Cand. Merc. | C35: 2137 | D35: 3097 | E35: 1420 | F35: 975 | G35: 161 | I35: 7790
A36: HA | C36: 404 | D36: 318 | E36: 135 | F36: 302 | G36: 87 | I36: 1246
A37: HD | C37: 104 | D37: 230 | E37: 120 | F37: 279 | G37: 92 | I37: 825
A38: Komm. og Sprog | C38: 155 | D38: 270 | E38: 384 | F38: 320 | G38: 144 | I38: 1273
A39: Bygningskonst. | C39: 524 | D39: 1013 | E39: 537 | F39: 265 | G39: 80 | I39: 2419
A40: Cand. IT. | C40: 426 | D40: 591 | E40: 175 | F40: 25 | G40: 1 | I40: 1218
A41: Bac. Samf. | C41: 116 | D41: 45 | E41: 46 | F41: 34 | G41: 14 | I41: 255
A42: Bac. Hum. | C42: 788 | D42: 199 | E42: 139 | F42: 118 | G42: 45 | I42: 1289
A43: Bac. Nat. | C43: 534 | D43: 286 | E43: 93 | F43: 31 | G43: 2 | I43: 946
A44: Andre | C44: 569 | D44: 1252 | E44: 817 | F44: 488 | G44: 289 | I44: 3415
A46: Total | C46: 14300 | D46: 22889 | E46: 14766 | F46: 10724 | G46: 4194 | I46: 66873
A48: Ingeniører i alt | C48: 2062 | D48: 3230 | E48: 2687 | F48: 2782 | G48: 1135 | I48: 11896
A49: Magistre i alt | C49: 2274 | D49: 4484 | E49: 3911 | F49: 2373 | G49: 971 | I49: 14013
A50: DJØF'ere i alt | C50: 4234 | D50: 6279 | E50: 3237 | F50: 2357 | G50: 559 | I50: 16666
A57: Horsens
C59: Under 30 år | D59: 30 - 39 år | E59: 40 - 49 år | F59: 50 - 59 år | G59: Over 60 år | I59: I alt
A61: Civ. ing. | C61: 55 | D61: 135 | E61: 86 | F61: 48 | G61: 10 | I61: 334
A62: Diplom ing. | C62: 101 | D62: 226 | E62: 268 | F62: 264 | G62: 89 | I62: 948
A63: Cand. Scient. Tek. | C63: 42 | D63: 104 | E63: 31 | F63: 5 | G63: 0 | I63: 182
A64: MA. Hum. | C64: 48 | D64: 156 | E64: 154 | F64: 60 | G64: 20 | I64: 438
A65: MA. Nat. | C65: 10 | D65: 27 | E65: 48 | F65: 48 | G65: 8 | I65: 141
A66: MA. Ph.d. | C66: 0 | D66: 4 | E66: 3 | F66: 4 | G66: 0 | I66: 11
A67: MA. Samf. | C67: 8 | D67: 25 | E67: 6 | F67: 2 | G67: 0 | I67: 41
A68: Øvrige Mag. | C68: 2 | D68: 7 | E68: 10 | F68: 10 | G68: 5 | I68: 34
A69: Agronom | C69: 1 | D69: 6 | E69: 11 | F69: 9 | G69: 9 | I69: 36
A70: Landsk. Arkt. | C70: 0 | D70: 1 | E70: 1 | F70: 0 | G70: 0 | I70: 2
A71: Hortonom | C71: 0 | D71: 0 | E71: 1 | F71: 0 | G71: 0 | I71: 1
A72: Forstkand. | C72: 0 | D72: 1 | E72: 2 | F72: 2 | G72: 1 | I72: 6
A73: Jordbrugsakad. | C73: 1 | D73: 8 | E73: 15 | F73: 11 | G73: 10 | I73: 45
A74: Mejeriing. | C74: 0 | D74: 2 | E74: 0 | F74: 2 | G74: 2 | I74: 6
A75: Levn.m.kand. | C75: 0 | D75: 1 | E75: 0 | F75: 0 | G75: 0 | I75: 1
A76: Dyrlæge | C76: 2 | D76: 5 | E76: 9 | F76: 5 | G76: 1 | I76: 22
A77: Farmaceut | C77: 6 | D77: 7 | E77: 6 | F77: 2 | G77: 1 | I77: 22
A78: Læge | C78: 20 | D78: 51 | E78: 19 | F78: 8 | G78: 4 | I78: 102
A79: Tandlæge | C79: 3 | D79: 6 | E79: 9 | F79: 3 | G79: 3 | I79: 24
A80: Arkitekt | C80: 7 | D80: 20 | E80: 27 | F80: 9 | G80: 8 | I80: 71
A81: Landinspek. | C81: 2 | D81: 4 | E81: 7 | F81: 4 | G81: 1 | I81: 18
A82: Bibliotekar | C82: 1 | D82: 5 | E82: 11 | F82: 12 | G82: 1 | I82: 30
A83: Musikudd. | C83: 0 | D83: 0 | E83: 1 | F83: 4 | G83: 3 | I83: 8
A84: Teolog | C84: 0 | D84: 3 | E84: 4 | F84: 6 | G84: 3 | I84: 16
A85: Psykolog | C85: 12 | D85: 39 | E85: 37 | F85: 9 | G85: 4 | I85: 101
A86: Jurist | C86: 21 | D86: 60 | E86: 50 | F86: 17 | G86: 8 | I86: 156
A87: Økonom | C87: 10 | D87: 24 | E87: 20 | F87: 14 | G87: 3 | I87: 71
A88: Samf. Adm. | C88: 19 | D88: 81 | E88: 68 | F88: 18 | G88: 4 | I88: 190
A89: Cand. Merc. | C89: 93 | D89: 240 | E89: 118 | F89: 67 | G89: 6 | I89: 524
A90: HA | C90: 31 | D90: 22 | E90: 17 | F90: 24 | G90: 6 | I90: 100
A91: HD | C91: 8 | D91: 17 | E91: 11 | F91: 25 | G91: 6 | I91: 67
A92: Komm. og Sprog | C92: 13 | D92: 17 | E92: 21 | F92: 22 | G92: 7 | I92: 80
A93: Bygningskonst. | C93: 106 | D93: 193 | E93: 131 | F93: 63 | G93: 18 | I93: 511
A94: Cand. IT. | C94: 11 | D94: 29 | E94: 11 | F94: 1 | G94: 0 | I94: 52
A95: Bac. Samf. | C95: 5 | D95: 3 | E95: 8 | F95: 2 | G95: 1 | I95: 19
A96: Bac. Hum. | C96: 14 | D96: 12 | E96: 10 | F96: 9 | G96: 3 | I96: 48
A97: Bac. Nat. | C97: 83 | D97: 49 | E97: 14 | F97: 2 | G97: 0 | I97: 148
A98: Andre | C98: 62 | D98: 107 | E98: 57 | F98: 25 | G98: 15 | I98: 266
A100: Total | C100: 796 | D100: 1689 | E100: 1287 | F100: 805 | G100: 250 | I100: 4827
A102: Ingeniører i alt | C102: 156 | D102: 361 | E102: 354 | F102: 312 | G102: 99 | I102: 1282
A103: Magistre i alt | C103: 68 | D103: 219 | E103: 221 | F103: 124 | G103: 33 | I103: 665
A104: DJØF'ere i alt | C104: 174 | D104: 427 | E104: 273 | F104: 140 | G104: 27 | I104: 1041
A111: Syddjurs
C113: Under 30 år | D113: 30 - 39 år | E113: 40 - 49 år | F113: 50 - 59 år | G113: Over 60 år | I113: I alt
A115: Civ. ing. | C115: 7 | D115: 31 | E115: 24 | F115: 27 | G115: 7 | I115: 96
A116: Diplom ing. | C116: 12 | D116: 32 | E116: 68 | F116: 83 | G116: 43 | I116: 238
A117: Cand. Scient. Tek. | C117: 14 | D117: 50 | E117: 20 | F117: 7 | G117: 0 | I117: 91
A118: MA. Hum. | C118: 15 | D118: 103 | E118: 92 | F118: 59 | G118: 17 | I118: 286
A119: MA. Nat. | C119: 5 | D119: 22 | E119: 31 | F119: 40 | G119: 18 | I119: 116
A120: MA. Ph.d. | C120: 0 | D120: 9 | E120: 9 | F120: 8 | G120: 0 | I120: 26
A121: MA. Samf. | C121: 3 | D121: 22 | E121: 1 | F121: 1 | G121: 0 | I121: 27
A122: Øvrige Mag. | C122: 1 | D122: 7 | E122: 11 | F122: 5 | G122: 4 | I122: 28
A123: Agronom | C123: 0 | D123: 4 | E123: 2 | F123: 15 | G123: 8 | I123: 29
A124: Landsk. Arkt. | C124: 0 | D124: 1 | E124: 3 | F124: 1 | G124: 0 | I124: 5
A125: Hortonom | C125: 0 | D125: 0 | E125: 1 | F125: 2 | G125: 0 | I125: 3
A126: Forstkand. | C126: 1 | D126: 1 | E126: 2 | F126: 0 | G126: 2 | I126: 6
A127: Jordbrugsakad. | C127: 1 | D127: 6 | E127: 8 | F127: 18 | G127: 10 | I127: 43
A128: Mejeriing. | C128: 0 | D128: 1 | E128: 0 | F128: 1 | G128: 1 | I128: 3
A129: Levn.m.kand. | C129: 1 | D129: 2 | E129: 0 | F129: 0 | G129: 0 | I129: 3
A130: Dyrlæge | C130: 1 | D130: 7 | E130: 1 | F130: 2 | G130: 1 | I130: 12
A131: Farmaceut | C131: 2 | D131: 4 | E131: 3 | F131: 0 | G131: 0 | I131: 9
A132: Læge | C132: 2 | D132: 30 | E132: 7 | F132: 8 | G132: 4 | I132: 51
A133: Tandlæge | C133: 3 | D133: 3 | E133: 6 | F133: 3 | G133: 4 | I133: 19
A134: Arkitekt | C134: 1 | D134: 24 | E134: 22 | F134: 21 | G134: 11 | I134: 79
A135: Landinspek. | C135: 0 | D135: 2 | E135: 2 | F135: 0 | G135: 1 | I135: 5
A136: Bibliotekar | C136: 1 | D136: 2 | E136: 6 | F136: 4 | G136: 0 | I136: 13
A137: Musikudd. | C137: 0 | D137: 1 | E137: 0 | F137: 3 | G137: 2 | I137: 6
A138: Teolog | C138: 1 | D138: 3 | E138: 7 | F138: 4 | G138: 2 | I138: 17
A139: Psykolog | C139: 8 | D139: 28 | E139: 15 | F139: 15 | G139: 7 | I139: 73
A140: Jurist | C140: 6 | D140: 22 | E140: 16 | F140: 11 | G140: 3 | I140: 58
A141: Økonom | C141: 2 | D141: 6 | E141: 8 | F141: 10 | G141: 3 | I141: 29
A142: Samf. Adm. | C142: 12 | D142: 38 | E142: 20 | F142: 13 | G142: 3 | I142: 86
A143: Cand. Merc. | C143: 8 | D143: 79 | E143: 28 | F143: 26 | G143: 4 | I143: 145
A144: HA | C144: 6 | D144: 6 | E144: 11 | F144: 12 | G144: 8 | I144: 43
A145: HD | C145: 3 | D145: 2 | E145: 2 | F145: 14 | G145: 5 | I145: 26
A146: Komm. og Sprog | C146: 0 | D146: 10 | E146: 12 | F146: 12 | G146: 12 | I146: 46
A147: Bygningskonst. | C147: 7 | D147: 33 | E147: 23 | F147: 6 | G147: 5 | I147: 74
A148: Cand. IT. | C148: 3 | D148: 19 | E148: 4 | F148: 0 | G148: 0 | I148: 26
A149: Bac. Samf. | C149: 2 | D149: 0 | E149: 1 | F149: 0 | G149: 0 | I149: 3
A150: Bac. Hum. | C150: 2 | D150: 7 | E150: 7 | F150: 3 | G150: 1 | I150: 20
A151: Bac. Nat. | C151: 5 | D151: 6 | E151: 5 | F151: 1 | G151: 0 | I151: 17
A152: Andre | C152: 8 | D152: 36 | E152: 21 | F152: 32 | G152: 16 | I152: 113
A154: Total | C154: 142 | D154: 653 | E154: 491 | F154: 449 | G154: 192 | I154: 1927
A156: Ingeniører i alt | C156: 19 | D156: 63 | E156: 92 | F156: 110 | G156: 50 | I156: 334
A157: Magistre i alt | C157: 24 | D157: 163 | E157: 144 | F157: 113 | G157: 39 | I157: 483
A158: DJØF'ere i alt | C158: 34 | D158: 151 | E158: 83 | F158: 72 | G158: 21 | I158: 361
A165: Norddjurs
C167: Under 30 år | D167: 30 - 39 år | E167: 40 - 49 år | F167: 50 - 59 år | G167: Over 60 år | I167: I alt
A169: Civ. ing. | C169: 10 | D169: 10 | E169: 4 | F169: 2 | G169: 2 | I169: 28
A170: Diplom ing. | C170: 3 | D170: 16 | E170: 16 | F170: 45 | G170: 16 | I170: 96
A171: Cand. Scient. Tek. | C171: 2 | D171: 10 | E171: 6 | F171: 2 | G171: 0 | I171: 20
A172: MA. Hum. | C172: 7 | D172: 23 | E172: 26 | F172: 16 | G172: 6 | I172: 78
A173: MA. Nat. | C173: 2 | D173: 4 | E173: 12 | F173: 12 | G173: 3 | I173: 33
A174: MA. Ph.d. | C174: 0 | D174: 1 | E174: 4 | F174: 0 | G174: 1 | I174: 6
A175: MA. Samf. | C175: 2 | D175: 4 | E175: 1 | F175: 0 | G175: 0 | I175: 7
A176: Øvrige Mag. | C176: 2 | D176: 0 | E176: 3 | F176: 2 | G176: 0 | I176: 7
A177: Agronom | C177: 0 | D177: 4 | E177: 2 | F177: 1 | G177: 2 | I177: 9
A178: Landsk. Arkt. | C178: 0 | D178: 0 | E178: 0 | F178: 0 | G178: 0 | I178: 0
A179: Hortonom | C179: 0 | D179: 0 | E179: 1 | F179: 0 | G179: 0 | I179: 1
A180: Forstkand. | C180: 0 | D180: 0 | E180: 2 | F180: 0 | G180: 0 | I180: 2
A181: Jordbrugsakad. | C181: 0 | D181: 4 | E181: 5 | F181: 1 | G181: 2 | I181: 12
A182: Mejeriing. | C182: 0 | D182: 0 | E182: 0 | F182: 0 | G182: 0 | I182: 0
A183: Levn.m.kand. | C183: 0 | D183: 2 | E183: 0 | F183: 1 | G183: 0 | I183: 3
A184: Dyrlæge | C184: 0 | D184: 3 | E184: 2 | F184: 3 | G184: 0 | I184: 8
A185: Farmaceut | C185: 1 | D185: 0 | E185: 0 | F185: 2 | G185: 0 | I185: 3
A186: Læge | C186: 0 | D186: 1 | E186: 0 | F186: 2 | G186: 1 | I186: 4
A187: Tandlæge | C187: 0 | D187: 1 | E187: 1 | F187: 2 | G187: 0 | I187: 4
A188: Arkitekt | C188: 0 | D188: 2 | E188: 0 | F188: 3 | G188: 2 | I188: 7
A189: Landinspek. | C189: 1 | D189: 0 | E189: 0 | F189: 1 | G189: 0 | I189: 2
A190: Bibliotekar | C190: 0 | D190: 1 | E190: 2 | F190: 3 | G190: 0 | I190: 6
A191: Musikudd. | C191: 0 | D191: 1 | E191: 1 | F191: 0 | G191: 1 | I191: 3
A192: Teolog | C192: 0 | D192: 3 | E192: 2 | F192: 5 | G192: 4 | I192: 14
A193: Psykolog | C193: 0 | D193: 3 | E193: 6 | F193: 2 | G193: 1 | I193: 12
A194: Jurist | C194: 3 | D194: 3 | E194: 5 | F194: 2 | G194: 2 | I194: 15
A195: Økonom | C195: 0 | D195: 1 | E195: 2 | F195: 3 | G195: 0 | I195: 6
A196: Samf. Adm. | C196: 3 | D196: 5 | E196: 6 | F196: 6 | G196: 2 | I196: 22
A197: Cand. Merc. | C197: 7 | D197: 22 | E197: 7 | F197: 6 | G197: 3 | I197: 45
A198: HA | C198: 0 | D198: 2 | E198: 2 | F198: 9 | G198: 1 | I198: 14
A199: HD | C199: 1 | D199: 2 | E199: 4 | F199: 2 | G199: 2 | I199: 11
A200: Komm. og Sprog | C200: 0 | D200: 1 | E200: 1 | F200: 6 | G200: 1 | I200: 9
A201: Bygningskonst. | C201: 5 | D201: 16 | E201: 6 | F201: 4 | G201: 1 | I201: 32
A202: Cand. IT. | C202: 1 | D202: 2 | E202: 1 | F202: 1 | G202: 0 | I202: 5
A203: Bac. Samf. | C203: 0 | D203: 0 | E203: 0 | F203: 2 | G203: 0 | I203: 2
A204: Bac. Hum. | C204: 2 | D204: 2 | E204: 1 | F204: 3 | G204: 1 | I204: 9
A205: Bac. Nat. | C205: 1 | D205: 0 | E205: 2 | F205: 1 | G205: 0 | I205: 4
A206: Andre | C206: 3 | D206: 9 | E206: 8 | F206: 12 | G206: 7 | I206: 39
A208: Total | C208: 56 | D208: 154 | E208: 136 | F208: 161 | G208: 59 | I208: 566
A210: Ingeniører i alt | C210: 13 | D210: 26 | E210: 20 | F210: 47 | G210: 18 | I210: 124
A211: Magistre i alt | C211: 13 | D211: 32 | E211: 46 | F211: 30 | G211: 10 | I211: 131
A212: DJØF'ere i alt | C212: 13 | D212: 33 | E212: 22 | F212: 26 | G212: 8 | I212: 102
A219: Favrskov
C221: Under 30 år | D221: 30 - 39 år | E221: 40 - 49 år | F221: 50 - 59 år | G221: Over 60 år | I221: I alt
A223: Civ. ing. | C223: 26 | D223: 110 | E223: 109 | F223: 50 | G223: 8 | I223: 303
A224: Diplom ing. | C224: 22 | D224: 70 | E224: 143 | F224: 141 | G224: 55 | I224: 431
A225: Cand. Scient. Tek. | C225: 22 | D225: 94 | E225: 30 | F225: 13 | G225: 1 | I225: 160
A226: MA. Hum. | C226: 19 | D226: 125 | E226: 144 | F226: 44 | G226: 12 | I226: 344
A227: MA. Nat. | C227: 7 | D227: 37 | E227: 59 | F227: 53 | G227: 22 | I227: 178
A228: MA. Ph.d. | C228: 0 | D228: 6 | E228: 9 | F228: 2 | G228: 1 | I228: 18
A229: MA. Samf. | C229: 2 | D229: 17 | E229: 5 | F229: 0 | G229: 0 | I229: 24
A230: Øvrige Mag. | C230: 0 | D230: 5 | E230: 3 | F230: 11 | G230: 1 | I230: 20
A231: Agronom | C231: 1 | D231: 4 | E231: 8 | F231: 14 | G231: 14 | I231: 41
A232: Landsk. Arkt. | C232: 0 | D232: 1 | E232: 3 | F232: 0 | G232: 0 | I232: 4
A233: Hortonom | C233: 0 | D233: 0 | E233: 0 | F233: 1 | G233: 3 | I233: 4
A234: Forstkand. | C234: 0 | D234: 1 | E234: 3 | F234: 0 | G234: 2 | I234: 6
A235: Jordbrugsakad. | C235: 1 | D235: 6 | E235: 14 | F235: 15 | G235: 19 | I235: 55
A236: Mejeriing. | C236: 0 | D236: 0 | E236: 0 | F236: 2 | G236: 2 | I236: 4
A237: Levn.m.kand. | C237: 0 | D237: 1 | E237: 0 | F237: 0 | G237: 0 | I237: 1
A238: Dyrlæge | C238: 3 | D238: 7 | E238: 7 | F238: 2 | G238: 2 | I238: 21
A239: Farmaceut | C239: 0 | D239: 4 | E239: 2 | F239: 3 | G239: 2 | I239: 11
A240: Læge | C240: 13 | D240: 70 | E240: 44 | F240: 16 | G240: 8 | I240: 151
A241: Tandlæge | C241: 3 | D241: 8 | E241: 8 | F241: 2 | G241: 2 | I241: 23
A242: Arkitekt | C242: 0 | D242: 13 | E242: 15 | F242: 4 | G242: 1 | I242: 33
A243: Landinspek. | C243: 0 | D243: 2 | E243: 5 | F243: 4 | G243: 1 | I243: 12
... 329 more rows

Sheet Tabel 4 ØJ
A1: Tabel 4. Ledighedsberørte - aldersfordelt
A3: Østjylland
C5: Under 30 år | D5: 30 - 39 år | E5: 40 - 49 år | F5: 50 - 59 år | G5: Over 60 år | I5: I alt
A7: Civ. ing. | C7: 153 | D7: 24 | E7: 7 | F7: 6 | G7: 3 | I7: 193
A8: Diplom ing. | C8: 108 | D8: 43 | E8: 19 | F8: 18 | G8: 24 | I8: 212
A9: Cand. Scient. Tek | C9: 198 | D9: 110 | E9: 8 | F9: 5 | G9: 1 | I9: 322
A10: MA. Hum. | C10: 416 | D10: 340 | E10: 96 | F10: 62 | G10: 29 | I10: 943
A11: MA. Nat. | C11: 75 | D11: 28 | E11: 13 | F11: 7 | G11: 10 | I11: 133
A12: MA. Ph.d. | C12: 0 | D12: 6 | E12: 3 | F12: 3 | G12: 2 | I12: 14
A13: MA. Samf. | C13: 90 | D13: 60 | E13: 3 | F13: 3 | G13: 0 | I13: 156
A14: Øvrige Mag. | C14: 64 | D14: 25 | E14: 8 | F14: 6 | G14: 3 | I14: 106
A15: Agronom | C15: 0 | D15: 2 | E15: 1 | F15: 0 | G15: 4 | I15: 7
A16: Landsk. Arkt. | C16: 1 | D16: 0 | E16: 0 | F16: 0 | G16: 0 | I16: 1
A17: Hortonom | C17: 0 | D17: 0 | E17: 0 | F17: 0 | G17: 2 | I17: 2
A18: Forstkand. | C18: 0 | D18: 0 | E18: 1 | F18: 0 | G18: 1 | I18: 2
A19: Jordbrugsakad. | C19: 1 | D19: 2 | E19: 2 | F19: 0 | G19: 7 | I19: 12
A20: Mejeriing. | C20: 1 | D20: 0 | E20: 0 | F20: 2 | G20: 1 | I20: 4
A21: Levn.m.kand. | C21: 0 | D21: 4 | E21: 0 | F21: 0 | G21: 0 | I21: 4
A22: Dyrlæge | C22: 1 | D22: 0 | E22: 0 | F22: 0 | G22: 0 | I22: 1
A23: Farmaceut | C23: 26 | D23: 12 | E23: 0 | F23: 1 | G23: 0 | I23: 39
A24: Læge | C24: 123 | D24: 36 | E24: 0 | F24: 0 | G24: 0 | I24: 159
A25: Tandlæge | C25: 28 | D25: 3 | E25: 1 | F25: 0 | G25: 0 | I25: 32
A26: Arkitekt | C26: 51 | D26: 44 | E26: 9 | F26: 8 | G26: 12 | I26: 124
A27: Landinspek. | C27: 0 | D27: 0 | E27: 0 | F27: 0 | G27: 0 | I27: 0
A28: Bibliotekar | C28: 0 | D28: 3 | E28: 2 | F28: 2 | G28: 1 | I28: 8
A29: Musikudd. | C29: 2 | D29: 1 | E29: 3 | F29: 2 | G29: 3 | I29: 11
A30: Teolog | C30: 5 | D30: 4 | E30: 1 | F30: 3 | G30: 0 | I30: 13
A31: Psykolog | C31: 103 | D31: 49 | E31: 12 | F31: 4 | G31: 5 | I31: 173
A32: Jurist | C32: 105 | D32: 15 | E32: 4 | F32: 4 | G32: 2 | I32: 130
A33: Økonom | C33: 32 | D33: 12 | E33: 3 | F33: 4 | G33: 1 | I33: 52
A34: Samf. Adm. | C34: 118 | D34: 78 | E34: 16 | F34: 9 | G34: 2 | I34: 223
A35: Cand. Merc. | C35: 417 | D35: 87 | E35: 21 | F35: 12 | G35: 7 | I35: 544
A36: HA | C36: 88 | D36: 7 | E36: 6 | F36: 3 | G36: 6 | I36: 110
A37: HD | C37: 12 | D37: 9 | E37: 3 | F37: 5 | G37: 1 | I37: 30
A38: Komm. og Sprog | C38: 25 | D38: 17 | E38: 7 | F38: 10 | G38: 5 | I38: 64
A39: Bygningskonst. | C39: 86 | D39: 39 | E39: 10 | F39: 3 | G39: 1 | I39: 139
A40: Cand. IT. | C40: 112 | D40: 25 | E40: 3 | F40: 3 | G40: 0 | I40: 143
A41: Bac. Samf. | C41: 19 | D41: 5 | E41: 1 | F41: 1 | G41: 1 | I41: 27
A42: Bac. Hum. | C42: 200 | D42: 26 | E42: 6 | F42: 4 | G42: 3 | I42: 239
A43: Bac. Nat. | C43: 108 | D43: 15 | E43: 3 | F43: 1 | G43: 0 | I43: 127
A44: Andre | C44: 107 | D44: 64 | E44: 24 | F44: 22 | G44: 16 | I44: 233
A46: Total | C46: 2874 | D46: 1193 | E46: 294 | F46: 213 | G46: 146 | I46: 4720
A48: Ingeniører i alt | C48: 261 | D48: 67 | E48: 26 | F48: 24 | G48: 27 | I48: 405
A49: Magistre i alt | C49: 645 | D49: 459 | E49: 123 | F49: 81 | G49: 44 | I49: 1352
A50: DJØF'ere i alt | C50: 760 | D50: 199 | E50: 50 | F50: 32 | G50: 18 | I50: 1059
A57: Horsens
C59: Under 30 år | D59: 30 - 39 år | E59: 40 - 49 år | F59: 50 - 59 år | G59: Over 60 år | I59: I alt
A61: Civ. ing. | C61: 9 | D61: 1 | E61: 0 | F61: 0 | G61: 0 | I61: 10
A62: Diplom ing. | C62: 12 | D62: 7 | E62: 2 | F62: 0 | G62: 4 | I62: 25
A63: Cand. Scient. Tek | C63: 6 | D63: 4 | E63: 1 | F63: 0 | G63: 0 | I63: 11
A64: MA. Hum. | C64: 8 | D64: 18 | E64: 3 | F64: 2 | G64: 0 | I64: 31
A65: MA. Nat. | C65: 1 | D65: 1 | E65: 0 | F65: 0 | G65: 0 | I65: 2
A66: MA. Ph.d. | C66: 0 | D66: 0 | E66: 0 | F66: 0 | G66: 0 | I66: 0
A67: MA. Samf. | C67: 0 | D67: 4 | E67: 0 | F67: 0 | G67: 0 | I67: 4
A68: Øvrige Mag. | C68: 1 | D68: 0 | E68: 0 | F68: 1 | G68: 0 | I68: 2
A69: Agronom | C69: 0 | D69: 0 | E69: 0 | F69: 0 | G69: 1 | I69: 1
A70: Landsk. Arkt. | C70: 0 | D70: 0 | E70: 0 | F70: 0 | G70: 0 | I70: 0
A71: Hortonom | C71: 0 | D71: 0 | E71: 0 | F71: 0 | G71: 0 | I71: 0
A72: Forstkand. | C72: 0 | D72: 0 | E72: 0 | F72: 0 | G72: 0 | I72: 0
A73: Jordbrugsakad. | C73: 0 | D73: 0 | E73: 0 | F73: 0 | G73: 1 | I73: 1
A74: Mejeriing. | C74: 0 | D74: 0 | E74: 0 | F74: 0 | G74: 0 | I74: 0
A75: Levn.m.kand. | C75: 0 | D75: 0 | E75: 0 | F75: 0 | G75: 0 | I75: 0
A76: Dyrlæge | C76: 0 | D76: 0 | E76: 0 | F76: 0 | G76: 0 | I76: 0
A77: Farmaceut | C77: 2 | D77: 1 | E77: 0 | F77: 0 | G77: 0 | I77: 3
A78: Læge | C78: 1 | D78: 1 | E78: 0 | F78: 0 | G78: 0 | I78: 2
A79: Tandlæge | C79: 0 | D79: 0 | E79: 0 | F79: 0 | G79: 0 | I79: 0
A80: Arkitekt | C80: 1 | D80: 0 | E80: 1 | F80: 1 | G80: 0 | I80: 3
A81: Landinspek. | C81: 0 | D81: 0 | E81: 0 | F81: 0 | G81: 0 | I81: 0
A82: Bibliotekar | C82: 0 | D82: 0 | E82: 0 | F82: 0 | G82: 0 | I82: 0
A83: Musikudd. | C83: 0 | D83: 0 | E83: 0 | F83: 0 | G83: 1 | I83: 1
A84: Teolog | C84: 0 | D84: 0 | E84: 0 | F84: 0 | G84: 0 | I84: 0
A85: Psykolog | C85: 2 | D85: 6 | E85: 2 | F85: 0 | G85: 0 | I85: 10
A86: Jurist | C86: 0 | D86: 0 | E86: 0 | F86: 0 | G86: 0 | I86: 0
A87: Økonom | C87: 1 | D87: 0 | E87: 1 | F87: 0 | G87: 0 | I87: 2
A88: Samf. Adm. | C88: 2 | D88: 4 | E88: 0 | F88: 1 | G88: 0 | I88: 7
A89: Cand. Merc. | C89: 12 | D89: 7 | E89: 1 | F89: 1 | G89: 0 | I89: 21
A90: HA | C90: 5 | D90: 0 | E90: 1 | F90: 0 | G90: 1 | I90: 7
A91: HD | C91: 4 | D91: 3 | E91: 1 | F91: 2 | G91: 0 | I91: 10
A92: Komm. og Sprog | C92: 4 | D92: 0 | E92: 0 | F92: 1 | G92: 0 | I92: 5
A93: Bygningskonst. | C93: 16 | D93: 5 | E93: 1 | F93: 1 | G93: 0 | I93: 23
A94: Cand. IT. | C94: 1 | D94: 2 | E94: 0 | F94: 0 | G94: 0 | I94: 3
A95: Bac. Samf. | C95: 0 | D95: 0 | E95: 0 | F95: 0 | G95: 0 | I95: 0
A96: Bac. Hum. | C96: 5 | D96: 1 | E96: 1 | F96: 0 | G96: 0 | I96: 7
A97: Bac. Nat. | C97: 17 | D97: 2 | E97: 0 | F97: 0 | G97: 0 | I97: 19
A98: Andre | C98: 13 | D98: 4 | E98: 2 | F98: 1 | G98: 0 | I98: 20
A100: Total | C100: 123 | D100: 71 | E100: 17 | F100: 11 | G100: 7 | I100: 229
A102: Ingeniører i alt | C102: 21 | D102: 8 | E102: 2 | F102: 0 | G102: 4 | I102: 35
A103: Magistre i alt | C103: 10 | D103: 23 | E103: 3 | F103: 3 | G103: 0 | I103: 39
A104: DJØF'ere i alt | C104: 20 | D104: 11 | E104: 3 | F104: 2 | G104: 1 | I104: 37
A111: Syddjurs
C113: Under 30 år | D113: 30 - 39 år | E113: 40 - 49 år | F113: 50 - 59 år | G113: Over 60 år | I113: I alt
A115: Civ. ing. | C115: 1 | D115: 0 | E115: 1 | F115: 1 | G115: 0 | I115: 3
A116: Diplom ing. | C116: 0 | D116: 3 | E116: 2 | F116: 0 | G116: 2 | I116: 7
A117: Cand. Scient. Tek | C117: 0 | D117: 5 | E117: 0 | F117: 0 | G117: 0 | I117: 5
A118: MA. Hum. | C118: 4 | D118: 18 | E118: 3 | F118: 3 | G118: 0 | I118: 28
A119: MA. Nat. | C119: 0 | D119: 1 | E119: 0 | F119: 0 | G119: 1 | I119: 2
A120: MA. Ph.d. | C120: 0 | D120: 1 | E120: 0 | F120: 0 | G120: 0 | I120: 1
A121: MA. Samf. | C121: 0 | D121: 4 | E121: 0 | F121: 1 | G121: 0 | I121: 5
A122: Øvrige Mag. | C122: 0 | D122: 0 | E122: 1 | F122: 0 | G122: 0 | I122: 1
A123: Agronom | C123: 0 | D123: 0 | E123: 1 | F123: 0 | G123: 0 | I123: 1
A124: Landsk. Arkt. | C124: 0 | D124: 0 | E124: 0 | F124: 0 | G124: 0 | I124: 0
A125: Hortonom | C125: 0 | D125: 0 | E125: 0 | F125: 0 | G125: 0 | I125: 0
A126: Forstkand. | C126: 0 | D126: 0 | E126: 0 | F126: 0 | G126: 1 | I126: 1
A127: Jordbrugsakad. | C127: 0 | D127: 0 | E127: 1 | F127: 0 | G127: 1 | I127: 2
A128: Mejeriing. | C128: 0 | D128: 0 | E128: 0 | F128: 0 | G128: 0 | I128: 0
A129: Levn.m.kand. | C129: 0 | D129: 2 | E129: 0 | F129: 0 | G129: 0 | I129: 2
A130: Dyrlæge | C130: 0 | D130: 0 | E130: 0 | F130: 0 | G130: 0 | I130: 0
A131: Farmaceut | C131: 0 | D131: 0 | E131: 0 | F131: 0 | G131: 0 | I131: 0
A132: Læge | C132: 1 | D132: 2 | E132: 0 | F132: 0 | G132: 0 | I132: 3
A133: Tandlæge | C133: 0 | D133: 0 | E133: 1 | F133: 0 | G133: 0 | I133: 1
A134: Arkitekt | C134: 0 | D134: 3 | E134: 1 | F134: 1 | G134: 0 | I134: 5
A135: Landinspek. | C135: 0 | D135: 0 | E135: 0 | F135: 0 | G135: 0 | I135: 0
A136: Bibliotekar | C136: 0 | D136: 0 | E136: 0 | F136: 0 | G136: 0 | I136: 0
A137: Musikudd. | C137: 0 | D137: 0 | E137: 0 | F137: 0 | G137: 0 | I137: 0
A138: Teolog | C138: 0 | D138: 0 | E138: 0 | F138: 1 | G138: 0 | I138: 1
A139: Psykolog | C139: 1 | D139: 1 | E139: 0 | F139: 0 | G139: 1 | I139: 3
A140: Jurist | C140: 0 | D140: 0 | E140: 1 | F140: 0 | G140: 0 | I140: 1
A141: Økonom | C141: 0 | D141: 0 | E141: 0 | F141: 0 | G141: 0 | I141: 0
A142: Samf. Adm. | C142: 1 | D142: 3 | E142: 0 | F142: 2 | G142: 0 | I142: 6
A143: Cand. Merc. | C143: 1 | D143: 4 | E143: 1 | F143: 0 | G143: 0 | I143: 6
A144: HA | C144: 0 | D144: 0 | E144: 0 | F144: 0 | G144: 1 | I144: 1
A145: HD | C145: 0 | D145: 0 | E145: 0 | F145: 0 | G145: 1 | I145: 1
A146: Komm. og Sprog | C146: 0 | D146: 1 | E146: 0 | F146: 0 | G146: 2 | I146: 3
A147: Bygningskonst. | C147: 0 | D147: 1 | E147: 0 | F147: 0 | G147: 0 | I147: 1
A148: Cand. IT. | C148: 1 | D148: 0 | E148: 0 | F148: 0 | G148: 0 | I148: 1
A149: Bac. Samf. | C149: 0 | D149: 0 | E149: 0 | F149: 0 | G149: 0 | I149: 0
A150: Bac. Hum. | C150: 0 | D150: 1 | E150: 1 | F150: 0 | G150: 0 | I150: 2
A151: Bac. Nat. | C151: 1 | D151: 0 | E151: 0 | F151: 0 | G151: 0 | I151: 1
A152: Andre | C152: 2 | D152: 1 | E152: 2 | F152: 3 | G152: 1 | I152: 9
A154: Total | C154: 13 | D154: 51 | E154: 15 | F154: 12 | G154: 10 | I154: 101
A156: Ingeniører i alt | C156: 1 | D156: 3 | E156: 3 | F156: 1 | G156: 2 | I156: 10
A157: Magistre i alt | C157: 4 | D157: 24 | E157: 4 | F157: 4 | G157: 1 | I157: 37
A158: DJØF'ere i alt | C158: 2 | D158: 7 | E158: 2 | F158: 2 | G158: 1 | I158: 14
A165: Norddjurs
C167: Under 30 år | D167: 30 - 39 år | E167: 40 - 49 år | F167: 50 - 59 år | G167: Over 60 år | I167: I alt
A169: Civ. ing. | C169: 1 | D169: 0 | E169: 0 | F169: 0 | G169: 0 | I169: 1
A170: Diplom ing. | C170: 0 | D170: 0 | E170: 0 | F170: 2 | G170: 0 | I170: 2
A171: Cand. Scient. Tek | C171: 1 | D171: 3 | E171: 1 | F171: 1 | G171: 0 | I171: 6
A172: MA. Hum. | C172: 1 | D172: 3 | E172: 1 | F172: 1 | G172: 1 | I172: 7
A173: MA. Nat. | C173: 0 | D173: 0 | E173: 0 | F173: 0 | G173: 1 | I173: 1
A174: MA. Ph.d. | C174: 0 | D174: 0 | E174: 1 | F174: 0 | G174: 0 | I174: 1
A175: MA. Samf. | C175: 0 | D175: 2 | E175: 0 | F175: 0 | G175: 0 | I175: 2
A176: Øvrige Mag. | C176: 0 | D176: 0 | E176: 1 | F176: 0 | G176: 0 | I176: 1
A177: Agronom | C177: 0 | D177: 0 | E177: 0 | F177: 0 | G177: 0 | I177: 0
A178: Landsk. Arkt. | C178: 0 | D178: 0 | E178: 0 | F178: 0 | G178: 0 | I178: 0
A179: Hortonom | C179: 0 | D179: 0 | E179: 0 | F179: 0 | G179: 0 | I179: 0
A180: Forstkand. | C180: 0 | D180: 0 | E180: 1 | F180: 0 | G180: 0 | I180: 1
A181: Jordbrugsakad. | C181: 0 | D181: 0 | E181: 1 | F181: 0 | G181: 0 | I181: 1
A182: Mejeriing. | C182: 0 | D182: 0 | E182: 0 | F182: 0 | G182: 0 | I182: 0
A183: Levn.m.kand. | C183: 0 | D183: 0 | E183: 0 | F183: 0 | G183: 0 | I183: 0
A184: Dyrlæge | C184: 0 | D184: 0 | E184: 0 | F184: 0 | G184: 0 | I184: 0
A185: Farmaceut | C185: 0 | D185: 0 | E185: 0 | F185: 0 | G185: 0 | I185: 0
A186: Læge | C186: 0 | D186: 0 | E186: 0 | F186: 0 | G186: 0 | I186: 0
A187: Tandlæge | C187: 0 | D187: 0 | E187: 0 | F187: 0 | G187: 0 | I187: 0
A188: Arkitekt | C188: 0 | D188: 0 | E188: 0 | F188: 0 | G188: 2 | I188: 2
A189: Landinspek. | C189: 0 | D189: 0 | E189: 0 | F189: 0 | G189: 0 | I189: 0
A190: Bibliotekar | C190: 0 | D190: 0 | E190: 0 | F190: 0 | G190: 0 | I190: 0
A191: Musikudd. | C191: 0 | D191: 0 | E191: 1 | F191: 0 | G191: 0 | I191: 1
A192: Teolog | C192: 0 | D192: 0 | E192: 0 | F192: 1 | G192: 0 | I192: 1
A193: Psykolog | C193: 0 | D193: 1 | E193: 0 | F193: 0 | G193: 0 | I193: 1
A194: Jurist | C194: 0 | D194: 0 | E194: 0 | F194: 0 | G194: 0 | I194: 0
A195: Økonom | C195: 0 | D195: 0 | E195: 0 | F195: 1 | G195: 0 | I195: 1
A196: Samf. Adm. | C196: 0 | D196: 0 | E196: 0 | F196: 0 | G196: 0 | I196: 0
A197: Cand. Merc. | C197: 1 | D197: 2 | E197: 0 | F197: 0 | G197: 0 | I197: 3
A198: HA | C198: 0 | D198: 0 | E198: 0 | F198: 0 | G198: 0 | I198: 0
A199: HD | C199: 1 | D199: 0 | E199: 0 | F199: 0 | G199: 0 | I199: 1
A200: Komm. og Sprog | C200: 0 | D200: 0 | E200: 0 | F200: 0 | G200: 0 | I200: 0
A201: Bygningskonst. | C201: 1 | D201: 1 | E201: 0 | F201: 0 | G201: 0 | I201: 2
A202: Cand. IT. | C202: 1 | D202: 0 | E202: 0 | F202: 1 | G202: 0 | I202: 2
A203: Bac. Samf. | C203: 0 | D203: 0 | E203: 0 | F203: 0 | G203: 0 | I203: 0
A204: Bac. Hum. | C204: 2 | D204: 0 | E204: 0 | F204: 0 | G204: 0 | I204: 2
A205: Bac. Nat. | C205: 1 | D205: 0 | E205: 1 | F205: 0 | G205: 0 | I205: 2
A206: Andre | C206: 0 | D206: 1 | E206: 0 | F206: 0 | G206: 0 | I206: 1
A208: Total | C208: 10 | D208: 13 | E208: 7 | F208: 7 | G208: 4 | I208: 41
A210: Ingeniører i alt | C210: 1 | D210: 0 | E210: 0 | F210: 2 | G210: 0 | I210: 3
A211: Magistre i alt | C211: 1 | D211: 5 | E211: 3 | F211: 1 | G211: 2 | I211: 12
A212: DJØF'ere i alt | C212: 1 | D212: 2 | E212: 0 | F212: 1 | G212: 0 | I212: 4
A219: Favrskov
C221: Under 30 år | D221: 30 - 39 år | E221: 40 - 49 år | F221: 50 - 59 år | G221: Over 60 år | I221: I alt
A223: Civ. ing. | C223: 3 | D223: 1 | E223: 2 | F223: 0 | G223: 0 | I223: 6
A224: Diplom ing. | C224: 0 | D224: 3 | E224: 0 | F224: 1 | G224: 0 | I224: 4
A225: Cand. Scient. Tek | C225: 5 | D225: 2 | E225: 0 | F225: 0 | G225: 0 | I225: 7
A226: MA. Hum. | C226: 4 | D226: 11 | E226: 3 | F226: 2 | G226: 0 | I226: 20
A227: MA. Nat. | C227: 0 | D227: 1 | E227: 0 | F227: 0 | G227: 1 | I227: 2
A228: MA. Ph.d. | C228: 0 | D228: 0 | E228: 0 | F228: 0 | G228: 0 | I228: 0
A229: MA. Samf. | C229: 0 | D229: 2 | E229: 0 | F229: 0 | G229: 0 | I229: 2
A230: Øvrige Mag. | C230: 0 | D230: 0 | E230: 0 | F230: 0 | G230: 0 | I230: 0
A231: Agronom | C231: 0 | D231: 0 | E231: 0 | F231: 0 | G231: 1 | I231: 1
A232: Landsk. Arkt. | C232: 0 | D232: 0 | E232: 0 | F232: 0 | G232: 0 | I232: 0
A233: Hortonom | C233: 0 | D233: 0 | E233: 0 | F233: 0 | G233: 0 | I233: 0
A234: Forstkand. | C234: 0 | D234: 0 | E234: 0 | F234: 0 | G234: 0 | I234: 0
A235: Jordbrugsakad. | C235: 0 | D235: 0 | E235: 0 | F235: 0 | G235: 1 | I235: 1
A236: Mejeriing. | C236: 0 | D236: 0 | E236: 0 | F236: 0 | G236: 0 | I236: 0
A237: Levn.m.kand. | C237: 0 | D237: 0 | E237: 0 | F237: 0 | G237: 0 | I237: 0
A238: Dyrlæge | C238: 0 | D238: 0 | E238: 0 | F238: 0 | G238: 0 | I238: 0
A239: Farmaceut | C239: 0 | D239: 0 | E239: 0 | F239: 0 | G239: 0 | I239: 0
A240: Læge | C240: 3 | D240: 2 | E240: 0 | F240: 0 | G240: 0 | I240: 5
A241: Tandlæge | C241: 0 | D241: 0 | E241: 0 | F241: 0 | G241: 0 | I241: 0
A242: Arkitekt | C242: 0 | D242: 2 | E242: 0 | F242: 0 | G242: 1 | I242: 3
A243: Landinspek. | C243: 0 | D243: 0 | E243: 0 | F243: 0 | G243: 0 | I243: 0
... 329 more rows

Sheet Tabel 4(Br) ØJ
A1: Tabel 4. Ledighedsberørte - aldersfordelt
A3: Østjylland
C5: Under 30 år | D5: 30 - 39 år | E5: 40 - 49 år | F5: 50 - 59 år | G5: Over 60 år | I5: I alt
A7: Civ. ing. | C7: 127.4808208 | D7: 17.55504272 | E7: 6.061248675 | F7: 3.111707104 | G7: 2.537890601 | I7: 156.7467099
A8: Diplom ing. | C8: 89.70934947 | D8: 35.24979729 | E8: 15.61529346 | F8: 12.52479262 | G8: 15.74939188 | I8: 168.8486247
A9: Cand. Scient. Tek | C9: 153.1984033 | D9: 85.87974802 | E9: 7.322397555 | F9: 3.752884675 | G9: 0.9998128859 | I9: 251.1532464
A10: MA. Hum. | C10: 332.0632446 | D10: 257.3186553 | E10: 65.3096738 | F10: 45.32027693 | G10: 19.96943803 | I10: 719.9812886
A11: MA. Nat. | C11: 61.2206075 | D11: 20.92496726 | E11: 10.3305682 | F11: 5.106343167 | G11: 6.131104597 | I11: 103.7135907
A12: MA. Ph.d. | C12: 0 | D12: 4.475768727 | E12: 1.670304996 | F12: 2.491735795 | G12: 1.90731616 | I12: 10.54512568
A13: MA. Samf. | C13: 73.35433169 | D13: 44.33293831 | E13: 1.660949292 | F13: 2.953283852 | G13: 0 | I13: 122.3015031
A14: Øvrige Mag. | C14: 54.10528285 | D14: 20.27879998 | E14: 5.777458991 | F14: 5.090750327 | G14: 2.260961766 | I14: 87.51325391
A15: Agronom | C15: 0 | D15: 1.307303686 | E15: 0.7690388574 | F15: 0 | G15: 3.768477515 | I15: 5.844820059
A16: Landsk. Arkt. | C16: 0.5382648288 | D16: 0 | E16: 0 | F16: 0 | G16: 0 | I16: 0.5382648288
A17: Hortonom | C17: 0 | D17: 0 | E17: 0 | F17: 0 | G17: 1.41395871 | I17: 1.41395871
A18: Forstkand. | C18: 0 | D18: 0 | E18: 0.9998128859 | F18: 0 | G18: 0.9998128859 | I18: 1.999625772
A19: Jordbrugsakad. | C19: 0.5382648288 | D19: 1.307303686 | E19: 1.768851743 | F19: 0 | G19: 6.182249111 | I19: 9.796669369
A20: Mejeriing. | C20: 0.9998128859 | D20: 0 | E20: 0 | F20: 1.861161355 | G20: 0.5382648288 | I20: 3.399239069
A21: Levn.m.kand. | C21: 0 | D21: 3.627518244 | E21: 0 | F21: 0 | G21: 0 | I21: 3.627518244
A22: Dyrlæge | C22: 0.7690388574 | D22: 0 | E22: 0 | F22: 0 | G22: 0 | I22: 0.7690388574
A23: Farmaceut | C23: 20.77714713 | D23: 10.52080085 | E23: 0 | F23: 0.3074908002 | G23: 0 | I23: 31.60543878
A24: Læge | C24: 97.86877066 | D24: 23.34871827 | E24: 0 | F24: 0 | G24: 0 | I24: 121.2174889
A25: Tandlæge | C25: 21.65783072 | D25: 2.557849436 | E25: 0.9998128859 | F25: 0 | G25: 0 | I25: 25.21549305
A26: Arkitekt | C26: 37.36231522 | D26: 36.21031622 | E26: 4.844383459 | F26: 5.546684962 | G26: 9.304559346 | I26: 93.26825922
A27: Landinspek. | C27: 0 | D27: 0 | E27: 0 | F27: 0 | G27: 0 | I27: 0
A28: Bibliotekar | C28: 0 | D28: 2.338302252 | E28: 1.491922909 | F28: 1.030374852 | G28: 0.9998128859 | I28: 5.860412898
A29: Musikudd. | C29: 1.128297886 | D29: 0.6542755567 | E29: 1.975924655 | F29: 1.149504148 | G29: 2.436225285 | I29: 7.344227531
A30: Teolog | C30: 3.510883802 | D30: 3.491548681 | E30: 0.9075032745 | F30: 2.076342544 | G30: 0 | I30: 9.986278301
A31: Psykolog | C31: 83.48468783 | D31: 32.39693133 | E31: 7.881868646 | F31: 2.786752323 | G31: 3.06056259 | I31: 129.6108027
A32: Jurist | C32: 86.2595896 | D32: 11.02788 | E32: 2.988835527 | F32: 3.076155429 | G32: 1.536206574 | I32: 104.8886671
A33: Økonom | C33: 26.40928086 | D33: 9.690014345 | E33: 2.260961766 | F33: 2.242874072 | G33: 0.5632133724 | I33: 41.16634441
A34: Samf. Adm. | C34: 96.71677166 | D34: 56.85087008 | E34: 12.30212686 | F34: 6.679972557 | G34: 1.999625772 | I34: 174.5493669
A35: Cand. Merc. | C35: 336.9531591 | D35: 67.22447452 | E35: 14.06287033 | F35: 6.004490738 | G35: 4.275556664 | I35: 428.5205514
A36: HA | C36: 73.11732053 | D36: 5.198652779 | E36: 4.01422067 | F36: 1.122684463 | G36: 5.537329258 | I36: 88.9902077
A37: HD | C37: 10.13908813 | D37: 7.006798478 | E37: 2.235389509 | F37: 4.344165159 | G37: 0.9998128859 | I37: 24.72525416
A38: Komm. og Sprog | C38: 20.99544689 | D38: 13.54394062 | E38: 5.589097486 | F38: 6.164161417 | G38: 2.586540261 | I38: 48.87918668
A39: Bygningskonst. | C39: 73.10964885 | D39: 32.97891848 | E39: 7.886546498 | F39: 2.03074908 | G39: 1 | I39: 117.0058629
A40: Cand. IT. | C40: 92.82666999 | D40: 20.21455748 | E40: 2.953283852 | F40: 1.476330069 | G40: 0 | I40: 117.4708414
A41: Bac. Samf. | C41: 15.18555479 | D41: 4.075968315 | E41: 0.5382648288 | F41: 0.5382648288 | G41: 0.9998128859 | I41: 21.33786565
A42: Bac. Hum. | C42: 148.6895777 | D42: 20.68546124 | E42: 4.116509699 | F42: 1.422066987 | G42: 2.076342544 | I42: 176.9899582
A43: Bac. Nat. | C43: 82.09193538 | D43: 11.31166968 | E43: 2.307116572 | F43: 0.9075032745 | G43: 0 | I43: 96.61822491
A44: Andre | C44: 86.0899395 | D44: 46.10989833 | E44: 18.61473212 | F44: 14.98035302 | G44: 12.20108526 | I44: 177.9960082
A46: Total | C46: 2307.813073 | D46: 908.3883865 | E46: 213.4881183 | F46: 146.0998565 | G46: 105.8531154 | I46: 3681.64255
A48: Ingeniører i alt | C48: 217.1901703 | D48: 52.80484002 | E48: 21.67654213 | F48: 15.63649972 | G48: 18.28728248 | I48: 325.5953346
A49: Magistre i alt | C49: 520.7434666 | D49: 347.3311295 | E49: 84.74895528 | F49: 60.96239007 | G49: 30.26882056 | I49: 1044.054762
A50: DJØF'ere i alt | C50: 619.4561217 | D50: 149.9918917 | E50: 35.62901516 | F50: 19.12617726 | G50: 13.91193164 | I50: 838.1151375
A57: Horsens
C59: Under 30 år | D59: 30 - 39 år | E59: 40 - 49 år | F59: 50 - 59 år | G59: Over 60 år | I59: I alt
A61: Civ. ing. | C61: 8.444458305 | D61: 0.9998128859 | E61: 0 | F61: 0 | G61: 0 | I61: 9.444271191
A62: Diplom ing. | C62: 9.949479199 | D62: 5.992016466 | E62: 1.815006549 | F62: 0 | G62: 2.106904509 | I62: 19.86340672
A63: Cand. Scient. Tek | C63: 4.521923533 | D63: 3.399239069 | E63: 0.9998128859 | F63: 0 | G63: 0 | I63: 8.920975488
A64: MA. Hum. | C64: 5.783072413 | D64: 13.32314601 | E64: 1.815006549 | F64: 0.9380652404 | G64: 0 | I64: 21.85929021
A65: MA. Nat. | C65: 0.9998128859 | D65: 0.7228840516 | E65: 0 | F65: 0 | G65: 0 | I65: 1.722696938
A66: MA. Ph.d. | C66: 0 | D66: 0 | E66: 0 | F66: 0 | G66: 0 | I66: 0
A67: MA. Samf. | C67: 0 | D67: 3.088005988 | E67: 0 | F67: 0 | G67: 0 | I67: 3.088005988
A68: Øvrige Mag. | C68: 0.9998128859 | D68: 0 | E68: 0 | F68: 0.2613359945 | G68: 0 | I68: 1.26114888
A69: Agronom | C69: 0 | D69: 0 | E69: 0 | F69: 0 | G69: 0.7690388574 | I69: 0.7690388574
A70: Landsk. Arkt. | C70: 0 | D70: 0 | E70: 0 | F70: 0 | G70: 0 | I70: 0
A71: Hortonom | C71: 0 | D71: 0 | E71: 0 | F71: 0 | G71: 0 | I71: 0
A72: Forstkand. | C72: 0 | D72: 0 | E72: 0 | F72: 0 | G72: 0 | I72: 0
A73: Jordbrugsakad. | C73: 0 | D73: 0 | E73: 0 | F73: 0 | G73: 0.7690388574 | I73: 0.7690388574
A74: Mejeriing. | C74: 0 | D74: 0 | E74: 0 | F74: 0 | G74: 0 | I74: 0
A75: Levn.m.kand. | C75: 0 | D75: 0 | E75: 0 | F75: 0 | G75: 0 | I75: 0
A76: Dyrlæge | C76: 0 | D76: 0 | E76: 0 | F76: 0 | G76: 0 | I76: 0
A77: Farmaceut | C77: 1.307303686 | D77: 0.9075032745 | E77: 0 | F77: 0 | G77: 0 | I77: 2.214806961
A78: Læge | C78: 0.4459552174 | D78: 0.8613484688 | E78: 0 | F78: 0 | G78: 0 | I78: 1.307303686
A79: Tandlæge | C79: 0 | D79: 0 | E79: 0 | F79: 0 | G79: 0 | I79: 0
A80: Arkitekt | C80: 0.9998128859 | D80: 0 | E80: 0.5382648288 | F80: 0.5382648288 | G80: 0 | I80: 2.076342544
A81: Landinspek. | C81: 0 | D81: 0 | E81: 0 | F81: 0 | G81: 0 | I81: 0
A82: Bibliotekar | C82: 0 | D82: 0 | E82: 0 | F82: 0 | G82: 0 | I82: 0
A83: Musikudd. | C83: 0 | D83: 0 | E83: 0 | F83: 0 | G83: 0.9998128859 | I83: 0.9998128859
A84: Teolog | C84: 0 | D84: 0 | E84: 0 | F84: 0 | G84: 0 | I84: 0
A85: Psykolog | C85: 0.8862970124 | D85: 4.220046155 | E85: 1.122684463 | F85: 0 | G85: 0 | I85: 6.229027631
A86: Jurist | C86: 0 | D86: 0 | E86: 0 | F86: 0 | G86: 0 | I86: 0
A87: Økonom | C87: 0.1690263831 | D87: 0 | E87: 0.9536580802 | F87: 0 | G87: 0 | I87: 1.122684463
A88: Samf. Adm. | C88: 1.861161355 | D88: 3.487806399 | E88: 0 | F88: 0.2613359945 | G88: 0 | I88: 5.610303749
A89: Cand. Merc. | C89: 10.3349342 | D89: 4.552485499 | E89: 0.5382648288 | F89: 0.7690388574 | G89: 0 | I89: 16.19472338
A90: HA | C90: 4.67598079 | D90: 0 | E90: 0.7690388574 | F90: 0 | G90: 0.9998128859 | I90: 6.444832533
A91: HD | C91: 3.353084264 | D91: 2.615231086 | E91: 0.3074908002 | F91: 1.999625772 | G91: 0 | I91: 8.275431922
A92: Komm. og Sprog | C92: 3.999251544 | D92: 0 | E92: 0 | F92: 0.5382648288 | G92: 0 | I92: 4.537516372
A93: Bygningskonst. | C93: 12.82698185 | D93: 4.812885923 | E93: 1 | F93: 0.5384519429 | G93: 0 | I93: 19.17831972
A94: Cand. IT. | C94: 0.9998128859 | D94: 1.307303686 | E94: 0 | F94: 0 | G94: 0 | I94: 2.307116572
A95: Bac. Samf. | C95: 0 | D95: 0 | E95: 0 | F95: 0 | G95: 0 | I95: 0
A96: Bac. Hum. | C96: 3.70672987 | D96: 0.9998128859 | E96: 0.3074908002 | F96: 0 | G96: 0 | I96: 5.014033556
A97: Bac. Nat. | C97: 13.22272812 | D97: 1.630387326 | E97: 0 | F97: 0 | G97: 0 | I97: 14.85311545
A98: Andre | C98: 11.20314352 | D98: 2.591529969 | E98: 1.630387326 | F98: 0.3074908002 | G98: 0 | I98: 15.73255161
A100: Total | C100: 100.6907628 | D100: 55.51144514 | E100: 11.79710597 | F100: 6.151874259 | G100: 4.875569139 | I100: 179.0267573
A102: Ingeniører i alt | C102: 18.3939375 | D102: 6.991829352 | E102: 1.815006549 | F102: 0 | G102: 2.106904509 | I102: 29.30767791
A103: Magistre i alt | C103: 7.782698185 | D103: 17.13403605 | E103: 1.815006549 | F103: 1.199401235 | G103: 0 | I103: 27.93114202
A104: DJØF'ere i alt | C104: 17.04110273 | D104: 8.040291898 | E104: 2.260961766 | F104: 1.030374852 | G104: 0.9998128859 | I104: 29.37254413
A111: Syddjurs
C113: Under 30 år | D113: 30 - 39 år | E113: 40 - 49 år | F113: 50 - 59 år | G113: Over 60 år | I113: I alt
A115: Civ. ing. | C115: 0.457182062 | D115: 0 | E115: 0.5694505083 | F115: 0.9998128859 | G115: 0 | I115: 2.026445456
A116: Diplom ing. | C116: 0 | D116: 2.953283852 | E116: 1.764485748 | F116: 0 | G116: 1.030374852 | I116: 5.748144452
A117: Cand. Scient. Tek | C117: 0 | D117: 4.214432732 | E117: 0 | F117: 0 | G117: 0 | I117: 4.214432732
A118: MA. Hum. | C118: 3.027505769 | D118: 11.1887981 | E118: 1.660949292 | F118: 1.799413709 | G118: 0 | I118: 17.67666687
A119: MA. Nat. | C119: 0 | D119: 0.3074908002 | E119: 0 | F119: 0 | G119: 0.5382648288 | I119: 0.845755629
A120: MA. Ph.d. | C120: 0 | D120: 0.8151936631 | E120: 0 | F120: 0 | G120: 0 | I120: 0.8151936631
A121: MA. Samf. | C121: 0 | D121: 3.630013098 | E121: 0 | F121: 0.9998128859 | G121: 0 | I121: 4.629825984
A122: Øvrige Mag. | C122: 0 | D122: 0 | E122: 0.9998128859 | F122: 0 | G122: 0 | I122: 0.9998128859
A123: Agronom | C123: 0 | D123: 0 | E123: 0.7690388574 | F123: 0 | G123: 0 | I123: 0.7690388574
A124: Landsk. Arkt. | C124: 0 | D124: 0 | E124: 0 | F124: 0 | G124: 0 | I124: 0
A125: Hortonom | C125: 0 | D125: 0 | E125: 0 | F125: 0 | G125: 0 | I125: 0
A126: Forstkand. | C126: 0 | D126: 0 | E126: 0 | F126: 0 | G126: 0.9998128859 | I126: 0.9998128859
A127: Jordbrugsakad. | C127: 0 | D127: 0 | E127: 0.7690388574 | F127: 0 | G127: 0.9998128859 | I127: 1.768851743
A128: Mejeriing. | C128: 0 | D128: 0 | E128: 0 | F128: 0 | G128: 0 | I128: 0
A129: Levn.m.kand. | C129: 0 | D129: 1.999625772 | E129: 0 | F129: 0 | G129: 0 | I129: 1.999625772
A130: Dyrlæge | C130: 0 | D130: 0 | E130: 0 | F130: 0 | G130: 0 | I130: 0
A131: Farmaceut | C131: 0 | D131: 0 | E131: 0 | F131: 0 | G131: 0 | I131: 0
A132: Læge | C132: 0.2613359945 | D132: 0.7072912119 | E132: 0 | F132: 0 | G132: 0 | I132: 0.9686272064
A133: Tandlæge | C133: 0 | D133: 0 | E133: 0.9998128859 | F133: 0 | G133: 0 | I133: 0.9998128859
A134: Arkitekt | C134: 0 | D134: 2.846628828 | E134: 0.4459552174 | F134: 0.9998128859 | G134: 0 | I134: 4.292396931
A135: Landinspek. | C135: 0 | D135: 0 | E135: 0 | F135: 0 | G135: 0 | I135: 0
A136: Bibliotekar | C136: 0 | D136: 0 | E136: 0 | F136: 0 | G136: 0 | I136: 0
A137: Musikudd. | C137: 0 | D137: 0 | E137: 0 | F137: 0 | G137: 0 | I137: 0
A138: Teolog | C138: 0 | D138: 0 | E138: 0 | F138: 0.9998128859 | G138: 0 | I138: 0.9998128859
A139: Psykolog | C139: 0.9998128859 | D139: 0.9536580802 | E139: 0 | F139: 0 | G139: 0.2613359945 | I139: 2.214806961
A140: Jurist | C140: 0 | D140: 0 | E140: 0.9536580802 | F140: 0 | G140: 0 | I140: 0.9536580802
A141: Økonom | C141: 0 | D141: 0 | E141: 0 | F141: 0 | G141: 0 | I141: 0
A142: Samf. Adm. | C142: 0.9998128859 | D142: 2.491735795 | E142: 0 | F142: 1.538077715 | G142: 0 | I142: 5.029626396
A143: Cand. Merc. | C143: 0.6305744402 | D143: 2.983845818 | E143: 0.5382648288 | F143: 0 | G143: 0 | I143: 4.152685087
A144: HA | C144: 0 | D144: 0 | E144: 0 | F144: 0 | G144: 0.9998128859 | I144: 0.9998128859
A145: HD | C145: 0 | D145: 0 | E145: 0 | F145: 0 | G145: 0.9998128859 | I145: 0.9998128859
A146: Komm. og Sprog | C146: 0 | D146: 0.9998128859 | E146: 0 | F146: 0 | G146: 1.661573006 | I146: 2.661385892
A147: Bygningskonst. | C147: 0 | D147: 1 | E147: 0 | F147: 0 | G147: 0 | I147: 1
A148: Cand. IT. | C148: 0.9998128859 | D148: 0 | E148: 0 | F148: 0 | G148: 0 | I148: 0.9998128859
A149: Bac. Samf. | C149: 0 | D149: 0 | E149: 0 | F149: 0 | G149: 0 | I149: 0
A150: Bac. Hum. | C150: 0 | D150: 0.9998128859 | E150: 0.5382648288 | F150: 0 | G150: 0 | I150: 1.538077715
A151: Bac. Nat. | C151: 0.7228840516 | D151: 0 | E151: 0 | F151: 0 | G151: 0 | I151: 0.7228840516
A152: Andre | C152: 1.168839269 | D152: 0.5382648288 | E152: 0.7877502651 | F152: 2.460550115 | G152: 0.5382648288 | I152: 5.493669307
A154: Total | C154: 9.267760244 | D154: 38.62988836 | E154: 10.0274434 | F154: 9.797293083 | G154: 7.029252167 | I154: 74.75163725
A156: Ingeniører i alt | C156: 0.457182062 | D156: 2.953283852 | E156: 2.333936256 | F156: 0.9998128859 | G156: 1.030374852 | I156: 7.774589908
A157: Magistre i alt | C157: 3.027505769 | D157: 15.94149567 | E157: 2.660762178 | F157: 2.799226595 | G157: 0.5382648288 | I157: 24.96725504
A158: DJØF'ere i alt | C158: 1.630387326 | D158: 5.475581613 | E158: 1.491922909 | F158: 1.538077715 | G158: 0.9998128859 | I158: 11.13578245
A165: Norddjurs
C167: Under 30 år | D167: 30 - 39 år | E167: 40 - 49 år | F167: 50 - 59 år | G167: Over 60 år | I167: I alt
A169: Civ. ing. | C169: 0.9998128859 | D169: 0 | E169: 0 | F169: 0 | G169: 0 | I169: 0.9998128859
A170: Diplom ing. | C170: 0 | D170: 0 | E170: 0 | F170: 0.566955654 | G170: 0 | I170: 0.566955654
A171: Cand. Scient. Tek | C171: 0.9998128859 | D171: 1.896713029 | E171: 0.9998128859 | F171: 0.9075032745 | G171: 0 | I171: 4.803842076
A172: MA. Hum. | C172: 0.3074908002 | D172: 2.580303125 | E172: 0.9998128859 | F172: 0.9998128859 | G172: 0.9998128859 | I172: 5.887232583
A173: MA. Nat. | C173: 0 | D173: 0 | E173: 0 | F173: 0 | G173: 0.2763051207 | I173: 0.2763051207
A174: MA. Ph.d. | C174: 0 | D174: 0 | E174: 0.6399301441 | F174: 0 | G174: 0 | I174: 0.6399301441
A175: MA. Samf. | C175: 0 | D175: 1.400860725 | E175: 0 | F175: 0 | G175: 0 | I175: 1.400860725
A176: Øvrige Mag. | C176: 0 | D176: 0 | E176: 0.6767292459 | F176: 0 | G176: 0 | I176: 0.6767292459
A177: Agronom | C177: 0 | D177: 0 | E177: 0 | F177: 0 | G177: 0 | I177: 0
A178: Landsk. Arkt. | C178: 0 | D178: 0 | E178: 0 | F178: 0 | G178: 0 | I178: 0
A179: Hortonom | C179: 0 | D179: 0 | E179: 0 | F179: 0 | G179: 0 | I179: 0
A180: Forstkand. | C180: 0 | D180: 0 | E180: 0.9998128859 | F180: 0 | G180: 0 | I180: 0.9998128859
A181: Jordbrugsakad. | C181: 0 | D181: 0 | E181: 0.9998128859 | F181: 0 | G181: 0 | I181: 0.9998128859
A182: Mejeriing. | C182: 0 | D182: 0 | E182: 0 | F182: 0 | G182: 0 | I182: 0
A183: Levn.m.kand. | C183: 0 | D183: 0 | E183: 0 | F183: 0 | G183: 0 | I183: 0
A184: Dyrlæge | C184: 0 | D184: 0 | E184: 0 | F184: 0 | G184: 0 | I184: 0
A185: Farmaceut | C185: 0 | D185: 0 | E185: 0 | F185: 0 | G185: 0 | I185: 0
A186: Læge | C186: 0 | D186: 0 | E186: 0 | F186: 0 | G186: 0 | I186: 0
A187: Tandlæge | C187: 0 | D187: 0 | E187: 0 | F187: 0 | G187: 0 | I187: 0
A188: Arkitekt | C188: 0 | D188: 0 | E188: 0 | F188: 0 | G188: 1.937254413 | I188: 1.937254413
A189: Landinspek. | C189: 0 | D189: 0 | E189: 0 | F189: 0 | G189: 0 | I189: 0
A190: Bibliotekar | C190: 0 | D190: 0 | E190: 0 | F190: 0 | G190: 0 | I190: 0
A191: Musikudd. | C191: 0 | D191: 0 | E191: 0.9998128859 | F191: 0 | G191: 0 | I191: 0.9998128859
A192: Teolog | C192: 0 | D192: 0 | E192: 0 | F192: 0.5382648288 | G192: 0 | I192: 0.5382648288
A193: Psykolog | C193: 0 | D193: 0.5382648288 | E193: 0 | F193: 0 | G193: 0 | I193: 0.5382648288
A194: Jurist | C194: 0 | D194: 0 | E194: 0 | F194: 0 | G194: 0 | I194: 0
A195: Økonom | C195: 0 | D195: 0 | E195: 0 | F195: 0.9998128859 | G195: 0 | I195: 0.9998128859
A196: Samf. Adm. | C196: 0 | D196: 0 | E196: 0 | F196: 0 | G196: 0 | I196: 0
A197: Cand. Merc. | C197: 0.9998128859 | D197: 1.678413273 | E197: 0 | F197: 0 | G197: 0 | I197: 2.678226159
A198: HA | C198: 0 | D198: 0 | E198: 0 | F198: 0 | G198: 0 | I198: 0
A199: HD | C199: 0.9536580802 | D199: 0 | E199: 0 | F199: 0 | G199: 0 | I199: 0.9536580802
A200: Komm. og Sprog | C200: 0 | D200: 0 | E200: 0 | F200: 0 | G200: 0 | I200: 0
A201: Bygningskonst. | C201: 0.5384519429 | D201: 0.8615355829 | E201: 0 | F201: 0 | G201: 0 | I201: 1.399987526
A202: Cand. IT. | C202: 0.9998128859 | D202: 0 | E202: 0 | F202: 0.1690263831 | G202: 0 | I202: 1.168839269
A203: Bac. Samf. | C203: 0 | D203: 0 | E203: 0 | F203: 0 | G203: 0 | I203: 0
A204: Bac. Hum. | C204: 1.893594461 | D204: 0 | E204: 0 | F204: 0 | G204: 0 | I204: 1.893594461
A205: Bac. Nat. | C205: 0.9075032745 | D205: 0 | E205: 0.8613484688 | F205: 0 | G205: 0 | I205: 1.768851743
A206: Andre | C206: 0 | D206: 0.5382648288 | E206: 0 | F206: 0 | G206: 0 | I206: 0.5382648288
A208: Total | C208: 8.599950103 | D208: 9.494355392 | E208: 6.177259402 | F208: 4.181375912 | G208: 3.213372419 | I208: 31.66631323
A210: Ingeniører i alt | C210: 0.9998128859 | D210: 0 | E210: 0 | F210: 0.566955654 | G210: 0 | I210: 1.56676854
A211: Magistre i alt | C211: 0.3074908002 | D211: 3.98116385 | E211: 2.316472276 | F211: 0.9998128859 | G211: 1.276118007 | I211: 8.881057818
A212: DJØF'ere i alt | C212: 0.9998128859 | D212: 1.678413273 | E212: 0 | F212: 0.9998128859 | G212: 0 | I212: 3.678039044
A219: Favrskov
C221: Under 30 år | D221: 30 - 39 år | E221: 40 - 49 år | F221: 50 - 59 år | G221: Over 60 år | I221: I alt
A223: Civ. ing. | C223: 2.943304435 | D223: 0.4921100231 | E223: 1.980914364 | F223: 0 | G223: 0 | I223: 5.416328822
A224: Diplom ing. | C224: 0 | D224: 2.168652155 | E224: 0 | F224: 0.9998128859 | G224: 0 | I224: 3.168465041
A225: Cand. Scient. Tek | C225: 4.491361567 | D225: 1.538077715 | E225: 0 | F225: 0 | G225: 0 | I225: 6.029439281
A226: MA. Hum. | C226: 3.630013098 | D226: 8.576685586 | E226: 1.491922909 | F226: 1.491922909 | G226: 0 | I226: 15.1905445
A227: MA. Nat. | C227: 0 | D227: 0.9536580802 | E227: 0 | F227: 0 | G227: 0.4921100231 | I227: 1.445768103
A228: MA. Ph.d. | C228: 0 | D228: 0 | E228: 0 | F228: 0 | G228: 0 | I228: 0
A229: MA. Samf. | C229: 0 | D229: 1.90731616 | E229: 0 | F229: 0 | G229: 0 | I229: 1.90731616
A230: Øvrige Mag. | C230: 0 | D230: 0 | E230: 0 | F230: 0 | G230: 0 | I230: 0
A231: Agronom | C231: 0 | D231: 0 | E231: 0 | F231: 0 | G231: 0.9998128859 | I231: 0.9998128859
A232: Landsk. Arkt. | C232: 0 | D232: 0 | E232: 0 | F232: 0 | G232: 0 | I232: 0
A233: Hortonom | C233: 0 | D233: 0 | E233: 0 | F233: 0 | G233: 0 | I233: 0
A234: Forstkand. | C234: 0 | D234: 0 | E234: 0 | F234: 0 | G234: 0 | I234: 0
A235: Jordbrugsakad. | C235: 0 | D235: 0 | E235: 0 | F235: 0 | G235: 0.9998128859 | I235: 0.9998128859
A236: Mejeriing. | C236: 0 | D236: 0 | E236: 0 | F236: 0 | G236: 0 | I236: 0
A237: Levn.m.kand. | C237: 0 | D237: 0 | E237: 0 | F237: 0 | G237: 0 | I237: 0
A238: Dyrlæge | C238: 0 | D238: 0 | E238: 0 | F238: 0 | G238: 0 | I238: 0
A239: Farmaceut | C239: 0 | D239: 0 | E239: 0 | F239: 0 | G239: 0 | I239: 0
A240: Læge | C240: 1.660949292 | D240: 0.5688267947 | E240: 0 | F240: 0 | G240: 0 | I240: 2.229776087
A241: Tandlæge | C241: 0 | D241: 0 | E241: 0 | F241: 0 | G241: 0 | I241: 0
A242: Arkitekt | C242: 0 | D242: 1.999625772 | E242: 0 | F242: 0 | G242: 0.8151936631 | I242: 2.814819435
A243: Landinspek. | C243: 0 | D243: 0 | E243: 0 | F243: 0 | G243: 0 | I243: 0
... 329 more rows

Sheet Tabel 4P ØJ
A1: Tabel 4. Ledighedsberørte - aldersfordelt
A3: Østjylland
C5: Under 30 år | D5: 30 - 39 år | E5: 40 - 49 år | F5: 50 - 59 år | G5: Over 60 år | I5: I alt
A7: Civ. ing. | C7: =IF(OR('Tabel 4F ØJ'!C7<5,'Tabel 4 ØJ'!C7<0.5),"-",IFERROR('Tabel 4 ØJ'!C7/'Tabel 4F ØJ'!C7*100,"-")) -> 14.94140625 | D7: =IF(OR('Tabel 4F ØJ'!D7<5,'Tabel 4 ØJ'!D7<0.5),"-",IFERROR('Tabel 4 ØJ'!D7/'Tabel 4F ØJ'!D7*100,"-")) -> 1.379310345 | E7: =IF(OR('Tabel 4F ØJ'!E7<5,'Tabel 4 ØJ'!E7<0.5),"-",IFERROR('Tabel 4 ØJ'!E7/'Tabel 4F ØJ'!E7*100,"-")) -> 0.702106319 | F7: =IF(OR('Tabel 4F ØJ'!F7<5,'Tabel 4 ØJ'!F7<0.5),"-",IFERROR('Tabel 4 ØJ'!F7/'Tabel 4F ØJ'!F7*100,"-")) -> 0.8498583569 | G7: =IF(OR('Tabel 4F ØJ'!G7<5,'Tabel 4 ØJ'!G7<0.5),"-",IFERROR('Tabel 4 ØJ'!G7/'Tabel 4F ØJ'!G7*100,"-")) -> 1.428571429 | I7: =IF(OR('Tabel 4F ØJ'!I7<5,'Tabel 4 ØJ'!I7<0.5),"-",IFERROR('Tabel 4 ØJ'!I7/'Tabel 4F ØJ'!I7*100,"-")) -> 4.126576866
A8: Diplom ing. | C8: =IF(OR('Tabel 4F ØJ'!C8<5,'Tabel 4 ØJ'!C8<0.5),"-",IFERROR('Tabel 4 ØJ'!C8/'Tabel 4F ØJ'!C8*100,"-")) -> 10.40462428 | D8: =IF(OR('Tabel 4F ØJ'!D8<5,'Tabel 4 ØJ'!D8<0.5),"-",IFERROR('Tabel 4 ØJ'!D8/'Tabel 4F ØJ'!D8*100,"-")) -> 2.88590604 | E8: =IF(OR('Tabel 4F ØJ'!E8<5,'Tabel 4 ØJ'!E8<0.5),"-",IFERROR('Tabel 4 ØJ'!E8/'Tabel 4F ØJ'!E8*100,"-")) -> 1.124260355 | F8: =IF(OR('Tabel 4F ØJ'!F8<5,'Tabel 4 ØJ'!F8<0.5),"-",IFERROR('Tabel 4 ØJ'!F8/'Tabel 4F ØJ'!F8*100,"-")) -> 0.8670520231 | G8: =IF(OR('Tabel 4F ØJ'!G8<5,'Tabel 4 ØJ'!G8<0.5),"-",IFERROR('Tabel 4 ØJ'!G8/'Tabel 4F ØJ'!G8*100,"-")) -> 2.594594595 | I8: =IF(OR('Tabel 4F ØJ'!I8<5,'Tabel 4 ØJ'!I8<0.5),"-",IFERROR('Tabel 4 ØJ'!I8/'Tabel 4F ØJ'!I8*100,"-")) -> 2.936694833
A9: Cand. Scient. Tek | C9: =IF(OR('Tabel 4F ØJ'!C9<5,'Tabel 4 ØJ'!C9<0.5),"-",IFERROR('Tabel 4 ØJ'!C9/'Tabel 4F ØJ'!C9*100,"-")) -> 19.11196911 | D9: =IF(OR('Tabel 4F ØJ'!D9<5,'Tabel 4 ØJ'!D9<0.5),"-",IFERROR('Tabel 4 ØJ'!D9/'Tabel 4F ØJ'!D9*100,"-")) -> 6.070640177 | E9: =IF(OR('Tabel 4F ØJ'!E9<5,'Tabel 4 ØJ'!E9<0.5),"-",IFERROR('Tabel 4 ØJ'!E9/'Tabel 4F ØJ'!E9*100,"-")) -> 1.735357918 | F9: =IF(OR('Tabel 4F ØJ'!F9<5,'Tabel 4 ØJ'!F9<0.5),"-",IFERROR('Tabel 4 ØJ'!F9/'Tabel 4F ØJ'!F9*100,"-")) -> 3.546099291 | G9: =IF(OR('Tabel 4F ØJ'!G9<5,'Tabel 4 ØJ'!G9<0.5),"-",IFERROR('Tabel 4 ØJ'!G9/'Tabel 4F ØJ'!G9*100,"-")) -> 4 | I9: =IF(OR('Tabel 4F ØJ'!I9<5,'Tabel 4 ØJ'!I9<0.5),"-",IFERROR('Tabel 4 ØJ'!I9/'Tabel 4F ØJ'!I9*100,"-")) -> 9.26618705
A10: MA. Hum. | C10: =IF(OR('Tabel 4F ØJ'!C10<5,'Tabel 4 ØJ'!C10<0.5),"-",IFERROR('Tabel 4 ØJ'!C10/'Tabel 4F ØJ'!C10*100,"-")) -> 29.48263643 | D10: =IF(OR('Tabel 4F ØJ'!D10<5,'Tabel 4 ØJ'!D10<0.5),"-",IFERROR('Tabel 4 ØJ'!D10/'Tabel 4F ØJ'!D10*100,"-")) -> 11.42857143 | E10: =IF(OR('Tabel 4F ØJ'!E10<5,'Tabel 4 ØJ'!E10<0.5),"-",IFERROR('Tabel 4 ØJ'!E10/'Tabel 4F ØJ'!E10*100,"-")) -> 3.654358584 | F10: =IF(OR('Tabel 4F ØJ'!F10<5,'Tabel 4 ØJ'!F10<0.5),"-",IFERROR('Tabel 4 ØJ'!F10/'Tabel 4F ØJ'!F10*100,"-")) -> 4.995970991 | G10: =IF(OR('Tabel 4F ØJ'!G10<5,'Tabel 4 ØJ'!G10<0.5),"-",IFERROR('Tabel 4 ØJ'!G10/'Tabel 4F ØJ'!G10*100,"-")) -> 6.029106029 | I10: =IF(OR('Tabel 4F ØJ'!I10<5,'Tabel 4 ØJ'!I10<0.5),"-",IFERROR('Tabel 4 ØJ'!I10/'Tabel 4F ØJ'!I10*100,"-")) -> 10.79564969
A11: MA. Nat. | C11: =IF(OR('Tabel 4F ØJ'!C11<5,'Tabel 4 ØJ'!C11<0.5),"-",IFERROR('Tabel 4 ØJ'!C11/'Tabel 4F ØJ'!C11*100,"-")) -> 23.07692308 | D11: =IF(OR('Tabel 4F ØJ'!D11<5,'Tabel 4 ØJ'!D11<0.5),"-",IFERROR('Tabel 4 ØJ'!D11/'Tabel 4F ØJ'!D11*100,"-")) -> 4.48 | E11: =IF(OR('Tabel 4F ØJ'!E11<5,'Tabel 4 ØJ'!E11<0.5),"-",IFERROR('Tabel 4 ØJ'!E11/'Tabel 4F ØJ'!E11*100,"-")) -> 1.564380265 | F11: =IF(OR('Tabel 4F ØJ'!F11<5,'Tabel 4 ØJ'!F11<0.5),"-",IFERROR('Tabel 4 ØJ'!F11/'Tabel 4F ØJ'!F11*100,"-")) -> 0.84643289 | G11: =IF(OR('Tabel 4F ØJ'!G11<5,'Tabel 4 ØJ'!G11<0.5),"-",IFERROR('Tabel 4 ØJ'!G11/'Tabel 4F ØJ'!G11*100,"-")) -> 2.762430939 | I11: =IF(OR('Tabel 4F ØJ'!I11<5,'Tabel 4 ØJ'!I11<0.5),"-",IFERROR('Tabel 4 ØJ'!I11/'Tabel 4F ØJ'!I11*100,"-")) -> 4.478114478
A12: MA. Ph.d. | C12: =IF(OR('Tabel 4F ØJ'!C12<5,'Tabel 4 ØJ'!C12<0.5),"-",IFERROR('Tabel 4 ØJ'!C12/'Tabel 4F ØJ'!C12*100,"-")) -> - | D12: =IF(OR('Tabel 4F ØJ'!D12<5,'Tabel 4 ØJ'!D12<0.5),"-",IFERROR('Tabel 4 ØJ'!D12/'Tabel 4F ØJ'!D12*100,"-")) -> 3.448275862 | E12: =IF(OR('Tabel 4F ØJ'!E12<5,'Tabel 4 ØJ'!E12<0.5),"-",IFERROR('Tabel 4 ØJ'!E12/'Tabel 4F ØJ'!E12*100,"-")) -> 1.25 | F12: =IF(OR('Tabel 4F ØJ'!F12<5,'Tabel 4 ØJ'!F12<0.5),"-",IFERROR('Tabel 4 ØJ'!F12/'Tabel 4F ØJ'!F12*100,"-")) -> 2.290076336 | G12: =IF(OR('Tabel 4F ØJ'!G12<5,'Tabel 4 ØJ'!G12<0.5),"-",IFERROR('Tabel 4 ØJ'!G12/'Tabel 4F ØJ'!G12*100,"-")) -> 5.714285714 | I12: =IF(OR('Tabel 4F ØJ'!I12<5,'Tabel 4 ØJ'!I12<0.5),"-",IFERROR('Tabel 4 ØJ'!I12/'Tabel 4F ØJ'!I12*100,"-")) -> 2.372881356
A13: MA. Samf. | C13: =IF(OR('Tabel 4F ØJ'!C13<5,'Tabel 4 ØJ'!C13<0.5),"-",IFERROR('Tabel 4 ØJ'!C13/'Tabel 4F ØJ'!C13*100,"-")) -> 28.57142857 | D13: =IF(OR('Tabel 4F ØJ'!D13<5,'Tabel 4 ØJ'!D13<0.5),"-",IFERROR('Tabel 4 ØJ'!D13/'Tabel 4F ØJ'!D13*100,"-")) -> 10.83032491 | E13: =IF(OR('Tabel 4F ØJ'!E13<5,'Tabel 4 ØJ'!E13<0.5),"-",IFERROR('Tabel 4 ØJ'!E13/'Tabel 4F ØJ'!E13*100,"-")) -> 4.615384615 | F13: =IF(OR('Tabel 4F ØJ'!F13<5,'Tabel 4 ØJ'!F13<0.5),"-",IFERROR('Tabel 4 ØJ'!F13/'Tabel 4F ØJ'!F13*100,"-")) -> 13.04347826 | G13: =IF(OR('Tabel 4F ØJ'!G13<5,'Tabel 4 ØJ'!G13<0.5),"-",IFERROR('Tabel 4 ØJ'!G13/'Tabel 4F ØJ'!G13*100,"-")) -> - | I13: =IF(OR('Tabel 4F ØJ'!I13<5,'Tabel 4 ØJ'!I13<0.5),"-",IFERROR('Tabel 4 ØJ'!I13/'Tabel 4F ØJ'!I13*100,"-")) -> 16.16580311
A14: Øvrige Mag. | C14: =IF(OR('Tabel 4F ØJ'!C14<5,'Tabel 4 ØJ'!C14<0.5),"-",IFERROR('Tabel 4 ØJ'!C14/'Tabel 4F ØJ'!C14*100,"-")) -> 30.04694836 | D14: =IF(OR('Tabel 4F ØJ'!D14<5,'Tabel 4 ØJ'!D14<0.5),"-",IFERROR('Tabel 4 ØJ'!D14/'Tabel 4F ØJ'!D14*100,"-")) -> 16.02564103 | E14: =IF(OR('Tabel 4F ØJ'!E14<5,'Tabel 4 ØJ'!E14<0.5),"-",IFERROR('Tabel 4 ØJ'!E14/'Tabel 4F ØJ'!E14*100,"-")) -> 5.405405405 | F14: =IF(OR('Tabel 4F ØJ'!F14<5,'Tabel 4 ØJ'!F14<0.5),"-",IFERROR('Tabel 4 ØJ'!F14/'Tabel 4F ØJ'!F14*100,"-")) -> 3.973509934 | G14: =IF(OR('Tabel 4F ØJ'!G14<5,'Tabel 4 ØJ'!G14<0.5),"-",IFERROR('Tabel 4 ØJ'!G14/'Tabel 4F ØJ'!G14*100,"-")) -> 3.529411765 | I14: =IF(OR('Tabel 4F ØJ'!I14<5,'Tabel 4 ØJ'!I14<0.5),"-",IFERROR('Tabel 4 ØJ'!I14/'Tabel 4F ØJ'!I14*100,"-")) -> 14.07702523
A15: Agronom | C15: =IF(OR('Tabel 4F ØJ'!C15<5,'Tabel 4 ØJ'!C15<0.5),"-",IFERROR('Tabel 4 ØJ'!C15/'Tabel 4F ØJ'!C15*100,"-")) -> - | D15: =IF(OR('Tabel 4F ØJ'!D15<5,'Tabel 4 ØJ'!D15<0.5),"-",IFERROR('Tabel 4 ØJ'!D15/'Tabel 4F ØJ'!D15*100,"-")) -> 5.405405405 | E15: =IF(OR('Tabel 4F ØJ'!E15<5,'Tabel 4 ØJ'!E15<0.5),"-",IFERROR('Tabel 4 ØJ'!E15/'Tabel 4F ØJ'!E15*100,"-")) -> 1.428571429 | F15: =IF(OR('Tabel 4F ØJ'!F15<5,'Tabel 4 ØJ'!F15<0.5),"-",IFERROR('Tabel 4 ØJ'!F15/'Tabel 4F ØJ'!F15*100,"-")) -> - | G15: =IF(OR('Tabel 4F ØJ'!G15<5,'Tabel 4 ØJ'!G15<0.5),"-",IFERROR('Tabel 4 ØJ'!G15/'Tabel 4F ØJ'!G15*100,"-")) -> 5.194805195 | I15: =IF(OR('Tabel 4F ØJ'!I15<5,'Tabel 4 ØJ'!I15<0.5),"-",IFERROR('Tabel 4 ØJ'!I15/'Tabel 4F ØJ'!I15*100,"-")) -> 2.095808383
A16: Landsk. Arkt. | C16: =IF(OR('Tabel 4F ØJ'!C16<5,'Tabel 4 ØJ'!C16<0.5),"-",IFERROR('Tabel 4 ØJ'!C16/'Tabel 4F ØJ'!C16*100,"-")) -> - | D16: =IF(OR('Tabel 4F ØJ'!D16<5,'Tabel 4 ØJ'!D16<0.5),"-",IFERROR('Tabel 4 ØJ'!D16/'Tabel 4F ØJ'!D16*100,"-")) -> - | E16: =IF(OR('Tabel 4F ØJ'!E16<5,'Tabel 4 ØJ'!E16<0.5),"-",IFERROR('Tabel 4 ØJ'!E16/'Tabel 4F ØJ'!E16*100,"-")) -> - | F16: =IF(OR('Tabel 4F ØJ'!F16<5,'Tabel 4 ØJ'!F16<0.5),"-",IFERROR('Tabel 4 ØJ'!F16/'Tabel 4F ØJ'!F16*100,"-")) -> - | G16: =IF(OR('Tabel 4F ØJ'!G16<5,'Tabel 4 ØJ'!G16<0.5),"-",IFERROR('Tabel 4 ØJ'!G16/'Tabel 4F ØJ'!G16*100,"-")) -> - | I16: =IF(OR('Tabel 4F ØJ'!I16<5,'Tabel 4 ØJ'!I16<0.5),"-",IFERROR('Tabel 4 ØJ'!I16/'Tabel 4F ØJ'!I16*100,"-")) -> 2.380952381
A17: Hortonom | C17: =IF(OR('Tabel 4F ØJ'!C17<5,'Tabel 4 ØJ'!C17<0.5),"-",IFERROR('Tabel 4 ØJ'!C17/'Tabel 4F ØJ'!C17*100,"-")) -> - | D17: =IF(OR('Tabel 4F ØJ'!D17<5,'Tabel 4 ØJ'!D17<0.5),"-",IFERROR('Tabel 4 ØJ'!D17/'Tabel 4F ØJ'!D17*100,"-")) -> - | E17: =IF(OR('Tabel 4F ØJ'!E17<5,'Tabel 4 ØJ'!E17<0.5),"-",IFERROR('Tabel 4 ØJ'!E17/'Tabel 4F ØJ'!E17*100,"-")) -> - | F17: =IF(OR('Tabel 4F ØJ'!F17<5,'Tabel 4 ØJ'!F17<0.5),"-",IFERROR('Tabel 4 ØJ'!F17/'Tabel 4F ØJ'!F17*100,"-")) -> - | G17: =IF(OR('Tabel 4F ØJ'!G17<5,'Tabel 4 ØJ'!G17<0.5),"-",IFERROR('Tabel 4 ØJ'!G17/'Tabel 4F ØJ'!G17*100,"-")) -> 28.57142857 | I17: =IF(OR('Tabel 4F ØJ'!I17<5,'Tabel 4 ØJ'!I17<0.5),"-",IFERROR('Tabel 4 ØJ'!I17/'Tabel 4F ØJ'!I17*100,"-")) -> 7.692307692
A18: Forstkand. | C18: =IF(OR('Tabel 4F ØJ'!C18<5,'Tabel 4 ØJ'!C18<0.5),"-",IFERROR('Tabel 4 ØJ'!C18/'Tabel 4F ØJ'!C18*100,"-")) -> - | D18: =IF(OR('Tabel 4F ØJ'!D18<5,'Tabel 4 ØJ'!D18<0.5),"-",IFERROR('Tabel 4 ØJ'!D18/'Tabel 4F ØJ'!D18*100,"-")) -> - | E18: =IF(OR('Tabel 4F ØJ'!E18<5,'Tabel 4 ØJ'!E18<0.5),"-",IFERROR('Tabel 4 ØJ'!E18/'Tabel 4F ØJ'!E18*100,"-")) -> 4.545454545 | F18: =IF(OR('Tabel 4F ØJ'!F18<5,'Tabel 4 ØJ'!F18<0.5),"-",IFERROR('Tabel 4 ØJ'!F18/'Tabel 4F ØJ'!F18*100,"-")) -> - | G18: =IF(OR('Tabel 4F ØJ'!G18<5,'Tabel 4 ØJ'!G18<0.5),"-",IFERROR('Tabel 4 ØJ'!G18/'Tabel 4F ØJ'!G18*100,"-")) -> 11.11111111 | I18: =IF(OR('Tabel 4F ØJ'!I18<5,'Tabel 4 ØJ'!I18<0.5),"-",IFERROR('Tabel 4 ØJ'!I18/'Tabel 4F ØJ'!I18*100,"-")) -> 3.773584906
A19: Jordbrugsakad. | C19: =IF(OR('Tabel 4F ØJ'!C19<5,'Tabel 4 ØJ'!C19<0.5),"-",IFERROR('Tabel 4 ØJ'!C19/'Tabel 4F ØJ'!C19*100,"-")) -> 7.142857143 | D19: =IF(OR('Tabel 4F ØJ'!D19<5,'Tabel 4 ØJ'!D19<0.5),"-",IFERROR('Tabel 4 ØJ'!D19/'Tabel 4F ØJ'!D19*100,"-")) -> 3.50877193 | E19: =IF(OR('Tabel 4F ØJ'!E19<5,'Tabel 4 ØJ'!E19<0.5),"-",IFERROR('Tabel 4 ØJ'!E19/'Tabel 4F ØJ'!E19*100,"-")) -> 1.709401709 | F19: =IF(OR('Tabel 4F ØJ'!F19<5,'Tabel 4 ØJ'!F19<0.5),"-",IFERROR('Tabel 4 ØJ'!F19/'Tabel 4F ØJ'!F19*100,"-")) -> - | G19: =IF(OR('Tabel 4F ØJ'!G19<5,'Tabel 4 ØJ'!G19<0.5),"-",IFERROR('Tabel 4 ØJ'!G19/'Tabel 4F ØJ'!G19*100,"-")) -> 7.446808511 | I19: =IF(OR('Tabel 4F ØJ'!I19<5,'Tabel 4 ØJ'!I19<0.5),"-",IFERROR('Tabel 4 ØJ'!I19/'Tabel 4F ØJ'!I19*100,"-")) -> 2.637362637
A20: Mejeriing. | C20: =IF(OR('Tabel 4F ØJ'!C20<5,'Tabel 4 ØJ'!C20<0.5),"-",IFERROR('Tabel 4 ØJ'!C20/'Tabel 4F ØJ'!C20*100,"-")) -> 16.66666667 | D20: =IF(OR('Tabel 4F ØJ'!D20<5,'Tabel 4 ØJ'!D20<0.5),"-",IFERROR('Tabel 4 ØJ'!D20/'Tabel 4F ØJ'!D20*100,"-")) -> - | E20: =IF(OR('Tabel 4F ØJ'!E20<5,'Tabel 4 ØJ'!E20<0.5),"-",IFERROR('Tabel 4 ØJ'!E20/'Tabel 4F ØJ'!E20*100,"-")) -> - | F20: =IF(OR('Tabel 4F ØJ'!F20<5,'Tabel 4 ØJ'!F20<0.5),"-",IFERROR('Tabel 4 ØJ'!F20/'Tabel 4F ØJ'!F20*100,"-")) -> 5.405405405 | G20: =IF(OR('Tabel 4F ØJ'!G20<5,'Tabel 4 ØJ'!G20<0.5),"-",IFERROR('Tabel 4 ØJ'!G20/'Tabel 4F ØJ'!G20*100,"-")) -> 4.166666667 | I20: =IF(OR('Tabel 4F ØJ'!I20<5,'Tabel 4 ØJ'!I20<0.5),"-",IFERROR('Tabel 4 ØJ'!I20/'Tabel 4F ØJ'!I20*100,"-")) -> 4.545454545
A21: Levn.m.kand. | C21: =IF(OR('Tabel 4F ØJ'!C21<5,'Tabel 4 ØJ'!C21<0.5),"-",IFERROR('Tabel 4 ØJ'!C21/'Tabel 4F ØJ'!C21*100,"-")) -> - | D21: =IF(OR('Tabel 4F ØJ'!D21<5,'Tabel 4 ØJ'!D21<0.5),"-",IFERROR('Tabel 4 ØJ'!D21/'Tabel 4F ØJ'!D21*100,"-")) -> 20 | E21: =IF(OR('Tabel 4F ØJ'!E21<5,'Tabel 4 ØJ'!E21<0.5),"-",IFERROR('Tabel 4 ØJ'!E21/'Tabel 4F ØJ'!E21*100,"-")) -> - | F21: =IF(OR('Tabel 4F ØJ'!F21<5,'Tabel 4 ØJ'!F21<0.5),"-",IFERROR('Tabel 4 ØJ'!F21/'Tabel 4F ØJ'!F21*100,"-")) -> - | G21: =IF(OR('Tabel 4F ØJ'!G21<5,'Tabel 4 ØJ'!G21<0.5),"-",IFERROR('Tabel 4 ØJ'!G21/'Tabel 4F ØJ'!G21*100,"-")) -> - | I21: =IF(OR('Tabel 4F ØJ'!I21<5,'Tabel 4 ØJ'!I21<0.5),"-",IFERROR('Tabel 4 ØJ'!I21/'Tabel 4F ØJ'!I21*100,"-")) -> 11.42857143
A22: Dyrlæge | C22: =IF(OR('Tabel 4F ØJ'!C22<5,'Tabel 4 ØJ'!C22<0.5),"-",IFERROR('Tabel 4 ØJ'!C22/'Tabel 4F ØJ'!C22*100,"-")) -> 3.703703704 | D22: =IF(OR('Tabel 4F ØJ'!D22<5,'Tabel 4 ØJ'!D22<0.5),"-",IFERROR('Tabel 4 ØJ'!D22/'Tabel 4F ØJ'!D22*100,"-")) -> - | E22: =IF(OR('Tabel 4F ØJ'!E22<5,'Tabel 4 ØJ'!E22<0.5),"-",IFERROR('Tabel 4 ØJ'!E22/'Tabel 4F ØJ'!E22*100,"-")) -> - | F22: =IF(OR('Tabel 4F ØJ'!F22<5,'Tabel 4 ØJ'!F22<0.5),"-",IFERROR('Tabel 4 ØJ'!F22/'Tabel 4F ØJ'!F22*100,"-")) -> - | G22: =IF(OR('Tabel 4F ØJ'!G22<5,'Tabel 4 ØJ'!G22<0.5),"-",IFERROR('Tabel 4 ØJ'!G22/'Tabel 4F ØJ'!G22*100,"-")) -> - | I22: =IF(OR('Tabel 4F ØJ'!I22<5,'Tabel 4 ØJ'!I22<0.5),"-",IFERROR('Tabel 4 ØJ'!I22/'Tabel 4F ØJ'!I22*100,"-")) -> 0.4132231405
A23: Farmaceut | C23: =IF(OR('Tabel 4F ØJ'!C23<5,'Tabel 4 ØJ'!C23<0.5),"-",IFERROR('Tabel 4 ØJ'!C23/'Tabel 4F ØJ'!C23*100,"-")) -> 20 | D23: =IF(OR('Tabel 4F ØJ'!D23<5,'Tabel 4 ØJ'!D23<0.5),"-",IFERROR('Tabel 4 ØJ'!D23/'Tabel 4F ØJ'!D23*100,"-")) -> 8.275862069 | E23: =IF(OR('Tabel 4F ØJ'!E23<5,'Tabel 4 ØJ'!E23<0.5),"-",IFERROR('Tabel 4 ØJ'!E23/'Tabel 4F ØJ'!E23*100,"-")) -> - | F23: =IF(OR('Tabel 4F ØJ'!F23<5,'Tabel 4 ØJ'!F23<0.5),"-",IFERROR('Tabel 4 ØJ'!F23/'Tabel 4F ØJ'!F23*100,"-")) -> 2.222222222 | G23: =IF(OR('Tabel 4F ØJ'!G23<5,'Tabel 4 ØJ'!G23<0.5),"-",IFERROR('Tabel 4 ØJ'!G23/'Tabel 4F ØJ'!G23*100,"-")) -> - | I23: =IF(OR('Tabel 4F ØJ'!I23<5,'Tabel 4 ØJ'!I23<0.5),"-",IFERROR('Tabel 4 ØJ'!I23/'Tabel 4F ØJ'!I23*100,"-")) -> 10.12987013
A24: Læge | C24: =IF(OR('Tabel 4F ØJ'!C24<5,'Tabel 4 ØJ'!C24<0.5),"-",IFERROR('Tabel 4 ØJ'!C24/'Tabel 4F ØJ'!C24*100,"-")) -> 21.28027682 | D24: =IF(OR('Tabel 4F ØJ'!D24<5,'Tabel 4 ØJ'!D24<0.5),"-",IFERROR('Tabel 4 ØJ'!D24/'Tabel 4F ØJ'!D24*100,"-")) -> 2.767102229 | E24: =IF(OR('Tabel 4F ØJ'!E24<5,'Tabel 4 ØJ'!E24<0.5),"-",IFERROR('Tabel 4 ØJ'!E24/'Tabel 4F ØJ'!E24*100,"-")) -> - | F24: =IF(OR('Tabel 4F ØJ'!F24<5,'Tabel 4 ØJ'!F24<0.5),"-",IFERROR('Tabel 4 ØJ'!F24/'Tabel 4F ØJ'!F24*100,"-")) -> - | G24: =IF(OR('Tabel 4F ØJ'!G24<5,'Tabel 4 ØJ'!G24<0.5),"-",IFERROR('Tabel 4 ØJ'!G24/'Tabel 4F ØJ'!G24*100,"-")) -> - | I24: =IF(OR('Tabel 4F ØJ'!I24<5,'Tabel 4 ØJ'!I24<0.5),"-",IFERROR('Tabel 4 ØJ'!I24/'Tabel 4F ØJ'!I24*100,"-")) -> 5.553615089
A25: Tandlæge | C25: =IF(OR('Tabel 4F ØJ'!C25<5,'Tabel 4 ØJ'!C25<0.5),"-",IFERROR('Tabel 4 ØJ'!C25/'Tabel 4F ØJ'!C25*100,"-")) -> 26.66666667 | D25: =IF(OR('Tabel 4F ØJ'!D25<5,'Tabel 4 ØJ'!D25<0.5),"-",IFERROR('Tabel 4 ØJ'!D25/'Tabel 4F ØJ'!D25*100,"-")) -> 1.935483871 | E25: =IF(OR('Tabel 4F ØJ'!E25<5,'Tabel 4 ØJ'!E25<0.5),"-",IFERROR('Tabel 4 ØJ'!E25/'Tabel 4F ØJ'!E25*100,"-")) -> 1.098901099 | F25: =IF(OR('Tabel 4F ØJ'!F25<5,'Tabel 4 ØJ'!F25<0.5),"-",IFERROR('Tabel 4 ØJ'!F25/'Tabel 4F ØJ'!F25*100,"-")) -> - | G25: =IF(OR('Tabel 4F ØJ'!G25<5,'Tabel 4 ØJ'!G25<0.5),"-",IFERROR('Tabel 4 ØJ'!G25/'Tabel 4F ØJ'!G25*100,"-")) -> - | I25: =IF(OR('Tabel 4F ØJ'!I25<5,'Tabel 4 ØJ'!I25<0.5),"-",IFERROR('Tabel 4 ØJ'!I25/'Tabel 4F ØJ'!I25*100,"-")) -> 6.464646465
A26: Arkitekt | C26: =IF(OR('Tabel 4F ØJ'!C26<5,'Tabel 4 ØJ'!C26<0.5),"-",IFERROR('Tabel 4 ØJ'!C26/'Tabel 4F ØJ'!C26*100,"-")) -> 32.90322581 | D26: =IF(OR('Tabel 4F ØJ'!D26<5,'Tabel 4 ØJ'!D26<0.5),"-",IFERROR('Tabel 4 ØJ'!D26/'Tabel 4F ØJ'!D26*100,"-")) -> 9.734513274 | E26: =IF(OR('Tabel 4F ØJ'!E26<5,'Tabel 4 ØJ'!E26<0.5),"-",IFERROR('Tabel 4 ØJ'!E26/'Tabel 4F ØJ'!E26*100,"-")) -> 1.707779886 | F26: =IF(OR('Tabel 4F ØJ'!F26<5,'Tabel 4 ØJ'!F26<0.5),"-",IFERROR('Tabel 4 ØJ'!F26/'Tabel 4F ØJ'!F26*100,"-")) -> 2.846975089 | G26: =IF(OR('Tabel 4F ØJ'!G26<5,'Tabel 4 ØJ'!G26<0.5),"-",IFERROR('Tabel 4 ØJ'!G26/'Tabel 4F ØJ'!G26*100,"-")) -> 7.185628743 | I26: =IF(OR('Tabel 4F ØJ'!I26<5,'Tabel 4 ØJ'!I26<0.5),"-",IFERROR('Tabel 4 ØJ'!I26/'Tabel 4F ØJ'!I26*100,"-")) -> 7.83817952
A27: Landinspek. | C27: =IF(OR('Tabel 4F ØJ'!C27<5,'Tabel 4 ØJ'!C27<0.5),"-",IFERROR('Tabel 4 ØJ'!C27/'Tabel 4F ØJ'!C27*100,"-")) -> - | D27: =IF(OR('Tabel 4F ØJ'!D27<5,'Tabel 4 ØJ'!D27<0.5),"-",IFERROR('Tabel 4 ØJ'!D27/'Tabel 4F ØJ'!D27*100,"-")) -> - | E27: =IF(OR('Tabel 4F ØJ'!E27<5,'Tabel 4 ØJ'!E27<0.5),"-",IFERROR('Tabel 4 ØJ'!E27/'Tabel 4F ØJ'!E27*100,"-")) -> - | F27: =IF(OR('Tabel 4F ØJ'!F27<5,'Tabel 4 ØJ'!F27<0.5),"-",IFERROR('Tabel 4 ØJ'!F27/'Tabel 4F ØJ'!F27*100,"-")) -> - | G27: =IF(OR('Tabel 4F ØJ'!G27<5,'Tabel 4 ØJ'!G27<0.5),"-",IFERROR('Tabel 4 ØJ'!G27/'Tabel 4F ØJ'!G27*100,"-")) -> - | I27: =IF(OR('Tabel 4F ØJ'!I27<5,'Tabel 4 ØJ'!I27<0.5),"-",IFERROR('Tabel 4 ØJ'!I27/'Tabel 4F ØJ'!I27*100,"-")) -> -
A28: Bibliotekar | C28: =IF(OR('Tabel 4F ØJ'!C28<5,'Tabel 4 ØJ'!C28<0.5),"-",IFERROR('Tabel 4 ØJ'!C28/'Tabel 4F ØJ'!C28*100,"-")) -> - | D28: =IF(OR('Tabel 4F ØJ'!D28<5,'Tabel 4 ØJ'!D28<0.5),"-",IFERROR('Tabel 4 ØJ'!D28/'Tabel 4F ØJ'!D28*100,"-")) -> 4.225352113 | E28: =IF(OR('Tabel 4F ØJ'!E28<5,'Tabel 4 ØJ'!E28<0.5),"-",IFERROR('Tabel 4 ØJ'!E28/'Tabel 4F ØJ'!E28*100,"-")) -> 1.851851852 | F28: =IF(OR('Tabel 4F ØJ'!F28<5,'Tabel 4 ØJ'!F28<0.5),"-",IFERROR('Tabel 4 ØJ'!F28/'Tabel 4F ØJ'!F28*100,"-")) -> 2.083333333 | G28: =IF(OR('Tabel 4F ØJ'!G28<5,'Tabel 4 ØJ'!G28<0.5),"-",IFERROR('Tabel 4 ØJ'!G28/'Tabel 4F ØJ'!G28*100,"-")) -> 1.666666667 | I28: =IF(OR('Tabel 4F ØJ'!I28<5,'Tabel 4 ØJ'!I28<0.5),"-",IFERROR('Tabel 4 ØJ'!I28/'Tabel 4F ØJ'!I28*100,"-")) -> 2.359882006
A29: Musikudd. | C29: =IF(OR('Tabel 4F ØJ'!C29<5,'Tabel 4 ØJ'!C29<0.5),"-",IFERROR('Tabel 4 ØJ'!C29/'Tabel 4F ØJ'!C29*100,"-")) -> 28.57142857 | D29: =IF(OR('Tabel 4F ØJ'!D29<5,'Tabel 4 ØJ'!D29<0.5),"-",IFERROR('Tabel 4 ØJ'!D29/'Tabel 4F ØJ'!D29*100,"-")) -> 5.555555556 | E29: =IF(OR('Tabel 4F ØJ'!E29<5,'Tabel 4 ØJ'!E29<0.5),"-",IFERROR('Tabel 4 ØJ'!E29/'Tabel 4F ØJ'!E29*100,"-")) -> 10.34482759 | F29: =IF(OR('Tabel 4F ØJ'!F29<5,'Tabel 4 ØJ'!F29<0.5),"-",IFERROR('Tabel 4 ØJ'!F29/'Tabel 4F ØJ'!F29*100,"-")) -> 4.444444444 | G29: =IF(OR('Tabel 4F ØJ'!G29<5,'Tabel 4 ØJ'!G29<0.5),"-",IFERROR('Tabel 4 ØJ'!G29/'Tabel 4F ØJ'!G29*100,"-")) -> 6.818181818 | I29: =IF(OR('Tabel 4F ØJ'!I29<5,'Tabel 4 ØJ'!I29<0.5),"-",IFERROR('Tabel 4 ØJ'!I29/'Tabel 4F ØJ'!I29*100,"-")) -> 7.692307692
A30: Teolog | C30: =IF(OR('Tabel 4F ØJ'!C30<5,'Tabel 4 ØJ'!C30<0.5),"-",IFERROR('Tabel 4 ØJ'!C30/'Tabel 4F ØJ'!C30*100,"-")) -> 29.41176471 | D30: =IF(OR('Tabel 4F ØJ'!D30<5,'Tabel 4 ØJ'!D30<0.5),"-",IFERROR('Tabel 4 ØJ'!D30/'Tabel 4F ØJ'!D30*100,"-")) -> 7.272727273 | E30: =IF(OR('Tabel 4F ØJ'!E30<5,'Tabel 4 ØJ'!E30<0.5),"-",IFERROR('Tabel 4 ØJ'!E30/'Tabel 4F ØJ'!E30*100,"-")) -> 0.9345794393 | F30: =IF(OR('Tabel 4F ØJ'!F30<5,'Tabel 4 ØJ'!F30<0.5),"-",IFERROR('Tabel 4 ØJ'!F30/'Tabel 4F ØJ'!F30*100,"-")) -> 2.912621359 | G30: =IF(OR('Tabel 4F ØJ'!G30<5,'Tabel 4 ØJ'!G30<0.5),"-",IFERROR('Tabel 4 ØJ'!G30/'Tabel 4F ØJ'!G30*100,"-")) -> - | I30: =IF(OR('Tabel 4F ØJ'!I30<5,'Tabel 4 ØJ'!I30<0.5),"-",IFERROR('Tabel 4 ØJ'!I30/'Tabel 4F ØJ'!I30*100,"-")) -> 4
A31: Psykolog | C31: =IF(OR('Tabel 4F ØJ'!C31<5,'Tabel 4 ØJ'!C31<0.5),"-",IFERROR('Tabel 4 ØJ'!C31/'Tabel 4F ØJ'!C31*100,"-")) -> 24.70023981 | D31: =IF(OR('Tabel 4F ØJ'!D31<5,'Tabel 4 ØJ'!D31<0.5),"-",IFERROR('Tabel 4 ØJ'!D31/'Tabel 4F ØJ'!D31*100,"-")) -> 6.202531646 | E31: =IF(OR('Tabel 4F ØJ'!E31<5,'Tabel 4 ØJ'!E31<0.5),"-",IFERROR('Tabel 4 ØJ'!E31/'Tabel 4F ØJ'!E31*100,"-")) -> 2.424242424 | F31: =IF(OR('Tabel 4F ØJ'!F31<5,'Tabel 4 ØJ'!F31<0.5),"-",IFERROR('Tabel 4 ØJ'!F31/'Tabel 4F ØJ'!F31*100,"-")) -> 1.503759398 | G31: =IF(OR('Tabel 4F ØJ'!G31<5,'Tabel 4 ØJ'!G31<0.5),"-",IFERROR('Tabel 4 ØJ'!G31/'Tabel 4F ØJ'!G31*100,"-")) -> 4.132231405 | I31: =IF(OR('Tabel 4F ØJ'!I31<5,'Tabel 4 ØJ'!I31<0.5),"-",IFERROR('Tabel 4 ØJ'!I31/'Tabel 4F ØJ'!I31*100,"-")) -> 8.28147439
A32: Jurist | C32: =IF(OR('Tabel 4F ØJ'!C32<5,'Tabel 4 ØJ'!C32<0.5),"-",IFERROR('Tabel 4 ØJ'!C32/'Tabel 4F ØJ'!C32*100,"-")) -> 15.0862069 | D32: =IF(OR('Tabel 4F ØJ'!D32<5,'Tabel 4 ØJ'!D32<0.5),"-",IFERROR('Tabel 4 ØJ'!D32/'Tabel 4F ØJ'!D32*100,"-")) -> 1.70261067 | E32: =IF(OR('Tabel 4F ØJ'!E32<5,'Tabel 4 ØJ'!E32<0.5),"-",IFERROR('Tabel 4 ØJ'!E32/'Tabel 4F ØJ'!E32*100,"-")) -> 0.7054673721 | F32: =IF(OR('Tabel 4F ØJ'!F32<5,'Tabel 4 ØJ'!F32<0.5),"-",IFERROR('Tabel 4 ØJ'!F32/'Tabel 4F ØJ'!F32*100,"-")) -> 1.133144476 | G32: =IF(OR('Tabel 4F ØJ'!G32<5,'Tabel 4 ØJ'!G32<0.5),"-",IFERROR('Tabel 4 ØJ'!G32/'Tabel 4F ØJ'!G32*100,"-")) -> 1.904761905 | I32: =IF(OR('Tabel 4F ØJ'!I32<5,'Tabel 4 ØJ'!I32<0.5),"-",IFERROR('Tabel 4 ØJ'!I32/'Tabel 4F ØJ'!I32*100,"-")) -> 4.996156802
A33: Økonom | C33: =IF(OR('Tabel 4F ØJ'!C33<5,'Tabel 4 ØJ'!C33<0.5),"-",IFERROR('Tabel 4 ØJ'!C33/'Tabel 4F ØJ'!C33*100,"-")) -> 11.67883212 | D33: =IF(OR('Tabel 4F ØJ'!D33<5,'Tabel 4 ØJ'!D33<0.5),"-",IFERROR('Tabel 4 ØJ'!D33/'Tabel 4F ØJ'!D33*100,"-")) -> 2.303262956 | E33: =IF(OR('Tabel 4F ØJ'!E33<5,'Tabel 4 ØJ'!E33<0.5),"-",IFERROR('Tabel 4 ØJ'!E33/'Tabel 4F ØJ'!E33*100,"-")) -> 0.9771986971 | F33: =IF(OR('Tabel 4F ØJ'!F33<5,'Tabel 4 ØJ'!F33<0.5),"-",IFERROR('Tabel 4 ØJ'!F33/'Tabel 4F ØJ'!F33*100,"-")) -> 1.324503311 | G33: =IF(OR('Tabel 4F ØJ'!G33<5,'Tabel 4 ØJ'!G33<0.5),"-",IFERROR('Tabel 4 ØJ'!G33/'Tabel 4F ØJ'!G33*100,"-")) -> 1.111111111 | I33: =IF(OR('Tabel 4F ØJ'!I33<5,'Tabel 4 ØJ'!I33<0.5),"-",IFERROR('Tabel 4 ØJ'!I33/'Tabel 4F ØJ'!I33*100,"-")) -> 3.480589023
A34: Samf. Adm. | C34: =IF(OR('Tabel 4F ØJ'!C34<5,'Tabel 4 ØJ'!C34<0.5),"-",IFERROR('Tabel 4 ØJ'!C34/'Tabel 4F ØJ'!C34*100,"-")) -> 16.3208852 | D34: =IF(OR('Tabel 4F ØJ'!D34<5,'Tabel 4 ØJ'!D34<0.5),"-",IFERROR('Tabel 4 ØJ'!D34/'Tabel 4F ØJ'!D34*100,"-")) -> 5.335157319 | E34: =IF(OR('Tabel 4F ØJ'!E34<5,'Tabel 4 ØJ'!E34<0.5),"-",IFERROR('Tabel 4 ØJ'!E34/'Tabel 4F ØJ'!E34*100,"-")) -> 1.98019802 | F34: =IF(OR('Tabel 4F ØJ'!F34<5,'Tabel 4 ØJ'!F34<0.5),"-",IFERROR('Tabel 4 ØJ'!F34/'Tabel 4F ØJ'!F34*100,"-")) -> 2.117647059 | G34: =IF(OR('Tabel 4F ØJ'!G34<5,'Tabel 4 ØJ'!G34<0.5),"-",IFERROR('Tabel 4 ØJ'!G34/'Tabel 4F ØJ'!G34*100,"-")) -> 1.724137931 | I34: =IF(OR('Tabel 4F ØJ'!I34<5,'Tabel 4 ØJ'!I34<0.5),"-",IFERROR('Tabel 4 ØJ'!I34/'Tabel 4F ØJ'!I34*100,"-")) -> 6.310130164
A35: Cand. Merc. | C35: =IF(OR('Tabel 4F ØJ'!C35<5,'Tabel 4 ØJ'!C35<0.5),"-",IFERROR('Tabel 4 ØJ'!C35/'Tabel 4F ØJ'!C35*100,"-")) -> 19.51333645 | D35: =IF(OR('Tabel 4F ØJ'!D35<5,'Tabel 4 ØJ'!D35<0.5),"-",IFERROR('Tabel 4 ØJ'!D35/'Tabel 4F ØJ'!D35*100,"-")) -> 2.809170165 | E35: =IF(OR('Tabel 4F ØJ'!E35<5,'Tabel 4 ØJ'!E35<0.5),"-",IFERROR('Tabel 4 ØJ'!E35/'Tabel 4F ØJ'!E35*100,"-")) -> 1.478873239 | F35: =IF(OR('Tabel 4F ØJ'!F35<5,'Tabel 4 ØJ'!F35<0.5),"-",IFERROR('Tabel 4 ØJ'!F35/'Tabel 4F ØJ'!F35*100,"-")) -> 1.230769231 | G35: =IF(OR('Tabel 4F ØJ'!G35<5,'Tabel 4 ØJ'!G35<0.5),"-",IFERROR('Tabel 4 ØJ'!G35/'Tabel 4F ØJ'!G35*100,"-")) -> 4.347826087 | I35: =IF(OR('Tabel 4F ØJ'!I35<5,'Tabel 4 ØJ'!I35<0.5),"-",IFERROR('Tabel 4 ØJ'!I35/'Tabel 4F ØJ'!I35*100,"-")) -> 6.983311938
A36: HA | C36: =IF(OR('Tabel 4F ØJ'!C36<5,'Tabel 4 ØJ'!C36<0.5),"-",IFERROR('Tabel 4 ØJ'!C36/'Tabel 4F ØJ'!C36*100,"-")) -> 21.78217822 | D36: =IF(OR('Tabel 4F ØJ'!D36<5,'Tabel 4 ØJ'!D36<0.5),"-",IFERROR('Tabel 4 ØJ'!D36/'Tabel 4F ØJ'!D36*100,"-")) -> 2.201257862 | E36: =IF(OR('Tabel 4F ØJ'!E36<5,'Tabel 4 ØJ'!E36<0.5),"-",IFERROR('Tabel 4 ØJ'!E36/'Tabel 4F ØJ'!E36*100,"-")) -> 4.444444444 | F36: =IF(OR('Tabel 4F ØJ'!F36<5,'Tabel 4 ØJ'!F36<0.5),"-",IFERROR('Tabel 4 ØJ'!F36/'Tabel 4F ØJ'!F36*100,"-")) -> 0.9933774834 | G36: =IF(OR('Tabel 4F ØJ'!G36<5,'Tabel 4 ØJ'!G36<0.5),"-",IFERROR('Tabel 4 ØJ'!G36/'Tabel 4F ØJ'!G36*100,"-")) -> 6.896551724 | I36: =IF(OR('Tabel 4F ØJ'!I36<5,'Tabel 4 ØJ'!I36<0.5),"-",IFERROR('Tabel 4 ØJ'!I36/'Tabel 4F ØJ'!I36*100,"-")) -> 8.828250401
A37: HD | C37: =IF(OR('Tabel 4F ØJ'!C37<5,'Tabel 4 ØJ'!C37<0.5),"-",IFERROR('Tabel 4 ØJ'!C37/'Tabel 4F ØJ'!C37*100,"-")) -> 11.53846154 | D37: =IF(OR('Tabel 4F ØJ'!D37<5,'Tabel 4 ØJ'!D37<0.5),"-",IFERROR('Tabel 4 ØJ'!D37/'Tabel 4F ØJ'!D37*100,"-")) -> 3.913043478 | E37: =IF(OR('Tabel 4F ØJ'!E37<5,'Tabel 4 ØJ'!E37<0.5),"-",IFERROR('Tabel 4 ØJ'!E37/'Tabel 4F ØJ'!E37*100,"-")) -> 2.5 | F37: =IF(OR('Tabel 4F ØJ'!F37<5,'Tabel 4 ØJ'!F37<0.5),"-",IFERROR('Tabel 4 ØJ'!F37/'Tabel 4F ØJ'!F37*100,"-")) -> 1.792114695 | G37: =IF(OR('Tabel 4F ØJ'!G37<5,'Tabel 4 ØJ'!G37<0.5),"-",IFERROR('Tabel 4 ØJ'!G37/'Tabel 4F ØJ'!G37*100,"-")) -> 1.086956522 | I37: =IF(OR('Tabel 4F ØJ'!I37<5,'Tabel 4 ØJ'!I37<0.5),"-",IFERROR('Tabel 4 ØJ'!I37/'Tabel 4F ØJ'!I37*100,"-")) -> 3.636363636
A38: Komm. og Sprog | C38: =IF(OR('Tabel 4F ØJ'!C38<5,'Tabel 4 ØJ'!C38<0.5),"-",IFERROR('Tabel 4 ØJ'!C38/'Tabel 4F ØJ'!C38*100,"-")) -> 16.12903226 | D38: =IF(OR('Tabel 4F ØJ'!D38<5,'Tabel 4 ØJ'!D38<0.5),"-",IFERROR('Tabel 4 ØJ'!D38/'Tabel 4F ØJ'!D38*100,"-")) -> 6.296296296 | E38: =IF(OR('Tabel 4F ØJ'!E38<5,'Tabel 4 ØJ'!E38<0.5),"-",IFERROR('Tabel 4 ØJ'!E38/'Tabel 4F ØJ'!E38*100,"-")) -> 1.822916667 | F38: =IF(OR('Tabel 4F ØJ'!F38<5,'Tabel 4 ØJ'!F38<0.5),"-",IFERROR('Tabel 4 ØJ'!F38/'Tabel 4F ØJ'!F38*100,"-")) -> 3.125 | G38: =IF(OR('Tabel 4F ØJ'!G38<5,'Tabel 4 ØJ'!G38<0.5),"-",IFERROR('Tabel 4 ØJ'!G38/'Tabel 4F ØJ'!G38*100,"-")) -> 3.472222222 | I38: =IF(OR('Tabel 4F ØJ'!I38<5,'Tabel 4 ØJ'!I38<0.5),"-",IFERROR('Tabel 4 ØJ'!I38/'Tabel 4F ØJ'!I38*100,"-")) -> 5.027494108
A39: Bygningskonst. | C39: =IF(OR('Tabel 4F ØJ'!C39<5,'Tabel 4 ØJ'!C39<0.5),"-",IFERROR('Tabel 4 ØJ'!C39/'Tabel 4F ØJ'!C39*100,"-")) -> 16.41221374 | D39: =IF(OR('Tabel 4F ØJ'!D39<5,'Tabel 4 ØJ'!D39<0.5),"-",IFERROR('Tabel 4 ØJ'!D39/'Tabel 4F ØJ'!D39*100,"-")) -> 3.849950642 | E39: =IF(OR('Tabel 4F ØJ'!E39<5,'Tabel 4 ØJ'!E39<0.5),"-",IFERROR('Tabel 4 ØJ'!E39/'Tabel 4F ØJ'!E39*100,"-")) -> 1.862197393 | F39: =IF(OR('Tabel 4F ØJ'!F39<5,'Tabel 4 ØJ'!F39<0.5),"-",IFERROR('Tabel 4 ØJ'!F39/'Tabel 4F ØJ'!F39*100,"-")) -> 1.132075472 | G39: =IF(OR('Tabel 4F ØJ'!G39<5,'Tabel 4 ØJ'!G39<0.5),"-",IFERROR('Tabel 4 ØJ'!G39/'Tabel 4F ØJ'!G39*100,"-")) -> 1.25 | I39: =IF(OR('Tabel 4F ØJ'!I39<5,'Tabel 4 ØJ'!I39<0.5),"-",IFERROR('Tabel 4 ØJ'!I39/'Tabel 4F ØJ'!I39*100,"-")) -> 5.746176106
A40: Cand. IT. | C40: =IF(OR('Tabel 4F ØJ'!C40<5,'Tabel 4 ØJ'!C40<0.5),"-",IFERROR('Tabel 4 ØJ'!C40/'Tabel 4F ØJ'!C40*100,"-")) -> 26.29107981 | D40: =IF(OR('Tabel 4F ØJ'!D40<5,'Tabel 4 ØJ'!D40<0.5),"-",IFERROR('Tabel 4 ØJ'!D40/'Tabel 4F ØJ'!D40*100,"-")) -> 4.230118443 | E40: =IF(OR('Tabel 4F ØJ'!E40<5,'Tabel 4 ØJ'!E40<0.5),"-",IFERROR('Tabel 4 ØJ'!E40/'Tabel 4F ØJ'!E40*100,"-")) -> 1.714285714 | F40: =IF(OR('Tabel 4F ØJ'!F40<5,'Tabel 4 ØJ'!F40<0.5),"-",IFERROR('Tabel 4 ØJ'!F40/'Tabel 4F ØJ'!F40*100,"-")) -> 12 | G40: =IF(OR('Tabel 4F ØJ'!G40<5,'Tabel 4 ØJ'!G40<0.5),"-",IFERROR('Tabel 4 ØJ'!G40/'Tabel 4F ØJ'!G40*100,"-")) -> - | I40: =IF(OR('Tabel 4F ØJ'!I40<5,'Tabel 4 ØJ'!I40<0.5),"-",IFERROR('Tabel 4 ØJ'!I40/'Tabel 4F ØJ'!I40*100,"-")) -> 11.74055829
A41: Bac. Samf. | C41: =IF(OR('Tabel 4F ØJ'!C41<5,'Tabel 4 ØJ'!C41<0.5),"-",IFERROR('Tabel 4 ØJ'!C41/'Tabel 4F ØJ'!C41*100,"-")) -> 16.37931034 | D41: =IF(OR('Tabel 4F ØJ'!D41<5,'Tabel 4 ØJ'!D41<0.5),"-",IFERROR('Tabel 4 ØJ'!D41/'Tabel 4F ØJ'!D41*100,"-")) -> 11.11111111 | E41: =IF(OR('Tabel 4F ØJ'!E41<5,'Tabel 4 ØJ'!E41<0.5),"-",IFERROR('Tabel 4 ØJ'!E41/'Tabel 4F ØJ'!E41*100,"-")) -> 2.173913043 | F41: =IF(OR('Tabel 4F ØJ'!F41<5,'Tabel 4 ØJ'!F41<0.5),"-",IFERROR('Tabel 4 ØJ'!F41/'Tabel 4F ØJ'!F41*100,"-")) -> 2.941176471 | G41: =IF(OR('Tabel 4F ØJ'!G41<5,'Tabel 4 ØJ'!G41<0.5),"-",IFERROR('Tabel 4 ØJ'!G41/'Tabel 4F ØJ'!G41*100,"-")) -> 7.142857143 | I41: =IF(OR('Tabel 4F ØJ'!I41<5,'Tabel 4 ØJ'!I41<0.5),"-",IFERROR('Tabel 4 ØJ'!I41/'Tabel 4F ØJ'!I41*100,"-")) -> 10.58823529
A42: Bac. Hum. | C42: =IF(OR('Tabel 4F ØJ'!C42<5,'Tabel 4 ØJ'!C42<0.5),"-",IFERROR('Tabel 4 ØJ'!C42/'Tabel 4F ØJ'!C42*100,"-")) -> 25.38071066 | D42: =IF(OR('Tabel 4F ØJ'!D42<5,'Tabel 4 ØJ'!D42<0.5),"-",IFERROR('Tabel 4 ØJ'!D42/'Tabel 4F ØJ'!D42*100,"-")) -> 13.06532663 | E42: =IF(OR('Tabel 4F ØJ'!E42<5,'Tabel 4 ØJ'!E42<0.5),"-",IFERROR('Tabel 4 ØJ'!E42/'Tabel 4F ØJ'!E42*100,"-")) -> 4.316546763 | F42: =IF(OR('Tabel 4F ØJ'!F42<5,'Tabel 4 ØJ'!F42<0.5),"-",IFERROR('Tabel 4 ØJ'!F42/'Tabel 4F ØJ'!F42*100,"-")) -> 3.389830508 | G42: =IF(OR('Tabel 4F ØJ'!G42<5,'Tabel 4 ØJ'!G42<0.5),"-",IFERROR('Tabel 4 ØJ'!G42/'Tabel 4F ØJ'!G42*100,"-")) -> 6.666666667 | I42: =IF(OR('Tabel 4F ØJ'!I42<5,'Tabel 4 ØJ'!I42<0.5),"-",IFERROR('Tabel 4 ØJ'!I42/'Tabel 4F ØJ'!I42*100,"-")) -> 18.54150504
A43: Bac. Nat. | C43: =IF(OR('Tabel 4F ØJ'!C43<5,'Tabel 4 ØJ'!C43<0.5),"-",IFERROR('Tabel 4 ØJ'!C43/'Tabel 4F ØJ'!C43*100,"-")) -> 20.2247191 | D43: =IF(OR('Tabel 4F ØJ'!D43<5,'Tabel 4 ØJ'!D43<0.5),"-",IFERROR('Tabel 4 ØJ'!D43/'Tabel 4F ØJ'!D43*100,"-")) -> 5.244755245 | E43: =IF(OR('Tabel 4F ØJ'!E43<5,'Tabel 4 ØJ'!E43<0.5),"-",IFERROR('Tabel 4 ØJ'!E43/'Tabel 4F ØJ'!E43*100,"-")) -> 3.225806452 | F43: =IF(OR('Tabel 4F ØJ'!F43<5,'Tabel 4 ØJ'!F43<0.5),"-",IFERROR('Tabel 4 ØJ'!F43/'Tabel 4F ØJ'!F43*100,"-")) -> 3.225806452 | G43: =IF(OR('Tabel 4F ØJ'!G43<5,'Tabel 4 ØJ'!G43<0.5),"-",IFERROR('Tabel 4 ØJ'!G43/'Tabel 4F ØJ'!G43*100,"-")) -> - | I43: =IF(OR('Tabel 4F ØJ'!I43<5,'Tabel 4 ØJ'!I43<0.5),"-",IFERROR('Tabel 4 ØJ'!I43/'Tabel 4F ØJ'!I43*100,"-")) -> 13.42494715
A44: Andre | C44: =IF(OR('Tabel 4F ØJ'!C44<5,'Tabel 4 ØJ'!C44<0.5),"-",IFERROR('Tabel 4 ØJ'!C44/'Tabel 4F ØJ'!C44*100,"-")) -> 18.80492091 | D44: =IF(OR('Tabel 4F ØJ'!D44<5,'Tabel 4 ØJ'!D44<0.5),"-",IFERROR('Tabel 4 ØJ'!D44/'Tabel 4F ØJ'!D44*100,"-")) -> 5.111821086 | E44: =IF(OR('Tabel 4F ØJ'!E44<5,'Tabel 4 ØJ'!E44<0.5),"-",IFERROR('Tabel 4 ØJ'!E44/'Tabel 4F ØJ'!E44*100,"-")) -> 2.937576499 | F44: =IF(OR('Tabel 4F ØJ'!F44<5,'Tabel 4 ØJ'!F44<0.5),"-",IFERROR('Tabel 4 ØJ'!F44/'Tabel 4F ØJ'!F44*100,"-")) -> 4.508196721 | G44: =IF(OR('Tabel 4F ØJ'!G44<5,'Tabel 4 ØJ'!G44<0.5),"-",IFERROR('Tabel 4 ØJ'!G44/'Tabel 4F ØJ'!G44*100,"-")) -> 5.53633218 | I44: =IF(OR('Tabel 4F ØJ'!I44<5,'Tabel 4 ØJ'!I44<0.5),"-",IFERROR('Tabel 4 ØJ'!I44/'Tabel 4F ØJ'!I44*100,"-")) -> 6.82284041
A46: Total | C46: =IF(OR('Tabel 4F ØJ'!C46<5,'Tabel 4 ØJ'!C46<0.5),"-",IFERROR('Tabel 4 ØJ'!C46/'Tabel 4F ØJ'!C46*100,"-")) -> 20.0979021 | D46: =IF(OR('Tabel 4F ØJ'!D46<5,'Tabel 4 ØJ'!D46<0.5),"-",IFERROR('Tabel 4 ØJ'!D46/'Tabel 4F ØJ'!D46*100,"-")) -> 5.212110621 | E46: =IF(OR('Tabel 4F ØJ'!E46<5,'Tabel 4 ØJ'!E46<0.5),"-",IFERROR('Tabel 4 ØJ'!E46/'Tabel 4F ØJ'!E46*100,"-")) -> 1.991060544 | F46: =IF(OR('Tabel 4F ØJ'!F46<5,'Tabel 4 ØJ'!F46<0.5),"-",IFERROR('Tabel 4 ØJ'!F46/'Tabel 4F ØJ'!F46*100,"-")) -> 1.986199179 | G46: =IF(OR('Tabel 4F ØJ'!G46<5,'Tabel 4 ØJ'!G46<0.5),"-",IFERROR('Tabel 4 ØJ'!G46/'Tabel 4F ØJ'!G46*100,"-")) -> 3.481163567 | I46: =IF(OR('Tabel 4F ØJ'!I46<5,'Tabel 4 ØJ'!I46<0.5),"-",IFERROR('Tabel 4 ØJ'!I46/'Tabel 4F ØJ'!I46*100,"-")) -> 7.05815501
A48: Ingeniører i alt | C48: =IF(OR('Tabel 4F ØJ'!C48<5,'Tabel 4 ØJ'!C48<0.5),"-",IFERROR('Tabel 4 ØJ'!C48/'Tabel 4F ØJ'!C48*100,"-")) -> 12.65761397 | D48: =IF(OR('Tabel 4F ØJ'!D48<5,'Tabel 4 ØJ'!D48<0.5),"-",IFERROR('Tabel 4 ØJ'!D48/'Tabel 4F ØJ'!D48*100,"-")) -> 2.074303406 | E48: =IF(OR('Tabel 4F ØJ'!E48<5,'Tabel 4 ØJ'!E48<0.5),"-",IFERROR('Tabel 4 ØJ'!E48/'Tabel 4F ØJ'!E48*100,"-")) -> 0.9676218831 | F48: =IF(OR('Tabel 4F ØJ'!F48<5,'Tabel 4 ØJ'!F48<0.5),"-",IFERROR('Tabel 4 ØJ'!F48/'Tabel 4F ØJ'!F48*100,"-")) -> 0.8626887132 | G48: =IF(OR('Tabel 4F ØJ'!G48<5,'Tabel 4 ØJ'!G48<0.5),"-",IFERROR('Tabel 4 ØJ'!G48/'Tabel 4F ØJ'!G48*100,"-")) -> 2.378854626 | I48: =IF(OR('Tabel 4F ØJ'!I48<5,'Tabel 4 ØJ'!I48<0.5),"-",IFERROR('Tabel 4 ØJ'!I48/'Tabel 4F ØJ'!I48*100,"-")) -> 3.404505716
A49: Magistre i alt | C49: =IF(OR('Tabel 4F ØJ'!C49<5,'Tabel 4 ØJ'!C49<0.5),"-",IFERROR('Tabel 4 ØJ'!C49/'Tabel 4F ØJ'!C49*100,"-")) -> 28.36411609 | D49: =IF(OR('Tabel 4F ØJ'!D49<5,'Tabel 4 ØJ'!D49<0.5),"-",IFERROR('Tabel 4 ØJ'!D49/'Tabel 4F ØJ'!D49*100,"-")) -> 10.23639607 | E49: =IF(OR('Tabel 4F ØJ'!E49<5,'Tabel 4 ØJ'!E49<0.5),"-",IFERROR('Tabel 4 ØJ'!E49/'Tabel 4F ØJ'!E49*100,"-")) -> 3.14497571 | F49: =IF(OR('Tabel 4F ØJ'!F49<5,'Tabel 4 ØJ'!F49<0.5),"-",IFERROR('Tabel 4 ØJ'!F49/'Tabel 4F ØJ'!F49*100,"-")) -> 3.413400759 | G49: =IF(OR('Tabel 4F ØJ'!G49<5,'Tabel 4 ØJ'!G49<0.5),"-",IFERROR('Tabel 4 ØJ'!G49/'Tabel 4F ØJ'!G49*100,"-")) -> 4.531410917 | I49: =IF(OR('Tabel 4F ØJ'!I49<5,'Tabel 4 ØJ'!I49<0.5),"-",IFERROR('Tabel 4 ØJ'!I49/'Tabel 4F ØJ'!I49*100,"-")) -> 9.648183829
A50: DJØF'ere i alt | C50: =IF(OR('Tabel 4F ØJ'!C50<5,'Tabel 4 ØJ'!C50<0.5),"-",IFERROR('Tabel 4 ØJ'!C50/'Tabel 4F ØJ'!C50*100,"-")) -> 17.94992915 | D50: =IF(OR('Tabel 4F ØJ'!D50<5,'Tabel 4 ØJ'!D50<0.5),"-",IFERROR('Tabel 4 ØJ'!D50/'Tabel 4F ØJ'!D50*100,"-")) -> 3.169294474 | E50: =IF(OR('Tabel 4F ØJ'!E50<5,'Tabel 4 ØJ'!E50<0.5),"-",IFERROR('Tabel 4 ØJ'!E50/'Tabel 4F ØJ'!E50*100,"-")) -> 1.544640099 | F50: =IF(OR('Tabel 4F ØJ'!F50<5,'Tabel 4 ØJ'!F50<0.5),"-",IFERROR('Tabel 4 ØJ'!F50/'Tabel 4F ØJ'!F50*100,"-")) -> 1.35765804 | G50: =IF(OR('Tabel 4F ØJ'!G50<5,'Tabel 4 ØJ'!G50<0.5),"-",IFERROR('Tabel 4 ØJ'!G50/'Tabel 4F ØJ'!G50*100,"-")) -> 3.220035778 | I50: =IF(OR('Tabel 4F ØJ'!I50<5,'Tabel 4 ØJ'!I50<0.5),"-",IFERROR('Tabel 4 ØJ'!I50/'Tabel 4F ØJ'!I50*100,"-")) -> 6.35425417
A57: Horsens
C59: Under 30 år | D59: 30 - 39 år | E59: 40 - 49 år | F59: 50 - 59 år | G59: Over 60 år | I59: I alt
A61: Civ. ing. | C61: =IF(OR('Tabel 4F ØJ'!C61<5,'Tabel 4 ØJ'!C61<0.5),"-",IFERROR('Tabel 4 ØJ'!C61/'Tabel 4F ØJ'!C61*100,"-")) -> 16.36363636 | D61: =IF(OR('Tabel 4F ØJ'!D61<5,'Tabel 4 ØJ'!D61<0.5),"-",IFERROR('Tabel 4 ØJ'!D61/'Tabel 4F ØJ'!D61*100,"-")) -> 0.7407407407 | E61: =IF(OR('Tabel 4F ØJ'!E61<5,'Tabel 4 ØJ'!E61<0.5),"-",IFERROR('Tabel 4 ØJ'!E61/'Tabel 4F ØJ'!E61*100,"-")) -> - | F61: =IF(OR('Tabel 4F ØJ'!F61<5,'Tabel 4 ØJ'!F61<0.5),"-",IFERROR('Tabel 4 ØJ'!F61/'Tabel 4F ØJ'!F61*100,"-")) -> - | G61: =IF(OR('Tabel 4F ØJ'!G61<5,'Tabel 4 ØJ'!G61<0.5),"-",IFERROR('Tabel 4 ØJ'!G61/'Tabel 4F ØJ'!G61*100,"-")) -> - | I61: =IF(OR('Tabel 4F ØJ'!I61<5,'Tabel 4 ØJ'!I61<0.5),"-",IFERROR('Tabel 4 ØJ'!I61/'Tabel 4F ØJ'!I61*100,"-")) -> 2.994011976
A62: Diplom ing. | C62: =IF(OR('Tabel 4F ØJ'!C62<5,'Tabel 4 ØJ'!C62<0.5),"-",IFERROR('Tabel 4 ØJ'!C62/'Tabel 4F ØJ'!C62*100,"-")) -> 11.88118812 | D62: =IF(OR('Tabel 4F ØJ'!D62<5,'Tabel 4 ØJ'!D62<0.5),"-",IFERROR('Tabel 4 ØJ'!D62/'Tabel 4F ØJ'!D62*100,"-")) -> 3.097345133 | E62: =IF(OR('Tabel 4F ØJ'!E62<5,'Tabel 4 ØJ'!E62<0.5),"-",IFERROR('Tabel 4 ØJ'!E62/'Tabel 4F ØJ'!E62*100,"-")) -> 0.7462686567 | F62: =IF(OR('Tabel 4F ØJ'!F62<5,'Tabel 4 ØJ'!F62<0.5),"-",IFERROR('Tabel 4 ØJ'!F62/'Tabel 4F ØJ'!F62*100,"-")) -> - | G62: =IF(OR('Tabel 4F ØJ'!G62<5,'Tabel 4 ØJ'!G62<0.5),"-",IFERROR('Tabel 4 ØJ'!G62/'Tabel 4F ØJ'!G62*100,"-")) -> 4.494382022 | I62: =IF(OR('Tabel 4F ØJ'!I62<5,'Tabel 4 ØJ'!I62<0.5),"-",IFERROR('Tabel 4 ØJ'!I62/'Tabel 4F ØJ'!I62*100,"-")) -> 2.637130802
A63: Cand. Scient. Tek | C63: =IF(OR('Tabel 4F ØJ'!C63<5,'Tabel 4 ØJ'!C63<0.5),"-",IFERROR('Tabel 4 ØJ'!C63/'Tabel 4F ØJ'!C63*100,"-")) -> 14.28571429 | D63: =IF(OR('Tabel 4F ØJ'!D63<5,'Tabel 4 ØJ'!D63<0.5),"-",IFERROR('Tabel 4 ØJ'!D63/'Tabel 4F ØJ'!D63*100,"-")) -> 3.846153846 | E63: =IF(OR('Tabel 4F ØJ'!E63<5,'Tabel 4 ØJ'!E63<0.5),"-",IFERROR('Tabel 4 ØJ'!E63/'Tabel 4F ØJ'!E63*100,"-")) -> 3.225806452 | F63: =IF(OR('Tabel 4F ØJ'!F63<5,'Tabel 4 ØJ'!F63<0.5),"-",IFERROR('Tabel 4 ØJ'!F63/'Tabel 4F ØJ'!F63*100,"-")) -> - | G63: =IF(OR('Tabel 4F ØJ'!G63<5,'Tabel 4 ØJ'!G63<0.5),"-",IFERROR('Tabel 4 ØJ'!G63/'Tabel 4F ØJ'!G63*100,"-")) -> - | I63: =IF(OR('Tabel 4F ØJ'!I63<5,'Tabel 4 ØJ'!I63<0.5),"-",IFERROR('Tabel 4 ØJ'!I63/'Tabel 4F ØJ'!I63*100,"-")) -> 6.043956044
A64: MA. Hum. | C64: =IF(OR('Tabel 4F ØJ'!C64<5,'Tabel 4 ØJ'!C64<0.5),"-",IFERROR('Tabel 4 ØJ'!C64/'Tabel 4F ØJ'!C64*100,"-")) -> 16.66666667 | D64: =IF(OR('Tabel 4F ØJ'!D64<5,'Tabel 4 ØJ'!D64<0.5),"-",IFERROR('Tabel 4 ØJ'!D64/'Tabel 4F ØJ'!D64*100,"-")) -> 11.53846154 | E64: =IF(OR('Tabel 4F ØJ'!E64<5,'Tabel 4 ØJ'!E64<0.5),"-",IFERROR('Tabel 4 ØJ'!E64/'Tabel 4F ØJ'!E64*100,"-")) -> 1.948051948 | F64: =IF(OR('Tabel 4F ØJ'!F64<5,'Tabel 4 ØJ'!F64<0.5),"-",IFERROR('Tabel 4 ØJ'!F64/'Tabel 4F ØJ'!F64*100,"-")) -> 3.333333333 | G64: =IF(OR('Tabel 4F ØJ'!G64<5,'Tabel 4 ØJ'!G64<0.5),"-",IFERROR('Tabel 4 ØJ'!G64/'Tabel 4F ØJ'!G64*100,"-")) -> - | I64: =IF(OR('Tabel 4F ØJ'!I64<5,'Tabel 4 ØJ'!I64<0.5),"-",IFERROR('Tabel 4 ØJ'!I64/'Tabel 4F ØJ'!I64*100,"-")) -> 7.077625571
A65: MA. Nat. | C65: =IF(OR('Tabel 4F ØJ'!C65<5,'Tabel 4 ØJ'!C65<0.5),"-",IFERROR('Tabel 4 ØJ'!C65/'Tabel 4F ØJ'!C65*100,"-")) -> 10 | D65: =IF(OR('Tabel 4F ØJ'!D65<5,'Tabel 4 ØJ'!D65<0.5),"-",IFERROR('Tabel 4 ØJ'!D65/'Tabel 4F ØJ'!D65*100,"-")) -> 3.703703704 | E65: =IF(OR('Tabel 4F ØJ'!E65<5,'Tabel 4 ØJ'!E65<0.5),"-",IFERROR('Tabel 4 ØJ'!E65/'Tabel 4F ØJ'!E65*100,"-")) -> - | F65: =IF(OR('Tabel 4F ØJ'!F65<5,'Tabel 4 ØJ'!F65<0.5),"-",IFERROR('Tabel 4 ØJ'!F65/'Tabel 4F ØJ'!F65*100,"-")) -> - | G65: =IF(OR('Tabel 4F ØJ'!G65<5,'Tabel 4 ØJ'!G65<0.5),"-",IFERROR('Tabel 4 ØJ'!G65/'Tabel 4F ØJ'!G65*100,"-")) -> - | I65: =IF(OR('Tabel 4F ØJ'!I65<5,'Tabel 4 ØJ'!I65<0.5),"-",IFERROR('Tabel 4 ØJ'!I65/'Tabel 4F ØJ'!I65*100,"-")) -> 1.418439716
A66: MA. Ph.d. | C66: =IF(OR('Tabel 4F ØJ'!C66<5,'Tabel 4 ØJ'!C66<0.5),"-",IFERROR('Tabel 4 ØJ'!C66/'Tabel 4F ØJ'!C66*100,"-")) -> - | D66: =IF(OR('Tabel 4F ØJ'!D66<5,'Tabel 4 ØJ'!D66<0.5),"-",IFERROR('Tabel 4 ØJ'!D66/'Tabel 4F ØJ'!D66*100,"-")) -> - | E66: =IF(OR('Tabel 4F ØJ'!E66<5,'Tabel 4 ØJ'!E66<0.5),"-",IFERROR('Tabel 4 ØJ'!E66/'Tabel 4F ØJ'!E66*100,"-")) -> - | F66: =IF(OR('Tabel 4F ØJ'!F66<5,'Tabel 4 ØJ'!F66<0.5),"-",IFERROR('Tabel 4 ØJ'!F66/'Tabel 4F ØJ'!F66*100,"-")) -> - | G66: =IF(OR('Tabel 4F ØJ'!G66<5,'Tabel 4 ØJ'!G66<0.5),"-",IFERROR('Tabel 4 ØJ'!G66/'Tabel 4F ØJ'!G66*100,"-")) -> - | I66: =IF(OR('Tabel 4F ØJ'!I66<5,'Tabel 4 ØJ'!I66<0.5),"-",IFERROR('Tabel 4 ØJ'!I66/'Tabel 4F ØJ'!I66*100,"-")) -> -
A67: MA. Samf. | C67: =IF(OR('Tabel 4F ØJ'!C67<5,'Tabel 4 ØJ'!C67<0.5),"-",IFERROR('Tabel 4 ØJ'!C67/'Tabel 4F ØJ'!C67*100,"-")) -> - | D67: =IF(OR('Tabel 4F ØJ'!D67<5,'Tabel 4 ØJ'!D67<0.5),"-",IFERROR('Tabel 4 ØJ'!D67/'Tabel 4F ØJ'!D67*100,"-")) -> 16 | E67: =IF(OR('Tabel 4F ØJ'!E67<5,'Tabel 4 ØJ'!E67<0.5),"-",IFERROR('Tabel 4 ØJ'!E67/'Tabel 4F ØJ'!E67*100,"-")) -> - | F67: =IF(OR('Tabel 4F ØJ'!F67<5,'Tabel 4 ØJ'!F67<0.5),"-",IFERROR('Tabel 4 ØJ'!F67/'Tabel 4F ØJ'!F67*100,"-")) -> - | G67: =IF(OR('Tabel 4F ØJ'!G67<5,'Tabel 4 ØJ'!G67<0.5),"-",IFERROR('Tabel 4 ØJ'!G67/'Tabel 4F ØJ'!G67*100,"-")) -> - | I67: =IF(OR('Tabel 4F ØJ'!I67<5,'Tabel 4 ØJ'!I67<0.5),"-",IFERROR('Tabel 4 ØJ'!I67/'Tabel 4F ØJ'!I67*100,"-")) -> 9.756097561
A68: Øvrige Mag. | C68: =IF(OR('Tabel 4F ØJ'!C68<5,'Tabel 4 ØJ'!C68<0.5),"-",IFERROR('Tabel 4 ØJ'!C68/'Tabel 4F ØJ'!C68*100,"-")) -> - | D68: =IF(OR('Tabel 4F ØJ'!D68<5,'Tabel 4 ØJ'!D68<0.5),"-",IFERROR('Tabel 4 ØJ'!D68/'Tabel 4F ØJ'!D68*100,"-")) -> - | E68: =IF(OR('Tabel 4F ØJ'!E68<5,'Tabel 4 ØJ'!E68<0.5),"-",IFERROR('Tabel 4 ØJ'!E68/'Tabel 4F ØJ'!E68*100,"-")) -> - | F68: =IF(OR('Tabel 4F ØJ'!F68<5,'Tabel 4 ØJ'!F68<0.5),"-",IFERROR('Tabel 4 ØJ'!F68/'Tabel 4F ØJ'!F68*100,"-")) -> 10 | G68: =IF(OR('Tabel 4F ØJ'!G68<5,'Tabel 4 ØJ'!G68<0.5),"-",IFERROR('Tabel 4 ØJ'!G68/'Tabel 4F ØJ'!G68*100,"-")) -> - | I68: =IF(OR('Tabel 4F ØJ'!I68<5,'Tabel 4 ØJ'!I68<0.5),"-",IFERROR('Tabel 4 ØJ'!I68/'Tabel 4F ØJ'!I68*100,"-")) -> 5.882352941
A69: Agronom | C69: =IF(OR('Tabel 4F ØJ'!C69<5,'Tabel 4 ØJ'!C69<0.5),"-",IFERROR('Tabel 4 ØJ'!C69/'Tabel 4F ØJ'!C69*100,"-")) -> - | D69: =IF(OR('Tabel 4F ØJ'!D69<5,'Tabel 4 ØJ'!D69<0.5),"-",IFERROR('Tabel 4 ØJ'!D69/'Tabel 4F ØJ'!D69*100,"-")) -> - | E69: =IF(OR('Tabel 4F ØJ'!E69<5,'Tabel 4 ØJ'!E69<0.5),"-",IFERROR('Tabel 4 ØJ'!E69/'Tabel 4F ØJ'!E69*100,"-")) -> - | F69: =IF(OR('Tabel 4F ØJ'!F69<5,'Tabel 4 ØJ'!F69<0.5),"-",IFERROR('Tabel 4 ØJ'!F69/'Tabel 4F ØJ'!F69*100,"-")) -> - | G69: =IF(OR('Tabel 4F ØJ'!G69<5,'Tabel 4 ØJ'!G69<0.5),"-",IFERROR('Tabel 4 ØJ'!G69/'Tabel 4F ØJ'!G69*100,"-")) -> 11.11111111 | I69: =IF(OR('Tabel 4F ØJ'!I69<5,'Tabel 4 ØJ'!I69<0.5),"-",IFERROR('Tabel 4 ØJ'!I69/'Tabel 4F ØJ'!I69*100,"-")) -> 2.777777778
A70: Landsk. Arkt. | C70: =IF(OR('Tabel 4F ØJ'!C70<5,'Tabel 4 ØJ'!C70<0.5),"-",IFERROR('Tabel 4 ØJ'!C70/'Tabel 4F ØJ'!C70*100,"-")) -> - | D70: =IF(OR('Tabel 4F ØJ'!D70<5,'Tabel 4 ØJ'!D70<0.5),"-",IFERROR('Tabel 4 ØJ'!D70/'Tabel 4F ØJ'!D70*100,"-")) -> - | E70: =IF(OR('Tabel 4F ØJ'!E70<5,'Tabel 4 ØJ'!E70<0.5),"-",IFERROR('Tabel 4 ØJ'!E70/'Tabel 4F ØJ'!E70*100,"-")) -> - | F70: =IF(OR('Tabel 4F ØJ'!F70<5,'Tabel 4 ØJ'!F70<0.5),"-",IFERROR('Tabel 4 ØJ'!F70/'Tabel 4F ØJ'!F70*100,"-")) -> - | G70: =IF(OR('Tabel 4F ØJ'!G70<5,'Tabel 4 ØJ'!G70<0.5),"-",IFERROR('Tabel 4 ØJ'!G70/'Tabel 4F ØJ'!G70*100,"-")) -> - | I70: =IF(OR('Tabel 4F ØJ'!I70<5,'Tabel 4 ØJ'!I70<0.5),"-",IFERROR('Tabel 4 ØJ'!I70/'Tabel 4F ØJ'!I70*100,"-")) -> -
A71: Hortonom | C71: =IF(OR('Tabel 4F ØJ'!C71<5,'Tabel 4 ØJ'!C71<0.5),"-",IFERROR('Tabel 4 ØJ'!C71/'Tabel 4F ØJ'!C71*100,"-")) -> - | D71: =IF(OR('Tabel 4F ØJ'!D71<5,'Tabel 4 ØJ'!D71<0.5),"-",IFERROR('Tabel 4 ØJ'!D71/'Tabel 4F ØJ'!D71*100,"-")) -> - | E71: =IF(OR('Tabel 4F ØJ'!E71<5,'Tabel 4 ØJ'!E71<0.5),"-",IFERROR('Tabel 4 ØJ'!E71/'Tabel 4F ØJ'!E71*100,"-")) -> - | F71: =IF(OR('Tabel 4F ØJ'!F71<5,'Tabel 4 ØJ'!F71<0.5),"-",IFERROR('Tabel 4 ØJ'!F71/'Tabel 4F ØJ'!F71*100,"-")) -> - | G71: =IF(OR('Tabel 4F ØJ'!G71<5,'Tabel 4 ØJ'!G71<0.5),"-",IFERROR('Tabel 4 ØJ'!G71/'Tabel 4F ØJ'!G71*100,"-")) -> - | I71: =IF(OR('Tabel 4F ØJ'!I71<5,'Tabel 4 ØJ'!I71<0.5),"-",IFERROR('Tabel 4 ØJ'!I71/'Tabel 4F ØJ'!I71*100,"-")) -> -
A72: Forstkand. | C72: =IF(OR('Tabel 4F ØJ'!C72<5,'Tabel 4 ØJ'!C72<0.5),"-",IFERROR('Tabel 4 ØJ'!C72/'Tabel 4F ØJ'!C72*100,"-")) -> - | D72: =IF(OR('Tabel 4F ØJ'!D72<5,'Tabel 4 ØJ'!D72<0.5),"-",IFERROR('Tabel 4 ØJ'!D72/'Tabel 4F ØJ'!D72*100,"-")) -> - | E72: =IF(OR('Tabel 4F ØJ'!E72<5,'Tabel 4 ØJ'!E72<0.5),"-",IFERROR('Tabel 4 ØJ'!E72/'Tabel 4F ØJ'!E72*100,"-")) -> - | F72: =IF(OR('Tabel 4F ØJ'!F72<5,'Tabel 4 ØJ'!F72<0.5),"-",IFERROR('Tabel 4 ØJ'!F72/'Tabel 4F ØJ'!F72*100,"-")) -> - | G72: =IF(OR('Tabel 4F ØJ'!G72<5,'Tabel 4 ØJ'!G72<0.5),"-",IFERROR('Tabel 4 ØJ'!G72/'Tabel 4F ØJ'!G72*100,"-")) -> - | I72: =IF(OR('Tabel 4F ØJ'!I72<5,'Tabel 4 ØJ'!I72<0.5),"-",IFERROR('Tabel 4 ØJ'!I72/'Tabel 4F ØJ'!I72*100,"-")) -> -
A73: Jordbrugsakad. | C73: =IF(OR('Tabel 4F ØJ'!C73<5,'Tabel 4 ØJ'!C73<0.5),"-",IFERROR('Tabel 4 ØJ'!C73/'Tabel 4F ØJ'!C73*100,"-")) -> - | D73: =IF(OR('Tabel 4F ØJ'!D73<5,'Tabel 4 ØJ'!D73<0.5),"-",IFERROR('Tabel 4 ØJ'!D73/'Tabel 4F ØJ'!D73*100,"-")) -> - | E73: =IF(OR('Tabel 4F ØJ'!E73<5,'Tabel 4 ØJ'!E73<0.5),"-",IFERROR('Tabel 4 ØJ'!E73/'Tabel 4F ØJ'!E73*100,"-")) -> - | F73: =IF(OR('Tabel 4F ØJ'!F73<5,'Tabel 4 ØJ'!F73<0.5),"-",IFERROR('Tabel 4 ØJ'!F73/'Tabel 4F ØJ'!F73*100,"-")) -> - | G73: =IF(OR('Tabel 4F ØJ'!G73<5,'Tabel 4 ØJ'!G73<0.5),"-",IFERROR('Tabel 4 ØJ'!G73/'Tabel 4F ØJ'!G73*100,"-")) -> 10 | I73: =IF(OR('Tabel 4F ØJ'!I73<5,'Tabel 4 ØJ'!I73<0.5),"-",IFERROR('Tabel 4 ØJ'!I73/'Tabel 4F ØJ'!I73*100,"-")) -> 2.222222222
A74: Mejeriing. | C74: =IF(OR('Tabel 4F ØJ'!C74<5,'Tabel 4 ØJ'!C74<0.5),"-",IFERROR('Tabel 4 ØJ'!C74/'Tabel 4F ØJ'!C74*100,"-")) -> - | D74: =IF(OR('Tabel 4F ØJ'!D74<5,'Tabel 4 ØJ'!D74<0.5),"-",IFERROR('Tabel 4 ØJ'!D74/'Tabel 4F ØJ'!D74*100,"-")) -> - | E74: =IF(OR('Tabel 4F ØJ'!E74<5,'Tabel 4 ØJ'!E74<0.5),"-",IFERROR('Tabel 4 ØJ'!E74/'Tabel 4F ØJ'!E74*100,"-")) -> - | F74: =IF(OR('Tabel 4F ØJ'!F74<5,'Tabel 4 ØJ'!F74<0.5),"-",IFERROR('Tabel 4 ØJ'!F74/'Tabel 4F ØJ'!F74*100,"-")) -> - | G74: =IF(OR('Tabel 4F ØJ'!G74<5,'Tabel 4 ØJ'!G74<0.5),"-",IFERROR('Tabel 4 ØJ'!G74/'Tabel 4F ØJ'!G74*100,"-")) -> - | I74: =IF(OR('Tabel 4F ØJ'!I74<5,'Tabel 4 ØJ'!I74<0.5),"-",IFERROR('Tabel 4 ØJ'!I74/'Tabel 4F ØJ'!I74*100,"-")) -> -
A75: Levn.m.kand. | C75: =IF(OR('Tabel 4F ØJ'!C75<5,'Tabel 4 ØJ'!C75<0.5),"-",IFERROR('Tabel 4 ØJ'!C75/'Tabel 4F ØJ'!C75*100,"-")) -> - | D75: =IF(OR('Tabel 4F ØJ'!D75<5,'Tabel 4 ØJ'!D75<0.5),"-",IFERROR('Tabel 4 ØJ'!D75/'Tabel 4F ØJ'!D75*100,"-")) -> - | E75: =IF(OR('Tabel 4F ØJ'!E75<5,'Tabel 4 ØJ'!E75<0.5),"-",IFERROR('Tabel 4 ØJ'!E75/'Tabel 4F ØJ'!E75*100,"-")) -> - | F75: =IF(OR('Tabel 4F ØJ'!F75<5,'Tabel 4 ØJ'!F75<0.5),"-",IFERROR('Tabel 4 ØJ'!F75/'Tabel 4F ØJ'!F75*100,"-")) -> - | G75: =IF(OR('Tabel 4F ØJ'!G75<5,'Tabel 4 ØJ'!G75<0.5),"-",IFERROR('Tabel 4 ØJ'!G75/'Tabel 4F ØJ'!G75*100,"-")) -> - | I75: =IF(OR('Tabel 4F ØJ'!I75<5,'Tabel 4 ØJ'!I75<0.5),"-",IFERROR('Tabel 4 ØJ'!I75/'Tabel 4F ØJ'!I75*100,"-")) -> -
A76: Dyrlæge | C76: =IF(OR('Tabel 4F ØJ'!C76<5,'Tabel 4 ØJ'!C76<0.5),"-",IFERROR('Tabel 4 ØJ'!C76/'Tabel 4F ØJ'!C76*100,"-")) -> - | D76: =IF(OR('Tabel 4F ØJ'!D76<5,'Tabel 4 ØJ'!D76<0.5),"-",IFERROR('Tabel 4 ØJ'!D76/'Tabel 4F ØJ'!D76*100,"-")) -> - | E76: =IF(OR('Tabel 4F ØJ'!E76<5,'Tabel 4 ØJ'!E76<0.5),"-",IFERROR('Tabel 4 ØJ'!E76/'Tabel 4F ØJ'!E76*100,"-")) -> - | F76: =IF(OR('Tabel 4F ØJ'!F76<5,'Tabel 4 ØJ'!F76<0.5),"-",IFERROR('Tabel 4 ØJ'!F76/'Tabel 4F ØJ'!F76*100,"-")) -> - | G76: =IF(OR('Tabel 4F ØJ'!G76<5,'Tabel 4 ØJ'!G76<0.5),"-",IFERROR('Tabel 4 ØJ'!G76/'Tabel 4F ØJ'!G76*100,"-")) -> - | I76: =IF(OR('Tabel 4F ØJ'!I76<5,'Tabel 4 ØJ'!I76<0.5),"-",IFERROR('Tabel 4 ØJ'!I76/'Tabel 4F ØJ'!I76*100,"-")) -> -
A77: Farmaceut | C77: =IF(OR('Tabel 4F ØJ'!C77<5,'Tabel 4 ØJ'!C77<0.5),"-",IFERROR('Tabel 4 ØJ'!C77/'Tabel 4F ØJ'!C77*100,"-")) -> 33.33333333 | D77: =IF(OR('Tabel 4F ØJ'!D77<5,'Tabel 4 ØJ'!D77<0.5),"-",IFERROR('Tabel 4 ØJ'!D77/'Tabel 4F ØJ'!D77*100,"-")) -> 14.28571429 | E77: =IF(OR('Tabel 4F ØJ'!E77<5,'Tabel 4 ØJ'!E77<0.5),"-",IFERROR('Tabel 4 ØJ'!E77/'Tabel 4F ØJ'!E77*100,"-")) -> - | F77: =IF(OR('Tabel 4F ØJ'!F77<5,'Tabel 4 ØJ'!F77<0.5),"-",IFERROR('Tabel 4 ØJ'!F77/'Tabel 4F ØJ'!F77*100,"-")) -> - | G77: =IF(OR('Tabel 4F ØJ'!G77<5,'Tabel 4 ØJ'!G77<0.5),"-",IFERROR('Tabel 4 ØJ'!G77/'Tabel 4F ØJ'!G77*100,"-")) -> - | I77: =IF(OR('Tabel 4F ØJ'!I77<5,'Tabel 4 ØJ'!I77<0.5),"-",IFERROR('Tabel 4 ØJ'!I77/'Tabel 4F ØJ'!I77*100,"-")) -> 13.63636364
A78: Læge | C78: =IF(OR('Tabel 4F ØJ'!C78<5,'Tabel 4 ØJ'!C78<0.5),"-",IFERROR('Tabel 4 ØJ'!C78/'Tabel 4F ØJ'!C78*100,"-")) -> 5 | D78: =IF(OR('Tabel 4F ØJ'!D78<5,'Tabel 4 ØJ'!D78<0.5),"-",IFERROR('Tabel 4 ØJ'!D78/'Tabel 4F ØJ'!D78*100,"-")) -> 1.960784314 | E78: =IF(OR('Tabel 4F ØJ'!E78<5,'Tabel 4 ØJ'!E78<0.5),"-",IFERROR('Tabel 4 ØJ'!E78/'Tabel 4F ØJ'!E78*100,"-")) -> - | F78: =IF(OR('Tabel 4F ØJ'!F78<5,'Tabel 4 ØJ'!F78<0.5),"-",IFERROR('Tabel 4 ØJ'!F78/'Tabel 4F ØJ'!F78*100,"-")) -> - | G78: =IF(OR('Tabel 4F ØJ'!G78<5,'Tabel 4 ØJ'!G78<0.5),"-",IFERROR('Tabel 4 ØJ'!G78/'Tabel 4F ØJ'!G78*100,"-")) -> - | I78: =IF(OR('Tabel 4F ØJ'!I78<5,'Tabel 4 ØJ'!I78<0.5),"-",IFERROR('Tabel 4 ØJ'!I78/'Tabel 4F ØJ'!I78*100,"-")) -> 1.960784314
A79: Tandlæge | C79: =IF(OR('Tabel 4F ØJ'!C79<5,'Tabel 4 ØJ'!C79<0.5),"-",IFERROR('Tabel 4 ØJ'!C79/'Tabel 4F ØJ'!C79*100,"-")) -> - | D79: =IF(OR('Tabel 4F ØJ'!D79<5,'Tabel 4 ØJ'!D79<0.5),"-",IFERROR('Tabel 4 ØJ'!D79/'Tabel 4F ØJ'!D79*100,"-")) -> - | E79: =IF(OR('Tabel 4F ØJ'!E79<5,'Tabel 4 ØJ'!E79<0.5),"-",IFERROR('Tabel 4 ØJ'!E79/'Tabel 4F ØJ'!E79*100,"-")) -> - | F79: =IF(OR('Tabel 4F ØJ'!F79<5,'Tabel 4 ØJ'!F79<0.5),"-",IFERROR('Tabel 4 ØJ'!F79/'Tabel 4F ØJ'!F79*100,"-")) -> - | G79: =IF(OR('Tabel 4F ØJ'!G79<5,'Tabel 4 ØJ'!G79<0.5),"-",IFERROR('Tabel 4 ØJ'!G79/'Tabel 4F ØJ'!G79*100,"-")) -> - | I79: =IF(OR('Tabel 4F ØJ'!I79<5,'Tabel 4 ØJ'!I79<0.5),"-",IFERROR('Tabel 4 ØJ'!I79/'Tabel 4F ØJ'!I79*100,"-")) -> -
A80: Arkitekt | C80: =IF(OR('Tabel 4F ØJ'!C80<5,'Tabel 4 ØJ'!C80<0.5),"-",IFERROR('Tabel 4 ØJ'!C80/'Tabel 4F ØJ'!C80*100,"-")) -> 14.28571429 | D80: =IF(OR('Tabel 4F ØJ'!D80<5,'Tabel 4 ØJ'!D80<0.5),"-",IFERROR('Tabel 4 ØJ'!D80/'Tabel 4F ØJ'!D80*100,"-")) -> - | E80: =IF(OR('Tabel 4F ØJ'!E80<5,'Tabel 4 ØJ'!E80<0.5),"-",IFERROR('Tabel 4 ØJ'!E80/'Tabel 4F ØJ'!E80*100,"-")) -> 3.703703704 | F80: =IF(OR('Tabel 4F ØJ'!F80<5,'Tabel 4 ØJ'!F80<0.5),"-",IFERROR('Tabel 4 ØJ'!F80/'Tabel 4F ØJ'!F80*100,"-")) -> 11.11111111 | G80: =IF(OR('Tabel 4F ØJ'!G80<5,'Tabel 4 ØJ'!G80<0.5),"-",IFERROR('Tabel 4 ØJ'!G80/'Tabel 4F ØJ'!G80*100,"-")) -> - | I80: =IF(OR('Tabel 4F ØJ'!I80<5,'Tabel 4 ØJ'!I80<0.5),"-",IFERROR('Tabel 4 ØJ'!I80/'Tabel 4F ØJ'!I80*100,"-")) -> 4.225352113
A81: Landinspek. | C81: =IF(OR('Tabel 4F ØJ'!C81<5,'Tabel 4 ØJ'!C81<0.5),"-",IFERROR('Tabel 4 ØJ'!C81/'Tabel 4F ØJ'!C81*100,"-")) -> - | D81: =IF(OR('Tabel 4F ØJ'!D81<5,'Tabel 4 ØJ'!D81<0.5),"-",IFERROR('Tabel 4 ØJ'!D81/'Tabel 4F ØJ'!D81*100,"-")) -> - | E81: =IF(OR('Tabel 4F ØJ'!E81<5,'Tabel 4 ØJ'!E81<0.5),"-",IFERROR('Tabel 4 ØJ'!E81/'Tabel 4F ØJ'!E81*100,"-")) -> - | F81: =IF(OR('Tabel 4F ØJ'!F81<5,'Tabel 4 ØJ'!F81<0.5),"-",IFERROR('Tabel 4 ØJ'!F81/'Tabel 4F ØJ'!F81*100,"-")) -> - | G81: =IF(OR('Tabel 4F ØJ'!G81<5,'Tabel 4 ØJ'!G81<0.5),"-",IFERROR('Tabel 4 ØJ'!G81/'Tabel 4F ØJ'!G81*100,"-")) -> - | I81: =IF(OR('Tabel 4F ØJ'!I81<5,'Tabel 4 ØJ'!I81<0.5),"-",IFERROR('Tabel 4 ØJ'!I81/'Tabel 4F ØJ'!I81*100,"-")) -> -
A82: Bibliotekar | C82: =IF(OR('Tabel 4F ØJ'!C82<5,'Tabel 4 ØJ'!C82<0.5),"-",IFERROR('Tabel 4 ØJ'!C82/'Tabel 4F ØJ'!C82*100,"-")) -> - | D82: =IF(OR('Tabel 4F ØJ'!D82<5,'Tabel 4 ØJ'!D82<0.5),"-",IFERROR('Tabel 4 ØJ'!D82/'Tabel 4F ØJ'!D82*100,"-")) -> - | E82: =IF(OR('Tabel 4F ØJ'!E82<5,'Tabel 4 ØJ'!E82<0.5),"-",IFERROR('Tabel 4 ØJ'!E82/'Tabel 4F ØJ'!E82*100,"-")) -> - | F82: =IF(OR('Tabel 4F ØJ'!F82<5,'Tabel 4 ØJ'!F82<0.5),"-",IFERROR('Tabel 4 ØJ'!F82/'Tabel 4F ØJ'!F82*100,"-")) -> - | G82: =IF(OR('Tabel 4F ØJ'!G82<5,'Tabel 4 ØJ'!G82<0.5),"-",IFERROR('Tabel 4 ØJ'!G82/'Tabel 4F ØJ'!G82*100,"-")) -> - | I82: =IF(OR('Tabel 4F ØJ'!I82<5,'Tabel 4 ØJ'!I82<0.5),"-",IFERROR('Tabel 4 ØJ'!I82/'Tabel 4F ØJ'!I82*100,"-")) -> -
A83: Musikudd. | C83: =IF(OR('Tabel 4F ØJ'!C83<5,'Tabel 4 ØJ'!C83<0.5),"-",IFERROR('Tabel 4 ØJ'!C83/'Tabel 4F ØJ'!C83*100,"-")) -> - | D83: =IF(OR('Tabel 4F ØJ'!D83<5,'Tabel 4 ØJ'!D83<0.5),"-",IFERROR('Tabel 4 ØJ'!D83/'Tabel 4F ØJ'!D83*100,"-")) -> - | E83: =IF(OR('Tabel 4F ØJ'!E83<5,'Tabel 4 ØJ'!E83<0.5),"-",IFERROR('Tabel 4 ØJ'!E83/'Tabel 4F ØJ'!E83*100,"-")) -> - | F83: =IF(OR('Tabel 4F ØJ'!F83<5,'Tabel 4 ØJ'!F83<0.5),"-",IFERROR('Tabel 4 ØJ'!F83/'Tabel 4F ØJ'!F83*100,"-")) -> - | G83: =IF(OR('Tabel 4F ØJ'!G83<5,'Tabel 4 ØJ'!G83<0.5),"-",IFERROR('Tabel 4 ØJ'!G83/'Tabel 4F ØJ'!G83*100,"-")) -> - | I83: =IF(OR('Tabel 4F ØJ'!I83<5,'Tabel 4 ØJ'!I83<0.5),"-",IFERROR('Tabel 4 ØJ'!I83/'Tabel 4F ØJ'!I83*100,"-")) -> 12.5
A84: Teolog | C84: =IF(OR('Tabel 4F ØJ'!C84<5,'Tabel 4 ØJ'!C84<0.5),"-",IFERROR('Tabel 4 ØJ'!C84/'Tabel 4F ØJ'!C84*100,"-")) -> - | D84: =IF(OR('Tabel 4F ØJ'!D84<5,'Tabel 4 ØJ'!D84<0.5),"-",IFERROR('Tabel 4 ØJ'!D84/'Tabel 4F ØJ'!D84*100,"-")) -> - | E84: =IF(OR('Tabel 4F ØJ'!E84<5,'Tabel 4 ØJ'!E84<0.5),"-",IFERROR('Tabel 4 ØJ'!E84/'Tabel 4F ØJ'!E84*100,"-")) -> - | F84: =IF(OR('Tabel 4F ØJ'!F84<5,'Tabel 4 ØJ'!F84<0.5),"-",IFERROR('Tabel 4 ØJ'!F84/'Tabel 4F ØJ'!F84*100,"-")) -> - | G84: =IF(OR('Tabel 4F ØJ'!G84<5,'Tabel 4 ØJ'!G84<0.5),"-",IFERROR('Tabel 4 ØJ'!G84/'Tabel 4F ØJ'!G84*100,"-")) -> - | I84: =IF(OR('Tabel 4F ØJ'!I84<5,'Tabel 4 ØJ'!I84<0.5),"-",IFERROR('Tabel 4 ØJ'!I84/'Tabel 4F ØJ'!I84*100,"-")) -> -
A85: Psykolog | C85: =IF(OR('Tabel 4F ØJ'!C85<5,'Tabel 4 ØJ'!C85<0.5),"-",IFERROR('Tabel 4 ØJ'!C85/'Tabel 4F ØJ'!C85*100,"-")) -> 16.66666667 | D85: =IF(OR('Tabel 4F ØJ'!D85<5,'Tabel 4 ØJ'!D85<0.5),"-",IFERROR('Tabel 4 ØJ'!D85/'Tabel 4F ØJ'!D85*100,"-")) -> 15.38461538 | E85: =IF(OR('Tabel 4F ØJ'!E85<5,'Tabel 4 ØJ'!E85<0.5),"-",IFERROR('Tabel 4 ØJ'!E85/'Tabel 4F ØJ'!E85*100,"-")) -> 5.405405405 | F85: =IF(OR('Tabel 4F ØJ'!F85<5,'Tabel 4 ØJ'!F85<0.5),"-",IFERROR('Tabel 4 ØJ'!F85/'Tabel 4F ØJ'!F85*100,"-")) -> - | G85: =IF(OR('Tabel 4F ØJ'!G85<5,'Tabel 4 ØJ'!G85<0.5),"-",IFERROR('Tabel 4 ØJ'!G85/'Tabel 4F ØJ'!G85*100,"-")) -> - | I85: =IF(OR('Tabel 4F ØJ'!I85<5,'Tabel 4 ØJ'!I85<0.5),"-",IFERROR('Tabel 4 ØJ'!I85/'Tabel 4F ØJ'!I85*100,"-")) -> 9.900990099
A86: Jurist | C86: =IF(OR('Tabel 4F ØJ'!C86<5,'Tabel 4 ØJ'!C86<0.5),"-",IFERROR('Tabel 4 ØJ'!C86/'Tabel 4F ØJ'!C86*100,"-")) -> - | D86: =IF(OR('Tabel 4F ØJ'!D86<5,'Tabel 4 ØJ'!D86<0.5),"-",IFERROR('Tabel 4 ØJ'!D86/'Tabel 4F ØJ'!D86*100,"-")) -> - | E86: =IF(OR('Tabel 4F ØJ'!E86<5,'Tabel 4 ØJ'!E86<0.5),"-",IFERROR('Tabel 4 ØJ'!E86/'Tabel 4F ØJ'!E86*100,"-")) -> - | F86: =IF(OR('Tabel 4F ØJ'!F86<5,'Tabel 4 ØJ'!F86<0.5),"-",IFERROR('Tabel 4 ØJ'!F86/'Tabel 4F ØJ'!F86*100,"-")) -> - | G86: =IF(OR('Tabel 4F ØJ'!G86<5,'Tabel 4 ØJ'!G86<0.5),"-",IFERROR('Tabel 4 ØJ'!G86/'Tabel 4F ØJ'!G86*100,"-")) -> - | I86: =IF(OR('Tabel 4F ØJ'!I86<5,'Tabel 4 ØJ'!I86<0.5),"-",IFERROR('Tabel 4 ØJ'!I86/'Tabel 4F ØJ'!I86*100,"-")) -> -
A87: Økonom | C87: =IF(OR('Tabel 4F ØJ'!C87<5,'Tabel 4 ØJ'!C87<0.5),"-",IFERROR('Tabel 4 ØJ'!C87/'Tabel 4F ØJ'!C87*100,"-")) -> 10 | D87: =IF(OR('Tabel 4F ØJ'!D87<5,'Tabel 4 ØJ'!D87<0.5),"-",IFERROR('Tabel 4 ØJ'!D87/'Tabel 4F ØJ'!D87*100,"-")) -> - | E87: =IF(OR('Tabel 4F ØJ'!E87<5,'Tabel 4 ØJ'!E87<0.5),"-",IFERROR('Tabel 4 ØJ'!E87/'Tabel 4F ØJ'!E87*100,"-")) -> 5 | F87: =IF(OR('Tabel 4F ØJ'!F87<5,'Tabel 4 ØJ'!F87<0.5),"-",IFERROR('Tabel 4 ØJ'!F87/'Tabel 4F ØJ'!F87*100,"-")) -> - | G87: =IF(OR('Tabel 4F ØJ'!G87<5,'Tabel 4 ØJ'!G87<0.5),"-",IFERROR('Tabel 4 ØJ'!G87/'Tabel 4F ØJ'!G87*100,"-")) -> - | I87: =IF(OR('Tabel 4F ØJ'!I87<5,'Tabel 4 ØJ'!I87<0.5),"-",IFERROR('Tabel 4 ØJ'!I87/'Tabel 4F ØJ'!I87*100,"-")) -> 2.816901408
A88: Samf. Adm. | C88: =IF(OR('Tabel 4F ØJ'!C88<5,'Tabel 4 ØJ'!C88<0.5),"-",IFERROR('Tabel 4 ØJ'!C88/'Tabel 4F ØJ'!C88*100,"-")) -> 10.52631579 | D88: =IF(OR('Tabel 4F ØJ'!D88<5,'Tabel 4 ØJ'!D88<0.5),"-",IFERROR('Tabel 4 ØJ'!D88/'Tabel 4F ØJ'!D88*100,"-")) -> 4.938271605 | E88: =IF(OR('Tabel 4F ØJ'!E88<5,'Tabel 4 ØJ'!E88<0.5),"-",IFERROR('Tabel 4 ØJ'!E88/'Tabel 4F ØJ'!E88*100,"-")) -> - | F88: =IF(OR('Tabel 4F ØJ'!F88<5,'Tabel 4 ØJ'!F88<0.5),"-",IFERROR('Tabel 4 ØJ'!F88/'Tabel 4F ØJ'!F88*100,"-")) -> 5.555555556 | G88: =IF(OR('Tabel 4F ØJ'!G88<5,'Tabel 4 ØJ'!G88<0.5),"-",IFERROR('Tabel 4 ØJ'!G88/'Tabel 4F ØJ'!G88*100,"-")) -> - | I88: =IF(OR('Tabel 4F ØJ'!I88<5,'Tabel 4 ØJ'!I88<0.5),"-",IFERROR('Tabel 4 ØJ'!I88/'Tabel 4F ØJ'!I88*100,"-")) -> 3.684210526
A89: Cand. Merc. | C89: =IF(OR('Tabel 4F ØJ'!C89<5,'Tabel 4 ØJ'!C89<0.5),"-",IFERROR('Tabel 4 ØJ'!C89/'Tabel 4F ØJ'!C89*100,"-")) -> 12.90322581 | D89: =IF(OR('Tabel 4F ØJ'!D89<5,'Tabel 4 ØJ'!D89<0.5),"-",IFERROR('Tabel 4 ØJ'!D89/'Tabel 4F ØJ'!D89*100,"-")) -> 2.916666667 | E89: =IF(OR('Tabel 4F ØJ'!E89<5,'Tabel 4 ØJ'!E89<0.5),"-",IFERROR('Tabel 4 ØJ'!E89/'Tabel 4F ØJ'!E89*100,"-")) -> 0.8474576271 | F89: =IF(OR('Tabel 4F ØJ'!F89<5,'Tabel 4 ØJ'!F89<0.5),"-",IFERROR('Tabel 4 ØJ'!F89/'Tabel 4F ØJ'!F89*100,"-")) -> 1.492537313 | G89: =IF(OR('Tabel 4F ØJ'!G89<5,'Tabel 4 ØJ'!G89<0.5),"-",IFERROR('Tabel 4 ØJ'!G89/'Tabel 4F ØJ'!G89*100,"-")) -> - | I89: =IF(OR('Tabel 4F ØJ'!I89<5,'Tabel 4 ØJ'!I89<0.5),"-",IFERROR('Tabel 4 ØJ'!I89/'Tabel 4F ØJ'!I89*100,"-")) -> 4.007633588
A90: HA | C90: =IF(OR('Tabel 4F ØJ'!C90<5,'Tabel 4 ØJ'!C90<0.5),"-",IFERROR('Tabel 4 ØJ'!C90/'Tabel 4F ØJ'!C90*100,"-")) -> 16.12903226 | D90: =IF(OR('Tabel 4F ØJ'!D90<5,'Tabel 4 ØJ'!D90<0.5),"-",IFERROR('Tabel 4 ØJ'!D90/'Tabel 4F ØJ'!D90*100,"-")) -> - | E90: =IF(OR('Tabel 4F ØJ'!E90<5,'Tabel 4 ØJ'!E90<0.5),"-",IFERROR('Tabel 4 ØJ'!E90/'Tabel 4F ØJ'!E90*100,"-")) -> 5.882352941 | F90: =IF(OR('Tabel 4F ØJ'!F90<5,'Tabel 4 ØJ'!F90<0.5),"-",IFERROR('Tabel 4 ØJ'!F90/'Tabel 4F ØJ'!F90*100,"-")) -> - | G90: =IF(OR('Tabel 4F ØJ'!G90<5,'Tabel 4 ØJ'!G90<0.5),"-",IFERROR('Tabel 4 ØJ'!G90/'Tabel 4F ØJ'!G90*100,"-")) -> 16.66666667 | I90: =IF(OR('Tabel 4F ØJ'!I90<5,'Tabel 4 ØJ'!I90<0.5),"-",IFERROR('Tabel 4 ØJ'!I90/'Tabel 4F ØJ'!I90*100,"-")) -> 7
A91: HD | C91: =IF(OR('Tabel 4F ØJ'!C91<5,'Tabel 4 ØJ'!C91<0.5),"-",IFERROR('Tabel 4 ØJ'!C91/'Tabel 4F ØJ'!C91*100,"-")) -> 50 | D91: =IF(OR('Tabel 4F ØJ'!D91<5,'Tabel 4 ØJ'!D91<0.5),"-",IFERROR('Tabel 4 ØJ'!D91/'Tabel 4F ØJ'!D91*100,"-")) -> 17.64705882 | E91: =IF(OR('Tabel 4F ØJ'!E91<5,'Tabel 4 ØJ'!E91<0.5),"-",IFERROR('Tabel 4 ØJ'!E91/'Tabel 4F ØJ'!E91*100,"-")) -> 9.090909091 | F91: =IF(OR('Tabel 4F ØJ'!F91<5,'Tabel 4 ØJ'!F91<0.5),"-",IFERROR('Tabel 4 ØJ'!F91/'Tabel 4F ØJ'!F91*100,"-")) -> 8 | G91: =IF(OR('Tabel 4F ØJ'!G91<5,'Tabel 4 ØJ'!G91<0.5),"-",IFERROR('Tabel 4 ØJ'!G91/'Tabel 4F ØJ'!G91*100,"-")) -> - | I91: =IF(OR('Tabel 4F ØJ'!I91<5,'Tabel 4 ØJ'!I91<0.5),"-",IFERROR('Tabel 4 ØJ'!I91/'Tabel 4F ØJ'!I91*100,"-")) -> 14.92537313
A92: Komm. og Sprog | C92: =IF(OR('Tabel 4F ØJ'!C92<5,'Tabel 4 ØJ'!C92<0.5),"-",IFERROR('Tabel 4 ØJ'!C92/'Tabel 4F ØJ'!C92*100,"-")) -> 30.76923077 | D92: =IF(OR('Tabel 4F ØJ'!D92<5,'Tabel 4 ØJ'!D92<0.5),"-",IFERROR('Tabel 4 ØJ'!D92/'Tabel 4F ØJ'!D92*100,"-")) -> - | E92: =IF(OR('Tabel 4F ØJ'!E92<5,'Tabel 4 ØJ'!E92<0.5),"-",IFERROR('Tabel 4 ØJ'!E92/'Tabel 4F ØJ'!E92*100,"-")) -> - | F92: =IF(OR('Tabel 4F ØJ'!F92<5,'Tabel 4 ØJ'!F92<0.5),"-",IFERROR('Tabel 4 ØJ'!F92/'Tabel 4F ØJ'!F92*100,"-")) -> 4.545454545 | G92: =IF(OR('Tabel 4F ØJ'!G92<5,'Tabel 4 ØJ'!G92<0.5),"-",IFERROR('Tabel 4 ØJ'!G92/'Tabel 4F ØJ'!G92*100,"-")) -> - | I92: =IF(OR('Tabel 4F ØJ'!I92<5,'Tabel 4 ØJ'!I92<0.5),"-",IFERROR('Tabel 4 ØJ'!I92/'Tabel 4F ØJ'!I92*100,"-")) -> 6.25
A93: Bygningskonst. | C93: =IF(OR('Tabel 4F ØJ'!C93<5,'Tabel 4 ØJ'!C93<0.5),"-",IFERROR('Tabel 4 ØJ'!C93/'Tabel 4F ØJ'!C93*100,"-")) -> 15.09433962 | D93: =IF(OR('Tabel 4F ØJ'!D93<5,'Tabel 4 ØJ'!D93<0.5),"-",IFERROR('Tabel 4 ØJ'!D93/'Tabel 4F ØJ'!D93*100,"-")) -> 2.590673575 | E93: =IF(OR('Tabel 4F ØJ'!E93<5,'Tabel 4 ØJ'!E93<0.5),"-",IFERROR('Tabel 4 ØJ'!E93/'Tabel 4F ØJ'!E93*100,"-")) -> 0.7633587786 | F93: =IF(OR('Tabel 4F ØJ'!F93<5,'Tabel 4 ØJ'!F93<0.5),"-",IFERROR('Tabel 4 ØJ'!F93/'Tabel 4F ØJ'!F93*100,"-")) -> 1.587301587 | G93: =IF(OR('Tabel 4F ØJ'!G93<5,'Tabel 4 ØJ'!G93<0.5),"-",IFERROR('Tabel 4 ØJ'!G93/'Tabel 4F ØJ'!G93*100,"-")) -> - | I93: =IF(OR('Tabel 4F ØJ'!I93<5,'Tabel 4 ØJ'!I93<0.5),"-",IFERROR('Tabel 4 ØJ'!I93/'Tabel 4F ØJ'!I93*100,"-")) -> 4.500978474
A94: Cand. IT. | C94: =IF(OR('Tabel 4F ØJ'!C94<5,'Tabel 4 ØJ'!C94<0.5),"-",IFERROR('Tabel 4 ØJ'!C94/'Tabel 4F ØJ'!C94*100,"-")) -> 9.090909091 | D94: =IF(OR('Tabel 4F ØJ'!D94<5,'Tabel 4 ØJ'!D94<0.5),"-",IFERROR('Tabel 4 ØJ'!D94/'Tabel 4F ØJ'!D94*100,"-")) -> 6.896551724 | E94: =IF(OR('Tabel 4F ØJ'!E94<5,'Tabel 4 ØJ'!E94<0.5),"-",IFERROR('Tabel 4 ØJ'!E94/'Tabel 4F ØJ'!E94*100,"-")) -> - | F94: =IF(OR('Tabel 4F ØJ'!F94<5,'Tabel 4 ØJ'!F94<0.5),"-",IFERROR('Tabel 4 ØJ'!F94/'Tabel 4F ØJ'!F94*100,"-")) -> - | G94: =IF(OR('Tabel 4F ØJ'!G94<5,'Tabel 4 ØJ'!G94<0.5),"-",IFERROR('Tabel 4 ØJ'!G94/'Tabel 4F ØJ'!G94*100,"-")) -> - | I94: =IF(OR('Tabel 4F ØJ'!I94<5,'Tabel 4 ØJ'!I94<0.5),"-",IFERROR('Tabel 4 ØJ'!I94/'Tabel 4F ØJ'!I94*100,"-")) -> 5.769230769
A95: Bac. Samf. | C95: =IF(OR('Tabel 4F ØJ'!C95<5,'Tabel 4 ØJ'!C95<0.5),"-",IFERROR('Tabel 4 ØJ'!C95/'Tabel 4F ØJ'!C95*100,"-")) -> - | D95: =IF(OR('Tabel 4F ØJ'!D95<5,'Tabel 4 ØJ'!D95<0.5),"-",IFERROR('Tabel 4 ØJ'!D95/'Tabel 4F ØJ'!D95*100,"-")) -> - | E95: =IF(OR('Tabel 4F ØJ'!E95<5,'Tabel 4 ØJ'!E95<0.5),"-",IFERROR('Tabel 4 ØJ'!E95/'Tabel 4F ØJ'!E95*100,"-")) -> - | F95: =IF(OR('Tabel 4F ØJ'!F95<5,'Tabel 4 ØJ'!F95<0.5),"-",IFERROR('Tabel 4 ØJ'!F95/'Tabel 4F ØJ'!F95*100,"-")) -> - | G95: =IF(OR('Tabel 4F ØJ'!G95<5,'Tabel 4 ØJ'!G95<0.5),"-",IFERROR('Tabel 4 ØJ'!G95/'Tabel 4F ØJ'!G95*100,"-")) -> - | I95: =IF(OR('Tabel 4F ØJ'!I95<5,'Tabel 4 ØJ'!I95<0.5),"-",IFERROR('Tabel 4 ØJ'!I95/'Tabel 4F ØJ'!I95*100,"-")) -> -
A96: Bac. Hum. | C96: =IF(OR('Tabel 4F ØJ'!C96<5,'Tabel 4 ØJ'!C96<0.5),"-",IFERROR('Tabel 4 ØJ'!C96/'Tabel 4F ØJ'!C96*100,"-")) -> 35.71428571 | D96: =IF(OR('Tabel 4F ØJ'!D96<5,'Tabel 4 ØJ'!D96<0.5),"-",IFERROR('Tabel 4 ØJ'!D96/'Tabel 4F ØJ'!D96*100,"-")) -> 8.333333333 | E96: =IF(OR('Tabel 4F ØJ'!E96<5,'Tabel 4 ØJ'!E96<0.5),"-",IFERROR('Tabel 4 ØJ'!E96/'Tabel 4F ØJ'!E96*100,"-")) -> 10 | F96: =IF(OR('Tabel 4F ØJ'!F96<5,'Tabel 4 ØJ'!F96<0.5),"-",IFERROR('Tabel 4 ØJ'!F96/'Tabel 4F ØJ'!F96*100,"-")) -> - | G96: =IF(OR('Tabel 4F ØJ'!G96<5,'Tabel 4 ØJ'!G96<0.5),"-",IFERROR('Tabel 4 ØJ'!G96/'Tabel 4F ØJ'!G96*100,"-")) -> - | I96: =IF(OR('Tabel 4F ØJ'!I96<5,'Tabel 4 ØJ'!I96<0.5),"-",IFERROR('Tabel 4 ØJ'!I96/'Tabel 4F ØJ'!I96*100,"-")) -> 14.58333333
A97: Bac. Nat. | C97: =IF(OR('Tabel 4F ØJ'!C97<5,'Tabel 4 ØJ'!C97<0.5),"-",IFERROR('Tabel 4 ØJ'!C97/'Tabel 4F ØJ'!C97*100,"-")) -> 20.48192771 | D97: =IF(OR('Tabel 4F ØJ'!D97<5,'Tabel 4 ØJ'!D97<0.5),"-",IFERROR('Tabel 4 ØJ'!D97/'Tabel 4F ØJ'!D97*100,"-")) -> 4.081632653 | E97: =IF(OR('Tabel 4F ØJ'!E97<5,'Tabel 4 ØJ'!E97<0.5),"-",IFERROR('Tabel 4 ØJ'!E97/'Tabel 4F ØJ'!E97*100,"-")) -> - | F97: =IF(OR('Tabel 4F ØJ'!F97<5,'Tabel 4 ØJ'!F97<0.5),"-",IFERROR('Tabel 4 ØJ'!F97/'Tabel 4F ØJ'!F97*100,"-")) -> - | G97: =IF(OR('Tabel 4F ØJ'!G97<5,'Tabel 4 ØJ'!G97<0.5),"-",IFERROR('Tabel 4 ØJ'!G97/'Tabel 4F ØJ'!G97*100,"-")) -> - | I97: =IF(OR('Tabel 4F ØJ'!I97<5,'Tabel 4 ØJ'!I97<0.5),"-",IFERROR('Tabel 4 ØJ'!I97/'Tabel 4F ØJ'!I97*100,"-")) -> 12.83783784
A98: Andre | C98: =IF(OR('Tabel 4F ØJ'!C98<5,'Tabel 4 ØJ'!C98<0.5),"-",IFERROR('Tabel 4 ØJ'!C98/'Tabel 4F ØJ'!C98*100,"-")) -> 20.96774194 | D98: =IF(OR('Tabel 4F ØJ'!D98<5,'Tabel 4 ØJ'!D98<0.5),"-",IFERROR('Tabel 4 ØJ'!D98/'Tabel 4F ØJ'!D98*100,"-")) -> 3.738317757 | E98: =IF(OR('Tabel 4F ØJ'!E98<5,'Tabel 4 ØJ'!E98<0.5),"-",IFERROR('Tabel 4 ØJ'!E98/'Tabel 4F ØJ'!E98*100,"-")) -> 3.50877193 | F98: =IF(OR('Tabel 4F ØJ'!F98<5,'Tabel 4 ØJ'!F98<0.5),"-",IFERROR('Tabel 4 ØJ'!F98/'Tabel 4F ØJ'!F98*100,"-")) -> 4 | G98: =IF(OR('Tabel 4F ØJ'!G98<5,'Tabel 4 ØJ'!G98<0.5),"-",IFERROR('Tabel 4 ØJ'!G98/'Tabel 4F ØJ'!G98*100,"-")) -> - | I98: =IF(OR('Tabel 4F ØJ'!I98<5,'Tabel 4 ØJ'!I98<0.5),"-",IFERROR('Tabel 4 ØJ'!I98/'Tabel 4F ØJ'!I98*100,"-")) -> 7.518796992
A100: Total | C100: =IF(OR('Tabel 4F ØJ'!C100<5,'Tabel 4 ØJ'!C100<0.5),"-",IFERROR('Tabel 4 ØJ'!C100/'Tabel 4F ØJ'!C100*100,"-")) -> 15.45226131 | D100: =IF(OR('Tabel 4F ØJ'!D100<5,'Tabel 4 ØJ'!D100<0.5),"-",IFERROR('Tabel 4 ØJ'!D100/'Tabel 4F ØJ'!D100*100,"-")) -> 4.203670811 | E100: =IF(OR('Tabel 4F ØJ'!E100<5,'Tabel 4 ØJ'!E100<0.5),"-",IFERROR('Tabel 4 ØJ'!E100/'Tabel 4F ØJ'!E100*100,"-")) -> 1.320901321 | F100: =IF(OR('Tabel 4F ØJ'!F100<5,'Tabel 4 ØJ'!F100<0.5),"-",IFERROR('Tabel 4 ØJ'!F100/'Tabel 4F ØJ'!F100*100,"-")) -> 1.366459627 | G100: =IF(OR('Tabel 4F ØJ'!G100<5,'Tabel 4 ØJ'!G100<0.5),"-",IFERROR('Tabel 4 ØJ'!G100/'Tabel 4F ØJ'!G100*100,"-")) -> 2.8 | I100: =IF(OR('Tabel 4F ØJ'!I100<5,'Tabel 4 ØJ'!I100<0.5),"-",IFERROR('Tabel 4 ØJ'!I100/'Tabel 4F ØJ'!I100*100,"-")) -> 4.744147504
A102: Ingeniører i alt | C102: =IF(OR('Tabel 4F ØJ'!C102<5,'Tabel 4 ØJ'!C102<0.5),"-",IFERROR('Tabel 4 ØJ'!C102/'Tabel 4F ØJ'!C102*100,"-")) -> 13.46153846 | D102: =IF(OR('Tabel 4F ØJ'!D102<5,'Tabel 4 ØJ'!D102<0.5),"-",IFERROR('Tabel 4 ØJ'!D102/'Tabel 4F ØJ'!D102*100,"-")) -> 2.216066482 | E102: =IF(OR('Tabel 4F ØJ'!E102<5,'Tabel 4 ØJ'!E102<0.5),"-",IFERROR('Tabel 4 ØJ'!E102/'Tabel 4F ØJ'!E102*100,"-")) -> 0.5649717514 | F102: =IF(OR('Tabel 4F ØJ'!F102<5,'Tabel 4 ØJ'!F102<0.5),"-",IFERROR('Tabel 4 ØJ'!F102/'Tabel 4F ØJ'!F102*100,"-")) -> - | G102: =IF(OR('Tabel 4F ØJ'!G102<5,'Tabel 4 ØJ'!G102<0.5),"-",IFERROR('Tabel 4 ØJ'!G102/'Tabel 4F ØJ'!G102*100,"-")) -> 4.04040404 | I102: =IF(OR('Tabel 4F ØJ'!I102<5,'Tabel 4 ØJ'!I102<0.5),"-",IFERROR('Tabel 4 ØJ'!I102/'Tabel 4F ØJ'!I102*100,"-")) -> 2.730109204
A103: Magistre i alt | C103: =IF(OR('Tabel 4F ØJ'!C103<5,'Tabel 4 ØJ'!C103<0.5),"-",IFERROR('Tabel 4 ØJ'!C103/'Tabel 4F ØJ'!C103*100,"-")) -> 14.70588235 | D103: =IF(OR('Tabel 4F ØJ'!D103<5,'Tabel 4 ØJ'!D103<0.5),"-",IFERROR('Tabel 4 ØJ'!D103/'Tabel 4F ØJ'!D103*100,"-")) -> 10.50228311 | E103: =IF(OR('Tabel 4F ØJ'!E103<5,'Tabel 4 ØJ'!E103<0.5),"-",IFERROR('Tabel 4 ØJ'!E103/'Tabel 4F ØJ'!E103*100,"-")) -> 1.357466063 | F103: =IF(OR('Tabel 4F ØJ'!F103<5,'Tabel 4 ØJ'!F103<0.5),"-",IFERROR('Tabel 4 ØJ'!F103/'Tabel 4F ØJ'!F103*100,"-")) -> 2.419354839 | G103: =IF(OR('Tabel 4F ØJ'!G103<5,'Tabel 4 ØJ'!G103<0.5),"-",IFERROR('Tabel 4 ØJ'!G103/'Tabel 4F ØJ'!G103*100,"-")) -> - | I103: =IF(OR('Tabel 4F ØJ'!I103<5,'Tabel 4 ØJ'!I103<0.5),"-",IFERROR('Tabel 4 ØJ'!I103/'Tabel 4F ØJ'!I103*100,"-")) -> 5.864661654
A104: DJØF'ere i alt | C104: =IF(OR('Tabel 4F ØJ'!C104<5,'Tabel 4 ØJ'!C104<0.5),"-",IFERROR('Tabel 4 ØJ'!C104/'Tabel 4F ØJ'!C104*100,"-")) -> 11.49425287 | D104: =IF(OR('Tabel 4F ØJ'!D104<5,'Tabel 4 ØJ'!D104<0.5),"-",IFERROR('Tabel 4 ØJ'!D104/'Tabel 4F ØJ'!D104*100,"-")) -> 2.576112412 | E104: =IF(OR('Tabel 4F ØJ'!E104<5,'Tabel 4 ØJ'!E104<0.5),"-",IFERROR('Tabel 4 ØJ'!E104/'Tabel 4F ØJ'!E104*100,"-")) -> 1.098901099 | F104: =IF(OR('Tabel 4F ØJ'!F104<5,'Tabel 4 ØJ'!F104<0.5),"-",IFERROR('Tabel 4 ØJ'!F104/'Tabel 4F ØJ'!F104*100,"-")) -> 1.428571429 | G104: =IF(OR('Tabel 4F ØJ'!G104<5,'Tabel 4 ØJ'!G104<0.5),"-",IFERROR('Tabel 4 ØJ'!G104/'Tabel 4F ØJ'!G104*100,"-")) -> 3.703703704 | I104: =IF(OR('Tabel 4F ØJ'!I104<5,'Tabel 4 ØJ'!I104<0.5),"-",IFERROR('Tabel 4 ØJ'!I104/'Tabel 4F ØJ'!I104*100,"-")) -> 3.554274736
A111: Syddjurs
C113: Under 30 år | D113: 30 - 39 år | E113: 40 - 49 år | F113: 50 - 59 år | G113: Over 60 år | I113: I alt
A115: Civ. ing. | C115: =IF(OR('Tabel 4F ØJ'!C115<5,'Tabel 4 ØJ'!C115<0.5),"-",IFERROR('Tabel 4 ØJ'!C115/'Tabel 4F ØJ'!C115*100,"-")) -> 14.28571429 | D115: =IF(OR('Tabel 4F ØJ'!D115<5,'Tabel 4 ØJ'!D115<0.5),"-",IFERROR('Tabel 4 ØJ'!D115/'Tabel 4F ØJ'!D115*100,"-")) -> - | E115: =IF(OR('Tabel 4F ØJ'!E115<5,'Tabel 4 ØJ'!E115<0.5),"-",IFERROR('Tabel 4 ØJ'!E115/'Tabel 4F ØJ'!E115*100,"-")) -> 4.166666667 | F115: =IF(OR('Tabel 4F ØJ'!F115<5,'Tabel 4 ØJ'!F115<0.5),"-",IFERROR('Tabel 4 ØJ'!F115/'Tabel 4F ØJ'!F115*100,"-")) -> 3.703703704 | G115: =IF(OR('Tabel 4F ØJ'!G115<5,'Tabel 4 ØJ'!G115<0.5),"-",IFERROR('Tabel 4 ØJ'!G115/'Tabel 4F ØJ'!G115*100,"-")) -> - | I115: =IF(OR('Tabel 4F ØJ'!I115<5,'Tabel 4 ØJ'!I115<0.5),"-",IFERROR('Tabel 4 ØJ'!I115/'Tabel 4F ØJ'!I115*100,"-")) -> 3.125
A116: Diplom ing. | C116: =IF(OR('Tabel 4F ØJ'!C116<5,'Tabel 4 ØJ'!C116<0.5),"-",IFERROR('Tabel 4 ØJ'!C116/'Tabel 4F ØJ'!C116*100,"-")) -> - | D116: =IF(OR('Tabel 4F ØJ'!D116<5,'Tabel 4 ØJ'!D116<0.5),"-",IFERROR('Tabel 4 ØJ'!D116/'Tabel 4F ØJ'!D116*100,"-")) -> 9.375 | E116: =IF(OR('Tabel 4F ØJ'!E116<5,'Tabel 4 ØJ'!E116<0.5),"-",IFERROR('Tabel 4 ØJ'!E116/'Tabel 4F ØJ'!E116*100,"-")) -> 2.941176471 | F116: =IF(OR('Tabel 4F ØJ'!F116<5,'Tabel 4 ØJ'!F116<0.5),"-",IFERROR('Tabel 4 ØJ'!F116/'Tabel 4F ØJ'!F116*100,"-")) -> - | G116: =IF(OR('Tabel 4F ØJ'!G116<5,'Tabel 4 ØJ'!G116<0.5),"-",IFERROR('Tabel 4 ØJ'!G116/'Tabel 4F ØJ'!G116*100,"-")) -> 4.651162791 | I116: =IF(OR('Tabel 4F ØJ'!I116<5,'Tabel 4 ØJ'!I116<0.5),"-",IFERROR('Tabel 4 ØJ'!I116/'Tabel 4F ØJ'!I116*100,"-")) -> 2.941176471
A117: Cand. Scient. Tek | C117: =IF(OR('Tabel 4F ØJ'!C117<5,'Tabel 4 ØJ'!C117<0.5),"-",IFERROR('Tabel 4 ØJ'!C117/'Tabel 4F ØJ'!C117*100,"-")) -> - | D117: =IF(OR('Tabel 4F ØJ'!D117<5,'Tabel 4 ØJ'!D117<0.5),"-",IFERROR('Tabel 4 ØJ'!D117/'Tabel 4F ØJ'!D117*100,"-")) -> 10 | E117: =IF(OR('Tabel 4F ØJ'!E117<5,'Tabel 4 ØJ'!E117<0.5),"-",IFERROR('Tabel 4 ØJ'!E117/'Tabel 4F ØJ'!E117*100,"-")) -> - | F117: =IF(OR('Tabel 4F ØJ'!F117<5,'Tabel 4 ØJ'!F117<0.5),"-",IFERROR('Tabel 4 ØJ'!F117/'Tabel 4F ØJ'!F117*100,"-")) -> - | G117: =IF(OR('Tabel 4F ØJ'!G117<5,'Tabel 4 ØJ'!G117<0.5),"-",IFERROR('Tabel 4 ØJ'!G117/'Tabel 4F ØJ'!G117*100,"-")) -> - | I117: =IF(OR('Tabel 4F ØJ'!I117<5,'Tabel 4 ØJ'!I117<0.5),"-",IFERROR('Tabel 4 ØJ'!I117/'Tabel 4F ØJ'!I117*100,"-")) -> 5.494505495
A118: MA. Hum. | C118: =IF(OR('Tabel 4F ØJ'!C118<5,'Tabel 4 ØJ'!C118<0.5),"-",IFERROR('Tabel 4 ØJ'!C118/'Tabel 4F ØJ'!C118*100,"-")) -> 26.66666667 | D118: =IF(OR('Tabel 4F ØJ'!D118<5,'Tabel 4 ØJ'!D118<0.5),"-",IFERROR('Tabel 4 ØJ'!D118/'Tabel 4F ØJ'!D118*100,"-")) -> 17.47572816 | E118: =IF(OR('Tabel 4F ØJ'!E118<5,'Tabel 4 ØJ'!E118<0.5),"-",IFERROR('Tabel 4 ØJ'!E118/'Tabel 4F ØJ'!E118*100,"-")) -> 3.260869565 | F118: =IF(OR('Tabel 4F ØJ'!F118<5,'Tabel 4 ØJ'!F118<0.5),"-",IFERROR('Tabel 4 ØJ'!F118/'Tabel 4F ØJ'!F118*100,"-")) -> 5.084745763 | G118: =IF(OR('Tabel 4F ØJ'!G118<5,'Tabel 4 ØJ'!G118<0.5),"-",IFERROR('Tabel 4 ØJ'!G118/'Tabel 4F ØJ'!G118*100,"-")) -> - | I118: =IF(OR('Tabel 4F ØJ'!I118<5,'Tabel 4 ØJ'!I118<0.5),"-",IFERROR('Tabel 4 ØJ'!I118/'Tabel 4F ØJ'!I118*100,"-")) -> 9.79020979
A119: MA. Nat. | C119: =IF(OR('Tabel 4F ØJ'!C119<5,'Tabel 4 ØJ'!C119<0.5),"-",IFERROR('Tabel 4 ØJ'!C119/'Tabel 4F ØJ'!C119*100,"-")) -> - | D119: =IF(OR('Tabel 4F ØJ'!D119<5,'Tabel 4 ØJ'!D119<0.5),"-",IFERROR('Tabel 4 ØJ'!D119/'Tabel 4F ØJ'!D119*100,"-")) -> 4.545454545 | E119: =IF(OR('Tabel 4F ØJ'!E119<5,'Tabel 4 ØJ'!E119<0.5),"-",IFERROR('Tabel 4 ØJ'!E119/'Tabel 4F ØJ'!E119*100,"-")) -> - | F119: =IF(OR('Tabel 4F ØJ'!F119<5,'Tabel 4 ØJ'!F119<0.5),"-",IFERROR('Tabel 4 ØJ'!F119/'Tabel 4F ØJ'!F119*100,"-")) -> - | G119: =IF(OR('Tabel 4F ØJ'!G119<5,'Tabel 4 ØJ'!G119<0.5),"-",IFERROR('Tabel 4 ØJ'!G119/'Tabel 4F ØJ'!G119*100,"-")) -> 5.555555556 | I119: =IF(OR('Tabel 4F ØJ'!I119<5,'Tabel 4 ØJ'!I119<0.5),"-",IFERROR('Tabel 4 ØJ'!I119/'Tabel 4F ØJ'!I119*100,"-")) -> 1.724137931
A120: MA. Ph.d. | C120: =IF(OR('Tabel 4F ØJ'!C120<5,'Tabel 4 ØJ'!C120<0.5),"-",IFERROR('Tabel 4 ØJ'!C120/'Tabel 4F ØJ'!C120*100,"-")) -> - | D120: =IF(OR('Tabel 4F ØJ'!D120<5,'Tabel 4 ØJ'!D120<0.5),"-",IFERROR('Tabel 4 ØJ'!D120/'Tabel 4F ØJ'!D120*100,"-")) -> 11.11111111 | E120: =IF(OR('Tabel 4F ØJ'!E120<5,'Tabel 4 ØJ'!E120<0.5),"-",IFERROR('Tabel 4 ØJ'!E120/'Tabel 4F ØJ'!E120*100,"-")) -> - | F120: =IF(OR('Tabel 4F ØJ'!F120<5,'Tabel 4 ØJ'!F120<0.5),"-",IFERROR('Tabel 4 ØJ'!F120/'Tabel 4F ØJ'!F120*100,"-")) -> - | G120: =IF(OR('Tabel 4F ØJ'!G120<5,'Tabel 4 ØJ'!G120<0.5),"-",IFERROR('Tabel 4 ØJ'!G120/'Tabel 4F ØJ'!G120*100,"-")) -> - | I120: =IF(OR('Tabel 4F ØJ'!I120<5,'Tabel 4 ØJ'!I120<0.5),"-",IFERROR('Tabel 4 ØJ'!I120/'Tabel 4F ØJ'!I120*100,"-")) -> 3.846153846
A121: MA. Samf. | C121: =IF(OR('Tabel 4F ØJ'!C121<5,'Tabel 4 ØJ'!C121<0.5),"-",IFERROR('Tabel 4 ØJ'!C121/'Tabel 4F ØJ'!C121*100,"-")) -> - | D121: =IF(OR('Tabel 4F ØJ'!D121<5,'Tabel 4 ØJ'!D121<0.5),"-",IFERROR('Tabel 4 ØJ'!D121/'Tabel 4F ØJ'!D121*100,"-")) -> 18.18181818 | E121: =IF(OR('Tabel 4F ØJ'!E121<5,'Tabel 4 ØJ'!E121<0.5),"-",IFERROR('Tabel 4 ØJ'!E121/'Tabel 4F ØJ'!E121*100,"-")) -> - | F121: =IF(OR('Tabel 4F ØJ'!F121<5,'Tabel 4 ØJ'!F121<0.5),"-",IFERROR('Tabel 4 ØJ'!F121/'Tabel 4F ØJ'!F121*100,"-")) -> - | G121: =IF(OR('Tabel 4F ØJ'!G121<5,'Tabel 4 ØJ'!G121<0.5),"-",IFERROR('Tabel 4 ØJ'!G121/'Tabel 4F ØJ'!G121*100,"-")) -> - | I121: =IF(OR('Tabel 4F ØJ'!I121<5,'Tabel 4 ØJ'!I121<0.5),"-",IFERROR('Tabel 4 ØJ'!I121/'Tabel 4F ØJ'!I121*100,"-")) -> 18.51851852
A122: Øvrige Mag. | C122: =IF(OR('Tabel 4F ØJ'!C122<5,'Tabel 4 ØJ'!C122<0.5),"-",IFERROR('Tabel 4 ØJ'!C122/'Tabel 4F ØJ'!C122*100,"-")) -> - | D122: =IF(OR('Tabel 4F ØJ'!D122<5,'Tabel 4 ØJ'!D122<0.5),"-",IFERROR('Tabel 4 ØJ'!D122/'Tabel 4F ØJ'!D122*100,"-")) -> - | E122: =IF(OR('Tabel 4F ØJ'!E122<5,'Tabel 4 ØJ'!E122<0.5),"-",IFERROR('Tabel 4 ØJ'!E122/'Tabel 4F ØJ'!E122*100,"-")) -> 9.090909091 | F122: =IF(OR('Tabel 4F ØJ'!F122<5,'Tabel 4 ØJ'!F122<0.5),"-",IFERROR('Tabel 4 ØJ'!F122/'Tabel 4F ØJ'!F122*100,"-")) -> - | G122: =IF(OR('Tabel 4F ØJ'!G122<5,'Tabel 4 ØJ'!G122<0.5),"-",IFERROR('Tabel 4 ØJ'!G122/'Tabel 4F ØJ'!G122*100,"-")) -> - | I122: =IF(OR('Tabel 4F ØJ'!I122<5,'Tabel 4 ØJ'!I122<0.5),"-",IFERROR('Tabel 4 ØJ'!I122/'Tabel 4F ØJ'!I122*100,"-")) -> 3.571428571
A123: Agronom | C123: =IF(OR('Tabel 4F ØJ'!C123<5,'Tabel 4 ØJ'!C123<0.5),"-",IFERROR('Tabel 4 ØJ'!C123/'Tabel 4F ØJ'!C123*100,"-")) -> - | D123: =IF(OR('Tabel 4F ØJ'!D123<5,'Tabel 4 ØJ'!D123<0.5),"-",IFERROR('Tabel 4 ØJ'!D123/'Tabel 4F ØJ'!D123*100,"-")) -> - | E123: =IF(OR('Tabel 4F ØJ'!E123<5,'Tabel 4 ØJ'!E123<0.5),"-",IFERROR('Tabel 4 ØJ'!E123/'Tabel 4F ØJ'!E123*100,"-")) -> - | F123: =IF(OR('Tabel 4F ØJ'!F123<5,'Tabel 4 ØJ'!F123<0.5),"-",IFERROR('Tabel 4 ØJ'!F123/'Tabel 4F ØJ'!F123*100,"-")) -> - | G123: =IF(OR('Tabel 4F ØJ'!G123<5,'Tabel 4 ØJ'!G123<0.5),"-",IFERROR('Tabel 4 ØJ'!G123/'Tabel 4F ØJ'!G123*100,"-")) -> - | I123: =IF(OR('Tabel 4F ØJ'!I123<5,'Tabel 4 ØJ'!I123<0.5),"-",IFERROR('Tabel 4 ØJ'!I123/'Tabel 4F ØJ'!I123*100,"-")) -> 3.448275862
A124: Landsk. Arkt. | C124: =IF(OR('Tabel 4F ØJ'!C124<5,'Tabel 4 ØJ'!C124<0.5),"-",IFERROR('Tabel 4 ØJ'!C124/'Tabel 4F ØJ'!C124*100,"-")) -> - | D124: =IF(OR('Tabel 4F ØJ'!D124<5,'Tabel 4 ØJ'!D124<0.5),"-",IFERROR('Tabel 4 ØJ'!D124/'Tabel 4F ØJ'!D124*100,"-")) -> - | E124: =IF(OR('Tabel 4F ØJ'!E124<5,'Tabel 4 ØJ'!E124<0.5),"-",IFERROR('Tabel 4 ØJ'!E124/'Tabel 4F ØJ'!E124*100,"-")) -> - | F124: =IF(OR('Tabel 4F ØJ'!F124<5,'Tabel 4 ØJ'!F124<0.5),"-",IFERROR('Tabel 4 ØJ'!F124/'Tabel 4F ØJ'!F124*100,"-")) -> - | G124: =IF(OR('Tabel 4F ØJ'!G124<5,'Tabel 4 ØJ'!G124<0.5),"-",IFERROR('Tabel 4 ØJ'!G124/'Tabel 4F ØJ'!G124*100,"-")) -> - | I124: =IF(OR('Tabel 4F ØJ'!I124<5,'Tabel 4 ØJ'!I124<0.5),"-",IFERROR('Tabel 4 ØJ'!I124/'Tabel 4F ØJ'!I124*100,"-")) -> -
A125: Hortonom | C125: =IF(OR('Tabel 4F ØJ'!C125<5,'Tabel 4 ØJ'!C125<0.5),"-",IFERROR('Tabel 4 ØJ'!C125/'Tabel 4F ØJ'!C125*100,"-")) -> - | D125: =IF(OR('Tabel 4F ØJ'!D125<5,'Tabel 4 ØJ'!D125<0.5),"-",IFERROR('Tabel 4 ØJ'!D125/'Tabel 4F ØJ'!D125*100,"-")) -> - | E125: =IF(OR('Tabel 4F ØJ'!E125<5,'Tabel 4 ØJ'!E125<0.5),"-",IFERROR('Tabel 4 ØJ'!E125/'Tabel 4F ØJ'!E125*100,"-")) -> - | F125: =IF(OR('Tabel 4F ØJ'!F125<5,'Tabel 4 ØJ'!F125<0.5),"-",IFERROR('Tabel 4 ØJ'!F125/'Tabel 4F ØJ'!F125*100,"-")) -> - | G125: =IF(OR('Tabel 4F ØJ'!G125<5,'Tabel 4 ØJ'!G125<0.5),"-",IFERROR('Tabel 4 ØJ'!G125/'Tabel 4F ØJ'!G125*100,"-")) -> - | I125: =IF(OR('Tabel 4F ØJ'!I125<5,'Tabel 4 ØJ'!I125<0.5),"-",IFERROR('Tabel 4 ØJ'!I125/'Tabel 4F ØJ'!I125*100,"-")) -> -
A126: Forstkand. | C126: =IF(OR('Tabel 4F ØJ'!C126<5,'Tabel 4 ØJ'!C126<0.5),"-",IFERROR('Tabel 4 ØJ'!C126/'Tabel 4F ØJ'!C126*100,"-")) -> - | D126: =IF(OR('Tabel 4F ØJ'!D126<5,'Tabel 4 ØJ'!D126<0.5),"-",IFERROR('Tabel 4 ØJ'!D126/'Tabel 4F ØJ'!D126*100,"-")) -> - | E126: =IF(OR('Tabel 4F ØJ'!E126<5,'Tabel 4 ØJ'!E126<0.5),"-",IFERROR('Tabel 4 ØJ'!E126/'Tabel 4F ØJ'!E126*100,"-")) -> - | F126: =IF(OR('Tabel 4F ØJ'!F126<5,'Tabel 4 ØJ'!F126<0.5),"-",IFERROR('Tabel 4 ØJ'!F126/'Tabel 4F ØJ'!F126*100,"-")) -> - | G126: =IF(OR('Tabel 4F ØJ'!G126<5,'Tabel 4 ØJ'!G126<0.5),"-",IFERROR('Tabel 4 ØJ'!G126/'Tabel 4F ØJ'!G126*100,"-")) -> - | I126: =IF(OR('Tabel 4F ØJ'!I126<5,'Tabel 4 ØJ'!I126<0.5),"-",IFERROR('Tabel 4 ØJ'!I126/'Tabel 4F ØJ'!I126*100,"-")) -> 16.66666667
A127: Jordbrugsakad. | C127: =IF(OR('Tabel 4F ØJ'!C127<5,'Tabel 4 ØJ'!C127<0.5),"-",IFERROR('Tabel 4 ØJ'!C127/'Tabel 4F ØJ'!C127*100,"-")) -> - | D127: =IF(OR('Tabel 4F ØJ'!D127<5,'Tabel 4 ØJ'!D127<0.5),"-",IFERROR('Tabel 4 ØJ'!D127/'Tabel 4F ØJ'!D127*100,"-")) -> - | E127: =IF(OR('Tabel 4F ØJ'!E127<5,'Tabel 4 ØJ'!E127<0.5),"-",IFERROR('Tabel 4 ØJ'!E127/'Tabel 4F ØJ'!E127*100,"-")) -> 12.5 | F127: =IF(OR('Tabel 4F ØJ'!F127<5,'Tabel 4 ØJ'!F127<0.5),"-",IFERROR('Tabel 4 ØJ'!F127/'Tabel 4F ØJ'!F127*100,"-")) -> - | G127: =IF(OR('Tabel 4F ØJ'!G127<5,'Tabel 4 ØJ'!G127<0.5),"-",IFERROR('Tabel 4 ØJ'!G127/'Tabel 4F ØJ'!G127*100,"-")) -> 10 | I127: =IF(OR('Tabel 4F ØJ'!I127<5,'Tabel 4 ØJ'!I127<0.5),"-",IFERROR('Tabel 4 ØJ'!I127/'Tabel 4F ØJ'!I127*100,"-")) -> 4.651162791
A128: Mejeriing. | C128: =IF(OR('Tabel 4F ØJ'!C128<5,'Tabel 4 ØJ'!C128<0.5),"-",IFERROR('Tabel 4 ØJ'!C128/'Tabel 4F ØJ'!C128*100,"-")) -> - | D128: =IF(OR('Tabel 4F ØJ'!D128<5,'Tabel 4 ØJ'!D128<0.5),"-",IFERROR('Tabel 4 ØJ'!D128/'Tabel 4F ØJ'!D128*100,"-")) -> - | E128: =IF(OR('Tabel 4F ØJ'!E128<5,'Tabel 4 ØJ'!E128<0.5),"-",IFERROR('Tabel 4 ØJ'!E128/'Tabel 4F ØJ'!E128*100,"-")) -> - | F128: =IF(OR('Tabel 4F ØJ'!F128<5,'Tabel 4 ØJ'!F128<0.5),"-",IFERROR('Tabel 4 ØJ'!F128/'Tabel 4F ØJ'!F128*100,"-")) -> - | G128: =IF(OR('Tabel 4F ØJ'!G128<5,'Tabel 4 ØJ'!G128<0.5),"-",IFERROR('Tabel 4 ØJ'!G128/'Tabel 4F ØJ'!G128*100,"-")) -> - | I128: =IF(OR('Tabel 4F ØJ'!I128<5,'Tabel 4 ØJ'!I128<0.5),"-",IFERROR('Tabel 4 ØJ'!I128/'Tabel 4F ØJ'!I128*100,"-")) -> -
A129: Levn.m.kand. | C129: =IF(OR('Tabel 4F ØJ'!C129<5,'Tabel 4 ØJ'!C129<0.5),"-",IFERROR('Tabel 4 ØJ'!C129/'Tabel 4F ØJ'!C129*100,"-")) -> - | D129: =IF(OR('Tabel 4F ØJ'!D129<5,'Tabel 4 ØJ'!D129<0.5),"-",IFERROR('Tabel 4 ØJ'!D129/'Tabel 4F ØJ'!D129*100,"-")) -> - | E129: =IF(OR('Tabel 4F ØJ'!E129<5,'Tabel 4 ØJ'!E129<0.5),"-",IFERROR('Tabel 4 ØJ'!E129/'Tabel 4F ØJ'!E129*100,"-")) -> - | F129: =IF(OR('Tabel 4F ØJ'!F129<5,'Tabel 4 ØJ'!F129<0.5),"-",IFERROR('Tabel 4 ØJ'!F129/'Tabel 4F ØJ'!F129*100,"-")) -> - | G129: =IF(OR('Tabel 4F ØJ'!G129<5,'Tabel 4 ØJ'!G129<0.5),"-",IFERROR('Tabel 4 ØJ'!G129/'Tabel 4F ØJ'!G129*100,"-")) -> - | I129: =IF(OR('Tabel 4F ØJ'!I129<5,'Tabel 4 ØJ'!I129<0.5),"-",IFERROR('Tabel 4 ØJ'!I129/'Tabel 4F ØJ'!I129*100,"-")) -> -
A130: Dyrlæge | C130: =IF(OR('Tabel 4F ØJ'!C130<5,'Tabel 4 ØJ'!C130<0.5),"-",IFERROR('Tabel 4 ØJ'!C130/'Tabel 4F ØJ'!C130*100,"-")) -> - | D130: =IF(OR('Tabel 4F ØJ'!D130<5,'Tabel 4 ØJ'!D130<0.5),"-",IFERROR('Tabel 4 ØJ'!D130/'Tabel 4F ØJ'!D130*100,"-")) -> - | E130: =IF(OR('Tabel 4F ØJ'!E130<5,'Tabel 4 ØJ'!E130<0.5),"-",IFERROR('Tabel 4 ØJ'!E130/'Tabel 4F ØJ'!E130*100,"-")) -> - | F130: =IF(OR('Tabel 4F ØJ'!F130<5,'Tabel 4 ØJ'!F130<0.5),"-",IFERROR('Tabel 4 ØJ'!F130/'Tabel 4F ØJ'!F130*100,"-")) -> - | G130: =IF(OR('Tabel 4F ØJ'!G130<5,'Tabel 4 ØJ'!G130<0.5),"-",IFERROR('Tabel 4 ØJ'!G130/'Tabel 4F ØJ'!G130*100,"-")) -> - | I130: =IF(OR('Tabel 4F ØJ'!I130<5,'Tabel 4 ØJ'!I130<0.5),"-",IFERROR('Tabel 4 ØJ'!I130/'Tabel 4F ØJ'!I130*100,"-")) -> -
A131: Farmaceut | C131: =IF(OR('Tabel 4F ØJ'!C131<5,'Tabel 4 ØJ'!C131<0.5),"-",IFERROR('Tabel 4 ØJ'!C131/'Tabel 4F ØJ'!C131*100,"-")) -> - | D131: =IF(OR('Tabel 4F ØJ'!D131<5,'Tabel 4 ØJ'!D131<0.5),"-",IFERROR('Tabel 4 ØJ'!D131/'Tabel 4F ØJ'!D131*100,"-")) -> - | E131: =IF(OR('Tabel 4F ØJ'!E131<5,'Tabel 4 ØJ'!E131<0.5),"-",IFERROR('Tabel 4 ØJ'!E131/'Tabel 4F ØJ'!E131*100,"-")) -> - | F131: =IF(OR('Tabel 4F ØJ'!F131<5,'Tabel 4 ØJ'!F131<0.5),"-",IFERROR('Tabel 4 ØJ'!F131/'Tabel 4F ØJ'!F131*100,"-")) -> - | G131: =IF(OR('Tabel 4F ØJ'!G131<5,'Tabel 4 ØJ'!G131<0.5),"-",IFERROR('Tabel 4 ØJ'!G131/'Tabel 4F ØJ'!G131*100,"-")) -> - | I131: =IF(OR('Tabel 4F ØJ'!I131<5,'Tabel 4 ØJ'!I131<0.5),"-",IFERROR('Tabel 4 ØJ'!I131/'Tabel 4F ØJ'!I131*100,"-")) -> -
A132: Læge | C132: =IF(OR('Tabel 4F ØJ'!C132<5,'Tabel 4 ØJ'!C132<0.5),"-",IFERROR('Tabel 4 ØJ'!C132/'Tabel 4F ØJ'!C132*100,"-")) -> - | D132: =IF(OR('Tabel 4F ØJ'!D132<5,'Tabel 4 ØJ'!D132<0.5),"-",IFERROR('Tabel 4 ØJ'!D132/'Tabel 4F ØJ'!D132*100,"-")) -> 6.666666667 | E132: =IF(OR('Tabel 4F ØJ'!E132<5,'Tabel 4 ØJ'!E132<0.5),"-",IFERROR('Tabel 4 ØJ'!E132/'Tabel 4F ØJ'!E132*100,"-")) -> - | F132: =IF(OR('Tabel 4F ØJ'!F132<5,'Tabel 4 ØJ'!F132<0.5),"-",IFERROR('Tabel 4 ØJ'!F132/'Tabel 4F ØJ'!F132*100,"-")) -> - | G132: =IF(OR('Tabel 4F ØJ'!G132<5,'Tabel 4 ØJ'!G132<0.5),"-",IFERROR('Tabel 4 ØJ'!G132/'Tabel 4F ØJ'!G132*100,"-")) -> - | I132: =IF(OR('Tabel 4F ØJ'!I132<5,'Tabel 4 ØJ'!I132<0.5),"-",IFERROR('Tabel 4 ØJ'!I132/'Tabel 4F ØJ'!I132*100,"-")) -> 5.882352941
A133: Tandlæge | C133: =IF(OR('Tabel 4F ØJ'!C133<5,'Tabel 4 ØJ'!C133<0.5),"-",IFERROR('Tabel 4 ØJ'!C133/'Tabel 4F ØJ'!C133*100,"-")) -> - | D133: =IF(OR('Tabel 4F ØJ'!D133<5,'Tabel 4 ØJ'!D133<0.5),"-",IFERROR('Tabel 4 ØJ'!D133/'Tabel 4F ØJ'!D133*100,"-")) -> - | E133: =IF(OR('Tabel 4F ØJ'!E133<5,'Tabel 4 ØJ'!E133<0.5),"-",IFERROR('Tabel 4 ØJ'!E133/'Tabel 4F ØJ'!E133*100,"-")) -> 16.66666667 | F133: =IF(OR('Tabel 4F ØJ'!F133<5,'Tabel 4 ØJ'!F133<0.5),"-",IFERROR('Tabel 4 ØJ'!F133/'Tabel 4F ØJ'!F133*100,"-")) -> - | G133: =IF(OR('Tabel 4F ØJ'!G133<5,'Tabel 4 ØJ'!G133<0.5),"-",IFERROR('Tabel 4 ØJ'!G133/'Tabel 4F ØJ'!G133*100,"-")) -> - | I133: =IF(OR('Tabel 4F ØJ'!I133<5,'Tabel 4 ØJ'!I133<0.5),"-",IFERROR('Tabel 4 ØJ'!I133/'Tabel 4F ØJ'!I133*100,"-")) -> 5.263157895
A134: Arkitekt | C134: =IF(OR('Tabel 4F ØJ'!C134<5,'Tabel 4 ØJ'!C134<0.5),"-",IFERROR('Tabel 4 ØJ'!C134/'Tabel 4F ØJ'!C134*100,"-")) -> - | D134: =IF(OR('Tabel 4F ØJ'!D134<5,'Tabel 4 ØJ'!D134<0.5),"-",IFERROR('Tabel 4 ØJ'!D134/'Tabel 4F ØJ'!D134*100,"-")) -> 12.5 | E134: =IF(OR('Tabel 4F ØJ'!E134<5,'Tabel 4 ØJ'!E134<0.5),"-",IFERROR('Tabel 4 ØJ'!E134/'Tabel 4F ØJ'!E134*100,"-")) -> 4.545454545 | F134: =IF(OR('Tabel 4F ØJ'!F134<5,'Tabel 4 ØJ'!F134<0.5),"-",IFERROR('Tabel 4 ØJ'!F134/'Tabel 4F ØJ'!F134*100,"-")) -> 4.761904762 | G134: =IF(OR('Tabel 4F ØJ'!G134<5,'Tabel 4 ØJ'!G134<0.5),"-",IFERROR('Tabel 4 ØJ'!G134/'Tabel 4F ØJ'!G134*100,"-")) -> - | I134: =IF(OR('Tabel 4F ØJ'!I134<5,'Tabel 4 ØJ'!I134<0.5),"-",IFERROR('Tabel 4 ØJ'!I134/'Tabel 4F ØJ'!I134*100,"-")) -> 6.329113924
